Workbook

Sheet Quantities
O1: Segment 1 | Q1: Segment 2 | S1: Segment 3
A2: 1 | B2: 2 | C2: 3 | D2: 4 | E2: 5 | F2: 6 | G2: 7 | H2: 8 | I2: 9 | J2: 10 | K2: 11 | L2: 12 | M2: 13 | N2: 14 | O2: 15 | P2: 16 | Q2: 17 | R2: 18 | S2: 19 | T2: 20 | U2: 21 | V2: 22 | W2: 23 | X2: 24 | Y2: 25 | Z2: 26 | AA2: 27 | AB2: 28 | AC2: 29 | AD2: 30 | AE2: 31 | AF2: 32 | AG2: 33 | AH2: 34 | AI2: 35 | AJ2: 36
A3: Item | B3: Facility | C3: Sub Area or Destination for Cover Material | D3: Description | E3: Area (sf) | F3: Volume (cy) | G3: Push Distance (ft) Berm Length (ft) or Fence Length(ft) | H3: Coarse Regrading and Fine Grading (%) | I3: One-Way Scraper Haul (ft) | J3: Scraper Grade (%) | K3: Down Drains (ft) | L3: Downdrain Dissipater (ea) | M3: Channels (ft) | N3: Bench Grading (ft) | O3: Distance (ft) | P3: Average Grade (%) | Q3: Distance (ft) | R3: Average Grade (%) | S3: Distance (ft) | T3: Average Grade (%) | U3: Cover Depth (In) | V3: Swell Factor (%) | W3: Material Factor for Coarse Regrading | X3: Material Factor for Fine Grading Cover | Y3: Material Weight for Coarse Regrading (lb/cy) | Z3: Material Weight for Fine Grading Cover (lb/cy) | AA3: Ripping Length (ft) | AB3: Breach Dams (cy) | AC3: Start of Reclamation Year | AD3: Reclamation Complete | AE3: Vehicle Gates | AF3: Signs Posted Every 500 ft | AG3: Grade Control Wall (cy concrete) | AH3: Replace Infrastructure | AI3: Plug and Abandon Well (ft) | AJ3: Replace Well (ft)
A4: 1000 | B4: 1A Leach, 1B Leach | C4: 1A1B-0 | D4: Entire Stockpile | E4: =SUM(E5:E7) -> 11891880 | F4: =SUM(F5:F7) -> 1548670.33 | G4: 0 | H4: - | K4: 3727 | L4: 4 | M4: =45200+4813+5980 -> 55993 | N4: 44800 | U4: 36 | V4: 0 | W4: 1 | X4: 1.2 | Y4: 3300 | Z4: 2900 | AA4: 1000 | AC4: 2022-01-01 | AD4: 2027-12-31 | AE4: - | AF4: - | AG4: - | AH4: - | AI4: - | AJ4: -
A5: 1001 | B5: 1A Leach, 1B Leach | C5: 1A1B-1 | D5: Top | E5: =17*43560 -> 740520 | F5: 79000 | G5: 430 | H5: 0.01 | K5: - | L5: - | M5: - | N5: - | U5: 36 | V5: 0 | W5: 1 | X5: 1.2 | Y5: 3300 | Z5: 2900 | AA5: 1000 | AC5: 2022-01-01 | AD5: 2027-12-31 | AE5: - | AF5: - | AG5: - | AH5: - | AI5: - | AJ5: -
A6: 1002 | B6: 1A Leach, 1B Leach | C6: 1A1B-2 | D6: Outslopes - Regrade benches from pullback | E6: 0 | F6: 1329670.33 | G6: 90 | H6: -0.29 | K6: - | L6: - | M6: - | N6: - | U6: 36 | V6: 0 | W6: 1 | X6: 1.2 | Y6: 3300 | Z6: 2900 | AA6: 1000 | AC6: 2022-01-01 | AD6: 2027-12-31 | AE6: - | AF6: - | AG6: - | AH6: - | AI6: - | AJ6: -
A7: 1003 | B7: 1A Leach, 1B Leach | C7: 1A1B-3 | D7: Outslopes - Area outside of pullback | E7: =256*43560 -> 11151360 | F7: 140000 | G7: 250 | H7: -0.29 | K7: - | L7: - | M7: - | N7: - | U7: 36 | V7: 0 | W7: 1 | X7: 1.2 | Y7: 3300 | Z7: 2900 | AA7: 1000 | AC7: 2022-01-01 | AD7: 2027-12-31 | AE7: - | AF7: - | AG7: - | AH7: - | AI7: - | AJ7: -
A8: 1100 | B8: Reclaimed 1C Waste | C8: 1C-0 | D8: Top (Haul Road) | E8: =43560*17.00413 -> 740699.9028 | F8: - | G8: 0 | K8: - | L8: - | M8: - | N8: - | U8: 36 | V8: 0 | W8: 1 | X8: 1.2 | Y8: 3300 | Z8: 2900 | AA8: 1000 | AC8: 2017-01-01 | AD8: 2019-12-31 | AE8: - | AF8: - | AG8: - | AH8: - | AI8: - | AJ8: -
A9: 1200 | B9: 2B Waste, 2A Leach, 2B Leach | C9: 2A2B-0 | D9: Entire Stockpile | E9: =SUM(E10:E11) -> 21213358.45 | F9: =SUM(F10:F11) -> 8203000 | G9: 0 | H9: - | K9: 7999 | L9: 5 | M9: =58600+10950+6320 -> 75870 | N9: 58600 | U9: 36 | V9: 0 | W9: 1 | X9: 1.2 | Y9: 3300 | Z9: 2900 | AA9: 1000 | AC9: 2017-01-01 | AD9: 2027-12-31 | AE9: - | AF9: - | AG9: - | AH9: - | AI9: - | AJ9: -
A10: 1201 | B10: 2B Waste, 2A Leach, 2B Leach | C10: 2A2B-1 | D10: Top | E10: =36*43560 -> 1568160 | F10: 143000 | G10: 370 | H10: 0.01 | K10: - | L10: - | M10: - | N10: - | U10: 36 | V10: 0 | W10: 1 | X10: 1.2 | Y10: 3300 | Z10: 2900 | AA10: 1000 | AC10: 2017-01-01 | AD10: 2027-12-31 | AE10: - | AF10: - | AG10: - | AH10: - | AI10: - | AJ10: -
A11: 1202 | B11: 2B Waste, 2A Leach, 2B Leach | C11: 2A2B-2 | D11: Outslopes | E11: =450.9917*43560 -> 19645198.45 | F11: 8060000 | G11: 470 | H11: -0.29 | K11: - | L11: - | M11: - | N11: - | U11: 36 | V11: 0 | W11: 1 | X11: 1.2 | Y11: 3300 | Z11: 2900 | AA11: 1000 | AC11: 2017-01-01 | AD11: 2027-12-31 | AE11: - | AF11: - | AG11: - | AH11: - | AI11: - | AJ11: -
A12: 1300 | B12: 3A Leach, 3B Waste | C12: 3A3B-0 | D12: Entire Stockpile | E12: =SUM(E13:E16) -> 19819800 | F12: =SUM(F13,F16,F15) -> 5289064.103 | G12: 0 | H12: - | K12: 6069 | L12: 4 | M12: =65200+1010 -> 66210 | N12: 65200 | U12: 36 | V12: 0 | W12: 1 | X12: 1.2 | Y12: 3300 | Z12: 2900 | AA12: 1000 | AC12: 2017-01-01 | AD12: 2028-12-31 | AE12: - | AF12: - | AG12: - | AH12: - | AI12: - | AJ12: -
A13: 1301 | B13: 3A Leach, 3B Waste | C13: 3A3B-1 | D13: Top | E13: =33*43560 -> 1437480 | F13: 199000 | G13: 560 | H13: 0.01 | I13: =2080/3+2*2480/3 -> 2346.666667 | J13: =7%/3+2*12.5%/3 -> 0.1066666667 | K13: - | L13: - | M13: - | N13: - | U13: 36 | V13: 0 | W13: 1 | X13: 1.2 | Y13: 3300 | Z13: 2900 | AA13: 1000 | AC13: 2017-01-01 | AD13: 2028-12-31 | AE13: - | AF13: - | AG13: - | AH13: - | AI13: - | AJ13: -
A14: 1302 | B14: 3A Leach, 3B Waste | C14: 3A3B-2 | D14: Outslopes Pullback | E14: 0 | F14: 17500000 | G14: 0 | H14: -0.29 | I14: =2080/3+2*2480/3 -> 2346.666667 | J14: =7%/3+2*12.5%/3 -> 0.1066666667 | K14: - | L14: - | M14: - | N14: - | O14: 3900 | P14: 0 | Q14: 0 | R14: 0 | S14: 0 | T14: 0 | U14: 36 | V14: 0 | W14: 1 | X14: 1.2 | Y14: 3300 | Z14: 2900 | AA14: 1000 | AC14: 2017-01-01 | AD14: 2028-12-31 | AE14: - | AF14: - | AG14: - | AH14: - | AI14: - | AJ14: -
A15: 1303 | B15: 3A Leach, 3B Waste | C15: 3A3B-3 | D15: Outslopes - Regrade benches from pullback | E15: 0 | F15: 1590064.103 | G15: 90 | H15: -0.29 | I15: =2080/3+2*2480/3 -> 2346.666667 | J15: =7%/3+2*12.5%/3 -> 0.1066666667 | K15: - | L15: - | M15: - | N15: - | U15: 36 | V15: 0 | W15: 1 | X15: 1.2 | Y15: 3300 | Z15: 2900 | AA15: 1000 | AC15: 2017-01-01 | AD15: 2028-12-31 | AE15: - | AF15: - | AG15: - | AH15: - | AI15: - | AJ15: -
A16: 1304 | B16: 3A Leach, 3B Waste | C16: 3A3B-4 | D16: Outslopes (total area, volume outside of pullback) | E16: =422*43560 -> 18382320 | F16: 3500000 | G16: 560 | H16: -0.29 | I16: =2080/3+2*2480/3 -> 2346.666667 | J16: =7%/3+2*12.5%/3 -> 0.1066666667 | K16: - | L16: - | M16: - | N16: - | U16: 36 | V16: 0 | W16: 1 | X16: 1.2 | Y16: 3300 | Z16: 2900 | AA16: 1000 | AC16: 2017-01-01 | AD16: 2028-12-31 | AE16: - | AF16: - | AG16: - | AH16: - | AI16: - | AJ16: -
A17: 1400 | B17: 2 Leach (Area 1) | C17: 2LeachArea1-0 | D17: Entire Stockpile | E17: =SUM(E18:E19) -> 7971480 | F17: =SUM(F18:F19) -> 2767000 | G17: 0 | H17: - | K17: 3125 | L17: 3 | M17: =16100+3450 -> 19550 | N17: 16100 | U17: 36 | V17: 0 | W17: 1 | X17: 1.2 | Y17: 3300 | Z17: 2900 | AA17: 1000 | AC17: 2022-01-01 | AD17: 2027-12-31 | AE17: - | AF17: - | AG17: - | AH17: - | AI17: - | AJ17: -
A18: 1401 | B18: 2 Leach (Area 1) | C18: 2LeachArea1-1 | D18: Top | E18: =13*43560 -> 566280 | F18: 67000 | G18: 480 | H18: 0.01 | K18: - | L18: - | M18: - | N18: - | U18: 36 | V18: 0 | W18: 1 | X18: 1.2 | Y18: 3300 | Z18: 2900 | AA18: 1000 | AC18: 2022-01-01 | AD18: 2027-12-31 | AE18: - | AF18: - | AG18: - | AH18: - | AI18: - | AJ18: -
A19: 1402 | B19: 2 Leach (Area 1) | C19: 2 LeachArea1-2 | D19: Outslopes | E19: =170*43560 -> 7405200 | F19: 2700000 | G19: 430 | H19: -0.29 | K19: - | L19: - | M19: - | N19: - | U19: 36 | V19: 0 | W19: 1 | X19: 1.2 | Y19: 3300 | Z19: 2900 | AA19: 1000 | AC19: 2022-01-01 | AD19: 2027-12-31 | AE19: - | AF19: - | AG19: - | AH19: - | AI19: - | AJ19: -
A20: 1500 | B20: 5A Waste | C20: 5A-0 | D20: Entire Stockpile | E20: =SUM(E21:E22) -> 16160760 | F20: =SUM(F21:F22) -> 6713000 | G20: 0 | H20: - | K20: 2754 | L20: 2 | M20: =44000+6330+500 -> 50830 | N20: 44000 | U20: 36 | V20: 0 | W20: 1 | X20: 1.2 | Y20: 3300 | Z20: 2900 | AA20: 1000 | AC20: 2017-01-01 | AD20: 2027-12-31 | AE20: - | AF20: - | AG20: - | AH20: - | AI20: - | AJ20: -
A21: 1501 | B21: 5A Waste | C21: 5A-1 | D21: Top | E21: =63*43560 -> 2744280 | F21: 413000 | G21: 610 | H21: 0.01 | K21: - | L21: - | M21: - | N21: - | U21: 36 | V21: 0 | W21: 1 | X21: 1.2 | Y21: 3300 | Z21: 2900 | AA21: 1000 | AC21: 2017-01-01 | AD21: 2027-12-31 | AE21: - | AF21: - | AG21: - | AH21: - | AI21: - | AJ21: -
A22: 1502 | B22: 5A Waste | C22: 5A-2 | D22: Outslopes | E22: =308*43560 -> 13416480 | F22: 6300000 | G22: 540 | H22: -0.29 | K22: - | L22: - | M22: - | N22: - | U22: 36 | V22: 0 | W22: 1 | X22: 1.2 | Y22: 3300 | Z22: 2900 | AA22: 1000 | AC22: 2017-01-01 | AD22: 2027-12-31 | AE22: - | AF22: - | AG22: - | AH22: - | AI22: - | AJ22: -
A23: 1600 | B23: 6B Leach, 6D Leach | C23: 6B6D-0 | D23: Entire Stockpile | E23: =SUM(E24:E25) -> 2352240 | F23: =SUM(F24:F25) -> 330000 | G23: 0 | H23: - | K23: 800 | L23: 1 | M23: 1550 | N23: - | U23: 36 | V23: 0 | W23: 1 | X23: 1.2 | Y23: 3300 | Z23: 2900 | AA23: 1000 | AC23: 2022-01-01 | AD23: 2027-12-31 | AE23: - | AF23: - | AG23: - | AH23: - | AI23: - | AJ23: -
A24: 1601 | B24: 6B Leach, 6D Leach | C24: 6B6D-1 | D24: Top | E24: =39*43560 -> 1698840 | F24: 147000 | G24: 350 | H24: 0.01 | K24: - | L24: - | M24: - | N24: - | U24: 36 | V24: 0 | W24: 1 | X24: 1.2 | Y24: 3300 | Z24: 2900 | AA24: 1000 | AC24: 2022-01-01 | AD24: 2027-12-31 | AE24: - | AF24: - | AG24: - | AH24: - | AI24: - | AJ24: -
A25: 1602 | B25: 6B Leach, 6D Leach | C25: 6B6D-2 | D25: Outslopes | E25: =15*43560 -> 653400 | F25: 183000 | G25: 180 | H25: -0.29 | K25: - | L25: - | M25: - | N25: - | U25: 36 | V25: 0 | W25: 1 | X25: 1.2 | Y25: 3300 | Z25: 2900 | AA25: 1000 | AC25: 2022-01-01 | AD25: 2027-12-31 | AE25: - | AF25: - | AG25: - | AH25: - | AI25: - | AJ25: -
A26: 1700 | B26: 6C Leach | C26: 6C-0 | D26: Entire Stockpile | E26: =SUM(E27:E28) -> 2874960 | F26: =SUM(F27:F28) -> 669000 | G26: 0 | H26: - | K26: 550 | L26: 1 | M26: =4100+8387 -> 12487 | N26: 4100 | U26: 36 | V26: 0 | W26: 1 | X26: 1.2 | Y26: 3300 | Z26: 2900 | AA26: 1000 | AC26: 2022-01-01 | AD26: 2028-12-31 | AE26: - | AF26: - | AG26: - | AH26: - | AI26: - | AJ26: -
A27: 1701 | B27: 6C Leach | C27: 6C-1 | D27: Top | E27: =10*43560 -> 435600 | F27: 19000 | G27: 180 | H27: 0.01 | K27: - | L27: - | M27: - | N27: - | U27: 36 | V27: 0 | W27: 1 | X27: 1.2 | Y27: 3300 | Z27: 2900 | AA27: 1000 | AC27: 2022-01-01 | AD27: 2028-12-31 | AE27: - | AF27: - | AG27: - | AH27: - | AI27: - | AJ27: -
A28: 1702 | B28: 6C Leach | C28: 6C-2 | D28: Outslopes | E28: =56*43560 -> 2439360 | F28: 650000 | G28: 325 | H28: -0.29 | K28: - | L28: - | M28: - | N28: - | U28: 36 | V28: 0 | W28: 1 | X28: 1.2 | Y28: 3300 | Z28: 2900 | AA28: 1000 | AC28: 2022-01-01 | AD28: 2028-12-31 | AE28: - | AF28: - | AG28: - | AH28: - | AI28: - | AJ28: -
A29: 1800 | B29: 2 Leach (Area 2), 7B Leach, 7B Waste, 7C Waste, South Rim Pit | C29: 2LeachArea2-0 | D29: Entire Stockpile | E29: =SUM(E30:E31) -> 16335000 | F29: =SUM(F30:F31) -> 3303000 | G29: 0 | H29: - | K29: 2943 | L29: 3 | M29: 26700 | N29: 26700 | U29: 36 | V29: 0 | W29: 1 | X29: 1.2 | Y29: 3300 | Z29: 2900 | AA29: 1000 | AC29: 2022-01-01 | AD29: 2027-12-31 | AE29: - | AF29: - | AG29: - | AH29: - | AI29: - | AJ29: -
A30: 1801 | B30: 2 Leach (Area 2), 7B Leach, 7B Waste, 7C Waste, South Rim Pit | C30: 2LeachArea2-1 | D30: Top | E30: =43560*126 -> 5488560 | F30: 1003000 | G30: 740 | H30: 0.01 | K30: - | L30: - | M30: - | N30: - | U30: 36 | V30: 0 | W30: 1 | X30: 1.2 | Y30: 3300 | Z30: 2900 | AA30: 1000 | AC30: 2022-01-01 | AD30: 2027-12-31 | AE30: - | AF30: - | AG30: - | AH30: - | AI30: - | AJ30: -
A31: 1802 | B31: 2 Leach (Area 2), 7B Leach, 7B Waste, 7C Waste, South Rim Pit | C31: 2LeachArea2-2 | D31: Outslopes | E31: =43560*249 -> 10846440 | F31: 2300000 | G31: 420 | H31: -0.29 | K31: - | L31: - | M31: - | N31: - | U31: 36 | V31: 0 | W31: 1 | X31: 1.2 | Y31: 3300 | Z31: 2900 | AA31: 1000 | AC31: 2022-01-01 | AD31: 2027-12-31 | AE31: - | AF31: - | AG31: - | AH31: - | AI31: - | AJ31: -
A32: 1900 | B32: 8A Waste, 8C Waste | C32: 8A8C-0 | D32: Sludge Disposal Area | E32: =47.36*43560 -> 2063001.6 | F32: - | G32: 0 | K32: - | L32: - | M32: - | N32: - | U32: 36 | V32: 0 | W32: 1 | X32: 1.2 | Y32: 3300 | Z32: 2900 | AA32: 1000 | AC32: 2019-01-01 | AD32: =Quantities[[#This Row],[Start of Reclamation Year]]+365.25*3 -> 2021-12-31T18:00:00 | AE32: - | AF32: - | AG32: - | AH32: - | AI32: - | AJ32: -
A33: 2000 | B33: 9A Waste | C33: 9A-0 | D33: Entire Stockpile | E33: =SUM(E34:E35) -> 5619240 | F33: =SUM(F34:F35) -> 682673.9927 | G33: 0 | H33: - | K33: 2300 | L33: 1 | M33: =23700+1448 -> 25148 | N33: 23700 | U33: 36 | V33: 0 | W33: 1 | X33: 1.2 | Y33: 3300 | Z33: 2900 | AA33: 1000 | AC33: 2017-01-01 | AD33: 2019-12-31 | AE33: - | AF33: - | AG33: - | AH33: - | AI33: - | AJ33: -
A34: 2001 | B34: 9A Waste | C34: 9A-1 | D34: Top | E34: =13*43560 -> 566280 | F34: 40000 | G34: 285 | H34: 0.01 | K34: - | L34: - | M34: - | N34: - | U34: 36 | V34: 0 | W34: 1 | X34: 1.2 | Y34: 3300 | Z34: 2900 | AA34: 1000 | AC34: 2017-01-01 | AD34: 2019-12-31 | AE34: - | AF34: - | AG34: - | AH34: - | AI34: - | AJ34: -
A35: 2002 | B35: 9A Waste | C35: 9A-2 | D35: Outslopes - Regrade benches from pullback | E35: =116*43560 -> 5052960 | F35: 642673.9927 | G35: 90 | H35: -0.29 | K35: - | L35: - | M35: - | N35: - | U35: 36 | V35: 0 | W35: 1 | X35: 1.2 | Y35: 3300 | Z35: 2900 | AA35: 1000 | AC35: 2017-01-01 | AD35: 2019-12-31 | AE35: - | AF35: - | AG35: - | AH35: - | AI35: - | AJ35: -
A36: 2100 | B36: 9AX Waste | C36: 9AX-0 | D36: Entire Stockpile | E36: =SUM(E37:E38) -> 2774772 | F36: =SUM(F37:F38) -> 601356 | G36: 0 | H36: - | K36: - | L36: - | M36: 12300 | N36: 12300 | U36: 12 | V36: 0 | W36: 1 | X36: 1.2 | Y36: 3600 | Z36: 2900 | AA36: 1000 | AC36: 2028-01-01 | AD36: 2028-12-31 | AE36: - | AF36: - | AG36: - | AH36: - | AI36: 405 | AJ36: -
A37: 2101 | B37: 9AX Waste | C37: 9AX-1 | D37: North | E37: =63.7*0.75*43560 -> 2081079 | F37: =601356*0.75 -> 451017 | G37: 458 | H37: -0.29 | K37: - | L37: - | M37: - | N37: - | U37: 12 | V37: 0 | W37: 1 | X37: 1.2 | Y37: 3600 | Z37: 2900 | AA37: 1000 | AC37: 2028-01-01 | AD37: 2028-12-31 | AE37: - | AF37: - | AG37: - | AH37: - | AI37: - | AJ37: -
A38: 2102 | B38: 9AX Waste | C38: 9AX-2 | D38: South | E38: =63.7*0.25*43560 -> 693693 | F38: =601356*0.25 -> 150339 | G38: 235 | H38: -0.29 | K38: - | L38: - | M38: - | N38: - | U38: 12 | V38: 0 | W38: 1 | X38: 1.2 | Y38: 3600 | Z38: 2900 | AA38: 1000 | AC38: 2028-01-01 | AD38: 2028-12-31 | AE38: - | AF38: - | AG38: - | AH38: - | AI38: - | AJ38: -
A39: 2200 | B39: San Salvador Pit, San Salvador Waste Backfill | C39: SanSal-0 | D39: Entire Pit | E39: =115*43560 -> 5009400 | F39: 1600000 | G39: 185 | H39: -0.05 | K39: 1227 | L39: 1 | M39: =4700+4117 -> 8817 | N39: 4700 | U39: 36 | V39: 0 | W39: 1 | X39: 1.2 | Y39: 3300 | Z39: 2900 | AA39: 1000 | AC39: 2017-01-01 | AD39: 2019-12-31 | AE39: - | AF39: - | AG39: - | AH39: - | AI39: - | AJ39: -
A40: 2201 | B40: San Salvador Pit, San Salvador Waste Backfill | C40: SanSal-1 | D40: Pit Backfill | E40: 0 | F40: 3500000 | G40: 0 | K40: - | L40: - | M40: - | N40: - | O40: 1300 | P40: -0.01 | Q40: 0 | R40: 0 | S40: 0 | T40: 0 | U40: 36 | V40: 0 | W40: 1 | X40: 1.2 | Y40: 3300 | Z40: 2900 | AA40: 1000 | AC40: 2017-01-01 | AD40: 2019-12-31 | AE40: - | AF40: - | AG40: - | AH40: - | AI40: - | AJ40: -
A41: 2300 | B41: 6A Leach | C41: 6A-0 | D41: Entire Stockpile | E41: =SUM(E42:E43) -> 2831400 | F41: =SUM(F42:F43) -> 485000 | G41: 0 | H41: - | K41: - | L41: - | M41: - | N41: - | U41: 36 | V41: 0 | W41: 1 | X41: 1.2 | Y41: 3300 | Z41: 2900 | AA41: 1000 | AC41: 2018-01-01 | AD41: 2019-12-31 | AE41: - | AF41: - | AG41: - | AH41: - | AI41: - | AJ41: -
A42: 2301 | B42: 6A Leach | C42: 6A-1 | D42: Top | E42: =43560*32.5 -> 1415700 | F42: 350000 | G42: 500 | H42: 0.01 | K42: - | L42: - | M42: - | N42: - | U42: 36 | V42: 0 | W42: 1 | X42: 1.2 | Y42: 3300 | Z42: 2900 | AA42: 1000 | AC42: 2018-01-01 | AD42: 2019-12-31 | AE42: - | AF42: - | AG42: - | AH42: - | AI42: - | AJ42: -
A43: 2302 | B43: 6A Leach | C43: 6A-2 | D43: Outslopes | E43: =43560*32.5 -> 1415700 | F43: 135000 | G43: 160 | H43: -0.29 | K43: - | L43: - | M43: - | N43: - | U43: 36 | V43: 0 | W43: 1 | X43: 1.2 | Y43: 3300 | Z43: 2900 | AA43: 1000 | AC43: 2018-01-01 | AD43: 2019-12-31 | AE43: - | AF43: - | AG43: - | AH43: - | AI43: - | AJ43: -
A44: 2400 | B44: Main, West Main II, West Main III, Savanna, Gettysburg & Copper Mountain Pits | C44: Open-0 | D44: Conditional Waiver Pits | E44: 0 | F44: 0 | G44: =25700+10700+8300+12800 -> 57500 | H44: - | K44: - | L44: - | M44: - | N44: - | U44: - | V44: - | W44: - | X44: - | Y44: - | Z44: - | AA44: - | AC44: 2022-01-01 | AD44: =Quantities[[#This Row],[Start of Reclamation Year]]+365.25*3 -> 2024-12-31T18:00:00 | AE44: 11 | AF44: 115 | AG44: - | AH44: - | AI44: - | AJ44: -
A45: 2500 | B45: 3A Leach | C45: 3A-0 | D45: Entire Collection System | E45: 0 | F45: 0 | G45: 0 | H45: - | K45: - | L45: - | M45: - | N45: - | U45: - | V45: - | W45: - | X45: - | Y45: - | Z45: - | AA45: - | AC45: 2022-01-01 | AD45: =Quantities[[#This Row],[Start of Reclamation Year]]+365.25*3 -> 2024-12-31T18:00:00 | AE45: - | AF45: - | AG45: - | AH45: - | AI45: - | AJ45: -
A46: 2501 | B46: 3A Leach | C46: 3A-1 | D46: Preliminary Earthworks | E46: 0 | F46: 0 | G46: 0 | H46: - | K46: - | L46: - | M46: - | N46: - | U46: - | V46: - | W46: - | X46: - | Y46: - | Z46: - | AA46: - | AC46: 2022-01-01 | AD46: =Quantities[[#This Row],[Start of Reclamation Year]]+365.25*3 -> 2024-12-31T18:00:00 | AE46: - | AF46: - | AG46: - | AH46: 1 | AI46: - | AJ46: -
A47: 2502 | B47: 3A Leach | C47: 3A-2 | D47: Overflow Pond & Booster Station | E47: 0 | F47: 0 | G47: 0 | H47: - | K47: - | L47: - | M47: - | N47: - | U47: - | V47: - | W47: - | X47: - | Y47: - | Z47: - | AA47: - | AC47: 2022-01-01 | AD47: =Quantities[[#This Row],[Start of Reclamation Year]]+365.25*3 -> 2024-12-31T18:00:00 | AE47: - | AF47: - | AG47: - | AH47: 1 | AI47: - | AJ47: -
A48: 2503 | B48: 3A Leach | C48: 3A-3 | D48: Canyon 5 Deep Collection | E48: 0 | F48: 0 | G48: 0 | H48: - | K48: - | L48: - | M48: - | N48: - | U48: - | V48: - | W48: - | X48: - | Y48: - | Z48: - | AA48: - | AC48: 2022-01-01 | AD48: =Quantities[[#This Row],[Start of Reclamation Year]]+365.25*3 -> 2024-12-31T18:00:00 | AE48: - | AF48: - | AG48: - | AH48: 1 | AI48: - | AJ48: -
A49: 2504 | B49: 3A Leach | C49: 3A-4 | D49: Canyon 6 Deep Collection | E49: 0 | F49: 0 | G49: 0 | H49: - | K49: - | L49: - | M49: - | N49: - | U49: - | V49: - | W49: - | X49: - | Y49: - | Z49: - | AA49: - | AC49: 2022-01-01 | AD49: =Quantities[[#This Row],[Start of Reclamation Year]]+365.25*3 -> 2024-12-31T18:00:00 | AE49: - | AF49: - | AG49: - | AH49: 1 | AI49: - | AJ49: -
A50: 2505 | B50: 3A Leach | C50: 3A-5 | D50: Canyon 7 Deep Collection | E50: 0 | F50: 0 | G50: 0 | H50: - | K50: - | L50: - | M50: - | N50: - | U50: - | V50: - | W50: - | X50: - | Y50: - | Z50: - | AA50: - | AC50: 2022-01-01 | AD50: =Quantities[[#This Row],[Start of Reclamation Year]]+365.25*3 -> 2024-12-31T18:00:00 | AE50: - | AF50: - | AG50: - | AH50: 1 | AI50: - | AJ50: -
A51: 2506 | B51: 3A Leach | C51: 3A-6 | D51: Canyon 8 Deep Collection | E51: 0 | F51: 0 | G51: 0 | H51: - | K51: - | L51: - | M51: - | N51: - | U51: - | V51: - | W51: - | X51: - | Y51: - | Z51: - | AA51: - | AC51: 2022-01-01 | AD51: =Quantities[[#This Row],[Start of Reclamation Year]]+365.25*3 -> 2024-12-31T18:00:00 | AE51: - | AF51: - | AG51: - | AH51: 1 | AI51: - | AJ51: -
A52: 2507 | B52: 3A Leach | C52: 3A-7 | D52: Canyon 10 Deep Collection | E52: 0 | F52: 0 | G52: 0 | H52: - | K52: - | L52: - | M52: - | N52: - | U52: - | V52: - | W52: - | X52: - | Y52: - | Z52: - | AA52: - | AC52: 2022-01-01 | AD52: =Quantities[[#This Row],[Start of Reclamation Year]]+365.25*3 -> 2024-12-31T18:00:00 | AE52: - | AF52: - | AG52: - | AH52: 1 | AI52: - | AJ52: -
A53: 2508 | B53: 3A Leach | C53: 3A-8 | D53: Canyon 11 Deep Collection | E53: 0 | F53: 0 | G53: 0 | H53: - | K53: - | L53: - | M53: - | N53: - | U53: - | V53: - | W53: - | X53: - | Y53: - | Z53: - | AA53: - | AC53: 2022-01-01 | AD53: =Quantities[[#This Row],[Start of Reclamation Year]]+365.25*3 -> 2024-12-31T18:00:00 | AE53: - | AF53: - | AG53: - | AH53: 1 | AI53: - | AJ53: -
A54: 2509 | B54: 3A Leach | C54: 3A-9 | D54: Bolster Existing Surface PLS Catchments | E54: 0 | F54: 0 | G54: 0 | H54: - | K54: - | L54: - | M54: - | N54: - | U54: - | V54: - | W54: - | X54: - | Y54: - | Z54: - | AA54: - | AC54: 2022-01-01 | AD54: =Quantities[[#This Row],[Start of Reclamation Year]]+365.25*3 -> 2024-12-31T18:00:00 | AE54: - | AF54: - | AG54: - | AH54: 1 | AI54: - | AJ54: -
A55: 2510 | B55: 3A Leach | C55: 3A-10 | D55: Finger Drain System | E55: 0 | F55: 0 | G55: 0 | H55: - | K55: - | L55: - | M55: - | N55: - | U55: - | V55: - | W55: - | X55: - | Y55: - | Z55: - | AA55: - | AC55: 2022-01-01 | AD55: =Quantities[[#This Row],[Start of Reclamation Year]]+365.25*3 -> 2024-12-31T18:00:00 | AE55: - | AF55: - | AG55: - | AH55: 1 | AI55: - | AJ55: -
A56: 2511 | B56: 3A Leach | C56: 3A-11 | D56: Breach of Existing Seepage Collection Trenches | E56: 0 | F56: 0 | G56: 0 | H56: - | K56: - | L56: - | M56: - | N56: - | U56: - | V56: - | W56: - | X56: - | Y56: - | Z56: - | AA56: - | AC56: 2022-01-01 | AD56: =Quantities[[#This Row],[Start of Reclamation Year]]+365.25*3 -> 2024-12-31T18:00:00 | AE56: - | AF56: - | AG56: - | AH56: 1 | AI56: - | AJ56: -
A57: 2512 | B57: 3A Leach | C57: 3A-12 | D57: Concrete Pad for Above-Ground Tank | E57: 0 | F57: 0 | G57: 0 | H57: - | K57: - | L57: - | M57: - | N57: - | U57: - | V57: - | W57: - | X57: - | Y57: - | Z57: - | AA57: - | AC57: 2022-01-01 | AD57: =Quantities[[#This Row],[Start of Reclamation Year]]+365.25*3 -> 2024-12-31T18:00:00 | AE57: - | AF57: - | AG57: - | AH57: 1 | AI57: - | AJ57: -
A58: 2513 | B58: 3A Leach | C58: 3A-13 | D58: Electrical Hookup | E58: 0 | F58: 0 | G58: 0 | H58: - | K58: - | L58: - | M58: - | N58: - | U58: - | V58: - | W58: - | X58: - | Y58: - | Z58: - | AA58: - | AC58: 2022-01-01 | AD58: =Quantities[[#This Row],[Start of Reclamation Year]]+365.25*3 -> 2024-12-31T18:00:00 | AE58: - | AF58: - | AG58: - | AH58: 1 | AI58: - | AJ58: -
A59: 2600 | B59: Reclaimed Tailing Launder Line | C59: TLL-0 | D59: Tailing Launder Line | E59: 322527 | F59: 117000 | G59: 100 | H59: 0.01 | K59: - | L59: - | M59: - | N59: - | U59: =8923*(1+V115)*12*27/Quantities[[#This Row],[Area (sf)]] -> 9.680852022 | V59: 0.15 | W59: 1 | X59: 1.2 | Y59: 3300 | Z59: 2900 | AA59: 100 | AC59: 2023-01-01 | AD59: =Quantities[[#This Row],[Start of Reclamation Year]]+365.25*3 -> 2025-12-31T18:00:00 | AE59: - | AF59: - | AG59: 1002.425926 | AH59: - | AI59: - | AJ59: -
A60: 2700 | B60: Surface Impoundments | C60: Cntmnt-0 | D60: All Containments | E60: =SUM(E61:E62) -> 945687.6 | F60: 0 | G60: 0 | H60: 0.01 | K60: - | L60: - | M60: - | N60: - | U60: 36 | V60: 0 | W60: 1 | X60: 1.2 | Y60: 3300 | Z60: 2900 | AA60: 100 | AC60: 2023-01-01 | AD60: 2027-12-31 | AE60: - | AF60: - | AG60: - | AH60: - | AI60: - | AJ60: -
A61: 2701 | B61: Surface Impoundments closed at year 99; some closed year 6 | C61: Cntmnt-1 | D61: Surface Impoundments closed at year 99; some closed year 6 | E61: =43560*21.23 -> 924778.8 | F61: 0 | G61: 0 | H61: 0.01 | K61: - | L61: - | M61: - | N61: - | U61: 36 | V61: 0 | W61: 1 | X61: 1.2 | Y61: 3300 | Z61: 2900 | AA61: 100 | AC61: 2023-01-01 | AD61: 2027-12-31 | AE61: - | AF61: - | AG61: - | AH61: - | AI61: - | AJ61: -
A62: 2702 | B62: Surface Impoundments graded over at closure | C62: Cntmnt-2 | D62: Surface Impoundments graded over at closure | E62: =43560*0.48 -> 20908.8 | F62: 0 | G62: 0 | H62: 0.01 | K62: - | L62: - | M62: - | N62: - | U62: 36 | V62: 0 | W62: 1 | X62: 1.2 | Y62: 3300 | Z62: 2900 | AA62: 100 | AC62: 2023-01-01 | AD62: 2027-12-31 | AE62: - | AF62: - | AG62: - | AH62: - | AI62: - | AJ62: -
A63: 2800 | B63: Other Borrow Areas | C63: Borrow-0 | D63: Borrow Areas | E63: =169.1*43560 -> 7365996 | F63: 0 | G63: =2519+623 -> 3142 | H63: - | K63: - | L63: - | M63: =11920+1581 -> 13501 | N63: 11920 | U63: 36 | V63: 0.08 | W63: 1 | X63: 1.2 | Y63: 3300 | Z63: 2900 | AA63: - | AC63: 2006-01-01 | AD63: 2015-01-01 | AE63: - | AF63: - | AG63: - | AH63: - | AI63: - | AJ63: -
A64: 2801 | B64: Other Borrow Areas | C64: Borrow-1 | D64: Low Gradient Areas | E64: 0 | F64: 0 | G64: 0 | H64: 0.01 | K64: - | L64: - | M64: - | N64: - | U64: 36 | V64: 0.08 | W64: 1 | X64: 1.2 | Y64: 3300 | Z64: 2900 | AA64: - | AC64: 2006-01-01 | AD64: 2015-01-01 | AE64: - | AF64: - | AG64: - | AH64: - | AI64: - | AJ64: -
A65: 2802 | B65: Other Borrow Areas | C65: Borrow-2 | D65: Sloped Areas | E65: =23.6*43560 -> 1028016 | F65: 0 | G65: 0 | H65: -0.29 | K65: - | L65: - | M65: - | N65: - | U65: 36 | V65: 0.08 | W65: 1 | X65: 1.2 | Y65: 3300 | Z65: 2900 | AA65: - | AC65: 2006-01-01 | AD65: 2015-01-01 | AE65: - | AF65: - | AG65: - | AH65: - | AI65: - | AJ65: -
A66: 2803 | B66: Other Borrow Areas | C66: Borrow-3 | D66: Revegetation Area | E66: =74.7*43560 -> 3253932 | F66: 0 | G66: 0 | H66: - | K66: - | L66: - | M66: - | N66: - | U66: 36 | V66: 0.08 | W66: 1 | X66: 1.2 | Y66: 3300 | Z66: 2900 | AA66: - | AC66: 2006-01-01 | AD66: 2015-01-01 | AE66: - | AF66: - | AG66: - | AH66: - | AI66: - | AJ66: -
A67: 2900 | B67: Reclaimed 1 Tailing Impoundment Reclaim Water Pumphouse Station | C67: Tailing Pumphouse | D67: Tailing Pumphouse | E67: =7*43560 -> 304920 | F67: 0 | G67: 2950 | H67: 0.01 | K67: - | L67: - | M67: - | N67: - | O67: 4610 | P67: -0.0076 | Q67: 5820 | R67: -0.0464 | S67: 3670 | T67: 0.0139 | U67: =42000*(1+V117)*12*27/Quantities[[#This Row],[Area (sf)]] -> 48.19834711 | V67: 0 | W67: 1 | X67: 1.2 | Y67: 3300 | Z67: 2900 | AA67: - | AC67: 2024-01-01 | AD67: =Quantities[[#This Row],[Start of Reclamation Year]]+365.25*3 -> 2026-12-31T18:00:00 | AE67: - | AF67: - | AG67: - | AH67: - | AI67: - | AJ67: -
A68: 3000 | B68: Monitoring & Exploration Wells | C68: Wells-0 | D68: All Wells | E68: 0 | F68: 0 | G68: 0 | H68: - | K68: - | L68: - | M68: - | N68: - | U68: 36 | V68: 0 | W68: 1 | X68: 1.2 | Y68: 3300 | Z68: 2900 | AA68: - | AC68: 2024-01-01 | AD68: =Quantities[[#This Row],[Start of Reclamation Year]]+365.25*3 -> 2026-12-31T18:00:00 | AE68: - | AF68: - | AG68: - | AH68: - | AI68: - | AJ68: -
A69: 3002 | B69: 2-inch ID wells (avg. TD = 36 ft) | C69: Wells-1 | D69: Wells | E69: 0 | F69: 0 | G69: 0 | H69: - | K69: - | L69: - | M69: - | N69: - | U69: 36 | V69: 0 | W69: 1 | X69: 1.2 | Y69: 3300 | Z69: 2900 | AA69: - | AC69: 2024-01-01 | AD69: =Quantities[[#This Row],[Start of Reclamation Year]]+365.25*3 -> 2026-12-31T18:00:00 | AE69: - | AF69: - | AG69: - | AH69: - | AI69: 431 | AJ69: -
A70: 3003 | B70: 4-inch ID wells (avg. TD = 113 ft) | C70: Wells-2 | D70: Wells | E70: 0 | F70: 0 | G70: 0 | H70: - | K70: - | L70: - | M70: - | N70: - | U70: 36 | V70: 0 | W70: 1 | X70: 1.2 | Y70: 3300 | Z70: 2900 | AA70: - | AC70: 2024-01-01 | AD70: =Quantities[[#This Row],[Start of Reclamation Year]]+365.25*3 -> 2026-12-31T18:00:00 | AE70: - | AF70: - | AG70: - | AH70: - | AI70: 11787 | AJ70: -
A71: 3004 | B71: 4-inch ID wells, avg. total depth = 172 ft (28% Year 19 and rest Year 99 of closure) | C71: Wells-3 | D71: Wells | E71: 0 | F71: 0 | G71: 0 | H71: - | K71: - | L71: - | M71: - | N71: - | U71: 36 | V71: 0 | W71: 1 | X71: 1.2 | Y71: 3300 | Z71: 2900 | AA71: - | AC71: 2024-01-01 | AD71: =Quantities[[#This Row],[Start of Reclamation Year]]+365.25*3 -> 2026-12-31T18:00:00 | AE71: - | AF71: - | AG71: - | AH71: - | AI71: 88284 | AJ71: -
A72: 3005 | B72: 6-inch ID wells (avg. TD = 135 ft) | C72: Wells-4 | D72: Wells | E72: 0 | F72: 0 | G72: 0 | H72: - | K72: - | L72: - | M72: - | N72: - | U72: 36 | V72: 0 | W72: 1 | X72: 1.2 | Y72: 3300 | Z72: 2900 | AA72: - | AC72: 2024-01-01 | AD72: =Quantities[[#This Row],[Start of Reclamation Year]]+365.25*3 -> 2026-12-31T18:00:00 | AE72: - | AF72: - | AG72: - | AH72: - | AI72: 6084 | AJ72: -
A73: 3006 | B73: 286-2008-04 (5" x 200') Well | C73: Wells-5 | D73: Wells | E73: 0 | F73: 0 | G73: 0 | H73: - | K73: - | L73: - | M73: - | N73: - | U73: 36 | V73: 0 | W73: 1 | X73: 1.2 | Y73: 3300 | Z73: 2900 | AA73: - | AC73: 2024-01-01 | AD73: =Quantities[[#This Row],[Start of Reclamation Year]]+365.25*3 -> 2026-12-31T18:00:00 | AE73: - | AF73: - | AG73: - | AH73: - | AI73: - | AJ73: 200
A74: 3007 | B74: 286-2008-05 (5" x 200') Well | C74: Wells-6 | D74: Wells | E74: 0 | F74: 0 | G74: 0 | H74: - | K74: - | L74: - | M74: - | N74: - | U74: 36 | V74: 0 | W74: 1 | X74: 1.2 | Y74: 3300 | Z74: 2900 | AA74: - | AC74: 2024-01-01 | AD74: =Quantities[[#This Row],[Start of Reclamation Year]]+365.25*3 -> 2026-12-31T18:00:00 | AE74: - | AF74: - | AG74: - | AH74: - | AI74: - | AJ74: 200
A75: 3008 | B75: 286-2008-06 (4" x 60.5') Well | C75: Wells-7 | D75: Wells | E75: 0 | F75: 0 | G75: 0 | H75: - | K75: - | L75: - | M75: - | N75: - | U75: 36 | V75: 0 | W75: 1 | X75: 1.2 | Y75: 3300 | Z75: 2900 | AA75: - | AC75: 2024-01-01 | AD75: =Quantities[[#This Row],[Start of Reclamation Year]]+365.25*3 -> 2026-12-31T18:00:00 | AE75: - | AF75: - | AG75: - | AH75: - | AI75: - | AJ75: 61
A76: 3009 | B76: Exploration Holes | C76: Wells-8 | D76: Wells | E76: 0 | F76: 0 | G76: 0 | H76: - | K76: - | L76: - | M76: - | N76: - | U76: 36 | V76: 0 | W76: 1 | X76: 1.2 | Y76: 3300 | Z76: 2900 | AA76: - | AC76: 2024-01-01 | AD76: =Quantities[[#This Row],[Start of Reclamation Year]]+365.25*3 -> 2026-12-31T18:00:00 | AE76: - | AF76: - | AG76: - | AH76: - | AI76: =510*124 -> 63240 | AJ76: -
A77: 3100 | B77: Seep 5E Collection System | C77: Seep 5E | D77: Seep 5E Collection System | E77: 0 | F77: 0 | G77: 0 | H77: - | K77: - | L77: - | M77: - | N77: - | U77: 36 | V77: 0 | W77: 1 | X77: 1.2 | Y77: 3300 | Z77: 2900 | AA77: - | AC77: 2024-01-01 | AD77: =Quantities[[#This Row],[Start of Reclamation Year]]+365.25*3 -> 2026-12-31T18:00:00 | AE77: - | AF77: - | AG77: - | AH77: 1 | AI77: - | AJ77: -
A78: 3200 | B78: Building Demo Area | C78: Demo Area | D78: Demo Area | E78: =SUM('3 BuildingVeg'!J11:J74)*43560 -> 2072621.581 | F78: 0 | G78: 0 | H78: - | K78: - | L78: - | M78: - | N78: - | U78: - | V78: - | W78: - | X78: - | Y78: - | Z78: - | AA78: - | AC78: 2017-01-01 | AD78: =Quantities[[#This Row],[Start of Reclamation Year]]+365.25*3 -> 2020-01-01T18:00:00 | AE78: - | AF78: - | AG78: - | AH78: - | AI78: - | AJ78: -
A79: 3300 | B79: Unplanned Disturbance Area | C79: Unplanned Disturbance Area | D79: Unplanned Disturbance Area | E79: =200*43560 -> 8712000 | F79: 0 | G79: 0 | H79: 0.01 | K79: - | L79: - | M79: - | N79: - | U79: 36 | V79: 0 | W79: 1 | X79: 1.2 | Y79: 3300 | Z79: 2900 | AA79: - | AC79: 2017-01-01 | AD79: 2019-12-31 | AE79: - | AF79: - | AG79: - | AH79: - | AI79: - | AJ79: -
A80: 3400 | B80: All Previously Reclaimed | C80: All Previously Reclaimed | D80: All Previously Reclaimed | E80: =SUM(E81:E99) -> 199522224 | F80: 0 | G80: 0 | H80: - | I80: - | J80: - | K80: - | L80: - | M80: - | N80: - | O80: - | P80: - | Q80: - | R80: - | S80: - | T80: - | U80: - | V80: - | W80: - | X80: - | Y80: - | Z80: - | AA80: - | AB80: - | AC80: - | AD80: - | AE80: - | AF80: - | AG80: - | AH80: - | AI80: - | AJ80: -
A81: 3401 | B81: Reclaimed 1C Waste Stockpile | C81: Previously Reclaimed Area | D81: Mining Area | E81: =45*43560 -> 1960200 | F81: 0 | G81: 0 | H81: - | I81: - | J81: - | K81: - | L81: - | M81: - | N81: - | O81: - | P81: - | Q81: - | R81: - | S81: - | T81: - | U81: - | V81: - | W81: - | X81: - | Y81: - | Z81: - | AA81: - | AB81: - | AC81: - | AD81: 2011-12-31 | AE81: - | AF81: - | AG81: - | AH81: - | AI81: - | AJ81: -
A82: 3402 | B82: Reclaimed 1C Waste Stockpile | C82: Previously Reclaimed Area | D82: Mining Area | E82: =111.7*43560 -> 4865652 | F82: 0 | G82: 0 | H82: - | I82: - | J82: - | K82: - | L82: - | M82: - | N82: - | O82: - | P82: - | Q82: - | R82: - | S82: - | T82: - | U82: - | V82: - | W82: - | X82: - | Y82: - | Z82: - | AA82: - | AB82: - | AC82: - | AD82: 2012-12-31 | AE82: - | AF82: - | AG82: - | AH82: - | AI82: - | AJ82: -
A83: 3403 | B83: Reclaimed 7A Waste | C83: Previously Reclaimed Area | D83: Mining Area | E83: =34*43560 -> 1481040 | F83: 0 | G83: 0 | H83: - | I83: - | J83: - | K83: - | L83: - | M83: - | N83: - | O83: - | P83: - | Q83: - | R83: - | S83: - | T83: - | U83: - | V83: - | W83: - | X83: - | Y83: - | Z83: - | AA83: - | AB83: - | AC83: - | AD83: 2010-12-31 | AE83: - | AF83: - | AG83: - | AH83: - | AI83: - | AJ83: -
A84: 3404 | B84: Reclaimed 7A Waste | C84: Previously Reclaimed Area | D84: Mining Area | E84: =38.2*43560 -> 1663992 | F84: 0 | G84: 0 | H84: - | I84: - | J84: - | K84: - | L84: - | M84: - | N84: - | O84: - | P84: - | Q84: - | R84: - | S84: - | T84: - | U84: - | V84: - | W84: - | X84: - | Y84: - | Z84: - | AA84: - | AB84: - | AC84: - | AD84: 2010-12-31 | AE84: - | AF84: - | AG84: - | AH84: - | AI84: - | AJ84: -
A85: 3405 | B85: Reclaimed 7A Waste | C85: Previously Reclaimed Area | D85: Mining Area | E85: =7.7*43560 -> 335412 | F85: 0 | G85: 0 | H85: - | I85: - | J85: - | K85: - | L85: - | M85: - | N85: - | O85: - | P85: - | Q85: - | R85: - | S85: - | T85: - | U85: - | V85: - | W85: - | X85: - | Y85: - | Z85: - | AA85: - | AB85: - | AC85: - | AD85: 2010-12-31 | AE85: - | AF85: - | AG85: - | AH85: - | AI85: - | AJ85: -
A86: 3406 | B86: Reclaimed 7A Waste | C86: Previously Reclaimed Area | D86: Mining Area | E86: =4*43560 -> 174240 | F86: 0 | G86: 0 | H86: - | I86: - | J86: - | K86: - | L86: - | M86: - | N86: - | O86: - | P86: - | Q86: - | R86: - | S86: - | T86: - | U86: - | V86: - | W86: - | X86: - | Y86: - | Z86: - | AA86: - | AB86: - | AC86: - | AD86: 2011-12-31 | AE86: - | AF86: - | AG86: - | AH86: - | AI86: - | AJ86: -
A87: 3407 | B87: Reclaimed 7A Waste | C87: Previously Reclaimed Area | D87: Mining Area | E87: =18.3*43560 -> 797148 | F87: 0 | G87: 0 | H87: - | I87: - | J87: - | K87: - | L87: - | M87: - | N87: - | O87: - | P87: - | Q87: - | R87: - | S87: - | T87: - | U87: - | V87: - | W87: - | X87: - | Y87: - | Z87: - | AA87: - | AB87: - | AC87: - | AD87: 2011-12-31 | AE87: - | AF87: - | AG87: - | AH87: - | AI87: - | AJ87: -
A88: 3408 | B88: Reclaimed 7A Waste | C88: Previously Reclaimed Area | D88: Mining Area | E88: =27.2*43560 -> 1184832 | F88: 0 | G88: 0 | H88: - | I88: - | J88: - | K88: - | L88: - | M88: - | N88: - | O88: - | P88: - | Q88: - | R88: - | S88: - | T88: - | U88: - | V88: - | W88: - | X88: - | Y88: - | Z88: - | AA88: - | AB88: - | AC88: - | AD88: 2012-12-31 | AE88: - | AF88: - | AG88: - | AH88: - | AI88: - | AJ88: -
A89: 3409 | B89: Reclaimed 7A Waste | C89: Previously Reclaimed Area | D89: No Man's Land | E89: =4*43560 -> 174240 | F89: 0 | G89: 0 | H89: - | I89: - | J89: - | K89: - | L89: - | M89: - | N89: - | O89: - | P89: - | Q89: - | R89: - | S89: - | T89: - | U89: - | V89: - | W89: - | X89: - | Y89: - | Z89: - | AA89: - | AB89: - | AC89: - | AD89: 2012-12-31 | AE89: - | AF89: - | AG89: - | AH89: - | AI89: - | AJ89: -
A90: 3410 | B90: Reclaimed 1 Tailing Impoundment, Reclaimed 1A Tailing Impoundment, Reclaimed 1X Tailing Impoundment | C90: Previously Reclaimed Area | D90: Mangas Valley Tailing Area | E90: =1547*43560 -> 67387320 | F90: 0 | G90: 0 | H90: - | I90: - | J90: - | K90: - | L90: - | M90: - | N90: - | O90: - | P90: - | Q90: - | R90: - | S90: - | T90: - | U90: - | V90: - | W90: - | X90: - | Y90: - | Z90: - | AA90: - | AB90: - | AC90: - | AD90: 2009-09-21 | AE90: - | AF90: - | AG90: - | AH90: - | AI90: - | AJ90: -
A91: 3411 | B91: Reclaimed 2 Tailing Impoundment | C91: Previously Reclaimed Area | D91: Mangas Valley Tailing Area | E91: =606*43560 -> 26397360 | F91: 0 | G91: 0 | H91: - | I91: - | J91: - | K91: - | L91: - | M91: - | N91: - | O91: - | P91: - | Q91: - | R91: - | S91: - | T91: - | U91: - | V91: - | W91: - | X91: - | Y91: - | Z91: - | AA91: - | AB91: - | AC91: - | AD91: 2009-09-21 | AE91: - | AF91: - | AG91: - | AH91: - | AI91: - | AJ91: -
A92: 3412 | B92: Reclaimed 3X Tailing Impoundment | C92: Previously Reclaimed Area | D92: Mangas Valley Tailing Area | E92: =365*43560 -> 15899400 | F92: 0 | G92: 0 | H92: - | I92: - | J92: - | K92: - | L92: - | M92: - | N92: - | O92: - | P92: - | Q92: - | R92: - | S92: - | T92: - | U92: - | V92: - | W92: - | X92: - | Y92: - | Z92: - | AA92: - | AB92: - | AC92: - | AD92: 2005-12-01 | AE92: - | AF92: - | AG92: - | AH92: - | AI92: - | AJ92: -
A93: 3413 | B93: Reclaimed 3 Tailing Impoundment | C93: Previously Reclaimed Area | D93: Mangas Valley Tailing Area | E93: =643*43560 -> 28009080 | F93: 0 | G93: 0 | H93: - | I93: - | J93: - | K93: - | L93: - | M93: - | N93: - | O93: - | P93: - | Q93: - | R93: - | S93: - | T93: - | U93: - | V93: - | W93: - | X93: - | Y93: - | Z93: - | AA93: - | AB93: - | AC93: - | AD93: 2006-12-01 | AE93: - | AF93: - | AG93: - | AH93: - | AI93: - | AJ93: -
A94: 3414 | B94: Reclaimed Burro Mountain Tailing Impoundment | C94: Previously Reclaimed Area | D94: East Mine Area | E94: =(42+16)*43560 -> 2526480 | F94: 0 | G94: 0 | H94: - | I94: - | J94: - | K94: - | L94: - | M94: - | N94: - | O94: - | P94: - | Q94: - | R94: - | S94: - | T94: - | U94: - | V94: - | W94: - | X94: - | Y94: - | Z94: - | AA94: - | AB94: - | AC94: - | AD94: 2004-12-01 | AE94: - | AF94: - | AG94: - | AH94: - | AI94: - | AJ94: -
A95: 3415 | B95: Reclaimed Burro Mountain Tailing Impoundment | C95: Previously Reclaimed Area | D95: East Mine Area | E95: =1.3*43560 -> 56628 | F95: 0 | G95: 0 | H95: - | I95: - | J95: - | K95: - | L95: - | M95: - | N95: - | O95: - | P95: - | Q95: - | R95: - | S95: - | T95: - | U95: - | V95: - | W95: - | X95: - | Y95: - | Z95: - | AA95: - | AB95: - | AC95: - | AD95: 2005-12-01 | AE95: - | AF95: - | AG95: - | AH95: - | AI95: - | AJ95: -
A96: 3416 | B96: Reclaimed 1 Leach | C96: Previously Reclaimed Area | D96: East Mine Area | E96: =500*43560 -> 21780000 | F96: 0 | G96: 0 | H96: - | I96: - | J96: - | K96: - | L96: - | M96: - | N96: - | O96: - | P96: - | Q96: - | R96: - | S96: - | T96: - | U96: - | V96: - | W96: - | X96: - | Y96: - | Z96: - | AA96: - | AB96: - | AC96: - | AD96: 2009-12-31 | AE96: - | AF96: - | AG96: - | AH96: - | AI96: - | AJ96: -
A97: 3417 | B97: Reclaimed Former Mill & Concentrator Area Initial | C97: Previously Reclaimed Area | D97: Mining Area | E97: =45*43560 -> 1960200 | F97: 0 | G97: 0 | H97: - | I97: - | J97: - | K97: - | L97: - | M97: - | N97: - | O97: - | P97: - | Q97: - | R97: - | S97: - | T97: - | U97: - | V97: - | W97: - | X97: - | Y97: - | Z97: - | AA97: - | AB97: - | AC97: - | AD97: 2007-04-01 | AE97: - | AF97: - | AG97: - | AH97: - | AI97: - | AJ97: -
A98: 3418 | B98: Reclaimed Former Mill & Concentrator Area (11 redo) | C98: Previously Reclaimed Area | D98: Mining Area | E98: =11*43560 -> 479160 | F98: 0 | G98: 0 | H98: - | I98: - | J98: - | K98: - | L98: - | M98: - | N98: - | O98: - | P98: - | Q98: - | R98: - | S98: - | T98: - | U98: - | V98: - | W98: - | X98: - | Y98: - | Z98: - | AA98: - | AB98: - | AC98: - | AD98: 2010-08-10 | AE98: - | AF98: - | AG98: - | AH98: - | AI98: - | AJ98: -
A99: 3419 | B99: Copper Mt. Reclamation Area | C99: Previously Reclaimed Area | D99: Mining Area | E99: =514*43560 -> 22389840 | F99: 0 | G99: 0 | H99: - | I99: - | J99: - | K99: - | L99: - | M99: - | N99: - | O99: - | P99: - | Q99: - | R99: - | S99: - | T99: - | U99: - | V99: - | W99: - | X99: - | Y99: - | Z99: - | AA99: - | AB99: - | AC99: - | AD99: 2015-01-01 | AE99: - | AF99: - | AG99: - | AH99: - | AI99: - | AJ99: -
A100: 5000 | B100: Gila Borrow Area | C100: =A4 -> 1000 | D100: Cover Material | E100: =VLOOKUP(Quantities[[#This Row],[Sub Area or Destination for Cover Material]],$A$4:$E$99,$E$2) -> 11891880 | O100: 2320 | P100: 0.02155172414 | Q100: 2170 | R100: 0.07834101382 | S100: 1770 | T100: 0 | U100: 36 | V100: 0.08 | W100: 1 | X100: 1.2 | Y100: 2900 | Z100: 2900 | AA100: 1000
A101: 5001 | B101: Gila Borrow Area | C101: =A8 -> 1100 | D101: Cover Material | E101: =VLOOKUP(Quantities[[#This Row],[Sub Area or Destination for Cover Material]],$A$4:$E$99,$E$2) -> 740699.9028 | O101: 7780 | P101: 0.007712082262 | Q101: 4053 | R101: 0.059215396 | S101: 0 | T101: 0 | U101: 36 | V101: 0.08 | W101: 1 | X101: 1.2 | Y101: 2900 | Z101: 2900 | AA101: 1000
A102: 5002 | B102: Gila Borrow Area | C102: =A9 -> 1200 | D102: Cover Material | E102: =VLOOKUP(Quantities[[#This Row],[Sub Area or Destination for Cover Material]],$A$4:$E$99,$E$2) -> 21213358.45 | O102: =7780 -> 7780 | P102: =0.0077120822622108 -> 0.007712082262 | Q102: =6580 -> 6580 | R102: 0.01367781155 | S102: =4940 -> 4940 | T102: 0.06882591093 | U102: 36 | V102: 0.08 | W102: 1 | X102: 1.2 | Y102: 2900 | Z102: 2900 | AA102: 1000
A103: 5003 | B103: Gila Borrow Area | C103: =A12 -> 1300 | D103: Cover Material | E103: =VLOOKUP(Quantities[[#This Row],[Sub Area or Destination for Cover Material]],$A$4:$E$99,$E$2) -> 19819800 | O103: 4411 | P103: -0.07 | Q103: 6810 | R103: 0.066 | S103: 0 | T103: 0 | U103: 36 | V103: 0.08 | W103: 1 | X103: 1.2 | Y103: 2900 | Z103: 2900 | AA103: 1000
A104: 5004 | B104: =B12 -> 3A Leach, 3B Waste | C104: =A14 -> 1302 | D104: Cover Material | E104: =VLOOKUP(Quantities[[#This Row],[Sub Area or Destination for Cover Material]],$A$4:$E$99,$E$2) -> 0 | O104: 3900 | P104: 0 | Q104: 0 | R104: 0 | S104: 0 | T104: 0 | U104: 36 | V104: 0.08 | W104: 1 | X104: 1.2 | Y104: 2900 | Z104: 2900 | AA104: 1000
A105: 5005 | B105: Gila Borrow Area | C105: =A17 -> 1400 | D105: Cover Material | E105: =VLOOKUP(Quantities[[#This Row],[Sub Area or Destination for Cover Material]],$A$4:$E$99,$E$2) -> 7971480 | O105: 7780 | P105: 0.007712082262 | Q105: 3020 | R105: 0.09933774834 | S105: 7030 | T105: 0.02560455192 | U105: 36 | V105: 0.08 | W105: 1 | X105: 1.2 | Y105: 2900 | Z105: 2900 | AA105: 1000
A106: 5006 | B106: Gila Borrow Area | C106: =A20 -> 1500 | D106: Cover Material | E106: =VLOOKUP(Quantities[[#This Row],[Sub Area or Destination for Cover Material]],$A$4:$E$99,$E$2) -> 16160760 | O106: 1450 | P106: 0.06206896552 | Q106: 3300 | R106: 0 | S106: 0 | T106: 0 | U106: 36 | V106: 0.08 | W106: 1 | X106: 1.2 | Y106: 2900 | Z106: 2900 | AA106: 1000
A107: 5007 | B107: Gila Borrow Area | C107: =A23 -> 1600 | D107: Cover Material | E107: =VLOOKUP(Quantities[[#This Row],[Sub Area or Destination for Cover Material]],$A$4:$E$99,$E$2) -> 2352240 | O107: 7780 | P107: 0.007712082262 | Q107: 2270 | R107: 0.06167400881 | S107: 0 | T107: 0 | U107: 36 | V107: 0.08 | W107: 1 | X107: 1.2 | Y107: 2900 | Z107: 2900 | AA107: 1000
A108: 5008 | B108: Gila Borrow Area | C108: =A26 -> 1700 | D108: Cover Material | E108: =VLOOKUP(Quantities[[#This Row],[Sub Area or Destination for Cover Material]],$A$4:$E$99,$E$2) -> 2874960 | O108: 7780 | P108: 0.007712082262 | Q108: 4053 | R108: 0.059215396 | S108: 0 | T108: 0 | U108: 36 | V108: 0.08 | W108: 1 | X108: 1.2 | Y108: 2900 | Z108: 2900 | AA108: 1000
A109: 5009 | B109: Gila Borrow Area | C109: =A29 -> 1800 | D109: Cover Material | E109: =VLOOKUP(Quantities[[#This Row],[Sub Area or Destination for Cover Material]],$A$4:$E$99,$E$2) -> 16335000 | O109: 7780 | P109: 0.007712082262 | Q109: 6210 | R109: 0.07890499195 | S109: 0 | T109: 0 | U109: 36 | V109: 0.08 | W109: 1 | X109: 1.2 | Y109: 2900 | Z109: 2900 | AA109: 1000
A110: 5010 | B110: Gila Borrow Area | C110: =A32 -> 1900 | D110: Cover Material | E110: =VLOOKUP(Quantities[[#This Row],[Sub Area or Destination for Cover Material]],$A$4:$E$99,$E$2) -> 2063001.6 | O110: =O114 -> 5730 | P110: =P114 -> 0.016 | Q110: =Q114 -> 0 | R110: 0 | S110: 0 | T110: 0 | U110: 36 | V110: 0.08 | W110: 1 | X110: 1.2 | Y110: 2900 | Z110: 2900 | AA110: 1000
A111: 5011 | B111: Borrow Area A | C111: =A33 -> 2000 | D111: Cover Material | E111: =VLOOKUP(Quantities[[#This Row],[Sub Area or Destination for Cover Material]],$A$4:$E$99,$E$2) -> 5619240 | O111: 5600 | P111: 0.06 | Q111: 4000 | R111: 0.1 | S111: 700 | T111: 0 | U111: 12 | V111: 0.08 | W111: 1 | X111: 1.2 | Y111: 2900 | Z111: 2900 | AA111: 1000
A112: 5012 | B112: Borrow Area A | C112: =A36 -> 2100 | D112: Cover Material | E112: =VLOOKUP(Quantities[[#This Row],[Sub Area or Destination for Cover Material]],$A$4:$E$99,$E$2) -> 2774772 | O112: 5600 | P112: 0.06 | Q112: 4000 | R112: 0.1 | S112: 1000 | T112: 0 | U112: 12 | V112: 0.08 | W112: 1 | X112: 1.2 | Y112: 2900 | Z112: 2900 | AA112: 1000
A113: 5013 | B113: Leach Stockpile | C113: =A39 -> 2200 | D113: Cover Material | E113: =VLOOKUP(Quantities[[#This Row],[Sub Area or Destination for Cover Material]],$A$4:$E$99,$E$2) -> 5009400 | O113: 7780 | P113: 0.007712082262 | Q113: 3020 | R113: 0.09933774834 | S113: 1770 | T113: -0.09604519774 | U113: 36 | V113: 0.08 | W113: 1 | X113: 1.2 | Y113: 2900 | Z113: 2900 | AA113: 1000
A114: 5014 | B114: Gila Borrow Area | C114: =A41 -> 2300 | D114: Cover Material | E114: =VLOOKUP(Quantities[[#This Row],[Sub Area or Destination for Cover Material]],$A$4:$E$99,$E$2) -> 2831400 | O114: 5730 | P114: 0.016 | Q114: 0 | R114: 0 | S114: 0 | T114: 0 | U114: 36 | V114: 0.08 | W114: 1 | X114: 1.2 | Y114: 2900 | Z114: 2900 | AA114: 1000
A115: 5015 | B115: 9AX Waste | C115: =A59 -> 2600 | D115: Cover Material | E115: =VLOOKUP(Quantities[[#This Row],[Sub Area or Destination for Cover Material]],$A$4:$E$99,$E$2) -> 322527 | O115: =(SUMPRODUCT($O$100:$O$114,$E$100:$E$114)+E117*O117)/SUM($E$100:$E$114,E117) -> 5547.948898 | P115: =(SUMPRODUCT(P100:P114,$E$100:$E$114)+E117*P117)/SUM($E$100:$E$114,E117) -> 0.007522114281 | Q115: =(SUMPRODUCT(Q100:Q114,$E$100:$E$114)+E117*Q117)/SUM($E$100:$E$114,E117) -> 4659.767714 | R115: =(SUMPRODUCT(R100:R114,$E$100:$E$114)+E117*R117)/SUM($E$100:$E$114,E117) -> 0.05334484458 | S115: =(SUMPRODUCT(S100:S114,$E$100:$E$114)+E117*S117)/SUM($E$100:$E$114,E117) -> 1683.377037 | T115: =(SUMPRODUCT(T100:T114,$E$100:$E$114)+E117*T117)/SUM($E$100:$E$114,E117) -> 0.01006455714 | U115: =U59 -> 9.680852022 | V115: 0.08 | W115: 1 | X115: 1.2 | Y115: 2900 | Z115: 2900 | AA115: 1000
A116: 5016 | B116: Gila Borrow Area | C116: =A61 -> 2701 | D116: Cover Material | E116: =VLOOKUP(Quantities[[#This Row],[Sub Area or Destination for Cover Material]],$A$4:$E$99,$E$2) -> 924778.8 | O116: =(SUMPRODUCT($O$100:$O$114,$E$100:$E$114)+E117*O117)/SUM($E$100:$E$114,E117) -> 5547.948898 | P116: =(SUMPRODUCT(P100:P114,$E$100:$E$114)+E117*P117)/SUM($E$100:$E$114,E117) -> 0.007522114281 | Q116: =(SUMPRODUCT(Q100:Q114,$E$100:$E$114)+E117*Q117)/SUM($E$100:$E$114,E117) -> 4659.767714 | R116: =(SUMPRODUCT(R100:R114,$E$100:$E$114)+E117*R117)/SUM($E$100:$E$114,E117) -> 0.05334484458 | S116: =(SUMPRODUCT(S100:S114,$E$100:$E$114)+E117*S117)/SUM($E$100:$E$114,E117) -> 1683.377037 | T116: =(SUMPRODUCT(T100:T114,$E$100:$E$114)+E117*T117)/SUM($E$100:$E$114,E117) -> 0.01006455714 | U116: 36 | V116: 0.08 | W116: 1 | X116: 1.2 | Y116: 2900 | Z116: 2900 | AA116: 1000
A117: 5017 | B117: Reclaimed Tailing Launder Line | C117: =A67 -> 2900 | D117: Cover Material | E117: =VLOOKUP(Quantities[[#This Row],[Sub Area or Destination for Cover Material]],$A$4:$E$99,$E$2) -> 304920 | O117: 4610 | P117: -0.0076 | Q117: 5820 | R117: -0.0464 | S117: 3670 | T117: 0.0139 | U117: =U67 -> 48.19834711 | V117: 0.08 | W117: 1 | X117: 1.2 | Y117: 2900 | Z117: 2900 | AA117: 1000
A118: 5018 | B118: Gila Borrow Area | C118: =A79 -> 3300 | D118: Cover Material | E118: =VLOOKUP(Quantities[[#This Row],[Sub Area or Destination for Cover Material]],$A$4:$E$99,$E$2) -> 8712000 | O118: =(SUMPRODUCT($O$100:$O$114,$E$100:$E$114)+E117*O117)/SUM($E$100:$E$114,E117) -> 5547.948898 | P118: =(SUMPRODUCT(P100:P114,$E$100:$E$114)+E117*P117)/SUM($E$100:$E$114,E117) -> 0.007522114281 | Q118: =(SUMPRODUCT(Q100:Q114,$E$100:$E$114)+E117*Q117)/SUM($E$100:$E$114,E117) -> 4659.767714 | R118: =(SUMPRODUCT(R100:R114,$E$100:$E$114)+E117*R117)/SUM($E$100:$E$114,E117) -> 0.05334484458 | S118: =(SUMPRODUCT(S100:S114,$E$100:$E$114)+E117*S117)/SUM($E$100:$E$114,E117) -> 1683.377037 | T118: =(SUMPRODUCT(T100:T114,$E$100:$E$114)+E117*T117)/SUM($E$100:$E$114,E117) -> 0.01006455714 | U118: 36 | V118: 0.08 | W118: 1 | X118: 1.2 | Y118: 2900 | Z118: 2900 | AA118: 1000
A126: Data from 2015 Tyrone RCE submittal
A127: Tailling Launder Line reclamation includes breaching watersheds & removing culverts, hauling material from 9A/9AX, regrading to 3:1 with dozer, and building grade control walls
A128: One dissipater per downdrain assumption
O193: =SUMPRODUCT(O156:O174,$F$156:$F$174)/SUM($F$156:$F$174) -> 

Sheet Activity-Material_Codes
A1: Item | B1: Activity | C1: Description
A2: - | B2: - | C2: Place holder for item
A3: A | B3: Grade | C3: Rough grading original material or fine grading cover material
A4: B | B4: Dozer Assist | C4: Dozer is used to assist loader or shovel at cover stockpile or assist scrapers during rough grading
A5: C | B5: Load | C5: Cover material is loaded at borrow areas onto haul trucks
A6: D | B6: Haul | C6: Haul trucks transport cover material from borrow areas to destination stockpiles
A7: E | B7: Rip | C7: Tops of stockpiles are ripped before placing cover to compensate for compaction of soil during rough grading. Stockpiles are also ripped before rough grading with a scraper. Borrow stockpile ripped before revegetation.
A8: F | B8: Grade Benches | C8: Benches are graded at stockpiles and tailings after fine grading
A9: G | B9: Construct Downdrains | C9: Downdrains are constructed after fine grading and consist of articulated concrete blocks (ACB's)
A10: Gb | B10: Construct Downdrain Dissipators | C10: Energy dissipators are specified as part of the downdrains
A11: H | B11: Construct Channels w/ Riprap | C11: Channels are constructed after final grading. Construction includes excavation and wasting, riprap production, riprap and filter placement, and final grading.
A12: Hb | B12: Construct Channels w/o Riprap | C12: Channels are constructed after final grading. Construction includes excavation and wasting and final grading.
A13: I | B13: Construct Top/Outslope Channels | C13: Top and outslope channels are included with H and Hb for this RCE
A14: J | B14: Revegetate | C14: Occurs after final grading and channel construction and includes tractor rental and maintenance, fuel, scarifying, discing, drill seeding, mulching, crimping, seed, and mulch
A15: K | B15: Perforate Liner | C15: Reservoir liners are perforated prior to reclamation
A16: L | B16: Replace Infrastructure | C16: Replacing infrastructure is not part of this RCE
A17: M | B17: Post-Closure O&M | C17: Includes vegetation maintenance for 12 years after reclamation and erosion control, road maintenance, and groundwater monitoring for 100 years after reclamation
A18: N | B18: Plug and Abandon Well | C18: Well borehole is backfilled with cement grout
A19: O | B19: Replace Well | C19: Includes borehole drilling, casing, and cementing
A20: P | B20: Road Maintenance | C20: Dust suppression and road maintenance with water truck and motor grader
A21: Q | B21: Construct Haul Road | C21: For shorter hauls etc.
A22: R | B22: Construct Berms | C22: Berming for stormwater runoff control
A23: S | B23: Fencing | C23: Fencing for pits
A24: T | B24: Build Grade Control Walls | C24: Grade control in each drainage of Tailing Launder Line removal
A25: U | B25: Vehicle Gates | C25: Limited access at 1-mile intervals around open pits
A26: V | B26: Signs Every 500 ft | C26: Warning signs posted every 500 feet around open pits
A29: Item | B29: Material | C29: Description
A30: - | B30: - | C30: Placeholder
A31: a | B31: Existing Ground | C31: Existing ground before rough grading
A32: b | B32: Cover | C32: Cover material from cover stockpiles, before being placed at destination location
A33: c | B33: Rough Graded Material | C33: Exisiting ground after rough grading
A34: d | B34: Placed Cover | C34: Cover material after being placed at destination location
A35: e | B35: Final Grade | C35: Facility material and cover material after rough grading and fine grading
A36: f | B36: Backfill/Stockpile Material | C36: Material used to backfill pit/ponds or stockpile material used in pullback
A39: Not all activites are used in this RCE. Other activities are kept for alternatives and testing purposes and to maintain spreadsheet integrity

Sheet Unit Rates
G1: ='1 General'!C1 -> Tyrone Mine
G2: Unit Rates Worksheet
G3: ='1 General'!C3 -> 43950
B4: Unit Rates
A10: Code | B10: Activity | C10: Base Per Unit Cost | D10: Fuel Per Unit Cost | E10: Units | F10: Source | G10: Reference
A11: U1 | B11: Fuel | C11: 2.34 | D11: 0 | E11: gal | F11: - | G11: Diesel fuel cost is estimated by correlating historical local quotes with public data, as agreed upon in November 2018 discussions with the agencies. Fuel cost includes direct and indirect costs at $2.34/gal.
A12: U2 | B12: Revegetation | C12: =Revegetation_UC!C77-UnitRates[[#This Row],[Fuel Per Unit Cost]] -> 820.1201906 | D12: =Revegetation_UC!C23 -> 3.84813 | E12: ac | F12: Revegetation Unit Cost Sheet | G12: See unit rates calculations - Cost is based on a calculated unit rate that includes tractor rental and maintenance, fuel, scarifying, discing, drill seeding, mulching, crimping, seed, and mulch.
A13: U3 | B13: Bench Grading Stockpile | C13: ='Bench Grading_UC'!Z11 -> 1.35359336 | D13: ='Bench Grading_UC'!AA11 -> 0.329923087 | E13: ft | F13: Bench Grading Unit Cost Sheet | G13: See unit rates calculations
A14: U4 | B14: Bench Grading Tailings Pond | C14: ='Bench Grading_UC'!Z21 -> 1.35359336 | D14: ='Bench Grading_UC'!AA21 -> 0.329923087 | E14: ft | F14: Bench Grading Unit Cost Sheet | G14: See unit rates calculations
A15: U5 | B15: Downdrain Construction | C15: =Downdrain_UC!F18 -> 374.3802379 | D15: 0 | E15: ft | F15: Downdrain Unit Cost Sheet | G15: See unit rates calculations
A16: U6 | B16: Downdrain Dissipater | C16: =Downdrain_UC!F35 -> 14556.48 | D16: 0 | E16: ea | F16: Downdrain Unit Cost Sheet | G16: See unit rates calculations
A17: U7a | B17: Channel Construction w/ Riprap | C17: =Channel_UC!W13 -> 6.595637442 | D17: =Channel_UC!X13 -> 1.383668827 | E17: ft | F17: Channel Unit Cost Sheet | G17: See unit rates calculations
A18: U7b | B18: Channel Construction w/o Riprap | C18: =Channel_UC!W8 -> 0.4142377138 | D18: =Channel_UC!X8 -> 0.1023130037 | E18: ft | F18: Channel Unit Cost Sheet | G18: See unit rates calculations
A19: U8 | B19: Erosion Control | C19: ='2 Full Site O&M'!E134 -> 2923.362727 | D19: ='2 Full Site O&M'!F134 -> 382.2624 | E19: day | F19: Modified Crew B-13A | G19: Erosion control for O&M - includes 1 foreman, 2 laborers, 1 equipment operator, 2 truck drivers, 1 loader (4 cy), 2 dump trucks (8 cy)
A20: U9 | B20: Structure Demolition | C20: 0.25 | D20: 0 | E20: cf | F20: Means Line Item 024116.13 0100 | G20: Building demolition, large urban projects, mixture of types, excludes foundation demolition, dump fees
A21: U10 | B21: Concrete Slab Demolition | C21: 0.62 | D21: 0 | E21: sf | F21: Means Line Item 024116.17 0400 | G21: Building footings and foundations demolition, floors, concrete slab on grade, plain concrete, 6" thick, excludes disposal costs and dump fees
A22: U11 | B22: Storage Tank Demolition | C22: 1005.97 | D22: 0 | E22: ea | F22: Means Line Item 130505.75 0530 | G22: Selective Demolition - Storage Tanks, steel tank, single wall, above ground, not including foundations, pumps or piping, 5,000 thru 10,000 gallon
A23: U12 | B23: Storage Tank Demolition | C23: 2168.93 | D23: 0 | E23: ea | F23: Means Line Item 130505.75-0540 | G23: Steel tank, single wall, above ground, 15,000 thru 30,000 gallon, selective demolition, excluding foundation, pumps or piping
A24: U13 | B24: Storage Tank Demolition | C24: 3934.8 | D24: 0 | E24: ea | F24: Scaled Means Items | G24: Storage Tanks, steel tank, single wall, above ground, not incl fdn, pumps or piping; scaled for a 45,500 gal tank
A25: U14 | B25: Power Line Demolition | C25: 0.63 | D25: 0 | E25: ft | F25: Means Line Item 260505.10 0370 | G25: Electrical Demolition - Nonmetallic sheathed cable 3 wire; assume similar enough in cost to overhead powerlines.
A26: U15 | B26: Power Pole Demolition | C26: 216.24 | D26: 0 | E26: ea | F26: Means Line Item 024113.80 0200 | G26: Selective Demolition - wood utility poles 35-45 ft high
A27: U16 | B27: Pipeline (small HDPE pipe) | C27: 2.29 | D27: 0 | E27: ft | F27: Means Line Item 024113.38 1700 | G27: Selective demolition water, process water HDPE piping; (6 to 8-inch diameter); excludes excavation
A28: U17 | B28: Pipeline (medium HDPE pipe) | C28: 3.82 | D28: 0 | E28: ft | F28: Means Line Item 024113.38 1800 | G28: Selective demolition water, process water HDPE piping; (10 to 18-inch diameter); excludes excavation
A29: U18 | B29: Pipeline (large HDPE pipe) | C29: 5.72 | D29: 0 | E29: ft | F29: Means Line Item 024113.38 1900 | G29: Selective demolition water, process water HDPE piping (20 to 36-inch diameter); excludes excavation
A30: U19 | B30: Well Plug & Abandon | C30: 18.17 | D30: 0 | E30: ft | F30: Quote | G30: Unit cost of $18.17/ft is based on a direct quote from Layne, A Granite Company (formerly Layne Christensen Company) for a total of 172,631 ft of well and exploration borehole abandonment over 300 days (575 ft/day); the unit cost includes 1 mobilization ($15,000) and 1 demobilization ($15,000) spread over 300 days at 575 ft/day
A31: U20 | B31: Well Replacement | C31: =(173500/3000)*(1+0.02)^(2019-2011) -> 67.76096753 | D31: 0 | E31: ft | F31: Quote | G31: Wilcox Professional Services, 8/2011, est. cost for 5 ½ in bore, $173,500 for 3000 ft total ($57.83/ft). Escalated 2% 2011-2019= $67.76/ft
A32: U21 | B32: Reinforced Concrete Wall Demolition | C32: =1866/8*D67 -> 199.1955 | D32: 0 | E32: hr | F32: Means Crew B-12C | G32: Standard Union Crew: 1 equipment operator (crane), 1 laborer, 1 hydraulic excavator, 2 cy, approximately 40 hrs to demo 200 ft reinforced concrete dam.
A33: U22 | B33: Disc harrow attachment, for tractor | C33: 616.33 | D33: 0 | E33: month | F33: Means Line Item 015433.20 1500 | G33: Equipment rental costs
A34: U23 | B34: Cast-In-Place Concrete | C34: 254.97 | D34: 0 | E34: cy | F34: Means Line Item 033053.40 6200 | G34: Structural concrete, in place, gravity retaining wall (3000 psi), includes forms and reinforcement
A35: U24 | B35: Cleanup & Disposal of Wastes Requiring Special Handling | C35: ='4 BuildingWaste '!D82 -> 335.195 | D35: 0 | E35: ton | F35: Means Line Item 028120.10 1120/1130 | G35: Solid pickup; average of minimum and maximum
A36: U25 | B36: Tranportation of Wastes Requiring Special Handling | C36: ='4 BuildingWaste '!D83 -> 4.78 | D36: 0 | E36: mile | F36: Means Line Item 028120.10 1260/1270 | G36: Transporation to disposal site (Truckload = 80 drums or 25 cy or 18 tons); average of minimum and maximum
A37: U26 | B37: Road Maintenance | C37: ='2 Full Site O&M'!K132 -> 4945.959545 | D37: ='2 Full Site O&M'!L132 -> 1240.32 | E37: month | F37: - | G37: Road maintenance for O&M - includes one 14M motor grader and one 6,000-gal water truck
A38: U27 | B38: Tailing Cover Maintenance | C38: ='2 Full Site O&M'!R136 -> 2144.293636 | D38: ='2 Full Site O&M'!S136 -> 269.568 | E38: day | F38: Modified Crew B-13A | G38: Tailing cover maitenance for O&M - includes 1 foreman, 2 laborers, 1 loader (4 cy), 1 dump truck (12 ton)
A39: U28 | B39: Berming | C39: =Berm_UC!Y10 -> 0.06201085844 | D39: 0 | E39: ft | F39: See Berm Unit Cost Sheet | G39: Assumed height of 1’ with top width 2’ (2 X berm height); slopes of 1.5H:1V; volume per ft. to 0.13 cy/ft; Finish grade volume is 1/3 X ‘Excavation Volume’ or 0.04 ft/lf; The berm will be made from cover material; only applicable to the types of berms at the reclaimed borrow areas - These berms are only used to move water along an outslope.
A40: U29 | B40: Fencing | C40: 23.05 | D40: 0 | E40: ft | F40: Means Line Item 323113.20 0800
A41: U30 | B41: Vehicle Gates, Pit Perimeters | C41: 1002.88 | D41: 0 | E41: ea | F41: Means Line Item 323113.20 5070 | G41: Fence, chain link industrial, double swing gates, 6' high, 20' opening, includes excavation, posts & hardware in concrete
A42: U31 | B42: Signs every 500 ft., pit perimeters | C42: 65.19 | D42: 0 | E42: ea | F42: Means Line Item 101453.20 0600 | G42: Signs, guide and directional signs, reflectorized, 12" x 18", excludes posts
A43: U32 | B43: Fire Hydrant Demolition | C43: 396.73 | D43: 0 | E43: ea | F43: Means Line Item 024113.33 0900 | G43: Utility removal, hydrants, fire, remove only, excludes hauling
A44: U33 | B44: Seepage Collection Replacement | C44: ='Seepage Collection_UC'!H23 -> 133355.9403 | D44: 0 | E44: ea | F44: Seepage Collection Unit Cost Sheet | G44: See unit rates calculations
A45: U34 | B45: Culvert Removal | C45: 12.69 | D45: 0 | E45: ft | F45: Means Line Item 024113.40 0190 | G45: Selective demolition, metal drainage piping, CMP, steel, 48"-60", diameter, excludes excavation
A46: U35 | B46: Grade Control Wall | C46: 165.59 | D46: 0 | E46: cy | F46: Means Line Item 033053.40 3945 | G46: Structural concrete, in place, continuous strip footing (3000 psi), 36" wide x 12" deep, unreinforced, includes forms(4 uses), concrete (Portland cement Type I), placing and finishing, excludes reinforcing
A47: U36 | B47: Steel Trestle Demolition | C47: ='Trestle Demo_UC'!D27 -> 30689.1 | D47: 0 | E47: ea | F47: Trestle Demo Unit Cost Sheet | G47: Bridge demolition, pedestrian, steel, 50' to 160' long, 8' to 10' wide; see unit rates calculations
A48: U37 | B48: Sludge Removal | C48: 306.69 | D48: - | E48: ea | F48: Means Line Item 026510.30 0320 | G48: Removal of underground storage tanks, petroleum storage tanks, non-leaking, remove sludge, water and remaining product from tank bottom of tank with vacuum truck, 9,000 - 12,000 gallon tank
A49: U38 | B49: Substation Demo | C49: ='Substation Demo_UC'!A38 -> 12470.55 | D49: 0 | E49: ea | F49: Substation Demo Unit Cost | G49: See unit rates calculations
A50: U39 | B50: Place Holder | C50: 0.01 | D50: 0 | E50: day | F50: - | G50: -
A51: U40 | B51: 120" Pipe | C51: 139.41 | D51: 0 | E51: lf | F51: Means Line Item 334211.40 2850 - 334211.40 2885 | G51: Public storm utility drainage piping, couplings, corrugated metal pipe, galvanized uncoated, Interpolated for 120" diameter
A52: U41 | B52: Vacuum Truck | C52: 170.8 | D52: 0 | E52: hr | F52: Means Line Item 028120.10 3120 | G52: Hazardous waste cleanup/pickup/disposal, liquid pickup, vacuum truck, stainless steel tank, 5000 gallons, minimum charge, 4 hours, 2 compartment
A53: U42 | B53: 72" Pipe | C53: 85.92 | D53: 0 | E53: lf | F53: Means Line Item 334211.40 2885 | G53: Public storm utility drainage piping, couplings, corrugated metal pipe, galvanized uncoated, 72" diameter
A54: U43 | B54: 24" Slotted Pipe | C54: 223.6 | D54: 0 | E54: lf | F54: Means Line Item 331113.10 8300 - 331113.10 8370 | G54: Public water supply wells, wells domestic water, well screen assembly, slotted PVC, interpolated for 24" diameter
A55: U44 | B55: Pea Gravel | C55: 16.56 | D55: 0 | E55: cy | F55: Means Line Item 334123.19 0400 | G55: Geotextile subsurface drainage filtration, drainage material, pea stone fill in trench (material only)
A56: U45 | B56: Fine Sand | C56: 81.69 | D56: 0 | E56: cy | F56: Means Line Item 040513.95 0300 | G56: Sand, for mortar, screened and washed, at the pit, includes 30 mile haul
A57: U46 | B57: Pump | C57: 5000 | D57: 0 | E57: ea | F57: Engineering Judgement | G57: 1 gpm - includes pump control, control panel, installation, and flow meter
A58: U47 | B58: Pump Demo | C58: 247.36 | D58: 0 | E58: ea | F58: Means Line Item 024113.76 0300 | G58: Selective demolition, water wells, pump, up to 100' deep, 1/2 to 5 HP
A59: U48 | B59: Water Piping | C59: 4.11 | D59: 0 | E59: lf | F59: Means Line Item 331413.35 0100 - 331413.35 0300 | G59: Water supply distribution piping, piping HDPE, butt fusion joints, 40' lengths, interpolated for 2" diameter, SDR 21
A60: U49 | B60: Electric Rate | C60: 0.0587 | D60: 0 | E60: kWh | G60: Industrial rate data 3/12/2019 (http://www.electricitylocal.com/states/new-mexico/silver-city/)
A61: U50 | B61: Roller Compaction | C61: 1.26 | D61: 0 | E61: cy | F61: Means Line Item 312323.23 5640 | G61: Compaction, 4 passes, 6" lifts, riding, sheepsfoot or wobbly wheel roller
A62: U51 | B62: HDPE Liner | C62: 1.39 | D62: 0 | E62: sf | F62: Means Line Item 310519.53 1200 | G62: Pond and reservoir liners, membrane lining systems HDPE, 100,000 S.F. or more, 60 mil thick, per S.F.
A63: U52 | B63: GCL/Composite Liner | C63: =C62*1.2 -> 1.668 | D63: 0 | E63: =E62 -> sf | F63: - | G63: Assumed to be 20% more than HDPE liner cost
A64: U53 | B64: Dewater Former Tailing Thickener | C64: ='Thickener Dewater_UC'!H149 -> 213813.8541 | D64: 0 | E64: ea | F64: See Thickener Dewater Unit Cost Sheet | G64: See unit rates calculations
C67: RS Means Location adjustment: New Mexico Las Cruces | D67: 0.854
B68: Not all unit rates are used in this RCE. Other unit rates are kept for alternatives and testing purposes and to maintain spreadsheet integrity
B69: [1] Applied to RSM derived costs only. EquipmentWatch items and items based on local quotes adjusted at base rate
B70: RS Means Online, 2019

Sheet 1 General
C1: Tyrone Mine
C2: Stockpile Spreadsheet Worksheet #1
A3: General Information | C3: 43950
A5: Applicant | B5: Freeport McMoRan Tyrone Inc.
B6: Tyrone, New Mexico 88065
A11: Disturbed Surface Area (acres) | B11: ='17b Facility Characteristics'!AB9-'17b Facility Characteristics'!AA9 -> 3153.850875
A12: (does not include previously reclaimed areas)
A14: Type of Operation | B14: Existing/Surface/Copper
A18: Current value of earthwork and O&M before escalation and discounting | B18: ='16 Sum'!D18+'3 Full Site O&M Summ'!D17 -> 105465018.5
C23: Stockpiles, Tailing,
C24: Reservoirs, Haul Roads
A25: 2014 EOY Mine Plan | C25: and Disturbed Areas

Sheet Equipment
B1: EARTHWORK AND O&M EQUIPMENT
A2: 1 | B2: 2 | C2: 3 | D2: 4 | E2: 5 | F2: 6 | G2: 7 | H2: 8 | I2: 9 | J2: 10 | K2: 11 | L2: 12 | M2: 13 | N2: 14 | O2: 15 | P2: 16 | Q2: 17 | R2: 18 | S2: 19 | T2: 20 | U2: 21 | V2: 22 | W2: 23 | X2: 24 | Y2: 25 | Z2: 26 | AA2: 27 | AB2: 28 | AC2: 29 | AD2: 30 | AE2: 31 | AF2: 32 | AG2: 33 | AH2: 34 | AI2: 35 | AJ2: 36 | AK2: 37 | AL2: 38 | AM2: 39 | AN2: 40 | AO2: 41 | AP2: 42 | AQ2: 43 | AR2: 44 | AS2: 45 | AT2: 46 | AU2: 47 | AV2: 48 | AW2: 49 | AX2: 50 | AY2: 51 | AZ2: 52 | BA2: 53 | BB2: 54 | BC2: 55 | BD2: 56 | BE2: 57 | BF2: 58 | BG2: 59 | BH2: 60 | BI2: 61 | BJ2: 62 | BK2: 63 | BL2: 64 | BM2: 65 | BN2: 66 | BO2: 67 | BP2: 68 | BQ2: 69 | BR2: 70 | BS2: 71 | BT2: 72
N3: Dozing Production (lcy/hr)1 | P3: Haul Travel Time (min/m) = A(Eff. Grade %)4 + B(Eff. Grade %)3 + C(Eff. Grade %)2 + D(Eff. Grade %) + E
N4: Production = C(Avg. dozing distance in ft)b | P4: Loaded Uphill | U4: Empty Uphill | Z4: Loaded Downhill | AE4: Empty Downhill | AV4: Ripper Factors | BP4: Push Cycle Time D9T
A5: Code | B5: Equipment Description | C5: Equipment Type | D5: Fuel Consumption (gal/hr) | E5: Fuel Cost ($/hr) | F5: Lube Cost ($/hr) | G5: Field Parts ($/hr) | H5: Tire Cost ($/hr) | I5: Ground Engaging Component Cost ($/hr) | J5: Monthly Rental Rate ($/month) | K5: Field Labor Time Cost ($/hr) | L5: Rental Cost (w/o fuel, lube, tires, or field parts) ($/hr)5 | M5: Lube, Tires, GEC, & Field Parts Adjusted Rental Cost (w/o fuel) ($/hr) | N5: C | O5: b | P5: A | Q5: B | R5: C | S5: D | T5: E | U5: A | V5: B | W5: C | X5: D | Y5: E | Z5: A | AA5: B | AB5: C | AC5: D | AD5: E | AE5: A | AF5: B | AG5: C | AH5: D | AI5: E | AJ5: Loaded Speed (mph)4 | AK5: Empty Speed (mph) | AL5: Pass Overlap (ft) | AM5: Operator Factor: Coarse Regrading | AN5: Operator Factor: Fine Grading, Cover, Other Surfaces, and Channels | AO5: Visibility Factor | AP5: Elevation Factor | AQ5: Direct Drive Trans. | AR5: Production Method/ Blade Factor: Coarse and Fine Grading | AS5: Production Method/ Blade Factor: Channels, Downdrains, Benches | AT5: Work Hour (min/hr) | AU5: Effective Blade Width (ft) | AV5: Penetration (in) | AW5: Pocket Spacing (in) | AX5: Number of Pockets | AY5: Turn Time (min/pass) | AZ5: Dist. b/n Passes (in) | BA5: Net Bucket Capacity (cy) | BB5: Loader Cycle Time1 (min) | BC5: Bucket Fill Factor | BD5: Struck Capacity (cy) | BE5: Heaped Capacity (cy) | BF5: Sheepsfoot Roller Width (ft) | BG5: Max Reach at GL (in) | BH5: Swing Time (Loaded) (min) | BI5: Swing Time (Empty) (min) | BJ5: Rolling Resistance (%) | BK5: Truck Exchange Time (min) | BL5: Dump/ Maneuver Time (min) | BM5: Rated Load (lb) | BN5: Load Time (min) | BO5: Maneuver & Spread Time (min) | BP5: Boost Time (min) | BQ5: Return Time and Load Time (min) | BR5: Maneuver Time (min) | BS5: NMDOL Operator Group | BT5: NMDOL Total 2019 Rate ($/hr)
A6: - | B6: - | C6: placeholder | D6: 0 | E6: 0 | F6: 0 | G6: 0 | H6: 0 | I6: 0 | J6: 0 | K6: 0 | L6: 0 | M6: 0 | N6: - | O6: - | P6: - | Q6: - | R6: - | S6: - | T6: - | U6: - | V6: - | W6: - | X6: - | Y6: - | Z6: - | AA6: - | AB6: - | AC6: - | AD6: - | AE6: - | AF6: - | AG6: - | AH6: - | AI6: - | AJ6: - | AK6: - | AL6: - | AM6: - | AN6: - | AO6: - | AP6: - | AQ6: - | AR6: - | AS6: - | AT6: - | AU6: - | AV6: - | AW6: - | AX6: - | AY6: - | AZ6: - | BA6: - | BB6: - | BC6: - | BD6: - | BE6: - | BF6: - | BG6: - | BH6: - | BI6: - | BJ6: - | BK6: - | BL6: - | BM6: - | BN6: - | BO6: - | BP6: - | BQ6: - | BR6: - | BS6: =CONCATENATE(BS32," & ", BS20) -> Truck Driver III & Equipment Operator IV | BT6: =BT32+BT20 -> 51.68
A7: Comb1 | B7: Cat 14M, Off-Hwy Water Tanker Truck,6,000-gal. | C7: Combo 1 | D7: =D32+D20 -> 19.54 | E7: =Equipment[[#This Row],[Fuel Consumption (gal/hr)]]*$C$52 -> 45.7236 | F7: =F20+F32 -> 12.72 | G7: =G32+G20 -> 3.75 | H7: 13.46 | I7: 1.16 | J7: 20078.37 | K7: 9.23 | L7: =L32+L20 -> 114.0816477 | M7: 154.4016477 | N7: - | O7: - | P7: - | Q7: - | R7: - | S7: - | T7: - | U7: - | V7: - | W7: - | X7: - | Y7: - | Z7: - | AA7: - | AB7: - | AC7: - | AD7: - | AE7: - | AF7: - | AG7: - | AH7: - | AI7: - | AJ7: - | AK7: - | AL7: - | AM7: - | AN7: - | AO7: - | AP7: - | AQ7: - | AR7: - | AS7: - | AT7: - | AU7: - | AV7: - | AW7: - | AX7: - | AY7: - | AZ7: - | BA7: - | BB7: - | BC7: - | BD7: - | BE7: - | BF7: - | BG7: - | BH7: - | BI7: - | BJ7: - | BK7: - | BL7: - | BM7: - | BN7: - | BO7: - | BP7: - | BQ7: - | BR7: - | BS7: =CONCATENATE(BS36," & ", BS21) -> Laborer I & Truck Driver III | BT7: =BT36+BT21 -> 47.36
A8: Dz1 | B8: Cat D11T, U Blade | C8: Dozer | D8: 29.75 | E8: =Equipment[[#This Row],[Fuel Consumption (gal/hr)]]*$C$52 -> 69.615 | F8: 26.23 | G8: 13.89 | H8: 0 | I8: 12.22 | J8: 34408.41 | K8: 6.6 | L8: =Equipment[[#This Row],[Monthly Rental Rate ($/month)]]/176 -> 195.5023295 | M8: =SUM(L8,K8,H8,F8,Equipment[[#This Row],[Field Parts ($/hr)]],Equipment[[#This Row],[Ground Engaging Component Cost ($/hr)]]) -> 254.4423295 | N8: 155881.5879 | O8: -0.889952 | P8: - | Q8: - | R8: - | S8: - | T8: - | U8: - | V8: - | W8: - | X8: - | Y8: - | Z8: - | AA8: - | AB8: - | AC8: - | AD8: - | AE8: - | AF8: - | AG8: - | AH8: - | AI8: - | AJ8: =AJ9 -> 2.5 | AK8: =Equipment[[#This Row],[Loaded Speed (mph)4]] -> 2.5 | AL8: - | AM8: 1 | AN8: =AN9 -> 0.75 | AO8: 1 | AP8: 1 | AQ8: 1 | AR8: 1.2 | AS8: 1 | AT8: 50 | AU8: =18+(4/12) -> 18.33333333 | AV8: - | AW8: - | AX8: - | AY8: - | AZ8: - | BA8: - | BB8: - | BC8: - | BD8: - | BE8: - | BF8: - | BG8: - | BH8: - | BI8: - | BJ8: - | BK8: - | BL8: - | BM8: - | BN8: - | BO8: - | BP8: - | BQ8: - | BR8: - | BS8: Equipment Operator IV | BT8: =VLOOKUP(BS8,$B$60:$C$65,2) -> 27.41
A9: Dz2 | B9: Cat D11T CD | C9: Dozer6 | D9: =D8 -> 29.75 | E9: =Equipment[[#This Row],[Fuel Consumption (gal/hr)]]*$C$52 -> 69.615 | F9: 26.23 | G9: 13.89 | H9: 0 | I9: 12.22 | J9: 34408.41 | K9: 6.6 | L9: =Equipment[[#This Row],[Monthly Rental Rate ($/month)]]/176 -> 195.5023295 | M9: =SUM(L9,K9,H9,F9,Equipment[[#This Row],[Field Parts ($/hr)]],Equipment[[#This Row],[Ground Engaging Component Cost ($/hr)]]) -> 254.4423295 | N9: 162758.7595 | O9: -0.866691 | P9: - | Q9: - | R9: - | S9: - | T9: - | U9: - | V9: - | W9: - | X9: - | Y9: - | Z9: - | AA9: - | AB9: - | AC9: - | AD9: - | AE9: - | AF9: - | AG9: - | AH9: - | AI9: - | AJ9: 2.5 | AK9: =Equipment[[#This Row],[Loaded Speed (mph)4]] -> 2.5 | AL9: - | AM9: 1 | AN9: 0.75 | AO9: 1 | AP9: 1 | AQ9: 1 | AR9: 1.2 | AS9: 1 | AT9: 50 | AU9: 22 | AV9: - | AW9: - | AX9: - | AY9: - | AZ9: - | BA9: - | BB9: - | BC9: - | BD9: - | BE9: - | BF9: - | BG9: - | BH9: - | BI9: - | BJ9: - | BK9: - | BL9: - | BM9: - | BN9: - | BO9: - | BP9: - | BQ9: - | BR9: - | BS9: Equipment Operator IV | BT9: 27.41
A10: Dz3 | B10: Cat D9T, SU Blade | C10: Dozer | D10: 14.35 | E10: =Equipment[[#This Row],[Fuel Consumption (gal/hr)]]*$C$52 -> 33.579 | F10: 11.22 | G10: 5.49 | H10: 0 | I10: 3.98 | J10: 30109.48 | K10: 6.6 | L10: =Equipment[[#This Row],[Monthly Rental Rate ($/month)]]/176 -> 171.0765909 | M10: =SUM(L10,K10,H10,F10,Equipment[[#This Row],[Field Parts ($/hr)]],Equipment[[#This Row],[Ground Engaging Component Cost ($/hr)]]) -> 198.3665909 | N10: 52161.03341 | O10: -0.845532 | P10: - | Q10: - | R10: - | S10: - | T10: - | U10: - | V10: - | W10: - | X10: - | Y10: - | Z10: - | AA10: - | AB10: - | AC10: - | AD10: - | AE10: - | AF10: - | AG10: - | AH10: - | AI10: - | AJ10: 1 | AK10: =Equipment[[#This Row],[Loaded Speed (mph)4]] -> 1 | AL10: - | AM10: 1 | AN10: 0.75 | AO10: 1 | AP10: 1 | AQ10: 1 | AR10: 1.2 | AS10: 1 | AT10: 50 | AU10: =14 + (1/12) -> 14.08333333 | AV10: - | AW10: - | AX10: - | AY10: - | AZ10: - | BA10: - | BB10: - | BC10: - | BD10: - | BE10: - | BF10: - | BG10: - | BH10: - | BI10: - | BJ10: - | BK10: - | BL10: - | BM10: - | BN10: - | BO10: - | BP10: - | BQ10: - | BR10: - | BS10: Equipment Operator IV | BT10: 27.41
A11: Dz4 | B11: Cat D6T, SU Blade | C11: Dozer | D11: 7.22 | E11: =Equipment[[#This Row],[Fuel Consumption (gal/hr)]]*$C$52 -> 16.8948 | F11: 4.83 | G11: 2.1 | H11: 0 | I11: 2.1 | J11: 8939.42 | K11: 3.83 | L11: =Equipment[[#This Row],[Monthly Rental Rate ($/month)]]/176 -> 50.79215909 | M11: =SUM(L11,K11,H11,F11,Equipment[[#This Row],[Field Parts ($/hr)]],Equipment[[#This Row],[Ground Engaging Component Cost ($/hr)]]) -> 63.65215909 | N11: 13582.45339 | O11: -0.74851 | P11: - | Q11: - | R11: - | S11: - | T11: - | U11: - | V11: - | W11: - | X11: - | Y11: - | Z11: - | AA11: - | AB11: - | AC11: - | AD11: - | AE11: - | AF11: - | AG11: - | AH11: - | AI11: - | AJ11: 1 | AK11: =Equipment[[#This Row],[Loaded Speed (mph)4]] -> 1 | AL11: - | AM11: 1 | AN11: 0.75 | AO11: 1 | AP11: 1 | AQ11: 1 | AR11: 1.2 | AS11: 1 | AT11: 50 | AU11: =10 + (8/12) -> 10.66666667 | AV11: - | AW11: - | AX11: - | AY11: - | AZ11: - | BA11: - | BB11: - | BC11: - | BD11: - | BE11: - | BF11: - | BG11: - | BH11: - | BI11: - | BJ11: - | BK11: - | BL11: - | BM11: - | BN11: - | BO11: - | BP11: - | BQ11: - | BR11: - | BS11: Equipment Operator IV | BT11: 27.41
A12: Dz5 | B12: Cat D6T XL, SU Blade | C12: Dozer | D12: 7.8 | E12: =Equipment[[#This Row],[Fuel Consumption (gal/hr)]]*$C$52 -> 18.252 | F12: 5.28 | G12: 2.32 | H12: 0 | I12: 2.36 | J12: 9104.55 | K12: 3.83 | L12: =Equipment[[#This Row],[Monthly Rental Rate ($/month)]]/176 -> 51.73039773 | M12: =SUM(L12,K12,H12,F12,Equipment[[#This Row],[Field Parts ($/hr)]],Equipment[[#This Row],[Ground Engaging Component Cost ($/hr)]]) -> 65.52039773 | N12: 13582.45339 | O12: -0.74851 | P12: - | Q12: - | R12: - | S12: - | T12: - | U12: - | V12: - | W12: - | X12: - | Y12: - | Z12: - | AA12: - | AB12: - | AC12: - | AD12: - | AE12: - | AF12: - | AG12: - | AH12: - | AI12: - | AJ12: =AJ11 -> 1 | AK12: =Equipment[[#This Row],[Loaded Speed (mph)4]] -> 1 | AL12: - | AM12: 1 | AN12: 0.75 | AO12: 1 | AP12: 1 | AQ12: 1 | AR12: 1.2 | AS12: 1 | AT12: 50 | AU12: =10 + (8/12) -> 10.66666667 | AV12: - | AW12: - | AX12: - | AY12: - | AZ12: - | BA12: - | BB12: - | BC12: - | BD12: - | BE12: - | BF12: - | BG12: - | BH12: - | BI12: - | BJ12: - | BK12: - | BL12: - | BM12: - | BN12: - | BO12: - | BP12: - | BQ12: - | BR12: - | BS12: Equipment Operator IV | BT12: 27.41
A13: Ex1 | B13: Cat 319D L | C13: Excavator | D13: 5.25 | E13: =Equipment[[#This Row],[Fuel Consumption (gal/hr)]]*$C$52 -> 12.285 | F13: 3.47 | G13: 1.19 | H13: 0 | I13: 0.84 | J13: 7450.15 | K13: 4.55 | L13: =Equipment[[#This Row],[Monthly Rental Rate ($/month)]]/176 -> 42.33039773 | M13: =SUM(L13,K13,H13,F13,Equipment[[#This Row],[Field Parts ($/hr)]],Equipment[[#This Row],[Ground Engaging Component Cost ($/hr)]]) -> 52.38039773 | N13: - | O13: - | P13: - | Q13: - | R13: - | S13: - | T13: - | U13: - | V13: - | W13: - | X13: - | Y13: - | Z13: - | AA13: - | AB13: - | AC13: - | AD13: - | AE13: - | AF13: - | AG13: - | AH13: - | AI13: - | AJ13: - | AK13: - | AL13: - | AM13: - | AN13: - | AO13: - | AP13: - | AQ13: - | AR13: - | AS13: - | AT13: 50 | AU13: - | AV13: - | AW13: - | AX13: - | AY13: - | AZ13: - | BA13: - | BB13: - | BC13: 0.875 | BD13: - | BE13: 1 | BF13: 3 | BG13: 380 | BH13: 0.09 | BI13: 0.07 | BJ13: - | BK13: - | BL13: - | BM13: - | BN13: - | BO13: - | BP13: - | BQ13: - | BR13: - | BS13: Equipment Operator VI | BT13: 27.7
A14: Ld1 | B14: Cat 992K | C14: Loader | D14: 25.63 | E14: =Equipment[[#This Row],[Fuel Consumption (gal/hr)]]*$C$52 -> 59.9742 | F14: 22.35 | G14: 4.43 | H14: 35.39 | I14: 4.99 | J14: 25527.98 | K14: 4.02 | L14: =Equipment[[#This Row],[Monthly Rental Rate ($/month)]]/176 -> 145.0453409 | M14: =SUM(L14,K14,H14,F14,Equipment[[#This Row],[Field Parts ($/hr)]],Equipment[[#This Row],[Ground Engaging Component Cost ($/hr)]]) -> 216.2253409 | N14: - | O14: - | P14: - | Q14: - | R14: - | S14: - | T14: - | U14: - | V14: - | W14: - | X14: - | Y14: - | Z14: - | AA14: - | AB14: - | AC14: - | AD14: - | AE14: - | AF14: - | AG14: - | AH14: - | AI14: - | AJ14: 7.6 | AK14: 12.8 | AL14: - | AM14: - | AN14: - | AO14: - | AP14: - | AQ14: - | AR14: - | AS14: - | AT14: 50 | AU14: - | AV14: - | AW14: - | AX14: - | AY14: - | AZ14: - | BA14: =Equipment[[#This Row],[Bucket Fill Factor]]*Equipment[[#This Row],[Heaped Capacity (cy)]] -> 14 | BB14: 0.65 | BC14: 0.875 | BD14: - | BE14: 16 | BF14: - | BG14: - | BH14: - | BI14: - | BJ14: - | BK14: - | BL14: - | BM14: - | BN14: - | BO14: - | BP14: - | BQ14: - | BR14: - | BS14: Equipment Operator VI | BT14: 27.7
A15: Ld2 | B15: Cat 988H | C15: Loader | D15: 15.2 | E15: =Equipment[[#This Row],[Fuel Consumption (gal/hr)]]*$C$52 -> 35.568 | F15: 11.4 | G15: 2.11 | H15: 16.85 | I15: 1.93 | J15: 16272.06 | K15: 4.02 | L15: =Equipment[[#This Row],[Monthly Rental Rate ($/month)]]/176 -> 92.45488636 | M15: =SUM(L15,K15,H15,F15,Equipment[[#This Row],[Field Parts ($/hr)]],Equipment[[#This Row],[Ground Engaging Component Cost ($/hr)]]) -> 128.7648864 | N15: - | O15: - | P15: - | Q15: - | R15: - | S15: - | T15: - | U15: - | V15: - | W15: - | X15: - | Y15: - | Z15: - | AA15: - | AB15: - | AC15: - | AD15: - | AE15: - | AF15: - | AG15: - | AH15: - | AI15: - | AJ15: 7.3 | AK15: 12.9 | AL15: - | AM15: - | AN15: - | AO15: - | AP15: - | AQ15: - | AR15: - | AS15: - | AT15: 50 | AU15: - | AV15: - | AW15: - | AX15: - | AY15: - | AZ15: - | BA15: =Equipment[[#This Row],[Bucket Fill Factor]]*Equipment[[#This Row],[Heaped Capacity (cy)]] -> 7.28875 | BB15: 0.575 | BC15: 0.875 | BD15: - | BE15: 8.33 | BF15: - | BG15: - | BH15: - | BI15: - | BJ15: - | BK15: - | BL15: - | BM15: - | BN15: - | BO15: - | BP15: - | BQ15: - | BR15: - | BS15: Equipment Operator VI | BT15: 27.7
A16: Ld3 | B16: Cat 980H | C16: Loader | D16: 10.8 | E16: =Equipment[[#This Row],[Fuel Consumption (gal/hr)]]*$C$52 -> 25.272 | F16: 6.7 | G16: 1.13 | H16: 7.69 | I16: 1.03 | J16: 10030.76 | K16: 4.02 | L16: =Equipment[[#This Row],[Monthly Rental Rate ($/month)]]/176 -> 56.99295455 | M16: =SUM(L16,K16,H16,F16,Equipment[[#This Row],[Field Parts ($/hr)]],Equipment[[#This Row],[Ground Engaging Component Cost ($/hr)]]) -> 77.56295455 | N16: - | O16: - | P16: - | Q16: - | R16: - | S16: - | T16: - | U16: - | V16: - | W16: - | X16: - | Y16: - | Z16: - | AA16: - | AB16: - | AC16: - | AD16: - | AE16: - | AF16: - | AG16: - | AH16: - | AI16: - | AJ16: 7.3 | AK16: 12.9 | AL16: - | AM16: - | AN16: - | AO16: - | AP16: - | AQ16: - | AR16: - | AS16: - | AT16: 50 | AU16: - | AV16: - | AW16: - | AX16: - | AY16: - | AZ16: - | BA16: =Equipment[[#This Row],[Bucket Fill Factor]]*Equipment[[#This Row],[Heaped Capacity (cy)]] -> 6.5625 | BB16: 0.525 | BC16: 0.875 | BD16: - | BE16: 7.5 | BF16: - | BG16: - | BH16: - | BI16: - | BJ16: - | BK16: - | BL16: - | BM16: - | BN16: - | BO16: - | BP16: - | BQ16: - | BR16: - | BS16: Equipment Operator VI | BT16: 27.7
A17: Ld4 | B17: Cat 966H | C17: Loader | D17: 8.38 | E17: =Equipment[[#This Row],[Fuel Consumption (gal/hr)]]*$C$52 -> 19.6092 | F17: 5.33 | G17: 0.84 | H17: 5.71 | I17: 0.75 | J17: 9937.5 | K17: 4.02 | L17: =Equipment[[#This Row],[Monthly Rental Rate ($/month)]]/176 -> 56.46306818 | M17: =SUM(L17,K17,H17,F17,Equipment[[#This Row],[Field Parts ($/hr)]],Equipment[[#This Row],[Ground Engaging Component Cost ($/hr)]]) -> 73.11306818 | N17: - | O17: - | P17: - | Q17: - | R17: - | S17: - | T17: - | U17: - | V17: - | W17: - | X17: - | Y17: - | Z17: - | AA17: - | AB17: - | AC17: - | AD17: - | AE17: - | AF17: - | AG17: - | AH17: - | AI17: - | AJ17: 7.8 | AK17: 13.7 | AL17: - | AM17: - | AN17: - | AO17: - | AP17: - | AQ17: - | AR17: - | AS17: - | AT17: 50 | AU17: - | AV17: - | AW17: - | AX17: - | AY17: - | AZ17: - | BA17: =Equipment[[#This Row],[Bucket Fill Factor]]*Equipment[[#This Row],[Heaped Capacity (cy)]] -> 4.8125 | BB17: 0.525 | BC17: 0.875 | BD17: - | BE17: 5.5 | BF17: - | BG17: - | BH17: - | BI17: - | BJ17: - | BK17: - | BL17: - | BM17: - | BN17: - | BO17: - | BP17: - | BQ17: - | BR17: - | BS17: Equipment Operator VI | BT17: 27.7
A18: Ld5 | B18: Cat 993K | C18: Loader | D18: 30.4 | E18: =Equipment[[#This Row],[Fuel Consumption (gal/hr)]]*$C$52 -> 71.136 | F18: 26.7 | G18: 5.32 | H18: 42.47 | I18: 4.73 | J18: 25527.98 | K18: 4.02 | L18: =Equipment[[#This Row],[Monthly Rental Rate ($/month)]]/176 -> 145.0453409 | M18: =SUM(L18,K18,H18,F18,Equipment[[#This Row],[Field Parts ($/hr)]],Equipment[[#This Row],[Ground Engaging Component Cost ($/hr)]]) -> 228.2853409 | N18: - | O18: - | P18: - | Q18: - | R18: - | S18: - | T18: - | U18: - | V18: - | W18: - | X18: - | Y18: - | Z18: - | AA18: - | AB18: - | AC18: - | AD18: - | AE18: - | AF18: - | AG18: - | AH18: - | AI18: - | AJ18: 7.4 | AK18: 12.7 | AL18: - | AM18: - | AN18: - | AO18: - | AP18: - | AQ18: - | AR18: - | AS18: - | AT18: 50 | AV18: - | AW18: - | AX18: - | AY18: - | AZ18: - | BA18: =Equipment[[#This Row],[Bucket Fill Factor]]*Equipment[[#This Row],[Struck Capacity (cy)]] -> 17.5 | BB18: 0.65 | BC18: 0.875 | BD18: 20 | BE18: - | BF18: - | BG18: - | BH18: - | BI18: - | BK18: - | BL18: - | BM18: - | BN18: - | BP18: - | BQ18: - | BS18: Equipment Operator VI | BT18: =VLOOKUP(BS18,$B$60:$C$65,2) -> 27.7
A19: Mg1 | B19: Cat 16M | C19: Motor Grader | D19: 9.5 | E19: =Equipment[[#This Row],[Fuel Consumption (gal/hr)]]*$C$52 -> 22.23 | F19: 8.69 | G19: 3.26 | H19: 10.13 | I19: 1.76 | J19: 11906.7 | K19: 2.02 | L19: =Equipment[[#This Row],[Monthly Rental Rate ($/month)]]/176 -> 67.65170455 | M19: =SUM(L19,K19,H19,F19,Equipment[[#This Row],[Field Parts ($/hr)]],Equipment[[#This Row],[Ground Engaging Component Cost ($/hr)]]) -> 93.51170455 | N19: - | O19: - | P19: - | Q19: - | R19: - | S19: - | T19: - | U19: - | V19: - | W19: - | X19: - | Y19: - | Z19: - | AA19: - | AB19: - | AC19: - | AD19: - | AE19: - | AF19: - | AG19: - | AH19: - | AI19: - | AJ19: 2.5 | AK19: =Equipment[[#This Row],[Loaded Speed (mph)4]] -> 2.5 | AL19: 2 | AM19: - | AN19: 0.75 | AO19: 1 | AP19: 1 | AQ19: 1 | AR19: 1.2 | AS19: 1 | AT19: 50 | AU19: 16 | AV19: - | AW19: - | AX19: - | AY19: - | AZ19: - | BA19: - | BB19: - | BC19: - | BD19: - | BE19: - | BF19: - | BG19: - | BH19: - | BI19: - | BJ19: - | BK19: - | BL19: - | BM19: - | BN19: - | BO19: - | BP19: - | BQ19: - | BR19: - | BS19: Equipment Operator IV | BT19: =VLOOKUP(BS19,$B$60:$C$65,2) -> 27.41
A20: Mg2 | B20: Cat 14M | C20: Motor Grader | D20: 8.29 | E20: =Equipment[[#This Row],[Fuel Consumption (gal/hr)]]*$C$52 -> 19.3986 | F20: 6.57 | G20: 2.27 | H20: 7.04 | I20: 1.16 | J20: 11906.7 | K20: 2.02 | L20: =Equipment[[#This Row],[Monthly Rental Rate ($/month)]]/176 -> 67.65170455 | M20: =SUM(L20,K20,H20,F20,Equipment[[#This Row],[Field Parts ($/hr)]],Equipment[[#This Row],[Ground Engaging Component Cost ($/hr)]]) -> 86.71170455 | N20: - | O20: - | P20: - | Q20: - | R20: - | S20: - | T20: - | U20: - | V20: - | W20: - | X20: - | Y20: - | Z20: - | AA20: - | AB20: - | AC20: - | AD20: - | AE20: - | AF20: - | AG20: - | AH20: - | AI20: - | AJ20: 2.5 | AK20: =Equipment[[#This Row],[Loaded Speed (mph)4]] -> 2.5 | AL20: 2 | AM20: - | AN20: 0.75 | AO20: 1 | AP20: 1 | AQ20: 1 | AR20: 1.2 | AS20: 1 | AT20: 50 | AU20: 14 | AV20: - | AW20: - | AX20: - | AY20: - | AZ20: - | BA20: - | BB20: - | BC20: - | BD20: - | BE20: - | BF20: - | BG20: - | BH20: - | BI20: - | BJ20: - | BK20: - | BL20: - | BM20: - | BN20: - | BO20: - | BP20: - | BQ20: - | BR20: - | BS20: Equipment Operator IV | BT20: =VLOOKUP(BS20,$B$60:$C$65,2) -> 27.41
A21: Mu1 | B21: Finn B260 | C21: Mulcher | D21: 4.13 | E21: =Equipment[[#This Row],[Fuel Consumption (gal/hr)]]*$C$52 -> 9.6642 | F21: 1.6 | G21: 0.15 | H21: 0.6 | I21: 0 | J21: 2167.95 | K21: 1.25 | L21: =Equipment[[#This Row],[Monthly Rental Rate ($/month)]]/176 -> 12.31789773 | M21: =SUM(L21,K21,H21,F21,Equipment[[#This Row],[Field Parts ($/hr)]],Equipment[[#This Row],[Ground Engaging Component Cost ($/hr)]]) -> 15.91789773 | O21: - | P21: - | Q21: - | R21: - | S21: - | T21: - | U21: - | V21: - | W21: - | X21: - | Y21: - | Z21: - | AA21: - | AB21: - | AC21: - | AD21: - | AE21: - | AF21: - | AG21: - | AH21: - | AI21: - | AJ21: - | AK21: - | AL21: - | AM21: - | AN21: - | AO21: - | AP21: - | AQ21: - | AR21: - | AS21: - | AT21: 50 | AU21: - | AV21: - | AW21: - | AX21: - | AY21: - | AZ21: - | BA21: - | BB21: - | BC21: - | BD21: - | BE21: - | BF21: - | BG21: - | BH21: - | BI21: - | BJ21: - | BK21: - | BL21: - | BM21: - | BN21: - | BO21: - | BP21: - | BQ21: - | BR21: - | BS21: Truck Driver III | BT21: =VLOOKUP(BS21,$B$60:$C$65,2) -> 24.27
A22: Rp1 | B22: Cat D11T CD Multi-shank (w/ MSR-359H) | C22: Dozer w/ Ripper | D22: =D9 -> 29.75 | E22: =Equipment[[#This Row],[Fuel Consumption (gal/hr)]]*$C$52 -> 69.615 | F22: 26.6 | G22: 14.2 | H22: =H9 -> 0 | I22: 1.56 | J22: 36753.56 | K22: 8.16 | L22: =Equipment[[#This Row],[Monthly Rental Rate ($/month)]]/176 -> 208.8270455 | M22: =SUM(L22,K22,H22,F22,Equipment[[#This Row],[Field Parts ($/hr)]],Equipment[[#This Row],[Ground Engaging Component Cost ($/hr)]]) -> 259.3470455 | N22: - | O22: - | P22: - | Q22: - | R22: - | S22: - | T22: - | U22: - | V22: - | W22: - | X22: - | Y22: - | Z22: - | AA22: - | AB22: - | AC22: - | AD22: - | AE22: - | AF22: - | AG22: - | AH22: - | AI22: - | AJ22: 1 | AK22: =Equipment[[#This Row],[Loaded Speed (mph)4]] -> 1 | AL22: - | AM22: - | AN22: - | AO22: - | AP22: - | AQ22: - | AR22: - | AS22: - | AT22: 50 | AU22: - | AV22: 18 | AW22: =(4*12)+11 -> 59 | AX22: 3 | AY22: 0.25 | AZ22: =Equipment[[#This Row],[Pocket Spacing (in)]] -> 59 | BA22: - | BB22: - | BC22: - | BD22: - | BE22: - | BF22: - | BG22: - | BH22: - | BI22: - | BJ22: - | BK22: - | BL22: - | BM22: - | BN22: - | BO22: - | BP22: - | BQ22: - | BR22: - | BS22: Equipment Operator IV | BT22: =VLOOKUP(BS22,$B$60:$C$65,2) -> 27.41
A23: Rp2 | B23: MSR-189H | C23: Ripper Attachment | D23: 0 | E23: =Equipment[[#This Row],[Fuel Consumption (gal/hr)]]*$C$52 -> 0 | F23: 0.15 | G23: 0.16 | H23: 0 | I23: 0.78 | J23: 898.9 | K23: 0.57 | L23: =Equipment[[#This Row],[Monthly Rental Rate ($/month)]]/176 -> 5.107386364 | M23: =SUM(L23,K23,H23,F23,Equipment[[#This Row],[Field Parts ($/hr)]],Equipment[[#This Row],[Ground Engaging Component Cost ($/hr)]]) -> 6.767386364 | N23: - | O23: - | P23: - | Q23: - | R23: - | S23: - | T23: - | U23: - | V23: - | W23: - | X23: - | Y23: - | Z23: - | AA23: - | AB23: - | AC23: - | AD23: - | AE23: - | AF23: - | AG23: - | AH23: - | AI23: - | AJ23: - | AK23: - | AL23: - | AM23: - | AN23: - | AO23: - | AP23: - | AQ23: - | AR23: - | AS23: - | AT23: 50 | AU23: - | AV23: - | AW23: - | AX23: - | AY23: - | AZ23: - | BA23: - | BB23: - | BC23: - | BD23: - | BE23: - | BF23: - | BG23: - | BH23: - | BI23: - | BJ23: - | BK23: - | BL23: - | BM23: - | BN23: - | BO23: - | BP23: - | BQ23: - | BR23: - | BS23: - | BT23: -
A24: Sc1 | B24: Cat 637G | C24: Scraper | D24: 38 | E24: =Equipment[[#This Row],[Fuel Consumption (gal/hr)]]*$C$52 -> 88.92 | F24: 17.07 | G24: 6.27 | H24: 7.57 | I24: 1.28 | J24: 25070 | K24: 12.8 | L24: =Equipment[[#This Row],[Monthly Rental Rate ($/month)]]/176 -> 142.4431818 | M24: =SUM(L24,K24,H24,F24,Equipment[[#This Row],[Field Parts ($/hr)]],Equipment[[#This Row],[Ground Engaging Component Cost ($/hr)]]) -> 187.4331818 | N24: - | O24: - | P24: 3.2483 | Q24: -1.9562 | R24: 0.4337 | S24: -0.0026 | T24: 0.001 | U24: 0 | V24: -0.3247 | W24: 0.1601 | X24: -0.0038 | Y24: 0.0011 | Z24: 0.6464 | AA24: -0.6147 | AB24: 0.1749 | AC24: -0.0004 | AD24: 0.0011 | AE24: 0 | AF24: 0 | AG24: 0.0367 | AH24: 0.0018 | AI24: 0.0009 | AJ24: 33 | AK24: =Equipment[[#This Row],[Loaded Speed (mph)4]] -> 33 | AL24: - | AM24: - | AN24: - | AO24: - | AP24: - | AQ24: - | AR24: - | AS24: - | AT24: 50 | AU24: - | AV24: - | AW24: - | AX24: - | AY24: - | AZ24: - | BA24: - | BB24: - | BC24: - | BD24: 24 | BE24: 34 | BF24: - | BG24: - | BH24: - | BI24: - | BJ24: 0.025 | BK24: - | BL24: - | BM24: 81600 | BN24: 0.85 | BO24: 0.65 | BP24: 0.1 | BQ24: =Equipment[[#This Row],[Load Time (min)]]*1.4 -> 1.19 | BR24: 0.15 | BS24: Equipment Operator IV | BT24: =VLOOKUP(BS24,$B$60:$C$65,2) -> 27.41
A25: Sc2 | B25: Cat 657G | C25: Scraper | D25: 42.86 | E25: =Equipment[[#This Row],[Fuel Consumption (gal/hr)]]*$C$52 -> 100.2924 | F25: 20.41 | G25: 7.73 | H25: 9.34 | I25: 2.31 | J25: 25070 | K25: 12.8 | L25: =Equipment[[#This Row],[Monthly Rental Rate ($/month)]]/176 -> 142.4431818 | M25: =SUM(L25,K25,H25,F25,Equipment[[#This Row],[Field Parts ($/hr)]],Equipment[[#This Row],[Ground Engaging Component Cost ($/hr)]]) -> 195.0331818 | N25: - | O25: - | P25: 0.3036 | Q25: -0.4512 | R25: 0.2181 | S25: -0.0034 | T25: 0.0013 | U25: 0 | V25: -0.1016 | W25: 0.0774 | X25: -0.0013 | Y25: 0.0012 | Z25: 0 | AA25: -0.1612 | AB25: 0.1031 | AC25: -0.0081 | AD25: 0.0016 | AE25: 0 | AF25: 0.1668 | AG25: -0.094 | AH25: 0.0207 | AI25: 0.0004 | AJ25: 33 | AK25: =Equipment[[#This Row],[Loaded Speed (mph)4]] -> 33 | AL25: - | AM25: - | AN25: - | AO25: - | AP25: - | AQ25: - | AR25: - | AS25: - | AT25: 50 | AU25: - | AV25: - | AW25: - | AX25: - | AY25: - | AZ25: - | BA25: - | BB25: - | BC25: - | BD25: 32 | BE25: 44 | BF25: - | BG25: - | BH25: - | BI25: - | BJ25: 0.025 | BK25: - | BL25: - | BM25: 104000 | BN25: 0.85 | BO25: 0.65 | BP25: 0.1 | BQ25: 1.19 | BR25: 0.15 | BS25: Equipment Operator IV | BT25: 27.41
A26: Sh1 | B26: Hitachi EX3600-5 | C26: Shovel2 | D26: 82.72 | E26: =Equipment[[#This Row],[Fuel Consumption (gal/hr)]]*$C$52 -> 193.5648 | F26: 59.15 | G26: 24.25 | H26: 0 | I26: 16.56 | J26: 69269 | K26: 14.45 | L26: =Equipment[[#This Row],[Monthly Rental Rate ($/month)]]/176 -> 393.5738636 | M26: =SUM(L26,K26,H26,F26,Equipment[[#This Row],[Field Parts ($/hr)]],Equipment[[#This Row],[Ground Engaging Component Cost ($/hr)]]) -> 507.9838636 | N26: - | O26: - | P26: - | Q26: - | R26: - | S26: - | T26: - | U26: - | V26: - | W26: - | X26: - | Y26: - | Z26: - | AA26: - | AB26: - | AC26: - | AD26: - | AE26: - | AF26: - | AG26: - | AH26: - | AI26: - | AJ26: - | AK26: - | AL26: - | AM26: - | AN26: - | AO26: - | AP26: - | AQ26: - | AR26: - | AS26: - | AT26: 50 | AU26: - | AV26: - | AW26: - | AX26: - | AY26: - | AZ26: - | BA26: =Equipment[[#This Row],[Heaped Capacity (cy)]]*Equipment[[#This Row],[Bucket Fill Factor]] -> 28.085 | BB26: 0.45 | BC26: 1.025 | BD26: - | BE26: 27.4 | BF26: - | BG26: - | BH26: - | BI26: - | BJ26: - | BK26: - | BL26: - | BM26: - | BN26: - | BO26: - | BP26: - | BQ26: - | BR26: - | BS26: Equipment Operator VI | BT26: 27.7
A27: Tc1 | B27: Deere 7430 | C27: Tractor | D27: 5.98 | E27: =Equipment[[#This Row],[Fuel Consumption (gal/hr)]]*$C$52 -> 13.9932 | F27: 2.84 | G27: 0.61 | H27: 2.42 | I27: 0 | J27: 5210.05 | K27: 2.53 | L27: =Equipment[[#This Row],[Monthly Rental Rate ($/month)]]/176 -> 29.60255682 | M27: =SUM(L27,K27,H27,F27,Equipment[[#This Row],[Field Parts ($/hr)]],Equipment[[#This Row],[Ground Engaging Component Cost ($/hr)]]) -> 38.00255682 | N27: - | O27: - | P27: - | Q27: - | R27: - | S27: - | T27: - | U27: - | V27: - | W27: - | X27: - | Y27: - | Z27: - | AA27: - | AB27: - | AC27: - | AD27: - | AE27: - | AF27: - | AG27: - | AH27: - | AI27: - | AJ27: 3 | AK27: =Equipment[[#This Row],[Loaded Speed (mph)4]] -> 3 | AL27: - | AM27: - | AN27: - | AO27: - | AP27: - | AQ27: - | AR27: - | AS27: - | AT27: 50 | AU27: 12 | AV27: - | AW27: - | AX27: - | AY27: - | AZ27: - | BA27: - | BB27: - | BC27: - | BD27: - | BE27: - | BF27: - | BG27: - | BH27: - | BI27: - | BJ27: - | BK27: - | BL27: - | BM27: - | BN27: - | BO27: - | BP27: - | BQ27: - | BR27: - | BS27: Truck Driver III | BT27: 24.27
A28: Tk1 | B28: Komatsu HD-1500 5 | C28: Truck | D28: 28.12 | E28: =Equipment[[#This Row],[Fuel Consumption (gal/hr)]]*$C$52 -> 65.8008 | F28: 19.9 | G28: 1.79 | H28: 25.19 | I28: 0 | J28: 25211.93 | K28: 7.47 | L28: =Equipment[[#This Row],[Monthly Rental Rate ($/month)]]/176 -> 143.2496023 | M28: =SUM(L28,K28,H28,F28,Equipment[[#This Row],[Field Parts ($/hr)]],Equipment[[#This Row],[Ground Engaging Component Cost ($/hr)]]) -> 197.5996023 | N28: - | O28: - | P28: 4.494 | Q28: -2.4571 | R28: 0.6319 | S28: -0.0051 | T28: 0.0011 | U28: 0 | V28: -0.2561 | W28: 0.1351 | X28: -0.0004 | Y28: 0.001 | Z28: 0 | AA28: 0 | AB28: 0.0856 | AC28: 0.0135 | AD28: 0.0009 | AE28: 0 | AF28: 0 | AG28: 0 | AH28: 0.0143 | AI28: 0.0005 | AJ28: 35.1 | AK28: =Equipment[[#This Row],[Loaded Speed (mph)4]] -> 35.1 | AL28: - | AM28: - | AN28: - | AO28: - | AP28: - | AQ28: - | AR28: - | AS28: - | AT28: 50 | AU28: - | AV28: - | AW28: - | AX28: - | AY28: - | AZ28: - | BA28: - | BB28: - | BC28: - | BD28: 71 | BE28: 102 | BF28: - | BG28: - | BH28: - | BI28: - | BJ28: 0.025 | BK28: 0.7 | BL28: 1.1 | BM28: - | BN28: - | BO28: - | BP28: - | BQ28: - | BR28: - | BS28: Truck Driver III | BT28: =VLOOKUP(BS28,$B$62:$C$67,2) -> 24.27
A29: Tk2 | B29: Cat 769D | C29: Truck | D29: 9.74 | E29: =Equipment[[#This Row],[Fuel Consumption (gal/hr)]]*$C$52 -> 22.7916 | F29: 8.77 | G29: 1.48 | H29: 13.72 | I29: 0 | J29: 14042.5 | K29: 4.25 | L29: =Equipment[[#This Row],[Monthly Rental Rate ($/month)]]/176 -> 79.78693182 | M29: =SUM(L29,K29,H29,F29,Equipment[[#This Row],[Field Parts ($/hr)]],Equipment[[#This Row],[Ground Engaging Component Cost ($/hr)]]) -> 108.0069318 | N29: - | O29: - | P29: 0.5429 | Q29: -0.487 | R29: 0.1823 | S29: 0.0151 | T29: 0.0007 | U29: 0 | V29: 0.0224 | W29: -0.0076 | X29: 0.0141 | Y29: 0.0007 | Z29: 0 | AA29: 0 | AB29: -0.0808 | AC29: 0.426 | AD29: -0.0008 | AE29: 5.6146 | AF29: -3.6353 | AG29: 0.7823 | AH29: -0.0535 | AI29: 0.002 | AJ29: 47 | AK29: =Equipment[[#This Row],[Loaded Speed (mph)4]] -> 47 | AL29: - | AM29: - | AN29: - | AO29: - | AP29: - | AQ29: - | AR29: - | AS29: - | AT29: 50 | AU29: - | AV29: - | AW29: - | AX29: - | AY29: - | AZ29: - | BA29: - | BB29: - | BC29: - | BD29: 22.2 | BE29: 31.7 | BF29: - | BG29: - | BH29: - | BI29: - | BJ29: 0.025 | BK29: 0.7 | BL29: 1.1 | BM29: - | BN29: - | BO29: - | BP29: - | BQ29: - | BR29: - | BS29: Truck Driver III | BT29: 24.27
A30: Tk3 | B30: Cat 725 | C30: Truck | D30: 6.02 | E30: =Equipment[[#This Row],[Fuel Consumption (gal/hr)]]*$C$52 -> 14.0868 | F30: 5.74 | G30: 0.94 | H30: 7.11 | I30: 0 | J30: 9849.6 | K30: 3.36 | L30: =Equipment[[#This Row],[Monthly Rental Rate ($/month)]]/176 -> 55.96363636 | M30: =SUM(L30,K30,H30,F30,Equipment[[#This Row],[Field Parts ($/hr)]],Equipment[[#This Row],[Ground Engaging Component Cost ($/hr)]]) -> 73.11363636 | N30: - | O30: - | P30: 0.1363 | Q30: 0.1636 | R30: -0.04 | S30: 0.0342 | T30: 0.0009 | U30: 0 | V30: -0.024 | W30: 0.0309 | X30: 0.0099 | Y30: 0.001 | Z30: 0 | AA30: 2.5262 | AB30: -0.7562 | AC30: 0.095 | AD30: -0.002 | AE30: 0 | AF30: 0 | AG30: 0 | AH30: 0.0103 | AI30: 0.0009 | AJ30: 34 | AK30: =Equipment[[#This Row],[Loaded Speed (mph)4]] -> 34 | AL30: - | AM30: - | AN30: - | AO30: - | AP30: - | AQ30: - | AR30: - | AS30: - | AT30: 50 | AU30: - | AV30: - | AW30: - | AX30: - | AY30: - | AZ30: - | BA30: - | BB30: - | BC30: - | BD30: 14.3 | BE30: 18.8 | BF30: - | BG30: - | BH30: - | BI30: - | BJ30: 0.025 | BK30: 0.7 | BL30: 1.1 | BM30: - | BN30: - | BO30: - | BP30: - | BQ30: - | BR30: - | BS30: Truck Driver III | BT30: 24.27
A31: Tk4 | B31: Komatsu 730E | C31: Truck3 | D31: 33.48 | E31: =Equipment[[#This Row],[Fuel Consumption (gal/hr)]]*$C$52 -> 78.3432 | F31: 20.49 | G31: 1.8 | H31: 21.21 | I31: 0 | J31: 29356.98 | K31: 11.49 | L31: =Equipment[[#This Row],[Monthly Rental Rate ($/month)]]/176 -> 166.8010227 | M31: =SUM(L31,K31,H31,F31,Equipment[[#This Row],[Field Parts ($/hr)]],Equipment[[#This Row],[Ground Engaging Component Cost ($/hr)]]) -> 221.7910227 | N31: - | O31: - | P31: 7.5599 | Q31: -2.711 | R31: 0.4209 | S31: 0.005 | T31: 0.0011 | U31: 0 | V31: -0.0689 | W31: 0.0501 | X31: 0.0052 | Y31: 0.001 | Z31: 0 | AA31: -1.1878 | AB31: 0.325 | AC31: 0.0042 | AD31: 0.001 | AE31: -3.4907 | AF31: 2.4171 | AG31: -0.55 | AH31: 0.0643 | AI31: -0.0011 | AJ31: 35.5 | AK31: =Equipment[[#This Row],[Loaded Speed (mph)4]] -> 35.5 | AL31: - | AM31: - | AN31: - | AO31: - | AP31: - | AQ31: - | AR31: - | AS31: - | AT31: 50 | AU31: - | AV31: - | AW31: - | AX31: - | AY31: - | AZ31: - | BA31: - | BB31: - | BC31: - | BD31: 101 | BE31: 145 | BF31: - | BG31: - | BH31: - | BI31: - | BJ31: 0.025 | BK31: 0.7 | BL31: 1.1 | BM31: - | BN31: - | BO31: - | BP31: - | BQ31: - | BR31: - | BS31: Truck Driver III | BT31: 24.27
A32: Tw1 | B32: Off-Hwy Water Tanker Truck,6,000-gal. | C32: WaterTruck | D32: 11.25 | E32: =Equipment[[#This Row],[Fuel Consumption (gal/hr)]]*$C$52 -> 26.325 | F32: 6.15 | G32: 1.48 | H32: 6.42 | I32: 0 | J32: 8171.67 | K32: 7.21 | L32: =Equipment[[#This Row],[Monthly Rental Rate ($/month)]]/176 -> 46.42994318 | M32: =SUM(L32,K32,H32,F32,Equipment[[#This Row],[Field Parts ($/hr)]],Equipment[[#This Row],[Ground Engaging Component Cost ($/hr)]]) -> 67.68994318 | N32: - | O32: - | P32: - | Q32: - | R32: - | S32: - | T32: - | U32: - | V32: - | W32: - | X32: - | Y32: - | Z32: - | AA32: - | AB32: - | AC32: - | AD32: - | AE32: - | AF32: - | AG32: - | AH32: - | AI32: - | AJ32: - | AK32: - | AL32: - | AM32: - | AN32: - | AO32: - | AP32: - | AQ32: - | AR32: - | AS32: - | AT32: 50 | AU32: - | AV32: - | AW32: - | AX32: - | AY32: - | AZ32: - | BA32: - | BB32: - | BC32: - | BD32: - | BE32: - | BF32: - | BG32: - | BH32: - | BI32: - | BJ32: - | BK32: - | BL32: - | BM32: - | BN32: - | BO32: - | BP32: - | BQ32: - | BR32: - | BS32: Truck Driver III | BT32: 24.27
A33: Tw2 | B33: Off-Hwy Water Tanker Truck,10,000-gal. | C33: WaterTruck | D33: 15.43 | E33: =Equipment[[#This Row],[Fuel Consumption (gal/hr)]]*$C$52 -> 36.1062 | F33: 9.04 | G33: 2.43 | H33: 10.47 | I33: 0 | J33: 12949.87 | K33: 10.3 | L33: =Equipment[[#This Row],[Monthly Rental Rate ($/month)]]/176 -> 73.57880682 | M33: =SUM(L33,K33,H33,F33,Equipment[[#This Row],[Field Parts ($/hr)]],Equipment[[#This Row],[Ground Engaging Component Cost ($/hr)]]) -> 105.8188068 | N33: - | O33: - | P33: - | Q33: - | R33: - | S33: - | T33: - | U33: - | V33: - | W33: - | X33: - | Y33: - | Z33: - | AA33: - | AB33: - | AC33: - | AD33: - | AE33: - | AF33: - | AG33: - | AH33: - | AI33: - | AJ33: - | AK33: - | AL33: - | AM33: - | AN33: - | AO33: - | AP33: - | AQ33: - | AR33: - | AS33: - | AT33: 50 | AU33: - | AV33: - | AW33: - | AX33: - | AY33: - | AZ33: - | BA33: - | BB33: - | BC33: - | BD33: - | BE33: - | BF33: - | BG33: - | BH33: - | BI33: - | BJ33: - | BK33: - | BL33: - | BM33: - | BN33: - | BO33: - | BP33: - | BQ33: - | BR33: - | BS33: Truck Driver III | BT33: =VLOOKUP(BS33,$B$63:$C$68,2) -> 24.27
A34: X1 | B34: 2 Deck Screening Plant (5X16, 48X60) | C34: ScreenPlant | D34: 4.85 | E34: =Equipment[[#This Row],[Fuel Consumption (gal/hr)]]*$C$52 -> 11.349 | F34: 2.39 | G34: 1.15 | H34: 0.4 | I34: 0 | J34: 5738.88 | K34: 4.46 | L34: =Equipment[[#This Row],[Monthly Rental Rate ($/month)]]/176 -> 32.60727273 | M34: =SUM(L34,K34,H34,F34,Equipment[[#This Row],[Field Parts ($/hr)]],Equipment[[#This Row],[Ground Engaging Component Cost ($/hr)]]) -> 41.00727273 | N34: - | O34: - | P34: - | Q34: - | R34: - | S34: - | T34: - | U34: - | V34: - | W34: - | X34: - | Y34: - | Z34: - | AA34: - | AB34: - | AC34: - | AD34: - | AE34: - | AF34: - | AG34: - | AH34: - | AI34: - | AJ34: - | AK34: - | AL34: - | AM34: - | AN34: - | AO34: - | AP34: - | AQ34: - | AR34: - | AS34: - | AT34: 50 | AU34: - | AV34: - | AW34: - | AX34: - | AY34: - | AZ34: - | BA34: - | BB34: - | BC34: - | BD34: - | BE34: - | BF34: - | BG34: - | BH34: - | BI34: - | BJ34: - | BK34: - | BL34: - | BM34: - | BN34: - | BO34: - | BP34: - | BQ34: - | BR34: - | BS34: Laborer I | BT34: 23.09
A35: X2 | B35: 3 Deck Screening Plant (5X16, 48X60) | C35: ScreenPlant | D35: 4.85 | E35: =Equipment[[#This Row],[Fuel Consumption (gal/hr)]]*$C$52 -> 11.349 | F35: 2.43 | G35: 1.24 | H35: 0.39 | I35: 0 | J35: 5994.24 | K35: 4.62 | L35: =Equipment[[#This Row],[Monthly Rental Rate ($/month)]]/176 -> 34.05818182 | M35: =SUM(L35,K35,H35,F35,Equipment[[#This Row],[Field Parts ($/hr)]],Equipment[[#This Row],[Ground Engaging Component Cost ($/hr)]]) -> 42.73818182 | N35: - | O35: - | P35: - | Q35: - | R35: - | S35: - | T35: - | U35: - | V35: - | W35: - | X35: - | Y35: - | Z35: - | AA35: - | AB35: - | AC35: - | AD35: - | AE35: - | AF35: - | AG35: - | AH35: - | AI35: - | AJ35: - | AK35: - | AL35: - | AM35: - | AN35: - | AO35: - | AP35: - | AQ35: - | AR35: - | AS35: - | AT35: 50 | AU35: - | AV35: - | AW35: - | AX35: - | AY35: - | AZ35: - | BA35: - | BB35: - | BC35: - | BD35: - | BE35: - | BF35: - | BG35: - | BH35: - | BI35: - | BJ35: - | BK35: - | BL35: - | BM35: - | BN35: - | BO35: - | BP35: - | BQ35: - | BR35: - | BS35: Laborer I | BT35: 23.09
A36: X3 | B36: 1 Deck Screening Plant (5X16, 48X60) | C36: ScreenPlant | D36: 4.85 | E36: =Equipment[[#This Row],[Fuel Consumption (gal/hr)]]*$C$52 -> 11.349 | F36: 2.37 | G36: 1.14 | H36: 0.39 | I36: 0 | J36: 5671.66 | K36: 4.46 | L36: =Equipment[[#This Row],[Monthly Rental Rate ($/month)]]/176 -> 32.22534091 | M36: =SUM(L36,K36,H36,F36,Equipment[[#This Row],[Field Parts ($/hr)]],Equipment[[#This Row],[Ground Engaging Component Cost ($/hr)]]) -> 40.58534091 | N36: - | O36: - | P36: - | Q36: - | R36: - | S36: - | T36: - | U36: - | V36: - | W36: - | X36: - | Y36: - | Z36: - | AA36: - | AB36: - | AC36: - | AD36: - | AE36: - | AF36: - | AG36: - | AH36: - | AI36: - | AJ36: - | AK36: - | AL36: - | AM36: - | AN36: - | AO36: - | AP36: - | AQ36: - | AR36: - | AS36: - | AT36: 50 | AU36: - | AV36: - | AW36: - | AX36: - | AY36: - | AZ36: - | BA36: - | BB36: - | BC36: - | BD36: - | BE36: - | BF36: - | BG36: - | BH36: - | BI36: - | BJ36: - | BK36: - | BL36: - | BM36: - | BN36: - | BO36: - | BP36: - | BQ36: - | BR36: - | BS36: Laborer I | BT36: 23.09
A37: X4 | B37: 3 Deck Screening Plant (5X16, 42X60) | C37: ScreenPlant | D37: 4.85 | E37: =Equipment[[#This Row],[Fuel Consumption (gal/hr)]]*$C$52 -> 11.349 | F37: 2.38 | G37: 1.16 | H37: 0.37 | I37: 0 | J37: 5743.36 | K37: 4.62 | L37: =Equipment[[#This Row],[Monthly Rental Rate ($/month)]]/176 -> 32.63272727 | M37: =SUM(L37,K37,H37,F37,Equipment[[#This Row],[Field Parts ($/hr)]],Equipment[[#This Row],[Ground Engaging Component Cost ($/hr)]]) -> 41.16272727 | N37: - | O37: - | P37: - | Q37: - | R37: - | S37: - | T37: - | U37: - | V37: - | W37: - | X37: - | Y37: - | Z37: - | AA37: - | AB37: - | AC37: - | AD37: - | AE37: - | AF37: - | AG37: - | AH37: - | AI37: - | AJ37: - | AK37: - | AL37: - | AM37: - | AN37: - | AO37: - | AP37: - | AQ37: - | AR37: - | AS37: - | AT37: 50 | AU37: - | AV37: - | AW37: - | AX37: - | AY37: - | AZ37: - | BA37: - | BB37: - | BC37: - | BD37: - | BE37: - | BF37: - | BG37: - | BH37: - | BI37: - | BJ37: - | BK37: - | BL37: - | BM37: - | BN37: - | BO37: - | BP37: - | BQ37: - | BR37: - | BS37: Laborer I | BT37: 23.09
B39: NOTES
B40: 1 Loader Cycle Time = load, dump, and maneuver time
B41: 2 Performance information is unavailable for the Hitachi EX3600-5; therefore, performance information for the Caterpillar 5230B FS has been used
B42: 3 Performance information is unavailable for the Komatsu 730E; therefore, performance information for the Caterpillar 789D has been used
B43: 4 Maximum loaded speed listed for trucks and scrapers
B44: 5 Equipment costs use 176 max work hours per month (from Bluebook)
B45: 6 Fuel consumption assumed to be the same for the D11T and D11T CD (fuel consumption information unavailble for the D11T CD in EquipmentWatch)
B47: Not all equipment is used in this RCE. Extra equiment is kept for alternatives and testing purposes and to maintain spreadsheet integrity
B50: FUEL
D51: Reference
B52: Earthwork Oil Broker Quote ($/gal) | C52: ='Unit Rates'!C11 -> 2.34 | D52: 2
B56: EARTHWORK AND O&M LABOR
C57: Total 2019
B58: NMDOL Type A | C58: Rate
B59: Operator Group | C59: ($/hr) | D59: Reference
B60: Equipment Operator IV | C60: =20.87+5.94+0.6 -> 27.41 | D60: 3
B61: Equipment Operator V | C61: =20.98+5.94+0.6 -> 27.52 | D61: 3
B62: Equipment Operator VI | C62: =21.16+5.94+0.6 -> 27.7 | D62: 3
B63: Laborer I | C63: =16.86+5.63+0.6 -> 23.09 | D63: 3
B64: Laborer II | C64: =17.61+5.63+0.6 -> 23.84 | D64: 3
B65: Truck Driver III | C65: =16.15+7.52+0.6 -> 24.27 | D65: 3
B70: Equipment costs use 176 max work hours per month (from Bluebook)
B72: References
B73: 1. Equipment unit rates from EquipmentWatch Custom Cost Evaluator January 2019 (http://www.equipmentwatch.com). See attachments for rate development. Excavator capacity and maximum reach at ground level from EquipmentWatch.
B74: 2. Diesel fuel cost is estimated based on a predictive equation developed by correlating U.S. No. 2 diesel retail prices (U.S. Energy Information Administration) and FMI local fuel quotes, as agreed upon in November 2018 discussions with the agencies. The correlation is based on a dataset for the period from 1995-2018. Fuel cost includes direct and indirect costs at $2.34/gal.
B75: 3. Labor rates based on New Mexico Department of Labor (NMDOL) Type H (Heavy Engineering) 2019 labor rates. Rates include base hourly wage, fringe benefit, and apprenticeship contribution rates.
B76: https://www.dws.state.nm.us/Portals/0/DM/LaborRelations/Prevailing_Wage_Poster_H_2019_final.pdf
B77: 4. Production and Haul rates from Caterpillar Performance Handbook; Equipment paramters from Caterpillar Performance Handbook

Sheet 2 Demo
I1: ='1 General'!C1 -> Tyrone Mine
I2: Stockpile Spreadsheet Worksheet #2
A3: Demolition | I3: ='1 General'!C3 -> 43950
A5: Building Demolition costs are calculated in "1 BuildingDemo", "2 BuildingCover", "3 BuildingVeg", and "4BuildingWaste" and summarized on the last line of this table.
A10: Item | B10: Activity | C10: Quantity | D10: Unit | E10: Unit Cost ($/unit) | F10: Direct Item Cost ($) | G10: Reference | H10: Means Line Item | I10: Description
A11: Powerline Demolition (3 PLS to 1x1 Pond installed 2012) | B11: - | C11: 10300 | D11: ft | E11: ='Unit Rates'!C25 -> 0.63 | F11: =Demo[[#This Row],[Quantity]]*Demo[[#This Row],[Unit Cost ($/unit)]] -> 6489 | G11: Means | H11: ='Unit Rates'!F25 -> Means Line Item 260505.10 0370 | I11: Nonmetallic sheathed cable 3 wire; assume similar enough in cost to overhead power lines.
A12: Power pole Demolition (3 PLS to 1x1 Pond installed 2012) | B12: - | C12: 36 | D12: ea | E12: ='Unit Rates'!C26 -> 216.24 | F12: =Demo[[#This Row],[Quantity]]*Demo[[#This Row],[Unit Cost ($/unit)]] -> 7784.64 | G12: Means | H12: ='Unit Rates'!F26 -> Means Line Item 024113.80 0200 | I12: wood utility poles 35-45 feet high
A13: Powerline Demolition (San Salvador Pit) | B13: - | C13: 5222 | D13: ft | E13: ='Unit Rates'!C25 -> 0.63 | F13: =Demo[[#This Row],[Quantity]]*Demo[[#This Row],[Unit Cost ($/unit)]] -> 3289.86 | G13: Means | H13: ='Unit Rates'!F25 -> Means Line Item 260505.10 0370 | I13: Nonmetallic sheathed cable 3 wire; assume similar enough in cost to overhead power lines.
A14: Power pole Demolition (San Salvador Pit) | B14: - | C14: =ROUND(C13/300,0) -> 17 | D14: ea | E14: ='Unit Rates'!C26 -> 216.24 | F14: =Demo[[#This Row],[Quantity]]*Demo[[#This Row],[Unit Cost ($/unit)]] -> 3676.08 | G14: Means | H14: ='Unit Rates'!F26 -> Means Line Item 024113.80 0200 | I14: wood utility poles 35-45 feet high
A15: Powerlines to substations or spurs for buildings to be demolished | B15: - | C15: 66200 | D15: ft | E15: ='Unit Rates'!C25 -> 0.63 | F15: =Demo[[#This Row],[Quantity]]*Demo[[#This Row],[Unit Cost ($/unit)]] -> 41706 | G15: Means | H15: ='Unit Rates'!F25 -> Means Line Item 260505.10 0370 | I15: Nonmetallic sheathed cable 3 wire; assume similar enough in cost to overhead power lines.
A16: Power Poles to substations or spurs for buildings to be demolished | B16: - | C16: 135 | D16: ea | E16: ='Unit Rates'!C26 -> 216.24 | F16: =Demo[[#This Row],[Quantity]]*Demo[[#This Row],[Unit Cost ($/unit)]] -> 29192.4 | G16: Means | H16: ='Unit Rates'!F26 -> Means Line Item 024113.80 0200 | I16: wood utility poles 35-45 feet high
A17: Telephone Lines around buildings to be demolished | B17: - | C17: 1400 | D17: ft | E17: ='Unit Rates'!C25 -> 0.63 | F17: =Demo[[#This Row],[Quantity]]*Demo[[#This Row],[Unit Cost ($/unit)]] -> 882 | G17: Means | H17: ='Unit Rates'!F25 -> Means Line Item 260505.10 0370 | I17: Nonmetallic sheathed cable 3 wire; assume similar enough in cost to overhead power lines.
A18: Light Poles around to be demolished buildings | B18: - | C18: 13 | D18: ea | E18: ='Unit Rates'!C26 -> 216.24 | F18: =Demo[[#This Row],[Quantity]]*Demo[[#This Row],[Unit Cost ($/unit)]] -> 2811.12 | G18: Means | H18: ='Unit Rates'!F26 -> Means Line Item 024113.80 0200 | I18: wood utility poles 35-45 feet high
A19: Fire Hydrants Mainly by SX/EW Plant | B19: - | C19: 14 | D19: ea | E19: ='Unit Rates'!C43 -> 396.73 | F19: =Demo[[#This Row],[Quantity]]*Demo[[#This Row],[Unit Cost ($/unit)]] -> 5554.22 | G19: Means | H19: ='Unit Rates'!F43 -> Means Line Item 024113.33 0900 | I19: Minor Site Demolition; remove fire hydrants
A20: Little Rock Dewatering Pipeline Alighnment #1 and #2 (Year 34 of Closure) | B20: 6"-8" Diameter Plastic | C20: =3640+1300 -> 4940 | D20: ft | E20: ='6"-8" Pipeline_UC'!$D$38 -> 1.88005005 | F20: =Demo[[#This Row],[Quantity]]*Demo[[#This Row],[Unit Cost ($/unit)]] -> 9287.447245 | G20: - | H20: - | I20: See Pipeline UC
A21: Water Treatment Pipelines (Year 99 of Closure) | B21: assume 20-36-inch diameter | C21: 74500 | D21: ft | E21: ='20"-36" Pipeline_UC'!$D$38 -> 4.577381598 | F21: =Demo[[#This Row],[Quantity]]*Demo[[#This Row],[Unit Cost ($/unit)]] -> 341014.929 | G21: - | H21: - | I21: See Pipeline UC
A22: Sewer Pipelines (Year 6 of Closure) | B22: assume 20-36-inch diameter | C22: 1414 | D22: ft | E22: ='20"-36" Pipeline_UC'!$D$38 -> 4.577381598 | F22: =Demo[[#This Row],[Quantity]]*Demo[[#This Row],[Unit Cost ($/unit)]] -> 6472.417579 | G22: - | H22: - | I22: See Pipeline UC
A23: PLS Pipelines (Year 6 of Closure) | B23: assume 20-36-inch diameter | C23: =11342+6499+1052 -> 18893 | D23: ft | E23: ='20"-36" Pipeline_UC'!$D$38 -> 4.577381598 | F23: =Demo[[#This Row],[Quantity]]*Demo[[#This Row],[Unit Cost ($/unit)]] -> 86480.47053 | G23: - | H23: - | I23: See Pipeline UC
A24: 2A East PLS Tank and 2A West PLS Tank (Year 6 of Closure) | B24: Tank Demolition | C24: 2 | D24: ea | E24: ='Unit Rates'!C24 -> 3934.8 | F24: =Demo[[#This Row],[Quantity]]*Demo[[#This Row],[Unit Cost ($/unit)]] -> 7869.6 | G24: Means | H24: ='Unit Rates'!F24 -> Scaled Means Items | I24: Storage Tanks, steel tank, single wall, above ground, not incl fdn, pumps or piping, 15,000 thru 30,000; scaled for a 45,500 gal tank - assuming 22 ft diameter and 16 ft high
A25: 1A and 1B PLS Tanks (Year 99 of Closure) | B25: Tank Demolition | C25: 2 | D25: ea | E25: ='Unit Rates'!C24 -> 3934.8 | F25: =Demo[[#This Row],[Quantity]]*Demo[[#This Row],[Unit Cost ($/unit)]] -> 7869.6 | G25: Means | H25: ='Unit Rates'!F24 -> Scaled Means Items | I25: Storage Tanks, steel tank, single wall, above ground, not incl fdn, pumps or piping, 15,000 thru 30,000 gal; scaled for a 45,500 gal tank - assuming 22 ft diameter and 16 ft high
A26: Culverts at Tailing Launder Line | B26: Culvert Removal | C26: 22 | D26: ea | E26: ='Unit Rates'!C45 -> 12.69 | F26: =Demo[[#This Row],[Quantity]]*Demo[[#This Row],[Unit Cost ($/unit)]] -> 279.18 | G26: Means | H26: ='Unit Rates'!F45 -> Means Line Item 024113.40 0190 | I26: ='Unit Rates'!G45 -> Selective demolition, metal drainage piping, CMP, steel, 48"-60", diameter, excludes excavation
A27: Steel Trestle at Tailing Launder Line | B27: Steel Trestle Demo | C27: 1 | D27: ea | E27: ='Unit Rates'!C47 -> 30689.1 | F27: =Demo[[#This Row],[Quantity]]*Demo[[#This Row],[Unit Cost ($/unit)]] -> 30689.1 | G27: - | H27: - | I27: ='Unit Rates'!G47 -> Bridge demolition, pedestrian, steel, 50' to 160' long, 8' to 10' wide; see unit rates calculations
A28: Substation Removal at Reclaimed 1 Tailing Impoundment Reclaim Water Pumphouse Station | B28: Substation Demo | C28: 2 | D28: ea | E28: ='Unit Rates'!C49 -> 12470.55 | F28: =Demo[[#This Row],[Quantity]]*Demo[[#This Row],[Unit Cost ($/unit)]] -> 24941.1 | G28: - | H28: - | I28: See Substation Demo UC
A29: Install pump, dewater, and cover Former Tailing Thickener | B29: Dewater Former Tailing Thickener | C29: 1 | D29: ea | E29: ='Unit Rates'!C64 -> 213813.8541 | F29: =Demo[[#This Row],[Quantity]]*Demo[[#This Row],[Unit Cost ($/unit)]] -> 213813.8541 | I29: See Thickener Dewater UC
A30: Buildings and Associated Facilities | B30: Demolition | C30: See Demo Sheets | D30: - | E30: - | F30: ='5 BuildingSum'!D13 -> 4442379.189 | G30: - | H30: - | I30: -
E33: Total Direct Cost: | F33: =SUM(F11:F30) -> 5272482.208
A41: Data Sources:

Sheet 3 Material
K1: ='1 General'!C1 -> Tyrone Mine
K2: Stockpile Spreadsheet Worksheet #3
F3: Material Handling Plan Summary Sheet | K3: ='1 General'!$C$3 -> 43950
F4: All activities for the Tyrone RCE are listed on this sheet and carried through the succeeding worksheets of the RCE. The column labeled ID contains the codes for the facility location, activity, material and equipment used for that particular row of work. The description lists the activity, top or outslope (if applicable), and the material. The source location lists the stockpile name (or sub-area) for the location of the activity. If borrow material is involved, it is transported from a borrow stockpile to a destination stockpile. Blank cells indicate that that column is not relevant to a particular activity.
F6: Notes and Assumptions:
F7: 1 - Haul/Push Distance based on 2015 Tyrone RCE Submittal or measured/assumed as shown in documentation 2 - Weighted Average Haul Grades based on 2015 Tyrone RCE Submittal 3 - Grade Factors from 2015 Tyrone RCE Submittal
A14: Item | B14: Activity | C14: Material | D14: Eq | E14: ID | F14: Description | G14: Source Location 1 | H14: Destination Location 2 | I14: Total Haul/Push Distance (ft)1 | J14: Grade (%)2,3 | K14: Equipment
A15: =Quantities!A81 -> 3401 | B15: M | C15: e | D15: U | E15: =CONCATENATE(TEXT(A15,"0"),"-",B15,"-",C15,"-",D15) -> 3401-M-e-U | F15: =IF(D15="Comb1",CONCATENATE(VLOOKUP(B15,'Activity-Material_Codes'!$A$2:$B$26,Quantities!$B$2),"-",VLOOKUP(A15,Quantities[],Quantities!$D$2)), CONCATENATE( VLOOKUP(B15,'Activity-Material_Codes'!$A$2:$B$26,Quantities!$B$2), IF(AND(B15="B",C15="a"), " Scraper Grading", ""), IF(C15="b","","-"), IF(C15="b","",VLOOKUP(A15,Quantities[],Quantities!$D$2)), IF(LEFT(TEXT(A15,"0"),1)="5","","-"), IF(LEFT(TEXT(A15,"0"),1)="5","",VLOOKUP(C15,'Activity-Material_Codes'!$A$30:$B$36,Quantities!$B$2)) )) -> Post-Closure O&M-Mining Area-Final Grade | G15: =CONCATENATE( IF(OR(RIGHT(TEXT($A15,"0"),Quantities!$B$2)="00",LEFT(TEXT($A15,"0"),1)="5",OR($C15="b",$C15="f")),"",VLOOKUP($A15,Quantities[],Quantities!$B$2)), IF(LEFT(TEXT($A15,"0"),1)="5",""," "), IF(OR(C15="a",C15="c",C15="d",C15="e"),IF(OR(RIGHT(TEXT($A15,"0"),Quantities!$B$2)="00",LEFT(TEXT($A15,"0"),1)="5"),VLOOKUP($A15,Quantities[],Quantities!$B$2),""), IF(LEFT(TEXT($A15,"0"),1)="5",VLOOKUP($A15,Quantities[],Quantities!$B$2), VLOOKUP(INDEX(Quantities!$A$100:$A$118,MATCH($A15,Quantities!$C$100:$C$118)),Quantities!$A$100:$B$118,Quantities!$B$2)))) -> Reclaimed 1C Waste Stockpile | H15: =IF(LEFT(TEXT(A15,"0"),1)="5", VLOOKUP(VLOOKUP(A15,Quantities!$A$4:$D$118,Quantities!$C$2),Quantities!$A$4:$D$118,Quantities!$C$2), IF(OR(C15="a",C15="c",C15="d",C15="e"), "-", IF(RIGHT(TEXT(A15,"0"),2)="00",VLOOKUP(A15,Quantities[],Quantities!$B$2), IF(C15="f",VLOOKUP(A15,Quantities[],Quantities!$B$2), VLOOKUP(A15,Quantities[],Quantities!$C$2)) ))) -> - | I15: =IF(OR(AND(LEFT(D15,2)="Sc",B15="A",C15="d"),AND(C15="f",B15="D")), SUM(VLOOKUP($A15,Quantities[],Quantities!$O$2),VLOOKUP($A15,Quantities[],Quantities!$Q$2),VLOOKUP($A15,Quantities[],Quantities!$S$2)), IF(AND(LEFT(D15,2)="Sc",OR(C15="a",C15="f")), VLOOKUP(A15,Quantities[],Quantities!$I$2), IF(AND(B15="D",C15="b"), VLOOKUP(INDEX(Quantities!$A$100:$A$118,MATCH($A15,Quantities!$C$100:$C$118)),Quantities!$A$100:$AJ$118,Quantities!$O$2)+ VLOOKUP(INDEX(Quantities!$A$100:$A$118,MATCH($A15,Quantities!$C$100:$C$118)),Quantities!$A$100:$AJ$118,Quantities!$Q$2)+ VLOOKUP(INDEX(Quantities!$A$100:$A$118,MATCH($A15,Quantities!$C$100:$C$118)),Quantities!$A$100:$AJ$118,Quantities!$S$2), IF(OR(B15="D",B15="Q"), SUM(VLOOKUP($A15,Quantities[],Quantities!$O$2),VLOOKUP($A15,Quantities[],Quantities!$Q$2),VLOOKUP($A15,Quantities[],Quantities!$S$2)), VLOOKUP(A15,Quantities[],Quantities!$G$2) )))) -> 0 | J15: =IF(LEFT(D15,2)="Mg", VLOOKUP(A15,Quantities[],Quantities!$H$2), IF(OR(AND(LEFT(D15,2)="Sc",B15="A",C15="d",C15="f")), (SUM(VLOOKUP($A15,Quantities[],Quantities!$P$2)*VLOOKUP($A15,Quantities[],Quantities!$O$2),VLOOKUP($A15,Quantities[],Quantities!$R$2)*VLOOKUP($A15,Quantities[],Quantities!$Q$2),VLOOKUP($A15,Quantities[],Quantities!$T$2)*VLOOKUP($A15,Quantities[],Quantities!$S$2)))/SUM(VLOOKUP($A15,Quantities[],Quantities!$O$2),VLOOKUP($A15,Quantities[],Quantities!$Q$2),VLOOKUP($A15,Quantities[],Quantities!$S$2)), IF(AND(LEFT(D15,2)="Sc",OR(C15="a",C15="f")), VLOOKUP(A15,Quantities[],Quantities!$J$2), IF(AND(B15="D",C15="b", (VLOOKUP(INDEX(Quantities!$A$100:$A$118,MATCH($A15,Quantities!$C$100:$C$118)),Quantities[],Quantities!$O$2)+VLOOKUP(INDEX(Quantities!$A$100:$A$118,MATCH($A15,Quantities!$C$100:$C$118)),Quantities[],Quantities!$Q$2)+VLOOKUP(INDEX(Quantities!$A$100:$A$118,MATCH($A15,Quantities!$C$100:$C$118)),Quantities[],Quantities!$S$2))>0), (VLOOKUP(INDEX(Quantities!$A$100:$A$118,MATCH($A15,Quantities!$C$100:$C$118)),Quantities[],Quantities!$P$2)*VLOOKUP(INDEX(Quantities!$A$100:$A$118,MATCH($A15,Quantities!$C$100:$C$118)),Quantities[],Quantities!$O$2) +VLOOKUP(INDEX(Quantities!$A$100:$A$118,MATCH($A15,Quantities!$C$100:$C$118)),Quantities[],Quantities!$R$2)*VLOOKUP(INDEX(Quantities!$A$100:$A$118,MATCH($A15,Quantities!$C$100:$C$118)),Quantities[],Quantities!$Q$2) +VLOOKUP(INDEX(Quantities!$A$100:$A$118,MATCH($A15,Quantities!$C$100:$C$118)),Quantities[],Quantities!$T$2)*VLOOKUP(INDEX(Quantities!$A$100:$A$118,MATCH($A15,Quantities!$C$100:$C$118)),Quantities[],Quantities!$S$2))/ (VLOOKUP(INDEX(Quantities!$A$100:$A$118,MATCH($A15,Quantities!$C$100:$C$118)),Quantities[],Quantities!$O$2)+VLOOKUP(INDEX(Quantities!$A$100:$A$118,MATCH($A15,Quantities!$C$100:$C$118)),Quantities[],Quantities!$Q$2)+VLOOKUP(A15,Quantities[],Quantities!$S$2)), IF(AND(B15="D", (VLOOKUP(A15,Quantities[],Quantities!$O$2)+VLOOKUP(A15,Quantities[],Quantities!$Q$2)+VLOOKUP(A15,Quantities[],Quantities!$S$2))>0), (VLOOKUP(A15,Quantities[],Quantities!$P$2)*VLOOKUP(A15,Quantities[],Quantities!$O$2) +VLOOKUP(A15,Quantities[],Quantities!$R$2)*VLOOKUP(A15,Quantities[],Quantities!$Q$2) +VLOOKUP(A15,Quantities[],Quantities!$T$2)*VLOOKUP(A15,Quantities[],Quantities!$S$2))/ (VLOOKUP(A15,Quantities[],Quantities!$O$2)+VLOOKUP(A15,Quantities[],Quantities!$Q$2)+VLOOKUP(A15,Quantities[],Quantities!$S$2)), IF($B15="Q", (SUM(VLOOKUP($A15,Quantities[],Quantities!$P$2)*VLOOKUP($A15,Quantities[],Quantities!$O$2),VLOOKUP($A15,Quantities[],Quantities!$R$2)*VLOOKUP($A15,Quantities[],Quantities!$Q$2),VLOOKUP($A15,Quantities[],Quantities!$T$2)*VLOOKUP($A15,Quantities[],Quantities!$S$2)))/SUM(VLOOKUP($A15,Quantities[],Quantities!$O$2),VLOOKUP($A15,Quantities[],Quantities!$Q$2),VLOOKUP($A15,Quantities[],Quantities!$S$2)), VLOOKUP(A15,Quantities[],Quantities!$H$2) )))))) -> - | K15: =IF(LEFT(D15,1)="U","-",VLOOKUP(D15,Equipment[],Equipment!$B$2)) -> -
A16: =Quantities!A82 -> 3402 | B16: M | C16: e | D16: U | E16: =CONCATENATE(TEXT(A16,"0"),"-",B16,"-",C16,"-",D16) -> 3402-M-e-U | F16: =IF(D16="Comb1",CONCATENATE(VLOOKUP(B16,'Activity-Material_Codes'!$A$2:$B$26,Quantities!$B$2),"-",VLOOKUP(A16,Quantities[],Quantities!$D$2)), CONCATENATE( VLOOKUP(B16,'Activity-Material_Codes'!$A$2:$B$26,Quantities!$B$2), IF(AND(B16="B",C16="a"), " Scraper Grading", ""), IF(C16="b","","-"), IF(C16="b","",VLOOKUP(A16,Quantities[],Quantities!$D$2)), IF(LEFT(TEXT(A16,"0"),1)="5","","-"), IF(LEFT(TEXT(A16,"0"),1)="5","",VLOOKUP(C16,'Activity-Material_Codes'!$A$30:$B$36,Quantities!$B$2)) )) -> Post-Closure O&M-Mining Area-Final Grade | G16: =CONCATENATE( IF(OR(RIGHT(TEXT($A16,"0"),Quantities!$B$2)="00",LEFT(TEXT($A16,"0"),1)="5",OR($C16="b",$C16="f")),"",VLOOKUP($A16,Quantities[],Quantities!$B$2)), IF(LEFT(TEXT($A16,"0"),1)="5",""," "), IF(OR(C16="a",C16="c",C16="d",C16="e"),IF(OR(RIGHT(TEXT($A16,"0"),Quantities!$B$2)="00",LEFT(TEXT($A16,"0"),1)="5"),VLOOKUP($A16,Quantities[],Quantities!$B$2),""), IF(LEFT(TEXT($A16,"0"),1)="5",VLOOKUP($A16,Quantities[],Quantities!$B$2), VLOOKUP(INDEX(Quantities!$A$100:$A$118,MATCH($A16,Quantities!$C$100:$C$118)),Quantities!$A$100:$B$118,Quantities!$B$2)))) -> Reclaimed 1C Waste Stockpile | H16: =IF(LEFT(TEXT(A16,"0"),1)="5", VLOOKUP(VLOOKUP(A16,Quantities!$A$4:$D$118,Quantities!$C$2),Quantities!$A$4:$D$118,Quantities!$C$2), IF(OR(C16="a",C16="c",C16="d",C16="e"), "-", IF(RIGHT(TEXT(A16,"0"),2)="00",VLOOKUP(A16,Quantities[],Quantities!$B$2), IF(C16="f",VLOOKUP(A16,Quantities[],Quantities!$B$2), VLOOKUP(A16,Quantities[],Quantities!$C$2)) ))) -> - | I16: =IF(OR(AND(LEFT(D16,2)="Sc",B16="A",C16="d"),AND(C16="f",B16="D")), SUM(VLOOKUP($A16,Quantities[],Quantities!$O$2),VLOOKUP($A16,Quantities[],Quantities!$Q$2),VLOOKUP($A16,Quantities[],Quantities!$S$2)), IF(AND(LEFT(D16,2)="Sc",OR(C16="a",C16="f")), VLOOKUP(A16,Quantities[],Quantities!$I$2), IF(AND(B16="D",C16="b"), VLOOKUP(INDEX(Quantities!$A$100:$A$118,MATCH($A16,Quantities!$C$100:$C$118)),Quantities!$A$100:$AJ$118,Quantities!$O$2)+ VLOOKUP(INDEX(Quantities!$A$100:$A$118,MATCH($A16,Quantities!$C$100:$C$118)),Quantities!$A$100:$AJ$118,Quantities!$Q$2)+ VLOOKUP(INDEX(Quantities!$A$100:$A$118,MATCH($A16,Quantities!$C$100:$C$118)),Quantities!$A$100:$AJ$118,Quantities!$S$2), IF(OR(B16="D",B16="Q"), SUM(VLOOKUP($A16,Quantities[],Quantities!$O$2),VLOOKUP($A16,Quantities[],Quantities!$Q$2),VLOOKUP($A16,Quantities[],Quantities!$S$2)), VLOOKUP(A16,Quantities[],Quantities!$G$2) )))) -> 0 | J16: =IF(LEFT(D16,2)="Mg", VLOOKUP(A16,Quantities[],Quantities!$H$2), IF(OR(AND(LEFT(D16,2)="Sc",B16="A",C16="d",C16="f")), (SUM(VLOOKUP($A16,Quantities[],Quantities!$P$2)*VLOOKUP($A16,Quantities[],Quantities!$O$2),VLOOKUP($A16,Quantities[],Quantities!$R$2)*VLOOKUP($A16,Quantities[],Quantities!$Q$2),VLOOKUP($A16,Quantities[],Quantities!$T$2)*VLOOKUP($A16,Quantities[],Quantities!$S$2)))/SUM(VLOOKUP($A16,Quantities[],Quantities!$O$2),VLOOKUP($A16,Quantities[],Quantities!$Q$2),VLOOKUP($A16,Quantities[],Quantities!$S$2)), IF(AND(LEFT(D16,2)="Sc",OR(C16="a",C16="f")), VLOOKUP(A16,Quantities[],Quantities!$J$2), IF(AND(B16="D",C16="b", (VLOOKUP(INDEX(Quantities!$A$100:$A$118,MATCH($A16,Quantities!$C$100:$C$118)),Quantities[],Quantities!$O$2)+VLOOKUP(INDEX(Quantities!$A$100:$A$118,MATCH($A16,Quantities!$C$100:$C$118)),Quantities[],Quantities!$Q$2)+VLOOKUP(INDEX(Quantities!$A$100:$A$118,MATCH($A16,Quantities!$C$100:$C$118)),Quantities[],Quantities!$S$2))>0), (VLOOKUP(INDEX(Quantities!$A$100:$A$118,MATCH($A16,Quantities!$C$100:$C$118)),Quantities[],Quantities!$P$2)*VLOOKUP(INDEX(Quantities!$A$100:$A$118,MATCH($A16,Quantities!$C$100:$C$118)),Quantities[],Quantities!$O$2) +VLOOKUP(INDEX(Quantities!$A$100:$A$118,MATCH($A16,Quantities!$C$100:$C$118)),Quantities[],Quantities!$R$2)*VLOOKUP(INDEX(Quantities!$A$100:$A$118,MATCH($A16,Quantities!$C$100:$C$118)),Quantities[],Quantities!$Q$2) +VLOOKUP(INDEX(Quantities!$A$100:$A$118,MATCH($A16,Quantities!$C$100:$C$118)),Quantities[],Quantities!$T$2)*VLOOKUP(INDEX(Quantities!$A$100:$A$118,MATCH($A16,Quantities!$C$100:$C$118)),Quantities[],Quantities!$S$2))/ (VLOOKUP(INDEX(Quantities!$A$100:$A$118,MATCH($A16,Quantities!$C$100:$C$118)),Quantities[],Quantities!$O$2)+VLOOKUP(INDEX(Quantities!$A$100:$A$118,MATCH($A16,Quantities!$C$100:$C$118)),Quantities[],Quantities!$Q$2)+VLOOKUP(A16,Quantities[],Quantities!$S$2)), IF(AND(B16="D", (VLOOKUP(A16,Quantities[],Quantities!$O$2)+VLOOKUP(A16,Quantities[],Quantities!$Q$2)+VLOOKUP(A16,Quantities[],Quantities!$S$2))>0), (VLOOKUP(A16,Quantities[],Quantities!$P$2)*VLOOKUP(A16,Quantities[],Quantities!$O$2) +VLOOKUP(A16,Quantities[],Quantities!$R$2)*VLOOKUP(A16,Quantities[],Quantities!$Q$2) +VLOOKUP(A16,Quantities[],Quantities!$T$2)*VLOOKUP(A16,Quantities[],Quantities!$S$2))/ (VLOOKUP(A16,Quantities[],Quantities!$O$2)+VLOOKUP(A16,Quantities[],Quantities!$Q$2)+VLOOKUP(A16,Quantities[],Quantities!$S$2)), IF($B16="Q", (SUM(VLOOKUP($A16,Quantities[],Quantities!$P$2)*VLOOKUP($A16,Quantities[],Quantities!$O$2),VLOOKUP($A16,Quantities[],Quantities!$R$2)*VLOOKUP($A16,Quantities[],Quantities!$Q$2),VLOOKUP($A16,Quantities[],Quantities!$T$2)*VLOOKUP($A16,Quantities[],Quantities!$S$2)))/SUM(VLOOKUP($A16,Quantities[],Quantities!$O$2),VLOOKUP($A16,Quantities[],Quantities!$Q$2),VLOOKUP($A16,Quantities[],Quantities!$S$2)), VLOOKUP(A16,Quantities[],Quantities!$H$2) )))))) -> - | K16: =IF(LEFT(D16,1)="U","-",VLOOKUP(D16,Equipment[],Equipment!$B$2)) -> -
A17: =Quantities!A83 -> 3403 | B17: M | C17: e | D17: U | E17: 3403-M-e-U | F17: =IF(D17="Comb1",CONCATENATE(VLOOKUP(B17,'Activity-Material_Codes'!$A$2:$B$26,Quantities!$B$2),"-",VLOOKUP(A17,Quantities[],Quantities!$D$2)), CONCATENATE( VLOOKUP(B17,'Activity-Material_Codes'!$A$2:$B$26,Quantities!$B$2), IF(AND(B17="B",C17="a"), " Scraper Grading", ""), IF(C17="b","","-"), IF(C17="b","",VLOOKUP(A17,Quantities[],Quantities!$D$2)), IF(LEFT(TEXT(A17,"0"),1)="5","","-"), IF(LEFT(TEXT(A17,"0"),1)="5","",VLOOKUP(C17,'Activity-Material_Codes'!$A$30:$B$36,Quantities!$B$2)) )) -> Post-Closure O&M-Mining Area-Final Grade | G17: =CONCATENATE( IF(OR(RIGHT(TEXT($A17,"0"),Quantities!$B$2)="00",LEFT(TEXT($A17,"0"),1)="5",OR($C17="b",$C17="f")),"",VLOOKUP($A17,Quantities[],Quantities!$B$2)), IF(LEFT(TEXT($A17,"0"),1)="5",""," "), IF(OR(C17="a",C17="c",C17="d",C17="e"),IF(OR(RIGHT(TEXT($A17,"0"),Quantities!$B$2)="00",LEFT(TEXT($A17,"0"),1)="5"),VLOOKUP($A17,Quantities[],Quantities!$B$2),""), IF(LEFT(TEXT($A17,"0"),1)="5",VLOOKUP($A17,Quantities[],Quantities!$B$2), VLOOKUP(INDEX(Quantities!$A$100:$A$118,MATCH($A17,Quantities!$C$100:$C$118)),Quantities!$A$100:$B$118,Quantities!$B$2)))) -> Reclaimed 7A Waste | H17: =IF(LEFT(TEXT(A17,"0"),1)="5", VLOOKUP(VLOOKUP(A17,Quantities!$A$4:$D$118,Quantities!$C$2),Quantities!$A$4:$D$118,Quantities!$C$2), IF(OR(C17="a",C17="c",C17="d",C17="e"), "-", IF(RIGHT(TEXT(A17,"0"),2)="00",VLOOKUP(A17,Quantities[],Quantities!$B$2), IF(C17="f",VLOOKUP(A17,Quantities[],Quantities!$B$2), VLOOKUP(A17,Quantities[],Quantities!$C$2)) ))) -> - | I17: =IF(OR(AND(LEFT(D17,2)="Sc",B17="A",C17="d"),AND(C17="f",B17="D")), SUM(VLOOKUP($A17,Quantities[],Quantities!$O$2),VLOOKUP($A17,Quantities[],Quantities!$Q$2),VLOOKUP($A17,Quantities[],Quantities!$S$2)), IF(AND(LEFT(D17,2)="Sc",OR(C17="a",C17="f")), VLOOKUP(A17,Quantities[],Quantities!$I$2), IF(AND(B17="D",C17="b"), VLOOKUP(INDEX(Quantities!$A$100:$A$118,MATCH($A17,Quantities!$C$100:$C$118)),Quantities!$A$100:$AJ$118,Quantities!$O$2)+ VLOOKUP(INDEX(Quantities!$A$100:$A$118,MATCH($A17,Quantities!$C$100:$C$118)),Quantities!$A$100:$AJ$118,Quantities!$Q$2)+ VLOOKUP(INDEX(Quantities!$A$100:$A$118,MATCH($A17,Quantities!$C$100:$C$118)),Quantities!$A$100:$AJ$118,Quantities!$S$2), IF(OR(B17="D",B17="Q"), SUM(VLOOKUP($A17,Quantities[],Quantities!$O$2),VLOOKUP($A17,Quantities[],Quantities!$Q$2),VLOOKUP($A17,Quantities[],Quantities!$S$2)), VLOOKUP(A17,Quantities[],Quantities!$G$2) )))) -> 0 | J17: =IF(LEFT(D17,2)="Mg", VLOOKUP(A17,Quantities[],Quantities!$H$2), IF(OR(AND(LEFT(D17,2)="Sc",B17="A",C17="d",C17="f")), (SUM(VLOOKUP($A17,Quantities[],Quantities!$P$2)*VLOOKUP($A17,Quantities[],Quantities!$O$2),VLOOKUP($A17,Quantities[],Quantities!$R$2)*VLOOKUP($A17,Quantities[],Quantities!$Q$2),VLOOKUP($A17,Quantities[],Quantities!$T$2)*VLOOKUP($A17,Quantities[],Quantities!$S$2)))/SUM(VLOOKUP($A17,Quantities[],Quantities!$O$2),VLOOKUP($A17,Quantities[],Quantities!$Q$2),VLOOKUP($A17,Quantities[],Quantities!$S$2)), IF(AND(LEFT(D17,2)="Sc",OR(C17="a",C17="f")), VLOOKUP(A17,Quantities[],Quantities!$J$2), IF(AND(B17="D",C17="b", (VLOOKUP(INDEX(Quantities!$A$100:$A$118,MATCH($A17,Quantities!$C$100:$C$118)),Quantities[],Quantities!$O$2)+VLOOKUP(INDEX(Quantities!$A$100:$A$118,MATCH($A17,Quantities!$C$100:$C$118)),Quantities[],Quantities!$Q$2)+VLOOKUP(INDEX(Quantities!$A$100:$A$118,MATCH($A17,Quantities!$C$100:$C$118)),Quantities[],Quantities!$S$2))>0), (VLOOKUP(INDEX(Quantities!$A$100:$A$118,MATCH($A17,Quantities!$C$100:$C$118)),Quantities[],Quantities!$P$2)*VLOOKUP(INDEX(Quantities!$A$100:$A$118,MATCH($A17,Quantities!$C$100:$C$118)),Quantities[],Quantities!$O$2) +VLOOKUP(INDEX(Quantities!$A$100:$A$118,MATCH($A17,Quantities!$C$100:$C$118)),Quantities[],Quantities!$R$2)*VLOOKUP(INDEX(Quantities!$A$100:$A$118,MATCH($A17,Quantities!$C$100:$C$118)),Quantities[],Quantities!$Q$2) +VLOOKUP(INDEX(Quantities!$A$100:$A$118,MATCH($A17,Quantities!$C$100:$C$118)),Quantities[],Quantities!$T$2)*VLOOKUP(INDEX(Quantities!$A$100:$A$118,MATCH($A17,Quantities!$C$100:$C$118)),Quantities[],Quantities!$S$2))/ (VLOOKUP(INDEX(Quantities!$A$100:$A$118,MATCH($A17,Quantities!$C$100:$C$118)),Quantities[],Quantities!$O$2)+VLOOKUP(INDEX(Quantities!$A$100:$A$118,MATCH($A17,Quantities!$C$100:$C$118)),Quantities[],Quantities!$Q$2)+VLOOKUP(A17,Quantities[],Quantities!$S$2)), IF(AND(B17="D", (VLOOKUP(A17,Quantities[],Quantities!$O$2)+VLOOKUP(A17,Quantities[],Quantities!$Q$2)+VLOOKUP(A17,Quantities[],Quantities!$S$2))>0), (VLOOKUP(A17,Quantities[],Quantities!$P$2)*VLOOKUP(A17,Quantities[],Quantities!$O$2) +VLOOKUP(A17,Quantities[],Quantities!$R$2)*VLOOKUP(A17,Quantities[],Quantities!$Q$2) +VLOOKUP(A17,Quantities[],Quantities!$T$2)*VLOOKUP(A17,Quantities[],Quantities!$S$2))/ (VLOOKUP(A17,Quantities[],Quantities!$O$2)+VLOOKUP(A17,Quantities[],Quantities!$Q$2)+VLOOKUP(A17,Quantities[],Quantities!$S$2)), IF($B17="Q", (SUM(VLOOKUP($A17,Quantities[],Quantities!$P$2)*VLOOKUP($A17,Quantities[],Quantities!$O$2),VLOOKUP($A17,Quantities[],Quantities!$R$2)*VLOOKUP($A17,Quantities[],Quantities!$Q$2),VLOOKUP($A17,Quantities[],Quantities!$T$2)*VLOOKUP($A17,Quantities[],Quantities!$S$2)))/SUM(VLOOKUP($A17,Quantities[],Quantities!$O$2),VLOOKUP($A17,Quantities[],Quantities!$Q$2),VLOOKUP($A17,Quantities[],Quantities!$S$2)), VLOOKUP(A17,Quantities[],Quantities!$H$2) )))))) -> - | K17: =IF(LEFT(D17,1)="U","-",VLOOKUP(D17,Equipment[],Equipment!$B$2)) -> -
A18: =Quantities!A84 -> 3404 | B18: M | C18: e | D18: U | E18: 3404-M-e-U | F18: =IF(D18="Comb1",CONCATENATE(VLOOKUP(B18,'Activity-Material_Codes'!$A$2:$B$26,Quantities!$B$2),"-",VLOOKUP(A18,Quantities[],Quantities!$D$2)), CONCATENATE( VLOOKUP(B18,'Activity-Material_Codes'!$A$2:$B$26,Quantities!$B$2), IF(AND(B18="B",C18="a"), " Scraper Grading", ""), IF(C18="b","","-"), IF(C18="b","",VLOOKUP(A18,Quantities[],Quantities!$D$2)), IF(LEFT(TEXT(A18,"0"),1)="5","","-"), IF(LEFT(TEXT(A18,"0"),1)="5","",VLOOKUP(C18,'Activity-Material_Codes'!$A$30:$B$36,Quantities!$B$2)) )) -> Post-Closure O&M-Mining Area-Final Grade | G18: =CONCATENATE( IF(OR(RIGHT(TEXT($A18,"0"),Quantities!$B$2)="00",LEFT(TEXT($A18,"0"),1)="5",OR($C18="b",$C18="f")),"",VLOOKUP($A18,Quantities[],Quantities!$B$2)), IF(LEFT(TEXT($A18,"0"),1)="5",""," "), IF(OR(C18="a",C18="c",C18="d",C18="e"),IF(OR(RIGHT(TEXT($A18,"0"),Quantities!$B$2)="00",LEFT(TEXT($A18,"0"),1)="5"),VLOOKUP($A18,Quantities[],Quantities!$B$2),""), IF(LEFT(TEXT($A18,"0"),1)="5",VLOOKUP($A18,Quantities[],Quantities!$B$2), VLOOKUP(INDEX(Quantities!$A$100:$A$118,MATCH($A18,Quantities!$C$100:$C$118)),Quantities!$A$100:$B$118,Quantities!$B$2)))) -> Reclaimed 7A Waste | H18: =IF(LEFT(TEXT(A18,"0"),1)="5", VLOOKUP(VLOOKUP(A18,Quantities!$A$4:$D$118,Quantities!$C$2),Quantities!$A$4:$D$118,Quantities!$C$2), IF(OR(C18="a",C18="c",C18="d",C18="e"), "-", IF(RIGHT(TEXT(A18,"0"),2)="00",VLOOKUP(A18,Quantities[],Quantities!$B$2), IF(C18="f",VLOOKUP(A18,Quantities[],Quantities!$B$2), VLOOKUP(A18,Quantities[],Quantities!$C$2)) ))) -> - | I18: =IF(OR(AND(LEFT(D18,2)="Sc",B18="A",C18="d"),AND(C18="f",B18="D")), SUM(VLOOKUP($A18,Quantities[],Quantities!$O$2),VLOOKUP($A18,Quantities[],Quantities!$Q$2),VLOOKUP($A18,Quantities[],Quantities!$S$2)), IF(AND(LEFT(D18,2)="Sc",OR(C18="a",C18="f")), VLOOKUP(A18,Quantities[],Quantities!$I$2), IF(AND(B18="D",C18="b"), VLOOKUP(INDEX(Quantities!$A$100:$A$118,MATCH($A18,Quantities!$C$100:$C$118)),Quantities!$A$100:$AJ$118,Quantities!$O$2)+ VLOOKUP(INDEX(Quantities!$A$100:$A$118,MATCH($A18,Quantities!$C$100:$C$118)),Quantities!$A$100:$AJ$118,Quantities!$Q$2)+ VLOOKUP(INDEX(Quantities!$A$100:$A$118,MATCH($A18,Quantities!$C$100:$C$118)),Quantities!$A$100:$AJ$118,Quantities!$S$2), IF(OR(B18="D",B18="Q"), SUM(VLOOKUP($A18,Quantities[],Quantities!$O$2),VLOOKUP($A18,Quantities[],Quantities!$Q$2),VLOOKUP($A18,Quantities[],Quantities!$S$2)), VLOOKUP(A18,Quantities[],Quantities!$G$2) )))) -> 0 | J18: =IF(LEFT(D18,2)="Mg", VLOOKUP(A18,Quantities[],Quantities!$H$2), IF(OR(AND(LEFT(D18,2)="Sc",B18="A",C18="d",C18="f")), (SUM(VLOOKUP($A18,Quantities[],Quantities!$P$2)*VLOOKUP($A18,Quantities[],Quantities!$O$2),VLOOKUP($A18,Quantities[],Quantities!$R$2)*VLOOKUP($A18,Quantities[],Quantities!$Q$2),VLOOKUP($A18,Quantities[],Quantities!$T$2)*VLOOKUP($A18,Quantities[],Quantities!$S$2)))/SUM(VLOOKUP($A18,Quantities[],Quantities!$O$2),VLOOKUP($A18,Quantities[],Quantities!$Q$2),VLOOKUP($A18,Quantities[],Quantities!$S$2)), IF(AND(LEFT(D18,2)="Sc",OR(C18="a",C18="f")), VLOOKUP(A18,Quantities[],Quantities!$J$2), IF(AND(B18="D",C18="b", (VLOOKUP(INDEX(Quantities!$A$100:$A$118,MATCH($A18,Quantities!$C$100:$C$118)),Quantities[],Quantities!$O$2)+VLOOKUP(INDEX(Quantities!$A$100:$A$118,MATCH($A18,Quantities!$C$100:$C$118)),Quantities[],Quantities!$Q$2)+VLOOKUP(INDEX(Quantities!$A$100:$A$118,MATCH($A18,Quantities!$C$100:$C$118)),Quantities[],Quantities!$S$2))>0), (VLOOKUP(INDEX(Quantities!$A$100:$A$118,MATCH($A18,Quantities!$C$100:$C$118)),Quantities[],Quantities!$P$2)*VLOOKUP(INDEX(Quantities!$A$100:$A$118,MATCH($A18,Quantities!$C$100:$C$118)),Quantities[],Quantities!$O$2) +VLOOKUP(INDEX(Quantities!$A$100:$A$118,MATCH($A18,Quantities!$C$100:$C$118)),Quantities[],Quantities!$R$2)*VLOOKUP(INDEX(Quantities!$A$100:$A$118,MATCH($A18,Quantities!$C$100:$C$118)),Quantities[],Quantities!$Q$2) +VLOOKUP(INDEX(Quantities!$A$100:$A$118,MATCH($A18,Quantities!$C$100:$C$118)),Quantities[],Quantities!$T$2)*VLOOKUP(INDEX(Quantities!$A$100:$A$118,MATCH($A18,Quantities!$C$100:$C$118)),Quantities[],Quantities!$S$2))/ (VLOOKUP(INDEX(Quantities!$A$100:$A$118,MATCH($A18,Quantities!$C$100:$C$118)),Quantities[],Quantities!$O$2)+VLOOKUP(INDEX(Quantities!$A$100:$A$118,MATCH($A18,Quantities!$C$100:$C$118)),Quantities[],Quantities!$Q$2)+VLOOKUP(A18,Quantities[],Quantities!$S$2)), IF(AND(B18="D", (VLOOKUP(A18,Quantities[],Quantities!$O$2)+VLOOKUP(A18,Quantities[],Quantities!$Q$2)+VLOOKUP(A18,Quantities[],Quantities!$S$2))>0), (VLOOKUP(A18,Quantities[],Quantities!$P$2)*VLOOKUP(A18,Quantities[],Quantities!$O$2) +VLOOKUP(A18,Quantities[],Quantities!$R$2)*VLOOKUP(A18,Quantities[],Quantities!$Q$2) +VLOOKUP(A18,Quantities[],Quantities!$T$2)*VLOOKUP(A18,Quantities[],Quantities!$S$2))/ (VLOOKUP(A18,Quantities[],Quantities!$O$2)+VLOOKUP(A18,Quantities[],Quantities!$Q$2)+VLOOKUP(A18,Quantities[],Quantities!$S$2)), IF($B18="Q", (SUM(VLOOKUP($A18,Quantities[],Quantities!$P$2)*VLOOKUP($A18,Quantities[],Quantities!$O$2),VLOOKUP($A18,Quantities[],Quantities!$R$2)*VLOOKUP($A18,Quantities[],Quantities!$Q$2),VLOOKUP($A18,Quantities[],Quantities!$T$2)*VLOOKUP($A18,Quantities[],Quantities!$S$2)))/SUM(VLOOKUP($A18,Quantities[],Quantities!$O$2),VLOOKUP($A18,Quantities[],Quantities!$Q$2),VLOOKUP($A18,Quantities[],Quantities!$S$2)), VLOOKUP(A18,Quantities[],Quantities!$H$2) )))))) -> - | K18: =IF(LEFT(D18,1)="U","-",VLOOKUP(D18,Equipment[],Equipment!$B$2)) -> -
A19: =Quantities!A85 -> 3405 | B19: M | C19: e | D19: U | E19: 3405-M-e-U | F19: =IF(D19="Comb1",CONCATENATE(VLOOKUP(B19,'Activity-Material_Codes'!$A$2:$B$26,Quantities!$B$2),"-",VLOOKUP(A19,Quantities[],Quantities!$D$2)), CONCATENATE( VLOOKUP(B19,'Activity-Material_Codes'!$A$2:$B$26,Quantities!$B$2), IF(AND(B19="B",C19="a"), " Scraper Grading", ""), IF(C19="b","","-"), IF(C19="b","",VLOOKUP(A19,Quantities[],Quantities!$D$2)), IF(LEFT(TEXT(A19,"0"),1)="5","","-"), IF(LEFT(TEXT(A19,"0"),1)="5","",VLOOKUP(C19,'Activity-Material_Codes'!$A$30:$B$36,Quantities!$B$2)) )) -> Post-Closure O&M-Mining Area-Final Grade | G19: =CONCATENATE( IF(OR(RIGHT(TEXT($A19,"0"),Quantities!$B$2)="00",LEFT(TEXT($A19,"0"),1)="5",OR($C19="b",$C19="f")),"",VLOOKUP($A19,Quantities[],Quantities!$B$2)), IF(LEFT(TEXT($A19,"0"),1)="5",""," "), IF(OR(C19="a",C19="c",C19="d",C19="e"),IF(OR(RIGHT(TEXT($A19,"0"),Quantities!$B$2)="00",LEFT(TEXT($A19,"0"),1)="5"),VLOOKUP($A19,Quantities[],Quantities!$B$2),""), IF(LEFT(TEXT($A19,"0"),1)="5",VLOOKUP($A19,Quantities[],Quantities!$B$2), VLOOKUP(INDEX(Quantities!$A$100:$A$118,MATCH($A19,Quantities!$C$100:$C$118)),Quantities!$A$100:$B$118,Quantities!$B$2)))) -> Reclaimed 7A Waste | H19: =IF(LEFT(TEXT(A19,"0"),1)="5", VLOOKUP(VLOOKUP(A19,Quantities!$A$4:$D$118,Quantities!$C$2),Quantities!$A$4:$D$118,Quantities!$C$2), IF(OR(C19="a",C19="c",C19="d",C19="e"), "-", IF(RIGHT(TEXT(A19,"0"),2)="00",VLOOKUP(A19,Quantities[],Quantities!$B$2), IF(C19="f",VLOOKUP(A19,Quantities[],Quantities!$B$2), VLOOKUP(A19,Quantities[],Quantities!$C$2)) ))) -> - | I19: =IF(OR(AND(LEFT(D19,2)="Sc",B19="A",C19="d"),AND(C19="f",B19="D")), SUM(VLOOKUP($A19,Quantities[],Quantities!$O$2),VLOOKUP($A19,Quantities[],Quantities!$Q$2),VLOOKUP($A19,Quantities[],Quantities!$S$2)), IF(AND(LEFT(D19,2)="Sc",OR(C19="a",C19="f")), VLOOKUP(A19,Quantities[],Quantities!$I$2), IF(AND(B19="D",C19="b"), VLOOKUP(INDEX(Quantities!$A$100:$A$118,MATCH($A19,Quantities!$C$100:$C$118)),Quantities!$A$100:$AJ$118,Quantities!$O$2)+ VLOOKUP(INDEX(Quantities!$A$100:$A$118,MATCH($A19,Quantities!$C$100:$C$118)),Quantities!$A$100:$AJ$118,Quantities!$Q$2)+ VLOOKUP(INDEX(Quantities!$A$100:$A$118,MATCH($A19,Quantities!$C$100:$C$118)),Quantities!$A$100:$AJ$118,Quantities!$S$2), IF(OR(B19="D",B19="Q"), SUM(VLOOKUP($A19,Quantities[],Quantities!$O$2),VLOOKUP($A19,Quantities[],Quantities!$Q$2),VLOOKUP($A19,Quantities[],Quantities!$S$2)), VLOOKUP(A19,Quantities[],Quantities!$G$2) )))) -> 0 | J19: =IF(LEFT(D19,2)="Mg", VLOOKUP(A19,Quantities[],Quantities!$H$2), IF(OR(AND(LEFT(D19,2)="Sc",B19="A",C19="d",C19="f")), (SUM(VLOOKUP($A19,Quantities[],Quantities!$P$2)*VLOOKUP($A19,Quantities[],Quantities!$O$2),VLOOKUP($A19,Quantities[],Quantities!$R$2)*VLOOKUP($A19,Quantities[],Quantities!$Q$2),VLOOKUP($A19,Quantities[],Quantities!$T$2)*VLOOKUP($A19,Quantities[],Quantities!$S$2)))/SUM(VLOOKUP($A19,Quantities[],Quantities!$O$2),VLOOKUP($A19,Quantities[],Quantities!$Q$2),VLOOKUP($A19,Quantities[],Quantities!$S$2)), IF(AND(LEFT(D19,2)="Sc",OR(C19="a",C19="f")), VLOOKUP(A19,Quantities[],Quantities!$J$2), IF(AND(B19="D",C19="b", (VLOOKUP(INDEX(Quantities!$A$100:$A$118,MATCH($A19,Quantities!$C$100:$C$118)),Quantities[],Quantities!$O$2)+VLOOKUP(INDEX(Quantities!$A$100:$A$118,MATCH($A19,Quantities!$C$100:$C$118)),Quantities[],Quantities!$Q$2)+VLOOKUP(INDEX(Quantities!$A$100:$A$118,MATCH($A19,Quantities!$C$100:$C$118)),Quantities[],Quantities!$S$2))>0), (VLOOKUP(INDEX(Quantities!$A$100:$A$118,MATCH($A19,Quantities!$C$100:$C$118)),Quantities[],Quantities!$P$2)*VLOOKUP(INDEX(Quantities!$A$100:$A$118,MATCH($A19,Quantities!$C$100:$C$118)),Quantities[],Quantities!$O$2) +VLOOKUP(INDEX(Quantities!$A$100:$A$118,MATCH($A19,Quantities!$C$100:$C$118)),Quantities[],Quantities!$R$2)*VLOOKUP(INDEX(Quantities!$A$100:$A$118,MATCH($A19,Quantities!$C$100:$C$118)),Quantities[],Quantities!$Q$2) +VLOOKUP(INDEX(Quantities!$A$100:$A$118,MATCH($A19,Quantities!$C$100:$C$118)),Quantities[],Quantities!$T$2)*VLOOKUP(INDEX(Quantities!$A$100:$A$118,MATCH($A19,Quantities!$C$100:$C$118)),Quantities[],Quantities!$S$2))/ (VLOOKUP(INDEX(Quantities!$A$100:$A$118,MATCH($A19,Quantities!$C$100:$C$118)),Quantities[],Quantities!$O$2)+VLOOKUP(INDEX(Quantities!$A$100:$A$118,MATCH($A19,Quantities!$C$100:$C$118)),Quantities[],Quantities!$Q$2)+VLOOKUP(A19,Quantities[],Quantities!$S$2)), IF(AND(B19="D", (VLOOKUP(A19,Quantities[],Quantities!$O$2)+VLOOKUP(A19,Quantities[],Quantities!$Q$2)+VLOOKUP(A19,Quantities[],Quantities!$S$2))>0), (VLOOKUP(A19,Quantities[],Quantities!$P$2)*VLOOKUP(A19,Quantities[],Quantities!$O$2) +VLOOKUP(A19,Quantities[],Quantities!$R$2)*VLOOKUP(A19,Quantities[],Quantities!$Q$2) +VLOOKUP(A19,Quantities[],Quantities!$T$2)*VLOOKUP(A19,Quantities[],Quantities!$S$2))/ (VLOOKUP(A19,Quantities[],Quantities!$O$2)+VLOOKUP(A19,Quantities[],Quantities!$Q$2)+VLOOKUP(A19,Quantities[],Quantities!$S$2)), IF($B19="Q", (SUM(VLOOKUP($A19,Quantities[],Quantities!$P$2)*VLOOKUP($A19,Quantities[],Quantities!$O$2),VLOOKUP($A19,Quantities[],Quantities!$R$2)*VLOOKUP($A19,Quantities[],Quantities!$Q$2),VLOOKUP($A19,Quantities[],Quantities!$T$2)*VLOOKUP($A19,Quantities[],Quantities!$S$2)))/SUM(VLOOKUP($A19,Quantities[],Quantities!$O$2),VLOOKUP($A19,Quantities[],Quantities!$Q$2),VLOOKUP($A19,Quantities[],Quantities!$S$2)), VLOOKUP(A19,Quantities[],Quantities!$H$2) )))))) -> - | K19: =IF(LEFT(D19,1)="U","-",VLOOKUP(D19,Equipment[],Equipment!$B$2)) -> -
A20: =Quantities!A86 -> 3406 | B20: M | C20: e | D20: U | E20: =CONCATENATE(TEXT(A20,"0"),"-",B20,"-",C20,"-",D20) -> 3406-M-e-U | F20: =IF(D20="Comb1",CONCATENATE(VLOOKUP(B20,'Activity-Material_Codes'!$A$2:$B$26,Quantities!$B$2),"-",VLOOKUP(A20,Quantities[],Quantities!$D$2)), CONCATENATE( VLOOKUP(B20,'Activity-Material_Codes'!$A$2:$B$26,Quantities!$B$2), IF(AND(B20="B",C20="a"), " Scraper Grading", ""), IF(C20="b","","-"), IF(C20="b","",VLOOKUP(A20,Quantities[],Quantities!$D$2)), IF(LEFT(TEXT(A20,"0"),1)="5","","-"), IF(LEFT(TEXT(A20,"0"),1)="5","",VLOOKUP(C20,'Activity-Material_Codes'!$A$30:$B$36,Quantities!$B$2)) )) -> Post-Closure O&M-Mining Area-Final Grade | G20: =CONCATENATE( IF(OR(RIGHT(TEXT($A20,"0"),Quantities!$B$2)="00",LEFT(TEXT($A20,"0"),1)="5",OR($C20="b",$C20="f")),"",VLOOKUP($A20,Quantities[],Quantities!$B$2)), IF(LEFT(TEXT($A20,"0"),1)="5",""," "), IF(OR(C20="a",C20="c",C20="d",C20="e"),IF(OR(RIGHT(TEXT($A20,"0"),Quantities!$B$2)="00",LEFT(TEXT($A20,"0"),1)="5"),VLOOKUP($A20,Quantities[],Quantities!$B$2),""), IF(LEFT(TEXT($A20,"0"),1)="5",VLOOKUP($A20,Quantities[],Quantities!$B$2), VLOOKUP(INDEX(Quantities!$A$100:$A$118,MATCH($A20,Quantities!$C$100:$C$118)),Quantities!$A$100:$B$118,Quantities!$B$2)))) -> Reclaimed 7A Waste | H20: =IF(LEFT(TEXT(A20,"0"),1)="5", VLOOKUP(VLOOKUP(A20,Quantities!$A$4:$D$118,Quantities!$C$2),Quantities!$A$4:$D$118,Quantities!$C$2), IF(OR(C20="a",C20="c",C20="d",C20="e"), "-", IF(RIGHT(TEXT(A20,"0"),2)="00",VLOOKUP(A20,Quantities[],Quantities!$B$2), IF(C20="f",VLOOKUP(A20,Quantities[],Quantities!$B$2), VLOOKUP(A20,Quantities[],Quantities!$C$2)) ))) -> - | I20: =IF(OR(AND(LEFT(D20,2)="Sc",B20="A",C20="d"),AND(C20="f",B20="D")), SUM(VLOOKUP($A20,Quantities[],Quantities!$O$2),VLOOKUP($A20,Quantities[],Quantities!$Q$2),VLOOKUP($A20,Quantities[],Quantities!$S$2)), IF(AND(LEFT(D20,2)="Sc",OR(C20="a",C20="f")), VLOOKUP(A20,Quantities[],Quantities!$I$2), IF(AND(B20="D",C20="b"), VLOOKUP(INDEX(Quantities!$A$100:$A$118,MATCH($A20,Quantities!$C$100:$C$118)),Quantities!$A$100:$AJ$118,Quantities!$O$2)+ VLOOKUP(INDEX(Quantities!$A$100:$A$118,MATCH($A20,Quantities!$C$100:$C$118)),Quantities!$A$100:$AJ$118,Quantities!$Q$2)+ VLOOKUP(INDEX(Quantities!$A$100:$A$118,MATCH($A20,Quantities!$C$100:$C$118)),Quantities!$A$100:$AJ$118,Quantities!$S$2), IF(OR(B20="D",B20="Q"), SUM(VLOOKUP($A20,Quantities[],Quantities!$O$2),VLOOKUP($A20,Quantities[],Quantities!$Q$2),VLOOKUP($A20,Quantities[],Quantities!$S$2)), VLOOKUP(A20,Quantities[],Quantities!$G$2) )))) -> 0 | J20: =IF(LEFT(D20,2)="Mg", VLOOKUP(A20,Quantities[],Quantities!$H$2), IF(OR(AND(LEFT(D20,2)="Sc",B20="A",C20="d",C20="f")), (SUM(VLOOKUP($A20,Quantities[],Quantities!$P$2)*VLOOKUP($A20,Quantities[],Quantities!$O$2),VLOOKUP($A20,Quantities[],Quantities!$R$2)*VLOOKUP($A20,Quantities[],Quantities!$Q$2),VLOOKUP($A20,Quantities[],Quantities!$T$2)*VLOOKUP($A20,Quantities[],Quantities!$S$2)))/SUM(VLOOKUP($A20,Quantities[],Quantities!$O$2),VLOOKUP($A20,Quantities[],Quantities!$Q$2),VLOOKUP($A20,Quantities[],Quantities!$S$2)), IF(AND(LEFT(D20,2)="Sc",OR(C20="a",C20="f")), VLOOKUP(A20,Quantities[],Quantities!$J$2), IF(AND(B20="D",C20="b", (VLOOKUP(INDEX(Quantities!$A$100:$A$118,MATCH($A20,Quantities!$C$100:$C$118)),Quantities[],Quantities!$O$2)+VLOOKUP(INDEX(Quantities!$A$100:$A$118,MATCH($A20,Quantities!$C$100:$C$118)),Quantities[],Quantities!$Q$2)+VLOOKUP(INDEX(Quantities!$A$100:$A$118,MATCH($A20,Quantities!$C$100:$C$118)),Quantities[],Quantities!$S$2))>0), (VLOOKUP(INDEX(Quantities!$A$100:$A$118,MATCH($A20,Quantities!$C$100:$C$118)),Quantities[],Quantities!$P$2)*VLOOKUP(INDEX(Quantities!$A$100:$A$118,MATCH($A20,Quantities!$C$100:$C$118)),Quantities[],Quantities!$O$2) +VLOOKUP(INDEX(Quantities!$A$100:$A$118,MATCH($A20,Quantities!$C$100:$C$118)),Quantities[],Quantities!$R$2)*VLOOKUP(INDEX(Quantities!$A$100:$A$118,MATCH($A20,Quantities!$C$100:$C$118)),Quantities[],Quantities!$Q$2) +VLOOKUP(INDEX(Quantities!$A$100:$A$118,MATCH($A20,Quantities!$C$100:$C$118)),Quantities[],Quantities!$T$2)*VLOOKUP(INDEX(Quantities!$A$100:$A$118,MATCH($A20,Quantities!$C$100:$C$118)),Quantities[],Quantities!$S$2))/ (VLOOKUP(INDEX(Quantities!$A$100:$A$118,MATCH($A20,Quantities!$C$100:$C$118)),Quantities[],Quantities!$O$2)+VLOOKUP(INDEX(Quantities!$A$100:$A$118,MATCH($A20,Quantities!$C$100:$C$118)),Quantities[],Quantities!$Q$2)+VLOOKUP(A20,Quantities[],Quantities!$S$2)), IF(AND(B20="D", (VLOOKUP(A20,Quantities[],Quantities!$O$2)+VLOOKUP(A20,Quantities[],Quantities!$Q$2)+VLOOKUP(A20,Quantities[],Quantities!$S$2))>0), (VLOOKUP(A20,Quantities[],Quantities!$P$2)*VLOOKUP(A20,Quantities[],Quantities!$O$2) +VLOOKUP(A20,Quantities[],Quantities!$R$2)*VLOOKUP(A20,Quantities[],Quantities!$Q$2) +VLOOKUP(A20,Quantities[],Quantities!$T$2)*VLOOKUP(A20,Quantities[],Quantities!$S$2))/ (VLOOKUP(A20,Quantities[],Quantities!$O$2)+VLOOKUP(A20,Quantities[],Quantities!$Q$2)+VLOOKUP(A20,Quantities[],Quantities!$S$2)), IF($B20="Q", (SUM(VLOOKUP($A20,Quantities[],Quantities!$P$2)*VLOOKUP($A20,Quantities[],Quantities!$O$2),VLOOKUP($A20,Quantities[],Quantities!$R$2)*VLOOKUP($A20,Quantities[],Quantities!$Q$2),VLOOKUP($A20,Quantities[],Quantities!$T$2)*VLOOKUP($A20,Quantities[],Quantities!$S$2)))/SUM(VLOOKUP($A20,Quantities[],Quantities!$O$2),VLOOKUP($A20,Quantities[],Quantities!$Q$2),VLOOKUP($A20,Quantities[],Quantities!$S$2)), VLOOKUP(A20,Quantities[],Quantities!$H$2) )))))) -> - | K20: =IF(LEFT(D20,1)="U","-",VLOOKUP(D20,Equipment[],Equipment!$B$2)) -> -
A21: =Quantities!A87 -> 3407 | B21: M | C21: e | D21: U | E21: 3407-M-e-U | F21: =IF(D21="Comb1",CONCATENATE(VLOOKUP(B21,'Activity-Material_Codes'!$A$2:$B$26,Quantities!$B$2),"-",VLOOKUP(A21,Quantities[],Quantities!$D$2)), CONCATENATE( VLOOKUP(B21,'Activity-Material_Codes'!$A$2:$B$26,Quantities!$B$2), IF(AND(B21="B",C21="a"), " Scraper Grading", ""), IF(C21="b","","-"), IF(C21="b","",VLOOKUP(A21,Quantities[],Quantities!$D$2)), IF(LEFT(TEXT(A21,"0"),1)="5","","-"), IF(LEFT(TEXT(A21,"0"),1)="5","",VLOOKUP(C21,'Activity-Material_Codes'!$A$30:$B$36,Quantities!$B$2)) )) -> Post-Closure O&M-Mining Area-Final Grade | G21: =CONCATENATE( IF(OR(RIGHT(TEXT($A21,"0"),Quantities!$B$2)="00",LEFT(TEXT($A21,"0"),1)="5",OR($C21="b",$C21="f")),"",VLOOKUP($A21,Quantities[],Quantities!$B$2)), IF(LEFT(TEXT($A21,"0"),1)="5",""," "), IF(OR(C21="a",C21="c",C21="d",C21="e"),IF(OR(RIGHT(TEXT($A21,"0"),Quantities!$B$2)="00",LEFT(TEXT($A21,"0"),1)="5"),VLOOKUP($A21,Quantities[],Quantities!$B$2),""), IF(LEFT(TEXT($A21,"0"),1)="5",VLOOKUP($A21,Quantities[],Quantities!$B$2), VLOOKUP(INDEX(Quantities!$A$100:$A$118,MATCH($A21,Quantities!$C$100:$C$118)),Quantities!$A$100:$B$118,Quantities!$B$2)))) -> Reclaimed 7A Waste | H21: =IF(LEFT(TEXT(A21,"0"),1)="5", VLOOKUP(VLOOKUP(A21,Quantities!$A$4:$D$118,Quantities!$C$2),Quantities!$A$4:$D$118,Quantities!$C$2), IF(OR(C21="a",C21="c",C21="d",C21="e"), "-", IF(RIGHT(TEXT(A21,"0"),2)="00",VLOOKUP(A21,Quantities[],Quantities!$B$2), IF(C21="f",VLOOKUP(A21,Quantities[],Quantities!$B$2), VLOOKUP(A21,Quantities[],Quantities!$C$2)) ))) -> - | I21: =IF(OR(AND(LEFT(D21,2)="Sc",B21="A",C21="d"),AND(C21="f",B21="D")), SUM(VLOOKUP($A21,Quantities[],Quantities!$O$2),VLOOKUP($A21,Quantities[],Quantities!$Q$2),VLOOKUP($A21,Quantities[],Quantities!$S$2)), IF(AND(LEFT(D21,2)="Sc",OR(C21="a",C21="f")), VLOOKUP(A21,Quantities[],Quantities!$I$2), IF(AND(B21="D",C21="b"), VLOOKUP(INDEX(Quantities!$A$100:$A$118,MATCH($A21,Quantities!$C$100:$C$118)),Quantities!$A$100:$AJ$118,Quantities!$O$2)+ VLOOKUP(INDEX(Quantities!$A$100:$A$118,MATCH($A21,Quantities!$C$100:$C$118)),Quantities!$A$100:$AJ$118,Quantities!$Q$2)+ VLOOKUP(INDEX(Quantities!$A$100:$A$118,MATCH($A21,Quantities!$C$100:$C$118)),Quantities!$A$100:$AJ$118,Quantities!$S$2), IF(OR(B21="D",B21="Q"), SUM(VLOOKUP($A21,Quantities[],Quantities!$O$2),VLOOKUP($A21,Quantities[],Quantities!$Q$2),VLOOKUP($A21,Quantities[],Quantities!$S$2)), VLOOKUP(A21,Quantities[],Quantities!$G$2) )))) -> 0 | J21: =IF(LEFT(D21,2)="Mg", VLOOKUP(A21,Quantities[],Quantities!$H$2), IF(OR(AND(LEFT(D21,2)="Sc",B21="A",C21="d",C21="f")), (SUM(VLOOKUP($A21,Quantities[],Quantities!$P$2)*VLOOKUP($A21,Quantities[],Quantities!$O$2),VLOOKUP($A21,Quantities[],Quantities!$R$2)*VLOOKUP($A21,Quantities[],Quantities!$Q$2),VLOOKUP($A21,Quantities[],Quantities!$T$2)*VLOOKUP($A21,Quantities[],Quantities!$S$2)))/SUM(VLOOKUP($A21,Quantities[],Quantities!$O$2),VLOOKUP($A21,Quantities[],Quantities!$Q$2),VLOOKUP($A21,Quantities[],Quantities!$S$2)), IF(AND(LEFT(D21,2)="Sc",OR(C21="a",C21="f")), VLOOKUP(A21,Quantities[],Quantities!$J$2), IF(AND(B21="D",C21="b", (VLOOKUP(INDEX(Quantities!$A$100:$A$118,MATCH($A21,Quantities!$C$100:$C$118)),Quantities[],Quantities!$O$2)+VLOOKUP(INDEX(Quantities!$A$100:$A$118,MATCH($A21,Quantities!$C$100:$C$118)),Quantities[],Quantities!$Q$2)+VLOOKUP(INDEX(Quantities!$A$100:$A$118,MATCH($A21,Quantities!$C$100:$C$118)),Quantities[],Quantities!$S$2))>0), (VLOOKUP(INDEX(Quantities!$A$100:$A$118,MATCH($A21,Quantities!$C$100:$C$118)),Quantities[],Quantities!$P$2)*VLOOKUP(INDEX(Quantities!$A$100:$A$118,MATCH($A21,Quantities!$C$100:$C$118)),Quantities[],Quantities!$O$2) +VLOOKUP(INDEX(Quantities!$A$100:$A$118,MATCH($A21,Quantities!$C$100:$C$118)),Quantities[],Quantities!$R$2)*VLOOKUP(INDEX(Quantities!$A$100:$A$118,MATCH($A21,Quantities!$C$100:$C$118)),Quantities[],Quantities!$Q$2) +VLOOKUP(INDEX(Quantities!$A$100:$A$118,MATCH($A21,Quantities!$C$100:$C$118)),Quantities[],Quantities!$T$2)*VLOOKUP(INDEX(Quantities!$A$100:$A$118,MATCH($A21,Quantities!$C$100:$C$118)),Quantities[],Quantities!$S$2))/ (VLOOKUP(INDEX(Quantities!$A$100:$A$118,MATCH($A21,Quantities!$C$100:$C$118)),Quantities[],Quantities!$O$2)+VLOOKUP(INDEX(Quantities!$A$100:$A$118,MATCH($A21,Quantities!$C$100:$C$118)),Quantities[],Quantities!$Q$2)+VLOOKUP(A21,Quantities[],Quantities!$S$2)), IF(AND(B21="D", (VLOOKUP(A21,Quantities[],Quantities!$O$2)+VLOOKUP(A21,Quantities[],Quantities!$Q$2)+VLOOKUP(A21,Quantities[],Quantities!$S$2))>0), (VLOOKUP(A21,Quantities[],Quantities!$P$2)*VLOOKUP(A21,Quantities[],Quantities!$O$2) +VLOOKUP(A21,Quantities[],Quantities!$R$2)*VLOOKUP(A21,Quantities[],Quantities!$Q$2) +VLOOKUP(A21,Quantities[],Quantities!$T$2)*VLOOKUP(A21,Quantities[],Quantities!$S$2))/ (VLOOKUP(A21,Quantities[],Quantities!$O$2)+VLOOKUP(A21,Quantities[],Quantities!$Q$2)+VLOOKUP(A21,Quantities[],Quantities!$S$2)), IF($B21="Q", (SUM(VLOOKUP($A21,Quantities[],Quantities!$P$2)*VLOOKUP($A21,Quantities[],Quantities!$O$2),VLOOKUP($A21,Quantities[],Quantities!$R$2)*VLOOKUP($A21,Quantities[],Quantities!$Q$2),VLOOKUP($A21,Quantities[],Quantities!$T$2)*VLOOKUP($A21,Quantities[],Quantities!$S$2)))/SUM(VLOOKUP($A21,Quantities[],Quantities!$O$2),VLOOKUP($A21,Quantities[],Quantities!$Q$2),VLOOKUP($A21,Quantities[],Quantities!$S$2)), VLOOKUP(A21,Quantities[],Quantities!$H$2) )))))) -> - | K21: =IF(LEFT(D21,1)="U","-",VLOOKUP(D21,Equipment[],Equipment!$B$2)) -> -
A22: =Quantities!A88 -> 3408 | B22: M | C22: e | D22: U | E22: =CONCATENATE(TEXT(A22,"0"),"-",B22,"-",C22,"-",D22) -> 3408-M-e-U | F22: =IF(D22="Comb1",CONCATENATE(VLOOKUP(B22,'Activity-Material_Codes'!$A$2:$B$26,Quantities!$B$2),"-",VLOOKUP(A22,Quantities[],Quantities!$D$2)), CONCATENATE( VLOOKUP(B22,'Activity-Material_Codes'!$A$2:$B$26,Quantities!$B$2), IF(AND(B22="B",C22="a"), " Scraper Grading", ""), IF(C22="b","","-"), IF(C22="b","",VLOOKUP(A22,Quantities[],Quantities!$D$2)), IF(LEFT(TEXT(A22,"0"),1)="5","","-"), IF(LEFT(TEXT(A22,"0"),1)="5","",VLOOKUP(C22,'Activity-Material_Codes'!$A$30:$B$36,Quantities!$B$2)) )) -> Post-Closure O&M-Mining Area-Final Grade | G22: =CONCATENATE( IF(OR(RIGHT(TEXT($A22,"0"),Quantities!$B$2)="00",LEFT(TEXT($A22,"0"),1)="5",OR($C22="b",$C22="f")),"",VLOOKUP($A22,Quantities[],Quantities!$B$2)), IF(LEFT(TEXT($A22,"0"),1)="5",""," "), IF(OR(C22="a",C22="c",C22="d",C22="e"),IF(OR(RIGHT(TEXT($A22,"0"),Quantities!$B$2)="00",LEFT(TEXT($A22,"0"),1)="5"),VLOOKUP($A22,Quantities[],Quantities!$B$2),""), IF(LEFT(TEXT($A22,"0"),1)="5",VLOOKUP($A22,Quantities[],Quantities!$B$2), VLOOKUP(INDEX(Quantities!$A$100:$A$118,MATCH($A22,Quantities!$C$100:$C$118)),Quantities!$A$100:$B$118,Quantities!$B$2)))) -> Reclaimed 7A Waste | H22: =IF(LEFT(TEXT(A22,"0"),1)="5", VLOOKUP(VLOOKUP(A22,Quantities!$A$4:$D$118,Quantities!$C$2),Quantities!$A$4:$D$118,Quantities!$C$2), IF(OR(C22="a",C22="c",C22="d",C22="e"), "-", IF(RIGHT(TEXT(A22,"0"),2)="00",VLOOKUP(A22,Quantities[],Quantities!$B$2), IF(C22="f",VLOOKUP(A22,Quantities[],Quantities!$B$2), VLOOKUP(A22,Quantities[],Quantities!$C$2)) ))) -> - | I22: =IF(OR(AND(LEFT(D22,2)="Sc",B22="A",C22="d"),AND(C22="f",B22="D")), SUM(VLOOKUP($A22,Quantities[],Quantities!$O$2),VLOOKUP($A22,Quantities[],Quantities!$Q$2),VLOOKUP($A22,Quantities[],Quantities!$S$2)), IF(AND(LEFT(D22,2)="Sc",OR(C22="a",C22="f")), VLOOKUP(A22,Quantities[],Quantities!$I$2), IF(AND(B22="D",C22="b"), VLOOKUP(INDEX(Quantities!$A$100:$A$118,MATCH($A22,Quantities!$C$100:$C$118)),Quantities!$A$100:$AJ$118,Quantities!$O$2)+ VLOOKUP(INDEX(Quantities!$A$100:$A$118,MATCH($A22,Quantities!$C$100:$C$118)),Quantities!$A$100:$AJ$118,Quantities!$Q$2)+ VLOOKUP(INDEX(Quantities!$A$100:$A$118,MATCH($A22,Quantities!$C$100:$C$118)),Quantities!$A$100:$AJ$118,Quantities!$S$2), IF(OR(B22="D",B22="Q"), SUM(VLOOKUP($A22,Quantities[],Quantities!$O$2),VLOOKUP($A22,Quantities[],Quantities!$Q$2),VLOOKUP($A22,Quantities[],Quantities!$S$2)), VLOOKUP(A22,Quantities[],Quantities!$G$2) )))) -> 0 | J22: =IF(LEFT(D22,2)="Mg", VLOOKUP(A22,Quantities[],Quantities!$H$2), IF(OR(AND(LEFT(D22,2)="Sc",B22="A",C22="d",C22="f")), (SUM(VLOOKUP($A22,Quantities[],Quantities!$P$2)*VLOOKUP($A22,Quantities[],Quantities!$O$2),VLOOKUP($A22,Quantities[],Quantities!$R$2)*VLOOKUP($A22,Quantities[],Quantities!$Q$2),VLOOKUP($A22,Quantities[],Quantities!$T$2)*VLOOKUP($A22,Quantities[],Quantities!$S$2)))/SUM(VLOOKUP($A22,Quantities[],Quantities!$O$2),VLOOKUP($A22,Quantities[],Quantities!$Q$2),VLOOKUP($A22,Quantities[],Quantities!$S$2)), IF(AND(LEFT(D22,2)="Sc",OR(C22="a",C22="f")), VLOOKUP(A22,Quantities[],Quantities!$J$2), IF(AND(B22="D",C22="b", (VLOOKUP(INDEX(Quantities!$A$100:$A$118,MATCH($A22,Quantities!$C$100:$C$118)),Quantities[],Quantities!$O$2)+VLOOKUP(INDEX(Quantities!$A$100:$A$118,MATCH($A22,Quantities!$C$100:$C$118)),Quantities[],Quantities!$Q$2)+VLOOKUP(INDEX(Quantities!$A$100:$A$118,MATCH($A22,Quantities!$C$100:$C$118)),Quantities[],Quantities!$S$2))>0), (VLOOKUP(INDEX(Quantities!$A$100:$A$118,MATCH($A22,Quantities!$C$100:$C$118)),Quantities[],Quantities!$P$2)*VLOOKUP(INDEX(Quantities!$A$100:$A$118,MATCH($A22,Quantities!$C$100:$C$118)),Quantities[],Quantities!$O$2) +VLOOKUP(INDEX(Quantities!$A$100:$A$118,MATCH($A22,Quantities!$C$100:$C$118)),Quantities[],Quantities!$R$2)*VLOOKUP(INDEX(Quantities!$A$100:$A$118,MATCH($A22,Quantities!$C$100:$C$118)),Quantities[],Quantities!$Q$2) +VLOOKUP(INDEX(Quantities!$A$100:$A$118,MATCH($A22,Quantities!$C$100:$C$118)),Quantities[],Quantities!$T$2)*VLOOKUP(INDEX(Quantities!$A$100:$A$118,MATCH($A22,Quantities!$C$100:$C$118)),Quantities[],Quantities!$S$2))/ (VLOOKUP(INDEX(Quantities!$A$100:$A$118,MATCH($A22,Quantities!$C$100:$C$118)),Quantities[],Quantities!$O$2)+VLOOKUP(INDEX(Quantities!$A$100:$A$118,MATCH($A22,Quantities!$C$100:$C$118)),Quantities[],Quantities!$Q$2)+VLOOKUP(A22,Quantities[],Quantities!$S$2)), IF(AND(B22="D", (VLOOKUP(A22,Quantities[],Quantities!$O$2)+VLOOKUP(A22,Quantities[],Quantities!$Q$2)+VLOOKUP(A22,Quantities[],Quantities!$S$2))>0), (VLOOKUP(A22,Quantities[],Quantities!$P$2)*VLOOKUP(A22,Quantities[],Quantities!$O$2) +VLOOKUP(A22,Quantities[],Quantities!$R$2)*VLOOKUP(A22,Quantities[],Quantities!$Q$2) +VLOOKUP(A22,Quantities[],Quantities!$T$2)*VLOOKUP(A22,Quantities[],Quantities!$S$2))/ (VLOOKUP(A22,Quantities[],Quantities!$O$2)+VLOOKUP(A22,Quantities[],Quantities!$Q$2)+VLOOKUP(A22,Quantities[],Quantities!$S$2)), IF($B22="Q", (SUM(VLOOKUP($A22,Quantities[],Quantities!$P$2)*VLOOKUP($A22,Quantities[],Quantities!$O$2),VLOOKUP($A22,Quantities[],Quantities!$R$2)*VLOOKUP($A22,Quantities[],Quantities!$Q$2),VLOOKUP($A22,Quantities[],Quantities!$T$2)*VLOOKUP($A22,Quantities[],Quantities!$S$2)))/SUM(VLOOKUP($A22,Quantities[],Quantities!$O$2),VLOOKUP($A22,Quantities[],Quantities!$Q$2),VLOOKUP($A22,Quantities[],Quantities!$S$2)), VLOOKUP(A22,Quantities[],Quantities!$H$2) )))))) -> - | K22: =IF(LEFT(D22,1)="U","-",VLOOKUP(D22,Equipment[],Equipment!$B$2)) -> -
A23: =Quantities!A89 -> 3409 | B23: M | C23: e | D23: U | E23: 3409-M-e-U | F23: =IF(D23="Comb1",CONCATENATE(VLOOKUP(B23,'Activity-Material_Codes'!$A$2:$B$26,Quantities!$B$2),"-",VLOOKUP(A23,Quantities[],Quantities!$D$2)), CONCATENATE( VLOOKUP(B23,'Activity-Material_Codes'!$A$2:$B$26,Quantities!$B$2), IF(AND(B23="B",C23="a"), " Scraper Grading", ""), IF(C23="b","","-"), IF(C23="b","",VLOOKUP(A23,Quantities[],Quantities!$D$2)), IF(LEFT(TEXT(A23,"0"),1)="5","","-"), IF(LEFT(TEXT(A23,"0"),1)="5","",VLOOKUP(C23,'Activity-Material_Codes'!$A$30:$B$36,Quantities!$B$2)) )) -> Post-Closure O&M-No Man's Land-Final Grade | G23: =CONCATENATE( IF(OR(RIGHT(TEXT($A23,"0"),Quantities!$B$2)="00",LEFT(TEXT($A23,"0"),1)="5",OR($C23="b",$C23="f")),"",VLOOKUP($A23,Quantities[],Quantities!$B$2)), IF(LEFT(TEXT($A23,"0"),1)="5",""," "), IF(OR(C23="a",C23="c",C23="d",C23="e"),IF(OR(RIGHT(TEXT($A23,"0"),Quantities!$B$2)="00",LEFT(TEXT($A23,"0"),1)="5"),VLOOKUP($A23,Quantities[],Quantities!$B$2),""), IF(LEFT(TEXT($A23,"0"),1)="5",VLOOKUP($A23,Quantities[],Quantities!$B$2), VLOOKUP(INDEX(Quantities!$A$100:$A$118,MATCH($A23,Quantities!$C$100:$C$118)),Quantities!$A$100:$B$118,Quantities!$B$2)))) -> Reclaimed 7A Waste | H23: =IF(LEFT(TEXT(A23,"0"),1)="5", VLOOKUP(VLOOKUP(A23,Quantities!$A$4:$D$118,Quantities!$C$2),Quantities!$A$4:$D$118,Quantities!$C$2), IF(OR(C23="a",C23="c",C23="d",C23="e"), "-", IF(RIGHT(TEXT(A23,"0"),2)="00",VLOOKUP(A23,Quantities[],Quantities!$B$2), IF(C23="f",VLOOKUP(A23,Quantities[],Quantities!$B$2), VLOOKUP(A23,Quantities[],Quantities!$C$2)) ))) -> - | I23: =IF(OR(AND(LEFT(D23,2)="Sc",B23="A",C23="d"),AND(C23="f",B23="D")), SUM(VLOOKUP($A23,Quantities[],Quantities!$O$2),VLOOKUP($A23,Quantities[],Quantities!$Q$2),VLOOKUP($A23,Quantities[],Quantities!$S$2)), IF(AND(LEFT(D23,2)="Sc",OR(C23="a",C23="f")), VLOOKUP(A23,Quantities[],Quantities!$I$2), IF(AND(B23="D",C23="b"), VLOOKUP(INDEX(Quantities!$A$100:$A$118,MATCH($A23,Quantities!$C$100:$C$118)),Quantities!$A$100:$AJ$118,Quantities!$O$2)+ VLOOKUP(INDEX(Quantities!$A$100:$A$118,MATCH($A23,Quantities!$C$100:$C$118)),Quantities!$A$100:$AJ$118,Quantities!$Q$2)+ VLOOKUP(INDEX(Quantities!$A$100:$A$118,MATCH($A23,Quantities!$C$100:$C$118)),Quantities!$A$100:$AJ$118,Quantities!$S$2), IF(OR(B23="D",B23="Q"), SUM(VLOOKUP($A23,Quantities[],Quantities!$O$2),VLOOKUP($A23,Quantities[],Quantities!$Q$2),VLOOKUP($A23,Quantities[],Quantities!$S$2)), VLOOKUP(A23,Quantities[],Quantities!$G$2) )))) -> 0 | J23: =IF(LEFT(D23,2)="Mg", VLOOKUP(A23,Quantities[],Quantities!$H$2), IF(OR(AND(LEFT(D23,2)="Sc",B23="A",C23="d",C23="f")), (SUM(VLOOKUP($A23,Quantities[],Quantities!$P$2)*VLOOKUP($A23,Quantities[],Quantities!$O$2),VLOOKUP($A23,Quantities[],Quantities!$R$2)*VLOOKUP($A23,Quantities[],Quantities!$Q$2),VLOOKUP($A23,Quantities[],Quantities!$T$2)*VLOOKUP($A23,Quantities[],Quantities!$S$2)))/SUM(VLOOKUP($A23,Quantities[],Quantities!$O$2),VLOOKUP($A23,Quantities[],Quantities!$Q$2),VLOOKUP($A23,Quantities[],Quantities!$S$2)), IF(AND(LEFT(D23,2)="Sc",OR(C23="a",C23="f")), VLOOKUP(A23,Quantities[],Quantities!$J$2), IF(AND(B23="D",C23="b", (VLOOKUP(INDEX(Quantities!$A$100:$A$118,MATCH($A23,Quantities!$C$100:$C$118)),Quantities[],Quantities!$O$2)+VLOOKUP(INDEX(Quantities!$A$100:$A$118,MATCH($A23,Quantities!$C$100:$C$118)),Quantities[],Quantities!$Q$2)+VLOOKUP(INDEX(Quantities!$A$100:$A$118,MATCH($A23,Quantities!$C$100:$C$118)),Quantities[],Quantities!$S$2))>0), (VLOOKUP(INDEX(Quantities!$A$100:$A$118,MATCH($A23,Quantities!$C$100:$C$118)),Quantities[],Quantities!$P$2)*VLOOKUP(INDEX(Quantities!$A$100:$A$118,MATCH($A23,Quantities!$C$100:$C$118)),Quantities[],Quantities!$O$2) +VLOOKUP(INDEX(Quantities!$A$100:$A$118,MATCH($A23,Quantities!$C$100:$C$118)),Quantities[],Quantities!$R$2)*VLOOKUP(INDEX(Quantities!$A$100:$A$118,MATCH($A23,Quantities!$C$100:$C$118)),Quantities[],Quantities!$Q$2) +VLOOKUP(INDEX(Quantities!$A$100:$A$118,MATCH($A23,Quantities!$C$100:$C$118)),Quantities[],Quantities!$T$2)*VLOOKUP(INDEX(Quantities!$A$100:$A$118,MATCH($A23,Quantities!$C$100:$C$118)),Quantities[],Quantities!$S$2))/ (VLOOKUP(INDEX(Quantities!$A$100:$A$118,MATCH($A23,Quantities!$C$100:$C$118)),Quantities[],Quantities!$O$2)+VLOOKUP(INDEX(Quantities!$A$100:$A$118,MATCH($A23,Quantities!$C$100:$C$118)),Quantities[],Quantities!$Q$2)+VLOOKUP(A23,Quantities[],Quantities!$S$2)), IF(AND(B23="D", (VLOOKUP(A23,Quantities[],Quantities!$O$2)+VLOOKUP(A23,Quantities[],Quantities!$Q$2)+VLOOKUP(A23,Quantities[],Quantities!$S$2))>0), (VLOOKUP(A23,Quantities[],Quantities!$P$2)*VLOOKUP(A23,Quantities[],Quantities!$O$2) +VLOOKUP(A23,Quantities[],Quantities!$R$2)*VLOOKUP(A23,Quantities[],Quantities!$Q$2) +VLOOKUP(A23,Quantities[],Quantities!$T$2)*VLOOKUP(A23,Quantities[],Quantities!$S$2))/ (VLOOKUP(A23,Quantities[],Quantities!$O$2)+VLOOKUP(A23,Quantities[],Quantities!$Q$2)+VLOOKUP(A23,Quantities[],Quantities!$S$2)), IF($B23="Q", (SUM(VLOOKUP($A23,Quantities[],Quantities!$P$2)*VLOOKUP($A23,Quantities[],Quantities!$O$2),VLOOKUP($A23,Quantities[],Quantities!$R$2)*VLOOKUP($A23,Quantities[],Quantities!$Q$2),VLOOKUP($A23,Quantities[],Quantities!$T$2)*VLOOKUP($A23,Quantities[],Quantities!$S$2)))/SUM(VLOOKUP($A23,Quantities[],Quantities!$O$2),VLOOKUP($A23,Quantities[],Quantities!$Q$2),VLOOKUP($A23,Quantities[],Quantities!$S$2)), VLOOKUP(A23,Quantities[],Quantities!$H$2) )))))) -> - | K23: =IF(LEFT(D23,1)="U","-",VLOOKUP(D23,Equipment[],Equipment!$B$2)) -> -
A24: =Quantities!A90 -> 3410 | B24: M | C24: e | D24: U | E24: 3410-M-e-U | F24: =IF(D24="Comb1",CONCATENATE(VLOOKUP(B24,'Activity-Material_Codes'!$A$2:$B$26,Quantities!$B$2),"-",VLOOKUP(A24,Quantities[],Quantities!$D$2)), CONCATENATE( VLOOKUP(B24,'Activity-Material_Codes'!$A$2:$B$26,Quantities!$B$2), IF(AND(B24="B",C24="a"), " Scraper Grading", ""), IF(C24="b","","-"), IF(C24="b","",VLOOKUP(A24,Quantities[],Quantities!$D$2)), IF(LEFT(TEXT(A24,"0"),1)="5","","-"), IF(LEFT(TEXT(A24,"0"),1)="5","",VLOOKUP(C24,'Activity-Material_Codes'!$A$30:$B$36,Quantities!$B$2)) )) -> Post-Closure O&M-Mangas Valley Tailing Area-Final Grade | G24: =CONCATENATE( IF(OR(RIGHT(TEXT($A24,"0"),Quantities!$B$2)="00",LEFT(TEXT($A24,"0"),1)="5",OR($C24="b",$C24="f")),"",VLOOKUP($A24,Quantities[],Quantities!$B$2)), IF(LEFT(TEXT($A24,"0"),1)="5",""," "), IF(OR(C24="a",C24="c",C24="d",C24="e"),IF(OR(RIGHT(TEXT($A24,"0"),Quantities!$B$2)="00",LEFT(TEXT($A24,"0"),1)="5"),VLOOKUP($A24,Quantities[],Quantities!$B$2),""), IF(LEFT(TEXT($A24,"0"),1)="5",VLOOKUP($A24,Quantities[],Quantities!$B$2), VLOOKUP(INDEX(Quantities!$A$100:$A$118,MATCH($A24,Quantities!$C$100:$C$118)),Quantities!$A$100:$B$118,Quantities!$B$2)))) -> Reclaimed 1 Tailing Impoundment, Reclaimed 1A Tailing Impoundment, Reclaimed 1X Tailing Impoundment | H24: =IF(LEFT(TEXT(A24,"0"),1)="5", VLOOKUP(VLOOKUP(A24,Quantities!$A$4:$D$118,Quantities!$C$2),Quantities!$A$4:$D$118,Quantities!$C$2), IF(OR(C24="a",C24="c",C24="d",C24="e"), "-", IF(RIGHT(TEXT(A24,"0"),2)="00",VLOOKUP(A24,Quantities[],Quantities!$B$2), IF(C24="f",VLOOKUP(A24,Quantities[],Quantities!$B$2), VLOOKUP(A24,Quantities[],Quantities!$C$2)) ))) -> - | I24: =IF(OR(AND(LEFT(D24,2)="Sc",B24="A",C24="d"),AND(C24="f",B24="D")), SUM(VLOOKUP($A24,Quantities[],Quantities!$O$2),VLOOKUP($A24,Quantities[],Quantities!$Q$2),VLOOKUP($A24,Quantities[],Quantities!$S$2)), IF(AND(LEFT(D24,2)="Sc",OR(C24="a",C24="f")), VLOOKUP(A24,Quantities[],Quantities!$I$2), IF(AND(B24="D",C24="b"), VLOOKUP(INDEX(Quantities!$A$100:$A$118,MATCH($A24,Quantities!$C$100:$C$118)),Quantities!$A$100:$AJ$118,Quantities!$O$2)+ VLOOKUP(INDEX(Quantities!$A$100:$A$118,MATCH($A24,Quantities!$C$100:$C$118)),Quantities!$A$100:$AJ$118,Quantities!$Q$2)+ VLOOKUP(INDEX(Quantities!$A$100:$A$118,MATCH($A24,Quantities!$C$100:$C$118)),Quantities!$A$100:$AJ$118,Quantities!$S$2), IF(OR(B24="D",B24="Q"), SUM(VLOOKUP($A24,Quantities[],Quantities!$O$2),VLOOKUP($A24,Quantities[],Quantities!$Q$2),VLOOKUP($A24,Quantities[],Quantities!$S$2)), VLOOKUP(A24,Quantities[],Quantities!$G$2) )))) -> 0 | J24: =IF(LEFT(D24,2)="Mg", VLOOKUP(A24,Quantities[],Quantities!$H$2), IF(OR(AND(LEFT(D24,2)="Sc",B24="A",C24="d",C24="f")), (SUM(VLOOKUP($A24,Quantities[],Quantities!$P$2)*VLOOKUP($A24,Quantities[],Quantities!$O$2),VLOOKUP($A24,Quantities[],Quantities!$R$2)*VLOOKUP($A24,Quantities[],Quantities!$Q$2),VLOOKUP($A24,Quantities[],Quantities!$T$2)*VLOOKUP($A24,Quantities[],Quantities!$S$2)))/SUM(VLOOKUP($A24,Quantities[],Quantities!$O$2),VLOOKUP($A24,Quantities[],Quantities!$Q$2),VLOOKUP($A24,Quantities[],Quantities!$S$2)), IF(AND(LEFT(D24,2)="Sc",OR(C24="a",C24="f")), VLOOKUP(A24,Quantities[],Quantities!$J$2), IF(AND(B24="D",C24="b", (VLOOKUP(INDEX(Quantities!$A$100:$A$118,MATCH($A24,Quantities!$C$100:$C$118)),Quantities[],Quantities!$O$2)+VLOOKUP(INDEX(Quantities!$A$100:$A$118,MATCH($A24,Quantities!$C$100:$C$118)),Quantities[],Quantities!$Q$2)+VLOOKUP(INDEX(Quantities!$A$100:$A$118,MATCH($A24,Quantities!$C$100:$C$118)),Quantities[],Quantities!$S$2))>0), (VLOOKUP(INDEX(Quantities!$A$100:$A$118,MATCH($A24,Quantities!$C$100:$C$118)),Quantities[],Quantities!$P$2)*VLOOKUP(INDEX(Quantities!$A$100:$A$118,MATCH($A24,Quantities!$C$100:$C$118)),Quantities[],Quantities!$O$2) +VLOOKUP(INDEX(Quantities!$A$100:$A$118,MATCH($A24,Quantities!$C$100:$C$118)),Quantities[],Quantities!$R$2)*VLOOKUP(INDEX(Quantities!$A$100:$A$118,MATCH($A24,Quantities!$C$100:$C$118)),Quantities[],Quantities!$Q$2) +VLOOKUP(INDEX(Quantities!$A$100:$A$118,MATCH($A24,Quantities!$C$100:$C$118)),Quantities[],Quantities!$T$2)*VLOOKUP(INDEX(Quantities!$A$100:$A$118,MATCH($A24,Quantities!$C$100:$C$118)),Quantities[],Quantities!$S$2))/ (VLOOKUP(INDEX(Quantities!$A$100:$A$118,MATCH($A24,Quantities!$C$100:$C$118)),Quantities[],Quantities!$O$2)+VLOOKUP(INDEX(Quantities!$A$100:$A$118,MATCH($A24,Quantities!$C$100:$C$118)),Quantities[],Quantities!$Q$2)+VLOOKUP(A24,Quantities[],Quantities!$S$2)), IF(AND(B24="D", (VLOOKUP(A24,Quantities[],Quantities!$O$2)+VLOOKUP(A24,Quantities[],Quantities!$Q$2)+VLOOKUP(A24,Quantities[],Quantities!$S$2))>0), (VLOOKUP(A24,Quantities[],Quantities!$P$2)*VLOOKUP(A24,Quantities[],Quantities!$O$2) +VLOOKUP(A24,Quantities[],Quantities!$R$2)*VLOOKUP(A24,Quantities[],Quantities!$Q$2) +VLOOKUP(A24,Quantities[],Quantities!$T$2)*VLOOKUP(A24,Quantities[],Quantities!$S$2))/ (VLOOKUP(A24,Quantities[],Quantities!$O$2)+VLOOKUP(A24,Quantities[],Quantities!$Q$2)+VLOOKUP(A24,Quantities[],Quantities!$S$2)), IF($B24="Q", (SUM(VLOOKUP($A24,Quantities[],Quantities!$P$2)*VLOOKUP($A24,Quantities[],Quantities!$O$2),VLOOKUP($A24,Quantities[],Quantities!$R$2)*VLOOKUP($A24,Quantities[],Quantities!$Q$2),VLOOKUP($A24,Quantities[],Quantities!$T$2)*VLOOKUP($A24,Quantities[],Quantities!$S$2)))/SUM(VLOOKUP($A24,Quantities[],Quantities!$O$2),VLOOKUP($A24,Quantities[],Quantities!$Q$2),VLOOKUP($A24,Quantities[],Quantities!$S$2)), VLOOKUP(A24,Quantities[],Quantities!$H$2) )))))) -> - | K24: =IF(LEFT(D24,1)="U","-",VLOOKUP(D24,Equipment[],Equipment!$B$2)) -> -
A25: =Quantities!A91 -> 3411 | B25: M | C25: e | D25: U | E25: 3411-M-e-U | F25: =IF(D25="Comb1",CONCATENATE(VLOOKUP(B25,'Activity-Material_Codes'!$A$2:$B$26,Quantities!$B$2),"-",VLOOKUP(A25,Quantities[],Quantities!$D$2)), CONCATENATE( VLOOKUP(B25,'Activity-Material_Codes'!$A$2:$B$26,Quantities!$B$2), IF(AND(B25="B",C25="a"), " Scraper Grading", ""), IF(C25="b","","-"), IF(C25="b","",VLOOKUP(A25,Quantities[],Quantities!$D$2)), IF(LEFT(TEXT(A25,"0"),1)="5","","-"), IF(LEFT(TEXT(A25,"0"),1)="5","",VLOOKUP(C25,'Activity-Material_Codes'!$A$30:$B$36,Quantities!$B$2)) )) -> Post-Closure O&M-Mangas Valley Tailing Area-Final Grade | G25: =CONCATENATE( IF(OR(RIGHT(TEXT($A25,"0"),Quantities!$B$2)="00",LEFT(TEXT($A25,"0"),1)="5",OR($C25="b",$C25="f")),"",VLOOKUP($A25,Quantities[],Quantities!$B$2)), IF(LEFT(TEXT($A25,"0"),1)="5",""," "), IF(OR(C25="a",C25="c",C25="d",C25="e"),IF(OR(RIGHT(TEXT($A25,"0"),Quantities!$B$2)="00",LEFT(TEXT($A25,"0"),1)="5"),VLOOKUP($A25,Quantities[],Quantities!$B$2),""), IF(LEFT(TEXT($A25,"0"),1)="5",VLOOKUP($A25,Quantities[],Quantities!$B$2), VLOOKUP(INDEX(Quantities!$A$100:$A$118,MATCH($A25,Quantities!$C$100:$C$118)),Quantities!$A$100:$B$118,Quantities!$B$2)))) -> Reclaimed 2 Tailing Impoundment | H25: =IF(LEFT(TEXT(A25,"0"),1)="5", VLOOKUP(VLOOKUP(A25,Quantities!$A$4:$D$118,Quantities!$C$2),Quantities!$A$4:$D$118,Quantities!$C$2), IF(OR(C25="a",C25="c",C25="d",C25="e"), "-", IF(RIGHT(TEXT(A25,"0"),2)="00",VLOOKUP(A25,Quantities[],Quantities!$B$2), IF(C25="f",VLOOKUP(A25,Quantities[],Quantities!$B$2), VLOOKUP(A25,Quantities[],Quantities!$C$2)) ))) -> - | I25: =IF(OR(AND(LEFT(D25,2)="Sc",B25="A",C25="d"),AND(C25="f",B25="D")), SUM(VLOOKUP($A25,Quantities[],Quantities!$O$2),VLOOKUP($A25,Quantities[],Quantities!$Q$2),VLOOKUP($A25,Quantities[],Quantities!$S$2)), IF(AND(LEFT(D25,2)="Sc",OR(C25="a",C25="f")), VLOOKUP(A25,Quantities[],Quantities!$I$2), IF(AND(B25="D",C25="b"), VLOOKUP(INDEX(Quantities!$A$100:$A$118,MATCH($A25,Quantities!$C$100:$C$118)),Quantities!$A$100:$AJ$118,Quantities!$O$2)+ VLOOKUP(INDEX(Quantities!$A$100:$A$118,MATCH($A25,Quantities!$C$100:$C$118)),Quantities!$A$100:$AJ$118,Quantities!$Q$2)+ VLOOKUP(INDEX(Quantities!$A$100:$A$118,MATCH($A25,Quantities!$C$100:$C$118)),Quantities!$A$100:$AJ$118,Quantities!$S$2), IF(OR(B25="D",B25="Q"), SUM(VLOOKUP($A25,Quantities[],Quantities!$O$2),VLOOKUP($A25,Quantities[],Quantities!$Q$2),VLOOKUP($A25,Quantities[],Quantities!$S$2)), VLOOKUP(A25,Quantities[],Quantities!$G$2) )))) -> 0 | J25: =IF(LEFT(D25,2)="Mg", VLOOKUP(A25,Quantities[],Quantities!$H$2), IF(OR(AND(LEFT(D25,2)="Sc",B25="A",C25="d",C25="f")), (SUM(VLOOKUP($A25,Quantities[],Quantities!$P$2)*VLOOKUP($A25,Quantities[],Quantities!$O$2),VLOOKUP($A25,Quantities[],Quantities!$R$2)*VLOOKUP($A25,Quantities[],Quantities!$Q$2),VLOOKUP($A25,Quantities[],Quantities!$T$2)*VLOOKUP($A25,Quantities[],Quantities!$S$2)))/SUM(VLOOKUP($A25,Quantities[],Quantities!$O$2),VLOOKUP($A25,Quantities[],Quantities!$Q$2),VLOOKUP($A25,Quantities[],Quantities!$S$2)), IF(AND(LEFT(D25,2)="Sc",OR(C25="a",C25="f")), VLOOKUP(A25,Quantities[],Quantities!$J$2), IF(AND(B25="D",C25="b", (VLOOKUP(INDEX(Quantities!$A$100:$A$118,MATCH($A25,Quantities!$C$100:$C$118)),Quantities[],Quantities!$O$2)+VLOOKUP(INDEX(Quantities!$A$100:$A$118,MATCH($A25,Quantities!$C$100:$C$118)),Quantities[],Quantities!$Q$2)+VLOOKUP(INDEX(Quantities!$A$100:$A$118,MATCH($A25,Quantities!$C$100:$C$118)),Quantities[],Quantities!$S$2))>0), (VLOOKUP(INDEX(Quantities!$A$100:$A$118,MATCH($A25,Quantities!$C$100:$C$118)),Quantities[],Quantities!$P$2)*VLOOKUP(INDEX(Quantities!$A$100:$A$118,MATCH($A25,Quantities!$C$100:$C$118)),Quantities[],Quantities!$O$2) +VLOOKUP(INDEX(Quantities!$A$100:$A$118,MATCH($A25,Quantities!$C$100:$C$118)),Quantities[],Quantities!$R$2)*VLOOKUP(INDEX(Quantities!$A$100:$A$118,MATCH($A25,Quantities!$C$100:$C$118)),Quantities[],Quantities!$Q$2) +VLOOKUP(INDEX(Quantities!$A$100:$A$118,MATCH($A25,Quantities!$C$100:$C$118)),Quantities[],Quantities!$T$2)*VLOOKUP(INDEX(Quantities!$A$100:$A$118,MATCH($A25,Quantities!$C$100:$C$118)),Quantities[],Quantities!$S$2))/ (VLOOKUP(INDEX(Quantities!$A$100:$A$118,MATCH($A25,Quantities!$C$100:$C$118)),Quantities[],Quantities!$O$2)+VLOOKUP(INDEX(Quantities!$A$100:$A$118,MATCH($A25,Quantities!$C$100:$C$118)),Quantities[],Quantities!$Q$2)+VLOOKUP(A25,Quantities[],Quantities!$S$2)), IF(AND(B25="D", (VLOOKUP(A25,Quantities[],Quantities!$O$2)+VLOOKUP(A25,Quantities[],Quantities!$Q$2)+VLOOKUP(A25,Quantities[],Quantities!$S$2))>0), (VLOOKUP(A25,Quantities[],Quantities!$P$2)*VLOOKUP(A25,Quantities[],Quantities!$O$2) +VLOOKUP(A25,Quantities[],Quantities!$R$2)*VLOOKUP(A25,Quantities[],Quantities!$Q$2) +VLOOKUP(A25,Quantities[],Quantities!$T$2)*VLOOKUP(A25,Quantities[],Quantities!$S$2))/ (VLOOKUP(A25,Quantities[],Quantities!$O$2)+VLOOKUP(A25,Quantities[],Quantities!$Q$2)+VLOOKUP(A25,Quantities[],Quantities!$S$2)), IF($B25="Q", (SUM(VLOOKUP($A25,Quantities[],Quantities!$P$2)*VLOOKUP($A25,Quantities[],Quantities!$O$2),VLOOKUP($A25,Quantities[],Quantities!$R$2)*VLOOKUP($A25,Quantities[],Quantities!$Q$2),VLOOKUP($A25,Quantities[],Quantities!$T$2)*VLOOKUP($A25,Quantities[],Quantities!$S$2)))/SUM(VLOOKUP($A25,Quantities[],Quantities!$O$2),VLOOKUP($A25,Quantities[],Quantities!$Q$2),VLOOKUP($A25,Quantities[],Quantities!$S$2)), VLOOKUP(A25,Quantities[],Quantities!$H$2) )))))) -> - | K25: =IF(LEFT(D25,1)="U","-",VLOOKUP(D25,Equipment[],Equipment!$B$2)) -> -
A26: =Quantities!A92 -> 3412 | B26: M | C26: e | D26: U | E26: 3412-M-e-U | F26: =IF(D26="Comb1",CONCATENATE(VLOOKUP(B26,'Activity-Material_Codes'!$A$2:$B$26,Quantities!$B$2),"-",VLOOKUP(A26,Quantities[],Quantities!$D$2)), CONCATENATE( VLOOKUP(B26,'Activity-Material_Codes'!$A$2:$B$26,Quantities!$B$2), IF(AND(B26="B",C26="a"), " Scraper Grading", ""), IF(C26="b","","-"), IF(C26="b","",VLOOKUP(A26,Quantities[],Quantities!$D$2)), IF(LEFT(TEXT(A26,"0"),1)="5","","-"), IF(LEFT(TEXT(A26,"0"),1)="5","",VLOOKUP(C26,'Activity-Material_Codes'!$A$30:$B$36,Quantities!$B$2)) )) -> Post-Closure O&M-Mangas Valley Tailing Area-Final Grade | G26: =CONCATENATE( IF(OR(RIGHT(TEXT($A26,"0"),Quantities!$B$2)="00",LEFT(TEXT($A26,"0"),1)="5",OR($C26="b",$C26="f")),"",VLOOKUP($A26,Quantities[],Quantities!$B$2)), IF(LEFT(TEXT($A26,"0"),1)="5",""," "), IF(OR(C26="a",C26="c",C26="d",C26="e"),IF(OR(RIGHT(TEXT($A26,"0"),Quantities!$B$2)="00",LEFT(TEXT($A26,"0"),1)="5"),VLOOKUP($A26,Quantities[],Quantities!$B$2),""), IF(LEFT(TEXT($A26,"0"),1)="5",VLOOKUP($A26,Quantities[],Quantities!$B$2), VLOOKUP(INDEX(Quantities!$A$100:$A$118,MATCH($A26,Quantities!$C$100:$C$118)),Quantities!$A$100:$B$118,Quantities!$B$2)))) -> Reclaimed 3X Tailing Impoundment | H26: =IF(LEFT(TEXT(A26,"0"),1)="5", VLOOKUP(VLOOKUP(A26,Quantities!$A$4:$D$118,Quantities!$C$2),Quantities!$A$4:$D$118,Quantities!$C$2), IF(OR(C26="a",C26="c",C26="d",C26="e"), "-", IF(RIGHT(TEXT(A26,"0"),2)="00",VLOOKUP(A26,Quantities[],Quantities!$B$2), IF(C26="f",VLOOKUP(A26,Quantities[],Quantities!$B$2), VLOOKUP(A26,Quantities[],Quantities!$C$2)) ))) -> - | I26: =IF(OR(AND(LEFT(D26,2)="Sc",B26="A",C26="d"),AND(C26="f",B26="D")), SUM(VLOOKUP($A26,Quantities[],Quantities!$O$2),VLOOKUP($A26,Quantities[],Quantities!$Q$2),VLOOKUP($A26,Quantities[],Quantities!$S$2)), IF(AND(LEFT(D26,2)="Sc",OR(C26="a",C26="f")), VLOOKUP(A26,Quantities[],Quantities!$I$2), IF(AND(B26="D",C26="b"), VLOOKUP(INDEX(Quantities!$A$100:$A$118,MATCH($A26,Quantities!$C$100:$C$118)),Quantities!$A$100:$AJ$118,Quantities!$O$2)+ VLOOKUP(INDEX(Quantities!$A$100:$A$118,MATCH($A26,Quantities!$C$100:$C$118)),Quantities!$A$100:$AJ$118,Quantities!$Q$2)+ VLOOKUP(INDEX(Quantities!$A$100:$A$118,MATCH($A26,Quantities!$C$100:$C$118)),Quantities!$A$100:$AJ$118,Quantities!$S$2), IF(OR(B26="D",B26="Q"), SUM(VLOOKUP($A26,Quantities[],Quantities!$O$2),VLOOKUP($A26,Quantities[],Quantities!$Q$2),VLOOKUP($A26,Quantities[],Quantities!$S$2)), VLOOKUP(A26,Quantities[],Quantities!$G$2) )))) -> 0 | J26: =IF(LEFT(D26,2)="Mg", VLOOKUP(A26,Quantities[],Quantities!$H$2), IF(OR(AND(LEFT(D26,2)="Sc",B26="A",C26="d",C26="f")), (SUM(VLOOKUP($A26,Quantities[],Quantities!$P$2)*VLOOKUP($A26,Quantities[],Quantities!$O$2),VLOOKUP($A26,Quantities[],Quantities!$R$2)*VLOOKUP($A26,Quantities[],Quantities!$Q$2),VLOOKUP($A26,Quantities[],Quantities!$T$2)*VLOOKUP($A26,Quantities[],Quantities!$S$2)))/SUM(VLOOKUP($A26,Quantities[],Quantities!$O$2),VLOOKUP($A26,Quantities[],Quantities!$Q$2),VLOOKUP($A26,Quantities[],Quantities!$S$2)), IF(AND(LEFT(D26,2)="Sc",OR(C26="a",C26="f")), VLOOKUP(A26,Quantities[],Quantities!$J$2), IF(AND(B26="D",C26="b", (VLOOKUP(INDEX(Quantities!$A$100:$A$118,MATCH($A26,Quantities!$C$100:$C$118)),Quantities[],Quantities!$O$2)+VLOOKUP(INDEX(Quantities!$A$100:$A$118,MATCH($A26,Quantities!$C$100:$C$118)),Quantities[],Quantities!$Q$2)+VLOOKUP(INDEX(Quantities!$A$100:$A$118,MATCH($A26,Quantities!$C$100:$C$118)),Quantities[],Quantities!$S$2))>0), (VLOOKUP(INDEX(Quantities!$A$100:$A$118,MATCH($A26,Quantities!$C$100:$C$118)),Quantities[],Quantities!$P$2)*VLOOKUP(INDEX(Quantities!$A$100:$A$118,MATCH($A26,Quantities!$C$100:$C$118)),Quantities[],Quantities!$O$2) +VLOOKUP(INDEX(Quantities!$A$100:$A$118,MATCH($A26,Quantities!$C$100:$C$118)),Quantities[],Quantities!$R$2)*VLOOKUP(INDEX(Quantities!$A$100:$A$118,MATCH($A26,Quantities!$C$100:$C$118)),Quantities[],Quantities!$Q$2) +VLOOKUP(INDEX(Quantities!$A$100:$A$118,MATCH($A26,Quantities!$C$100:$C$118)),Quantities[],Quantities!$T$2)*VLOOKUP(INDEX(Quantities!$A$100:$A$118,MATCH($A26,Quantities!$C$100:$C$118)),Quantities[],Quantities!$S$2))/ (VLOOKUP(INDEX(Quantities!$A$100:$A$118,MATCH($A26,Quantities!$C$100:$C$118)),Quantities[],Quantities!$O$2)+VLOOKUP(INDEX(Quantities!$A$100:$A$118,MATCH($A26,Quantities!$C$100:$C$118)),Quantities[],Quantities!$Q$2)+VLOOKUP(A26,Quantities[],Quantities!$S$2)), IF(AND(B26="D", (VLOOKUP(A26,Quantities[],Quantities!$O$2)+VLOOKUP(A26,Quantities[],Quantities!$Q$2)+VLOOKUP(A26,Quantities[],Quantities!$S$2))>0), (VLOOKUP(A26,Quantities[],Quantities!$P$2)*VLOOKUP(A26,Quantities[],Quantities!$O$2) +VLOOKUP(A26,Quantities[],Quantities!$R$2)*VLOOKUP(A26,Quantities[],Quantities!$Q$2) +VLOOKUP(A26,Quantities[],Quantities!$T$2)*VLOOKUP(A26,Quantities[],Quantities!$S$2))/ (VLOOKUP(A26,Quantities[],Quantities!$O$2)+VLOOKUP(A26,Quantities[],Quantities!$Q$2)+VLOOKUP(A26,Quantities[],Quantities!$S$2)), IF($B26="Q", (SUM(VLOOKUP($A26,Quantities[],Quantities!$P$2)*VLOOKUP($A26,Quantities[],Quantities!$O$2),VLOOKUP($A26,Quantities[],Quantities!$R$2)*VLOOKUP($A26,Quantities[],Quantities!$Q$2),VLOOKUP($A26,Quantities[],Quantities!$T$2)*VLOOKUP($A26,Quantities[],Quantities!$S$2)))/SUM(VLOOKUP($A26,Quantities[],Quantities!$O$2),VLOOKUP($A26,Quantities[],Quantities!$Q$2),VLOOKUP($A26,Quantities[],Quantities!$S$2)), VLOOKUP(A26,Quantities[],Quantities!$H$2) )))))) -> - | K26: =IF(LEFT(D26,1)="U","-",VLOOKUP(D26,Equipment[],Equipment!$B$2)) -> -
A27: =Quantities!A93 -> 3413 | B27: M | C27: e | D27: U | E27: 3413-M-e-U | F27: =IF(D27="Comb1",CONCATENATE(VLOOKUP(B27,'Activity-Material_Codes'!$A$2:$B$26,Quantities!$B$2),"-",VLOOKUP(A27,Quantities[],Quantities!$D$2)), CONCATENATE( VLOOKUP(B27,'Activity-Material_Codes'!$A$2:$B$26,Quantities!$B$2), IF(AND(B27="B",C27="a"), " Scraper Grading", ""), IF(C27="b","","-"), IF(C27="b","",VLOOKUP(A27,Quantities[],Quantities!$D$2)), IF(LEFT(TEXT(A27,"0"),1)="5","","-"), IF(LEFT(TEXT(A27,"0"),1)="5","",VLOOKUP(C27,'Activity-Material_Codes'!$A$30:$B$36,Quantities!$B$2)) )) -> Post-Closure O&M-Mangas Valley Tailing Area-Final Grade | G27: =CONCATENATE( IF(OR(RIGHT(TEXT($A27,"0"),Quantities!$B$2)="00",LEFT(TEXT($A27,"0"),1)="5",OR($C27="b",$C27="f")),"",VLOOKUP($A27,Quantities[],Quantities!$B$2)), IF(LEFT(TEXT($A27,"0"),1)="5",""," "), IF(OR(C27="a",C27="c",C27="d",C27="e"),IF(OR(RIGHT(TEXT($A27,"0"),Quantities!$B$2)="00",LEFT(TEXT($A27,"0"),1)="5"),VLOOKUP($A27,Quantities[],Quantities!$B$2),""), IF(LEFT(TEXT($A27,"0"),1)="5",VLOOKUP($A27,Quantities[],Quantities!$B$2), VLOOKUP(INDEX(Quantities!$A$100:$A$118,MATCH($A27,Quantities!$C$100:$C$118)),Quantities!$A$100:$B$118,Quantities!$B$2)))) -> Reclaimed 3 Tailing Impoundment | H27: =IF(LEFT(TEXT(A27,"0"),1)="5", VLOOKUP(VLOOKUP(A27,Quantities!$A$4:$D$118,Quantities!$C$2),Quantities!$A$4:$D$118,Quantities!$C$2), IF(OR(C27="a",C27="c",C27="d",C27="e"), "-", IF(RIGHT(TEXT(A27,"0"),2)="00",VLOOKUP(A27,Quantities[],Quantities!$B$2), IF(C27="f",VLOOKUP(A27,Quantities[],Quantities!$B$2), VLOOKUP(A27,Quantities[],Quantities!$C$2)) ))) -> - | I27: =IF(OR(AND(LEFT(D27,2)="Sc",B27="A",C27="d"),AND(C27="f",B27="D")), SUM(VLOOKUP($A27,Quantities[],Quantities!$O$2),VLOOKUP($A27,Quantities[],Quantities!$Q$2),VLOOKUP($A27,Quantities[],Quantities!$S$2)), IF(AND(LEFT(D27,2)="Sc",OR(C27="a",C27="f")), VLOOKUP(A27,Quantities[],Quantities!$I$2), IF(AND(B27="D",C27="b"), VLOOKUP(INDEX(Quantities!$A$100:$A$118,MATCH($A27,Quantities!$C$100:$C$118)),Quantities!$A$100:$AJ$118,Quantities!$O$2)+ VLOOKUP(INDEX(Quantities!$A$100:$A$118,MATCH($A27,Quantities!$C$100:$C$118)),Quantities!$A$100:$AJ$118,Quantities!$Q$2)+ VLOOKUP(INDEX(Quantities!$A$100:$A$118,MATCH($A27,Quantities!$C$100:$C$118)),Quantities!$A$100:$AJ$118,Quantities!$S$2), IF(OR(B27="D",B27="Q"), SUM(VLOOKUP($A27,Quantities[],Quantities!$O$2),VLOOKUP($A27,Quantities[],Quantities!$Q$2),VLOOKUP($A27,Quantities[],Quantities!$S$2)), VLOOKUP(A27,Quantities[],Quantities!$G$2) )))) -> 0 | J27: =IF(LEFT(D27,2)="Mg", VLOOKUP(A27,Quantities[],Quantities!$H$2), IF(OR(AND(LEFT(D27,2)="Sc",B27="A",C27="d",C27="f")), (SUM(VLOOKUP($A27,Quantities[],Quantities!$P$2)*VLOOKUP($A27,Quantities[],Quantities!$O$2),VLOOKUP($A27,Quantities[],Quantities!$R$2)*VLOOKUP($A27,Quantities[],Quantities!$Q$2),VLOOKUP($A27,Quantities[],Quantities!$T$2)*VLOOKUP($A27,Quantities[],Quantities!$S$2)))/SUM(VLOOKUP($A27,Quantities[],Quantities!$O$2),VLOOKUP($A27,Quantities[],Quantities!$Q$2),VLOOKUP($A27,Quantities[],Quantities!$S$2)), IF(AND(LEFT(D27,2)="Sc",OR(C27="a",C27="f")), VLOOKUP(A27,Quantities[],Quantities!$J$2), IF(AND(B27="D",C27="b", (VLOOKUP(INDEX(Quantities!$A$100:$A$118,MATCH($A27,Quantities!$C$100:$C$118)),Quantities[],Quantities!$O$2)+VLOOKUP(INDEX(Quantities!$A$100:$A$118,MATCH($A27,Quantities!$C$100:$C$118)),Quantities[],Quantities!$Q$2)+VLOOKUP(INDEX(Quantities!$A$100:$A$118,MATCH($A27,Quantities!$C$100:$C$118)),Quantities[],Quantities!$S$2))>0), (VLOOKUP(INDEX(Quantities!$A$100:$A$118,MATCH($A27,Quantities!$C$100:$C$118)),Quantities[],Quantities!$P$2)*VLOOKUP(INDEX(Quantities!$A$100:$A$118,MATCH($A27,Quantities!$C$100:$C$118)),Quantities[],Quantities!$O$2) +VLOOKUP(INDEX(Quantities!$A$100:$A$118,MATCH($A27,Quantities!$C$100:$C$118)),Quantities[],Quantities!$R$2)*VLOOKUP(INDEX(Quantities!$A$100:$A$118,MATCH($A27,Quantities!$C$100:$C$118)),Quantities[],Quantities!$Q$2) +VLOOKUP(INDEX(Quantities!$A$100:$A$118,MATCH($A27,Quantities!$C$100:$C$118)),Quantities[],Quantities!$T$2)*VLOOKUP(INDEX(Quantities!$A$100:$A$118,MATCH($A27,Quantities!$C$100:$C$118)),Quantities[],Quantities!$S$2))/ (VLOOKUP(INDEX(Quantities!$A$100:$A$118,MATCH($A27,Quantities!$C$100:$C$118)),Quantities[],Quantities!$O$2)+VLOOKUP(INDEX(Quantities!$A$100:$A$118,MATCH($A27,Quantities!$C$100:$C$118)),Quantities[],Quantities!$Q$2)+VLOOKUP(A27,Quantities[],Quantities!$S$2)), IF(AND(B27="D", (VLOOKUP(A27,Quantities[],Quantities!$O$2)+VLOOKUP(A27,Quantities[],Quantities!$Q$2)+VLOOKUP(A27,Quantities[],Quantities!$S$2))>0), (VLOOKUP(A27,Quantities[],Quantities!$P$2)*VLOOKUP(A27,Quantities[],Quantities!$O$2) +VLOOKUP(A27,Quantities[],Quantities!$R$2)*VLOOKUP(A27,Quantities[],Quantities!$Q$2) +VLOOKUP(A27,Quantities[],Quantities!$T$2)*VLOOKUP(A27,Quantities[],Quantities!$S$2))/ (VLOOKUP(A27,Quantities[],Quantities!$O$2)+VLOOKUP(A27,Quantities[],Quantities!$Q$2)+VLOOKUP(A27,Quantities[],Quantities!$S$2)), IF($B27="Q", (SUM(VLOOKUP($A27,Quantities[],Quantities!$P$2)*VLOOKUP($A27,Quantities[],Quantities!$O$2),VLOOKUP($A27,Quantities[],Quantities!$R$2)*VLOOKUP($A27,Quantities[],Quantities!$Q$2),VLOOKUP($A27,Quantities[],Quantities!$T$2)*VLOOKUP($A27,Quantities[],Quantities!$S$2)))/SUM(VLOOKUP($A27,Quantities[],Quantities!$O$2),VLOOKUP($A27,Quantities[],Quantities!$Q$2),VLOOKUP($A27,Quantities[],Quantities!$S$2)), VLOOKUP(A27,Quantities[],Quantities!$H$2) )))))) -> - | K27: =IF(LEFT(D27,1)="U","-",VLOOKUP(D27,Equipment[],Equipment!$B$2)) -> -
A28: =Quantities!A94 -> 3414 | B28: M | C28: e | D28: U | E28: 3414-M-e-U | F28: =IF(D28="Comb1",CONCATENATE(VLOOKUP(B28,'Activity-Material_Codes'!$A$2:$B$26,Quantities!$B$2),"-",VLOOKUP(A28,Quantities[],Quantities!$D$2)), CONCATENATE( VLOOKUP(B28,'Activity-Material_Codes'!$A$2:$B$26,Quantities!$B$2), IF(AND(B28="B",C28="a"), " Scraper Grading", ""), IF(C28="b","","-"), IF(C28="b","",VLOOKUP(A28,Quantities[],Quantities!$D$2)), IF(LEFT(TEXT(A28,"0"),1)="5","","-"), IF(LEFT(TEXT(A28,"0"),1)="5","",VLOOKUP(C28,'Activity-Material_Codes'!$A$30:$B$36,Quantities!$B$2)) )) -> Post-Closure O&M-East Mine Area-Final Grade | G28: =CONCATENATE( IF(OR(RIGHT(TEXT($A28,"0"),Quantities!$B$2)="00",LEFT(TEXT($A28,"0"),1)="5",OR($C28="b",$C28="f")),"",VLOOKUP($A28,Quantities[],Quantities!$B$2)), IF(LEFT(TEXT($A28,"0"),1)="5",""," "), IF(OR(C28="a",C28="c",C28="d",C28="e"),IF(OR(RIGHT(TEXT($A28,"0"),Quantities!$B$2)="00",LEFT(TEXT($A28,"0"),1)="5"),VLOOKUP($A28,Quantities[],Quantities!$B$2),""), IF(LEFT(TEXT($A28,"0"),1)="5",VLOOKUP($A28,Quantities[],Quantities!$B$2), VLOOKUP(INDEX(Quantities!$A$100:$A$118,MATCH($A28,Quantities!$C$100:$C$118)),Quantities!$A$100:$B$118,Quantities!$B$2)))) -> Reclaimed Burro Mountain Tailing Impoundment | H28: =IF(LEFT(TEXT(A28,"0"),1)="5", VLOOKUP(VLOOKUP(A28,Quantities!$A$4:$D$118,Quantities!$C$2),Quantities!$A$4:$D$118,Quantities!$C$2), IF(OR(C28="a",C28="c",C28="d",C28="e"), "-", IF(RIGHT(TEXT(A28,"0"),2)="00",VLOOKUP(A28,Quantities[],Quantities!$B$2), IF(C28="f",VLOOKUP(A28,Quantities[],Quantities!$B$2), VLOOKUP(A28,Quantities[],Quantities!$C$2)) ))) -> - | I28: =IF(OR(AND(LEFT(D28,2)="Sc",B28="A",C28="d"),AND(C28="f",B28="D")), SUM(VLOOKUP($A28,Quantities[],Quantities!$O$2),VLOOKUP($A28,Quantities[],Quantities!$Q$2),VLOOKUP($A28,Quantities[],Quantities!$S$2)), IF(AND(LEFT(D28,2)="Sc",OR(C28="a",C28="f")), VLOOKUP(A28,Quantities[],Quantities!$I$2), IF(AND(B28="D",C28="b"), VLOOKUP(INDEX(Quantities!$A$100:$A$118,MATCH($A28,Quantities!$C$100:$C$118)),Quantities!$A$100:$AJ$118,Quantities!$O$2)+ VLOOKUP(INDEX(Quantities!$A$100:$A$118,MATCH($A28,Quantities!$C$100:$C$118)),Quantities!$A$100:$AJ$118,Quantities!$Q$2)+ VLOOKUP(INDEX(Quantities!$A$100:$A$118,MATCH($A28,Quantities!$C$100:$C$118)),Quantities!$A$100:$AJ$118,Quantities!$S$2), IF(OR(B28="D",B28="Q"), SUM(VLOOKUP($A28,Quantities[],Quantities!$O$2),VLOOKUP($A28,Quantities[],Quantities!$Q$2),VLOOKUP($A28,Quantities[],Quantities!$S$2)), VLOOKUP(A28,Quantities[],Quantities!$G$2) )))) -> 0 | J28: =IF(LEFT(D28,2)="Mg", VLOOKUP(A28,Quantities[],Quantities!$H$2), IF(OR(AND(LEFT(D28,2)="Sc",B28="A",C28="d",C28="f")), (SUM(VLOOKUP($A28,Quantities[],Quantities!$P$2)*VLOOKUP($A28,Quantities[],Quantities!$O$2),VLOOKUP($A28,Quantities[],Quantities!$R$2)*VLOOKUP($A28,Quantities[],Quantities!$Q$2),VLOOKUP($A28,Quantities[],Quantities!$T$2)*VLOOKUP($A28,Quantities[],Quantities!$S$2)))/SUM(VLOOKUP($A28,Quantities[],Quantities!$O$2),VLOOKUP($A28,Quantities[],Quantities!$Q$2),VLOOKUP($A28,Quantities[],Quantities!$S$2)), IF(AND(LEFT(D28,2)="Sc",OR(C28="a",C28="f")), VLOOKUP(A28,Quantities[],Quantities!$J$2), IF(AND(B28="D",C28="b", (VLOOKUP(INDEX(Quantities!$A$100:$A$118,MATCH($A28,Quantities!$C$100:$C$118)),Quantities[],Quantities!$O$2)+VLOOKUP(INDEX(Quantities!$A$100:$A$118,MATCH($A28,Quantities!$C$100:$C$118)),Quantities[],Quantities!$Q$2)+VLOOKUP(INDEX(Quantities!$A$100:$A$118,MATCH($A28,Quantities!$C$100:$C$118)),Quantities[],Quantities!$S$2))>0), (VLOOKUP(INDEX(Quantities!$A$100:$A$118,MATCH($A28,Quantities!$C$100:$C$118)),Quantities[],Quantities!$P$2)*VLOOKUP(INDEX(Quantities!$A$100:$A$118,MATCH($A28,Quantities!$C$100:$C$118)),Quantities[],Quantities!$O$2) +VLOOKUP(INDEX(Quantities!$A$100:$A$118,MATCH($A28,Quantities!$C$100:$C$118)),Quantities[],Quantities!$R$2)*VLOOKUP(INDEX(Quantities!$A$100:$A$118,MATCH($A28,Quantities!$C$100:$C$118)),Quantities[],Quantities!$Q$2) +VLOOKUP(INDEX(Quantities!$A$100:$A$118,MATCH($A28,Quantities!$C$100:$C$118)),Quantities[],Quantities!$T$2)*VLOOKUP(INDEX(Quantities!$A$100:$A$118,MATCH($A28,Quantities!$C$100:$C$118)),Quantities[],Quantities!$S$2))/ (VLOOKUP(INDEX(Quantities!$A$100:$A$118,MATCH($A28,Quantities!$C$100:$C$118)),Quantities[],Quantities!$O$2)+VLOOKUP(INDEX(Quantities!$A$100:$A$118,MATCH($A28,Quantities!$C$100:$C$118)),Quantities[],Quantities!$Q$2)+VLOOKUP(A28,Quantities[],Quantities!$S$2)), IF(AND(B28="D", (VLOOKUP(A28,Quantities[],Quantities!$O$2)+VLOOKUP(A28,Quantities[],Quantities!$Q$2)+VLOOKUP(A28,Quantities[],Quantities!$S$2))>0), (VLOOKUP(A28,Quantities[],Quantities!$P$2)*VLOOKUP(A28,Quantities[],Quantities!$O$2) +VLOOKUP(A28,Quantities[],Quantities!$R$2)*VLOOKUP(A28,Quantities[],Quantities!$Q$2) +VLOOKUP(A28,Quantities[],Quantities!$T$2)*VLOOKUP(A28,Quantities[],Quantities!$S$2))/ (VLOOKUP(A28,Quantities[],Quantities!$O$2)+VLOOKUP(A28,Quantities[],Quantities!$Q$2)+VLOOKUP(A28,Quantities[],Quantities!$S$2)), IF($B28="Q", (SUM(VLOOKUP($A28,Quantities[],Quantities!$P$2)*VLOOKUP($A28,Quantities[],Quantities!$O$2),VLOOKUP($A28,Quantities[],Quantities!$R$2)*VLOOKUP($A28,Quantities[],Quantities!$Q$2),VLOOKUP($A28,Quantities[],Quantities!$T$2)*VLOOKUP($A28,Quantities[],Quantities!$S$2)))/SUM(VLOOKUP($A28,Quantities[],Quantities!$O$2),VLOOKUP($A28,Quantities[],Quantities!$Q$2),VLOOKUP($A28,Quantities[],Quantities!$S$2)), VLOOKUP(A28,Quantities[],Quantities!$H$2) )))))) -> - | K28: =IF(LEFT(D28,1)="U","-",VLOOKUP(D28,Equipment[],Equipment!$B$2)) -> -
A29: =Quantities!A95 -> 3415 | B29: M | C29: e | D29: U | E29: 3415-M-e-U | F29: =IF(D29="Comb1",CONCATENATE(VLOOKUP(B29,'Activity-Material_Codes'!$A$2:$B$26,Quantities!$B$2),"-",VLOOKUP(A29,Quantities[],Quantities!$D$2)), CONCATENATE( VLOOKUP(B29,'Activity-Material_Codes'!$A$2:$B$26,Quantities!$B$2), IF(AND(B29="B",C29="a"), " Scraper Grading", ""), IF(C29="b","","-"), IF(C29="b","",VLOOKUP(A29,Quantities[],Quantities!$D$2)), IF(LEFT(TEXT(A29,"0"),1)="5","","-"), IF(LEFT(TEXT(A29,"0"),1)="5","",VLOOKUP(C29,'Activity-Material_Codes'!$A$30:$B$36,Quantities!$B$2)) )) -> Post-Closure O&M-East Mine Area-Final Grade | G29: =CONCATENATE( IF(OR(RIGHT(TEXT($A29,"0"),Quantities!$B$2)="00",LEFT(TEXT($A29,"0"),1)="5",OR($C29="b",$C29="f")),"",VLOOKUP($A29,Quantities[],Quantities!$B$2)), IF(LEFT(TEXT($A29,"0"),1)="5",""," "), IF(OR(C29="a",C29="c",C29="d",C29="e"),IF(OR(RIGHT(TEXT($A29,"0"),Quantities!$B$2)="00",LEFT(TEXT($A29,"0"),1)="5"),VLOOKUP($A29,Quantities[],Quantities!$B$2),""), IF(LEFT(TEXT($A29,"0"),1)="5",VLOOKUP($A29,Quantities[],Quantities!$B$2), VLOOKUP(INDEX(Quantities!$A$100:$A$118,MATCH($A29,Quantities!$C$100:$C$118)),Quantities!$A$100:$B$118,Quantities!$B$2)))) -> Reclaimed Burro Mountain Tailing Impoundment | H29: =IF(LEFT(TEXT(A29,"0"),1)="5", VLOOKUP(VLOOKUP(A29,Quantities!$A$4:$D$118,Quantities!$C$2),Quantities!$A$4:$D$118,Quantities!$C$2), IF(OR(C29="a",C29="c",C29="d",C29="e"), "-", IF(RIGHT(TEXT(A29,"0"),2)="00",VLOOKUP(A29,Quantities[],Quantities!$B$2), IF(C29="f",VLOOKUP(A29,Quantities[],Quantities!$B$2), VLOOKUP(A29,Quantities[],Quantities!$C$2)) ))) -> - | I29: =IF(OR(AND(LEFT(D29,2)="Sc",B29="A",C29="d"),AND(C29="f",B29="D")), SUM(VLOOKUP($A29,Quantities[],Quantities!$O$2),VLOOKUP($A29,Quantities[],Quantities!$Q$2),VLOOKUP($A29,Quantities[],Quantities!$S$2)), IF(AND(LEFT(D29,2)="Sc",OR(C29="a",C29="f")), VLOOKUP(A29,Quantities[],Quantities!$I$2), IF(AND(B29="D",C29="b"), VLOOKUP(INDEX(Quantities!$A$100:$A$118,MATCH($A29,Quantities!$C$100:$C$118)),Quantities!$A$100:$AJ$118,Quantities!$O$2)+ VLOOKUP(INDEX(Quantities!$A$100:$A$118,MATCH($A29,Quantities!$C$100:$C$118)),Quantities!$A$100:$AJ$118,Quantities!$Q$2)+ VLOOKUP(INDEX(Quantities!$A$100:$A$118,MATCH($A29,Quantities!$C$100:$C$118)),Quantities!$A$100:$AJ$118,Quantities!$S$2), IF(OR(B29="D",B29="Q"), SUM(VLOOKUP($A29,Quantities[],Quantities!$O$2),VLOOKUP($A29,Quantities[],Quantities!$Q$2),VLOOKUP($A29,Quantities[],Quantities!$S$2)), VLOOKUP(A29,Quantities[],Quantities!$G$2) )))) -> 0 | J29: =IF(LEFT(D29,2)="Mg", VLOOKUP(A29,Quantities[],Quantities!$H$2), IF(OR(AND(LEFT(D29,2)="Sc",B29="A",C29="d",C29="f")), (SUM(VLOOKUP($A29,Quantities[],Quantities!$P$2)*VLOOKUP($A29,Quantities[],Quantities!$O$2),VLOOKUP($A29,Quantities[],Quantities!$R$2)*VLOOKUP($A29,Quantities[],Quantities!$Q$2),VLOOKUP($A29,Quantities[],Quantities!$T$2)*VLOOKUP($A29,Quantities[],Quantities!$S$2)))/SUM(VLOOKUP($A29,Quantities[],Quantities!$O$2),VLOOKUP($A29,Quantities[],Quantities!$Q$2),VLOOKUP($A29,Quantities[],Quantities!$S$2)), IF(AND(LEFT(D29,2)="Sc",OR(C29="a",C29="f")), VLOOKUP(A29,Quantities[],Quantities!$J$2), IF(AND(B29="D",C29="b", (VLOOKUP(INDEX(Quantities!$A$100:$A$118,MATCH($A29,Quantities!$C$100:$C$118)),Quantities[],Quantities!$O$2)+VLOOKUP(INDEX(Quantities!$A$100:$A$118,MATCH($A29,Quantities!$C$100:$C$118)),Quantities[],Quantities!$Q$2)+VLOOKUP(INDEX(Quantities!$A$100:$A$118,MATCH($A29,Quantities!$C$100:$C$118)),Quantities[],Quantities!$S$2))>0), (VLOOKUP(INDEX(Quantities!$A$100:$A$118,MATCH($A29,Quantities!$C$100:$C$118)),Quantities[],Quantities!$P$2)*VLOOKUP(INDEX(Quantities!$A$100:$A$118,MATCH($A29,Quantities!$C$100:$C$118)),Quantities[],Quantities!$O$2) +VLOOKUP(INDEX(Quantities!$A$100:$A$118,MATCH($A29,Quantities!$C$100:$C$118)),Quantities[],Quantities!$R$2)*VLOOKUP(INDEX(Quantities!$A$100:$A$118,MATCH($A29,Quantities!$C$100:$C$118)),Quantities[],Quantities!$Q$2) +VLOOKUP(INDEX(Quantities!$A$100:$A$118,MATCH($A29,Quantities!$C$100:$C$118)),Quantities[],Quantities!$T$2)*VLOOKUP(INDEX(Quantities!$A$100:$A$118,MATCH($A29,Quantities!$C$100:$C$118)),Quantities[],Quantities!$S$2))/ (VLOOKUP(INDEX(Quantities!$A$100:$A$118,MATCH($A29,Quantities!$C$100:$C$118)),Quantities[],Quantities!$O$2)+VLOOKUP(INDEX(Quantities!$A$100:$A$118,MATCH($A29,Quantities!$C$100:$C$118)),Quantities[],Quantities!$Q$2)+VLOOKUP(A29,Quantities[],Quantities!$S$2)), IF(AND(B29="D", (VLOOKUP(A29,Quantities[],Quantities!$O$2)+VLOOKUP(A29,Quantities[],Quantities!$Q$2)+VLOOKUP(A29,Quantities[],Quantities!$S$2))>0), (VLOOKUP(A29,Quantities[],Quantities!$P$2)*VLOOKUP(A29,Quantities[],Quantities!$O$2) +VLOOKUP(A29,Quantities[],Quantities!$R$2)*VLOOKUP(A29,Quantities[],Quantities!$Q$2) +VLOOKUP(A29,Quantities[],Quantities!$T$2)*VLOOKUP(A29,Quantities[],Quantities!$S$2))/ (VLOOKUP(A29,Quantities[],Quantities!$O$2)+VLOOKUP(A29,Quantities[],Quantities!$Q$2)+VLOOKUP(A29,Quantities[],Quantities!$S$2)), IF($B29="Q", (SUM(VLOOKUP($A29,Quantities[],Quantities!$P$2)*VLOOKUP($A29,Quantities[],Quantities!$O$2),VLOOKUP($A29,Quantities[],Quantities!$R$2)*VLOOKUP($A29,Quantities[],Quantities!$Q$2),VLOOKUP($A29,Quantities[],Quantities!$T$2)*VLOOKUP($A29,Quantities[],Quantities!$S$2)))/SUM(VLOOKUP($A29,Quantities[],Quantities!$O$2),VLOOKUP($A29,Quantities[],Quantities!$Q$2),VLOOKUP($A29,Quantities[],Quantities!$S$2)), VLOOKUP(A29,Quantities[],Quantities!$H$2) )))))) -> - | K29: =IF(LEFT(D29,1)="U","-",VLOOKUP(D29,Equipment[],Equipment!$B$2)) -> -
A30: =Quantities!A96 -> 3416 | B30: M | C30: e | D30: U | E30: 3416-M-e-U | F30: =IF(D30="Comb1",CONCATENATE(VLOOKUP(B30,'Activity-Material_Codes'!$A$2:$B$26,Quantities!$B$2),"-",VLOOKUP(A30,Quantities[],Quantities!$D$2)), CONCATENATE( VLOOKUP(B30,'Activity-Material_Codes'!$A$2:$B$26,Quantities!$B$2), IF(AND(B30="B",C30="a"), " Scraper Grading", ""), IF(C30="b","","-"), IF(C30="b","",VLOOKUP(A30,Quantities[],Quantities!$D$2)), IF(LEFT(TEXT(A30,"0"),1)="5","","-"), IF(LEFT(TEXT(A30,"0"),1)="5","",VLOOKUP(C30,'Activity-Material_Codes'!$A$30:$B$36,Quantities!$B$2)) )) -> Post-Closure O&M-East Mine Area-Final Grade | G30: =CONCATENATE( IF(OR(RIGHT(TEXT($A30,"0"),Quantities!$B$2)="00",LEFT(TEXT($A30,"0"),1)="5",OR($C30="b",$C30="f")),"",VLOOKUP($A30,Quantities[],Quantities!$B$2)), IF(LEFT(TEXT($A30,"0"),1)="5",""," "), IF(OR(C30="a",C30="c",C30="d",C30="e"),IF(OR(RIGHT(TEXT($A30,"0"),Quantities!$B$2)="00",LEFT(TEXT($A30,"0"),1)="5"),VLOOKUP($A30,Quantities[],Quantities!$B$2),""), IF(LEFT(TEXT($A30,"0"),1)="5",VLOOKUP($A30,Quantities[],Quantities!$B$2), VLOOKUP(INDEX(Quantities!$A$100:$A$118,MATCH($A30,Quantities!$C$100:$C$118)),Quantities!$A$100:$B$118,Quantities!$B$2)))) -> Reclaimed 1 Leach | H30: =IF(LEFT(TEXT(A30,"0"),1)="5", VLOOKUP(VLOOKUP(A30,Quantities!$A$4:$D$118,Quantities!$C$2),Quantities!$A$4:$D$118,Quantities!$C$2), IF(OR(C30="a",C30="c",C30="d",C30="e"), "-", IF(RIGHT(TEXT(A30,"0"),2)="00",VLOOKUP(A30,Quantities[],Quantities!$B$2), IF(C30="f",VLOOKUP(A30,Quantities[],Quantities!$B$2), VLOOKUP(A30,Quantities[],Quantities!$C$2)) ))) -> - | I30: =IF(OR(AND(LEFT(D30,2)="Sc",B30="A",C30="d"),AND(C30="f",B30="D")), SUM(VLOOKUP($A30,Quantities[],Quantities!$O$2),VLOOKUP($A30,Quantities[],Quantities!$Q$2),VLOOKUP($A30,Quantities[],Quantities!$S$2)), IF(AND(LEFT(D30,2)="Sc",OR(C30="a",C30="f")), VLOOKUP(A30,Quantities[],Quantities!$I$2), IF(AND(B30="D",C30="b"), VLOOKUP(INDEX(Quantities!$A$100:$A$118,MATCH($A30,Quantities!$C$100:$C$118)),Quantities!$A$100:$AJ$118,Quantities!$O$2)+ VLOOKUP(INDEX(Quantities!$A$100:$A$118,MATCH($A30,Quantities!$C$100:$C$118)),Quantities!$A$100:$AJ$118,Quantities!$Q$2)+ VLOOKUP(INDEX(Quantities!$A$100:$A$118,MATCH($A30,Quantities!$C$100:$C$118)),Quantities!$A$100:$AJ$118,Quantities!$S$2), IF(OR(B30="D",B30="Q"), SUM(VLOOKUP($A30,Quantities[],Quantities!$O$2),VLOOKUP($A30,Quantities[],Quantities!$Q$2),VLOOKUP($A30,Quantities[],Quantities!$S$2)), VLOOKUP(A30,Quantities[],Quantities!$G$2) )))) -> 0 | J30: =IF(LEFT(D30,2)="Mg", VLOOKUP(A30,Quantities[],Quantities!$H$2), IF(OR(AND(LEFT(D30,2)="Sc",B30="A",C30="d",C30="f")), (SUM(VLOOKUP($A30,Quantities[],Quantities!$P$2)*VLOOKUP($A30,Quantities[],Quantities!$O$2),VLOOKUP($A30,Quantities[],Quantities!$R$2)*VLOOKUP($A30,Quantities[],Quantities!$Q$2),VLOOKUP($A30,Quantities[],Quantities!$T$2)*VLOOKUP($A30,Quantities[],Quantities!$S$2)))/SUM(VLOOKUP($A30,Quantities[],Quantities!$O$2),VLOOKUP($A30,Quantities[],Quantities!$Q$2),VLOOKUP($A30,Quantities[],Quantities!$S$2)), IF(AND(LEFT(D30,2)="Sc",OR(C30="a",C30="f")), VLOOKUP(A30,Quantities[],Quantities!$J$2), IF(AND(B30="D",C30="b", (VLOOKUP(INDEX(Quantities!$A$100:$A$118,MATCH($A30,Quantities!$C$100:$C$118)),Quantities[],Quantities!$O$2)+VLOOKUP(INDEX(Quantities!$A$100:$A$118,MATCH($A30,Quantities!$C$100:$C$118)),Quantities[],Quantities!$Q$2)+VLOOKUP(INDEX(Quantities!$A$100:$A$118,MATCH($A30,Quantities!$C$100:$C$118)),Quantities[],Quantities!$S$2))>0), (VLOOKUP(INDEX(Quantities!$A$100:$A$118,MATCH($A30,Quantities!$C$100:$C$118)),Quantities[],Quantities!$P$2)*VLOOKUP(INDEX(Quantities!$A$100:$A$118,MATCH($A30,Quantities!$C$100:$C$118)),Quantities[],Quantities!$O$2) +VLOOKUP(INDEX(Quantities!$A$100:$A$118,MATCH($A30,Quantities!$C$100:$C$118)),Quantities[],Quantities!$R$2)*VLOOKUP(INDEX(Quantities!$A$100:$A$118,MATCH($A30,Quantities!$C$100:$C$118)),Quantities[],Quantities!$Q$2) +VLOOKUP(INDEX(Quantities!$A$100:$A$118,MATCH($A30,Quantities!$C$100:$C$118)),Quantities[],Quantities!$T$2)*VLOOKUP(INDEX(Quantities!$A$100:$A$118,MATCH($A30,Quantities!$C$100:$C$118)),Quantities[],Quantities!$S$2))/ (VLOOKUP(INDEX(Quantities!$A$100:$A$118,MATCH($A30,Quantities!$C$100:$C$118)),Quantities[],Quantities!$O$2)+VLOOKUP(INDEX(Quantities!$A$100:$A$118,MATCH($A30,Quantities!$C$100:$C$118)),Quantities[],Quantities!$Q$2)+VLOOKUP(A30,Quantities[],Quantities!$S$2)), IF(AND(B30="D", (VLOOKUP(A30,Quantities[],Quantities!$O$2)+VLOOKUP(A30,Quantities[],Quantities!$Q$2)+VLOOKUP(A30,Quantities[],Quantities!$S$2))>0), (VLOOKUP(A30,Quantities[],Quantities!$P$2)*VLOOKUP(A30,Quantities[],Quantities!$O$2) +VLOOKUP(A30,Quantities[],Quantities!$R$2)*VLOOKUP(A30,Quantities[],Quantities!$Q$2) +VLOOKUP(A30,Quantities[],Quantities!$T$2)*VLOOKUP(A30,Quantities[],Quantities!$S$2))/ (VLOOKUP(A30,Quantities[],Quantities!$O$2)+VLOOKUP(A30,Quantities[],Quantities!$Q$2)+VLOOKUP(A30,Quantities[],Quantities!$S$2)), IF($B30="Q", (SUM(VLOOKUP($A30,Quantities[],Quantities!$P$2)*VLOOKUP($A30,Quantities[],Quantities!$O$2),VLOOKUP($A30,Quantities[],Quantities!$R$2)*VLOOKUP($A30,Quantities[],Quantities!$Q$2),VLOOKUP($A30,Quantities[],Quantities!$T$2)*VLOOKUP($A30,Quantities[],Quantities!$S$2)))/SUM(VLOOKUP($A30,Quantities[],Quantities!$O$2),VLOOKUP($A30,Quantities[],Quantities!$Q$2),VLOOKUP($A30,Quantities[],Quantities!$S$2)), VLOOKUP(A30,Quantities[],Quantities!$H$2) )))))) -> - | K30: =IF(LEFT(D30,1)="U","-",VLOOKUP(D30,Equipment[],Equipment!$B$2)) -> -
A31: =Quantities!A97 -> 3417 | B31: M | C31: e | D31: U | E31: 3417-M-e-U | F31: =IF(D31="Comb1",CONCATENATE(VLOOKUP(B31,'Activity-Material_Codes'!$A$2:$B$26,Quantities!$B$2),"-",VLOOKUP(A31,Quantities[],Quantities!$D$2)), CONCATENATE( VLOOKUP(B31,'Activity-Material_Codes'!$A$2:$B$26,Quantities!$B$2), IF(AND(B31="B",C31="a"), " Scraper Grading", ""), IF(C31="b","","-"), IF(C31="b","",VLOOKUP(A31,Quantities[],Quantities!$D$2)), IF(LEFT(TEXT(A31,"0"),1)="5","","-"), IF(LEFT(TEXT(A31,"0"),1)="5","",VLOOKUP(C31,'Activity-Material_Codes'!$A$30:$B$36,Quantities!$B$2)) )) -> Post-Closure O&M-Mining Area-Final Grade | G31: =CONCATENATE( IF(OR(RIGHT(TEXT($A31,"0"),Quantities!$B$2)="00",LEFT(TEXT($A31,"0"),1)="5",OR($C31="b",$C31="f")),"",VLOOKUP($A31,Quantities[],Quantities!$B$2)), IF(LEFT(TEXT($A31,"0"),1)="5",""," "), IF(OR(C31="a",C31="c",C31="d",C31="e"),IF(OR(RIGHT(TEXT($A31,"0"),Quantities!$B$2)="00",LEFT(TEXT($A31,"0"),1)="5"),VLOOKUP($A31,Quantities[],Quantities!$B$2),""), IF(LEFT(TEXT($A31,"0"),1)="5",VLOOKUP($A31,Quantities[],Quantities!$B$2), VLOOKUP(INDEX(Quantities!$A$100:$A$118,MATCH($A31,Quantities!$C$100:$C$118)),Quantities!$A$100:$B$118,Quantities!$B$2)))) -> Reclaimed Former Mill & Concentrator Area Initial | H31: =IF(LEFT(TEXT(A31,"0"),1)="5", VLOOKUP(VLOOKUP(A31,Quantities!$A$4:$D$118,Quantities!$C$2),Quantities!$A$4:$D$118,Quantities!$C$2), IF(OR(C31="a",C31="c",C31="d",C31="e"), "-", IF(RIGHT(TEXT(A31,"0"),2)="00",VLOOKUP(A31,Quantities[],Quantities!$B$2), IF(C31="f",VLOOKUP(A31,Quantities[],Quantities!$B$2), VLOOKUP(A31,Quantities[],Quantities!$C$2)) ))) -> - | I31: =IF(OR(AND(LEFT(D31,2)="Sc",B31="A",C31="d"),AND(C31="f",B31="D")), SUM(VLOOKUP($A31,Quantities[],Quantities!$O$2),VLOOKUP($A31,Quantities[],Quantities!$Q$2),VLOOKUP($A31,Quantities[],Quantities!$S$2)), IF(AND(LEFT(D31,2)="Sc",OR(C31="a",C31="f")), VLOOKUP(A31,Quantities[],Quantities!$I$2), IF(AND(B31="D",C31="b"), VLOOKUP(INDEX(Quantities!$A$100:$A$118,MATCH($A31,Quantities!$C$100:$C$118)),Quantities!$A$100:$AJ$118,Quantities!$O$2)+ VLOOKUP(INDEX(Quantities!$A$100:$A$118,MATCH($A31,Quantities!$C$100:$C$118)),Quantities!$A$100:$AJ$118,Quantities!$Q$2)+ VLOOKUP(INDEX(Quantities!$A$100:$A$118,MATCH($A31,Quantities!$C$100:$C$118)),Quantities!$A$100:$AJ$118,Quantities!$S$2), IF(OR(B31="D",B31="Q"), SUM(VLOOKUP($A31,Quantities[],Quantities!$O$2),VLOOKUP($A31,Quantities[],Quantities!$Q$2),VLOOKUP($A31,Quantities[],Quantities!$S$2)), VLOOKUP(A31,Quantities[],Quantities!$G$2) )))) -> 0 | J31: =IF(LEFT(D31,2)="Mg", VLOOKUP(A31,Quantities[],Quantities!$H$2), IF(OR(AND(LEFT(D31,2)="Sc",B31="A",C31="d",C31="f")), (SUM(VLOOKUP($A31,Quantities[],Quantities!$P$2)*VLOOKUP($A31,Quantities[],Quantities!$O$2),VLOOKUP($A31,Quantities[],Quantities!$R$2)*VLOOKUP($A31,Quantities[],Quantities!$Q$2),VLOOKUP($A31,Quantities[],Quantities!$T$2)*VLOOKUP($A31,Quantities[],Quantities!$S$2)))/SUM(VLOOKUP($A31,Quantities[],Quantities!$O$2),VLOOKUP($A31,Quantities[],Quantities!$Q$2),VLOOKUP($A31,Quantities[],Quantities!$S$2)), IF(AND(LEFT(D31,2)="Sc",OR(C31="a",C31="f")), VLOOKUP(A31,Quantities[],Quantities!$J$2), IF(AND(B31="D",C31="b", (VLOOKUP(INDEX(Quantities!$A$100:$A$118,MATCH($A31,Quantities!$C$100:$C$118)),Quantities[],Quantities!$O$2)+VLOOKUP(INDEX(Quantities!$A$100:$A$118,MATCH($A31,Quantities!$C$100:$C$118)),Quantities[],Quantities!$Q$2)+VLOOKUP(INDEX(Quantities!$A$100:$A$118,MATCH($A31,Quantities!$C$100:$C$118)),Quantities[],Quantities!$S$2))>0), (VLOOKUP(INDEX(Quantities!$A$100:$A$118,MATCH($A31,Quantities!$C$100:$C$118)),Quantities[],Quantities!$P$2)*VLOOKUP(INDEX(Quantities!$A$100:$A$118,MATCH($A31,Quantities!$C$100:$C$118)),Quantities[],Quantities!$O$2) +VLOOKUP(INDEX(Quantities!$A$100:$A$118,MATCH($A31,Quantities!$C$100:$C$118)),Quantities[],Quantities!$R$2)*VLOOKUP(INDEX(Quantities!$A$100:$A$118,MATCH($A31,Quantities!$C$100:$C$118)),Quantities[],Quantities!$Q$2) +VLOOKUP(INDEX(Quantities!$A$100:$A$118,MATCH($A31,Quantities!$C$100:$C$118)),Quantities[],Quantities!$T$2)*VLOOKUP(INDEX(Quantities!$A$100:$A$118,MATCH($A31,Quantities!$C$100:$C$118)),Quantities[],Quantities!$S$2))/ (VLOOKUP(INDEX(Quantities!$A$100:$A$118,MATCH($A31,Quantities!$C$100:$C$118)),Quantities[],Quantities!$O$2)+VLOOKUP(INDEX(Quantities!$A$100:$A$118,MATCH($A31,Quantities!$C$100:$C$118)),Quantities[],Quantities!$Q$2)+VLOOKUP(A31,Quantities[],Quantities!$S$2)), IF(AND(B31="D", (VLOOKUP(A31,Quantities[],Quantities!$O$2)+VLOOKUP(A31,Quantities[],Quantities!$Q$2)+VLOOKUP(A31,Quantities[],Quantities!$S$2))>0), (VLOOKUP(A31,Quantities[],Quantities!$P$2)*VLOOKUP(A31,Quantities[],Quantities!$O$2) +VLOOKUP(A31,Quantities[],Quantities!$R$2)*VLOOKUP(A31,Quantities[],Quantities!$Q$2) +VLOOKUP(A31,Quantities[],Quantities!$T$2)*VLOOKUP(A31,Quantities[],Quantities!$S$2))/ (VLOOKUP(A31,Quantities[],Quantities!$O$2)+VLOOKUP(A31,Quantities[],Quantities!$Q$2)+VLOOKUP(A31,Quantities[],Quantities!$S$2)), IF($B31="Q", (SUM(VLOOKUP($A31,Quantities[],Quantities!$P$2)*VLOOKUP($A31,Quantities[],Quantities!$O$2),VLOOKUP($A31,Quantities[],Quantities!$R$2)*VLOOKUP($A31,Quantities[],Quantities!$Q$2),VLOOKUP($A31,Quantities[],Quantities!$T$2)*VLOOKUP($A31,Quantities[],Quantities!$S$2)))/SUM(VLOOKUP($A31,Quantities[],Quantities!$O$2),VLOOKUP($A31,Quantities[],Quantities!$Q$2),VLOOKUP($A31,Quantities[],Quantities!$S$2)), VLOOKUP(A31,Quantities[],Quantities!$H$2) )))))) -> - | K31: =IF(LEFT(D31,1)="U","-",VLOOKUP(D31,Equipment[],Equipment!$B$2)) -> -
A32: =Quantities!A98 -> 3418 | B32: M | C32: e | D32: U | E32: 3418-M-e-U | F32: =IF(D32="Comb1",CONCATENATE(VLOOKUP(B32,'Activity-Material_Codes'!$A$2:$B$26,Quantities!$B$2),"-",VLOOKUP(A32,Quantities[],Quantities!$D$2)), CONCATENATE( VLOOKUP(B32,'Activity-Material_Codes'!$A$2:$B$26,Quantities!$B$2), IF(AND(B32="B",C32="a"), " Scraper Grading", ""), IF(C32="b","","-"), IF(C32="b","",VLOOKUP(A32,Quantities[],Quantities!$D$2)), IF(LEFT(TEXT(A32,"0"),1)="5","","-"), IF(LEFT(TEXT(A32,"0"),1)="5","",VLOOKUP(C32,'Activity-Material_Codes'!$A$30:$B$36,Quantities!$B$2)) )) -> Post-Closure O&M-Mining Area-Final Grade | G32: =CONCATENATE( IF(OR(RIGHT(TEXT($A32,"0"),Quantities!$B$2)="00",LEFT(TEXT($A32,"0"),1)="5",OR($C32="b",$C32="f")),"",VLOOKUP($A32,Quantities[],Quantities!$B$2)), IF(LEFT(TEXT($A32,"0"),1)="5",""," "), IF(OR(C32="a",C32="c",C32="d",C32="e"),IF(OR(RIGHT(TEXT($A32,"0"),Quantities!$B$2)="00",LEFT(TEXT($A32,"0"),1)="5"),VLOOKUP($A32,Quantities[],Quantities!$B$2),""), IF(LEFT(TEXT($A32,"0"),1)="5",VLOOKUP($A32,Quantities[],Quantities!$B$2), VLOOKUP(INDEX(Quantities!$A$100:$A$118,MATCH($A32,Quantities!$C$100:$C$118)),Quantities!$A$100:$B$118,Quantities!$B$2)))) -> Reclaimed Former Mill & Concentrator Area (11 redo) | H32: =IF(LEFT(TEXT(A32,"0"),1)="5", VLOOKUP(VLOOKUP(A32,Quantities!$A$4:$D$118,Quantities!$C$2),Quantities!$A$4:$D$118,Quantities!$C$2), IF(OR(C32="a",C32="c",C32="d",C32="e"), "-", IF(RIGHT(TEXT(A32,"0"),2)="00",VLOOKUP(A32,Quantities[],Quantities!$B$2), IF(C32="f",VLOOKUP(A32,Quantities[],Quantities!$B$2), VLOOKUP(A32,Quantities[],Quantities!$C$2)) ))) -> - | I32: =IF(OR(AND(LEFT(D32,2)="Sc",B32="A",C32="d"),AND(C32="f",B32="D")), SUM(VLOOKUP($A32,Quantities[],Quantities!$O$2),VLOOKUP($A32,Quantities[],Quantities!$Q$2),VLOOKUP($A32,Quantities[],Quantities!$S$2)), IF(AND(LEFT(D32,2)="Sc",OR(C32="a",C32="f")), VLOOKUP(A32,Quantities[],Quantities!$I$2), IF(AND(B32="D",C32="b"), VLOOKUP(INDEX(Quantities!$A$100:$A$118,MATCH($A32,Quantities!$C$100:$C$118)),Quantities!$A$100:$AJ$118,Quantities!$O$2)+ VLOOKUP(INDEX(Quantities!$A$100:$A$118,MATCH($A32,Quantities!$C$100:$C$118)),Quantities!$A$100:$AJ$118,Quantities!$Q$2)+ VLOOKUP(INDEX(Quantities!$A$100:$A$118,MATCH($A32,Quantities!$C$100:$C$118)),Quantities!$A$100:$AJ$118,Quantities!$S$2), IF(OR(B32="D",B32="Q"), SUM(VLOOKUP($A32,Quantities[],Quantities!$O$2),VLOOKUP($A32,Quantities[],Quantities!$Q$2),VLOOKUP($A32,Quantities[],Quantities!$S$2)), VLOOKUP(A32,Quantities[],Quantities!$G$2) )))) -> 0 | J32: =IF(LEFT(D32,2)="Mg", VLOOKUP(A32,Quantities[],Quantities!$H$2), IF(OR(AND(LEFT(D32,2)="Sc",B32="A",C32="d",C32="f")), (SUM(VLOOKUP($A32,Quantities[],Quantities!$P$2)*VLOOKUP($A32,Quantities[],Quantities!$O$2),VLOOKUP($A32,Quantities[],Quantities!$R$2)*VLOOKUP($A32,Quantities[],Quantities!$Q$2),VLOOKUP($A32,Quantities[],Quantities!$T$2)*VLOOKUP($A32,Quantities[],Quantities!$S$2)))/SUM(VLOOKUP($A32,Quantities[],Quantities!$O$2),VLOOKUP($A32,Quantities[],Quantities!$Q$2),VLOOKUP($A32,Quantities[],Quantities!$S$2)), IF(AND(LEFT(D32,2)="Sc",OR(C32="a",C32="f")), VLOOKUP(A32,Quantities[],Quantities!$J$2), IF(AND(B32="D",C32="b", (VLOOKUP(INDEX(Quantities!$A$100:$A$118,MATCH($A32,Quantities!$C$100:$C$118)),Quantities[],Quantities!$O$2)+VLOOKUP(INDEX(Quantities!$A$100:$A$118,MATCH($A32,Quantities!$C$100:$C$118)),Quantities[],Quantities!$Q$2)+VLOOKUP(INDEX(Quantities!$A$100:$A$118,MATCH($A32,Quantities!$C$100:$C$118)),Quantities[],Quantities!$S$2))>0), (VLOOKUP(INDEX(Quantities!$A$100:$A$118,MATCH($A32,Quantities!$C$100:$C$118)),Quantities[],Quantities!$P$2)*VLOOKUP(INDEX(Quantities!$A$100:$A$118,MATCH($A32,Quantities!$C$100:$C$118)),Quantities[],Quantities!$O$2) +VLOOKUP(INDEX(Quantities!$A$100:$A$118,MATCH($A32,Quantities!$C$100:$C$118)),Quantities[],Quantities!$R$2)*VLOOKUP(INDEX(Quantities!$A$100:$A$118,MATCH($A32,Quantities!$C$100:$C$118)),Quantities[],Quantities!$Q$2) +VLOOKUP(INDEX(Quantities!$A$100:$A$118,MATCH($A32,Quantities!$C$100:$C$118)),Quantities[],Quantities!$T$2)*VLOOKUP(INDEX(Quantities!$A$100:$A$118,MATCH($A32,Quantities!$C$100:$C$118)),Quantities[],Quantities!$S$2))/ (VLOOKUP(INDEX(Quantities!$A$100:$A$118,MATCH($A32,Quantities!$C$100:$C$118)),Quantities[],Quantities!$O$2)+VLOOKUP(INDEX(Quantities!$A$100:$A$118,MATCH($A32,Quantities!$C$100:$C$118)),Quantities[],Quantities!$Q$2)+VLOOKUP(A32,Quantities[],Quantities!$S$2)), IF(AND(B32="D", (VLOOKUP(A32,Quantities[],Quantities!$O$2)+VLOOKUP(A32,Quantities[],Quantities!$Q$2)+VLOOKUP(A32,Quantities[],Quantities!$S$2))>0), (VLOOKUP(A32,Quantities[],Quantities!$P$2)*VLOOKUP(A32,Quantities[],Quantities!$O$2) +VLOOKUP(A32,Quantities[],Quantities!$R$2)*VLOOKUP(A32,Quantities[],Quantities!$Q$2) +VLOOKUP(A32,Quantities[],Quantities!$T$2)*VLOOKUP(A32,Quantities[],Quantities!$S$2))/ (VLOOKUP(A32,Quantities[],Quantities!$O$2)+VLOOKUP(A32,Quantities[],Quantities!$Q$2)+VLOOKUP(A32,Quantities[],Quantities!$S$2)), IF($B32="Q", (SUM(VLOOKUP($A32,Quantities[],Quantities!$P$2)*VLOOKUP($A32,Quantities[],Quantities!$O$2),VLOOKUP($A32,Quantities[],Quantities!$R$2)*VLOOKUP($A32,Quantities[],Quantities!$Q$2),VLOOKUP($A32,Quantities[],Quantities!$T$2)*VLOOKUP($A32,Quantities[],Quantities!$S$2)))/SUM(VLOOKUP($A32,Quantities[],Quantities!$O$2),VLOOKUP($A32,Quantities[],Quantities!$Q$2),VLOOKUP($A32,Quantities[],Quantities!$S$2)), VLOOKUP(A32,Quantities[],Quantities!$H$2) )))))) -> - | K32: =IF(LEFT(D32,1)="U","-",VLOOKUP(D32,Equipment[],Equipment!$B$2)) -> -
A33: =Quantities!A99 -> 3419 | B33: M | C33: e | D33: U | E33: 3419-M-e-U | F33: =IF(D33="Comb1",CONCATENATE(VLOOKUP(B33,'Activity-Material_Codes'!$A$2:$B$26,Quantities!$B$2),"-",VLOOKUP(A33,Quantities[],Quantities!$D$2)), CONCATENATE( VLOOKUP(B33,'Activity-Material_Codes'!$A$2:$B$26,Quantities!$B$2), IF(AND(B33="B",C33="a"), " Scraper Grading", ""), IF(C33="b","","-"), IF(C33="b","",VLOOKUP(A33,Quantities[],Quantities!$D$2)), IF(LEFT(TEXT(A33,"0"),1)="5","","-"), IF(LEFT(TEXT(A33,"0"),1)="5","",VLOOKUP(C33,'Activity-Material_Codes'!$A$30:$B$36,Quantities!$B$2)) )) -> Post-Closure O&M-Mining Area-Final Grade | G33: =CONCATENATE( IF(OR(RIGHT(TEXT($A33,"0"),Quantities!$B$2)="00",LEFT(TEXT($A33,"0"),1)="5",OR($C33="b",$C33="f")),"",VLOOKUP($A33,Quantities[],Quantities!$B$2)), IF(LEFT(TEXT($A33,"0"),1)="5",""," "), IF(OR(C33="a",C33="c",C33="d",C33="e"),IF(OR(RIGHT(TEXT($A33,"0"),Quantities!$B$2)="00",LEFT(TEXT($A33,"0"),1)="5"),VLOOKUP($A33,Quantities[],Quantities!$B$2),""), IF(LEFT(TEXT($A33,"0"),1)="5",VLOOKUP($A33,Quantities[],Quantities!$B$2), VLOOKUP(INDEX(Quantities!$A$100:$A$118,MATCH($A33,Quantities!$C$100:$C$118)),Quantities!$A$100:$B$118,Quantities!$B$2)))) -> Copper Mt. Reclamation Area | H33: =IF(LEFT(TEXT(A33,"0"),1)="5", VLOOKUP(VLOOKUP(A33,Quantities!$A$4:$D$118,Quantities!$C$2),Quantities!$A$4:$D$118,Quantities!$C$2), IF(OR(C33="a",C33="c",C33="d",C33="e"), "-", IF(RIGHT(TEXT(A33,"0"),2)="00",VLOOKUP(A33,Quantities[],Quantities!$B$2), IF(C33="f",VLOOKUP(A33,Quantities[],Quantities!$B$2), VLOOKUP(A33,Quantities[],Quantities!$C$2)) ))) -> - | I33: =IF(OR(AND(LEFT(D33,2)="Sc",B33="A",C33="d"),AND(C33="f",B33="D")), SUM(VLOOKUP($A33,Quantities[],Quantities!$O$2),VLOOKUP($A33,Quantities[],Quantities!$Q$2),VLOOKUP($A33,Quantities[],Quantities!$S$2)), IF(AND(LEFT(D33,2)="Sc",OR(C33="a",C33="f")), VLOOKUP(A33,Quantities[],Quantities!$I$2), IF(AND(B33="D",C33="b"), VLOOKUP(INDEX(Quantities!$A$100:$A$118,MATCH($A33,Quantities!$C$100:$C$118)),Quantities!$A$100:$AJ$118,Quantities!$O$2)+ VLOOKUP(INDEX(Quantities!$A$100:$A$118,MATCH($A33,Quantities!$C$100:$C$118)),Quantities!$A$100:$AJ$118,Quantities!$Q$2)+ VLOOKUP(INDEX(Quantities!$A$100:$A$118,MATCH($A33,Quantities!$C$100:$C$118)),Quantities!$A$100:$AJ$118,Quantities!$S$2), IF(OR(B33="D",B33="Q"), SUM(VLOOKUP($A33,Quantities[],Quantities!$O$2),VLOOKUP($A33,Quantities[],Quantities!$Q$2),VLOOKUP($A33,Quantities[],Quantities!$S$2)), VLOOKUP(A33,Quantities[],Quantities!$G$2) )))) -> 0 | J33: =IF(LEFT(D33,2)="Mg", VLOOKUP(A33,Quantities[],Quantities!$H$2), IF(OR(AND(LEFT(D33,2)="Sc",B33="A",C33="d",C33="f")), (SUM(VLOOKUP($A33,Quantities[],Quantities!$P$2)*VLOOKUP($A33,Quantities[],Quantities!$O$2),VLOOKUP($A33,Quantities[],Quantities!$R$2)*VLOOKUP($A33,Quantities[],Quantities!$Q$2),VLOOKUP($A33,Quantities[],Quantities!$T$2)*VLOOKUP($A33,Quantities[],Quantities!$S$2)))/SUM(VLOOKUP($A33,Quantities[],Quantities!$O$2),VLOOKUP($A33,Quantities[],Quantities!$Q$2),VLOOKUP($A33,Quantities[],Quantities!$S$2)), IF(AND(LEFT(D33,2)="Sc",OR(C33="a",C33="f")), VLOOKUP(A33,Quantities[],Quantities!$J$2), IF(AND(B33="D",C33="b", (VLOOKUP(INDEX(Quantities!$A$100:$A$118,MATCH($A33,Quantities!$C$100:$C$118)),Quantities[],Quantities!$O$2)+VLOOKUP(INDEX(Quantities!$A$100:$A$118,MATCH($A33,Quantities!$C$100:$C$118)),Quantities[],Quantities!$Q$2)+VLOOKUP(INDEX(Quantities!$A$100:$A$118,MATCH($A33,Quantities!$C$100:$C$118)),Quantities[],Quantities!$S$2))>0), (VLOOKUP(INDEX(Quantities!$A$100:$A$118,MATCH($A33,Quantities!$C$100:$C$118)),Quantities[],Quantities!$P$2)*VLOOKUP(INDEX(Quantities!$A$100:$A$118,MATCH($A33,Quantities!$C$100:$C$118)),Quantities[],Quantities!$O$2) +VLOOKUP(INDEX(Quantities!$A$100:$A$118,MATCH($A33,Quantities!$C$100:$C$118)),Quantities[],Quantities!$R$2)*VLOOKUP(INDEX(Quantities!$A$100:$A$118,MATCH($A33,Quantities!$C$100:$C$118)),Quantities[],Quantities!$Q$2) +VLOOKUP(INDEX(Quantities!$A$100:$A$118,MATCH($A33,Quantities!$C$100:$C$118)),Quantities[],Quantities!$T$2)*VLOOKUP(INDEX(Quantities!$A$100:$A$118,MATCH($A33,Quantities!$C$100:$C$118)),Quantities[],Quantities!$S$2))/ (VLOOKUP(INDEX(Quantities!$A$100:$A$118,MATCH($A33,Quantities!$C$100:$C$118)),Quantities[],Quantities!$O$2)+VLOOKUP(INDEX(Quantities!$A$100:$A$118,MATCH($A33,Quantities!$C$100:$C$118)),Quantities[],Quantities!$Q$2)+VLOOKUP(A33,Quantities[],Quantities!$S$2)), IF(AND(B33="D", (VLOOKUP(A33,Quantities[],Quantities!$O$2)+VLOOKUP(A33,Quantities[],Quantities!$Q$2)+VLOOKUP(A33,Quantities[],Quantities!$S$2))>0), (VLOOKUP(A33,Quantities[],Quantities!$P$2)*VLOOKUP(A33,Quantities[],Quantities!$O$2) +VLOOKUP(A33,Quantities[],Quantities!$R$2)*VLOOKUP(A33,Quantities[],Quantities!$Q$2) +VLOOKUP(A33,Quantities[],Quantities!$T$2)*VLOOKUP(A33,Quantities[],Quantities!$S$2))/ (VLOOKUP(A33,Quantities[],Quantities!$O$2)+VLOOKUP(A33,Quantities[],Quantities!$Q$2)+VLOOKUP(A33,Quantities[],Quantities!$S$2)), IF($B33="Q", (SUM(VLOOKUP($A33,Quantities[],Quantities!$P$2)*VLOOKUP($A33,Quantities[],Quantities!$O$2),VLOOKUP($A33,Quantities[],Quantities!$R$2)*VLOOKUP($A33,Quantities[],Quantities!$Q$2),VLOOKUP($A33,Quantities[],Quantities!$T$2)*VLOOKUP($A33,Quantities[],Quantities!$S$2)))/SUM(VLOOKUP($A33,Quantities[],Quantities!$O$2),VLOOKUP($A33,Quantities[],Quantities!$Q$2),VLOOKUP($A33,Quantities[],Quantities!$S$2)), VLOOKUP(A33,Quantities[],Quantities!$H$2) )))))) -> - | K33: =IF(LEFT(D33,1)="U","-",VLOOKUP(D33,Equipment[],Equipment!$B$2)) -> -
A34: =Quantities!$A$7 -> 1003 | B34: A | C34: a | D34: Dz2 | E34: 1003-A-a-Dz2 | F34: =IF(D34="Comb1",CONCATENATE(VLOOKUP(B34,'Activity-Material_Codes'!$A$2:$B$26,Quantities!$B$2),"-",VLOOKUP(A34,Quantities[],Quantities!$D$2)), CONCATENATE( VLOOKUP(B34,'Activity-Material_Codes'!$A$2:$B$26,Quantities!$B$2), IF(AND(B34="B",C34="a"), " Scraper Grading", ""), IF(C34="b","","-"), IF(C34="b","",VLOOKUP(A34,Quantities[],Quantities!$D$2)), IF(LEFT(TEXT(A34,"0"),1)="5","","-"), IF(LEFT(TEXT(A34,"0"),1)="5","",VLOOKUP(C34,'Activity-Material_Codes'!$A$30:$B$36,Quantities!$B$2)) )) -> Grade-Outslopes - Area outside of pullback-Existing Ground | G34: =CONCATENATE( IF(OR(RIGHT(TEXT($A34,"0"),Quantities!$B$2)="00",LEFT(TEXT($A34,"0"),1)="5",OR($C34="b",$C34="f")),"",VLOOKUP($A34,Quantities[],Quantities!$B$2)), IF(LEFT(TEXT($A34,"0"),1)="5",""," "), IF(OR(C34="a",C34="c",C34="d",C34="e"),IF(OR(RIGHT(TEXT($A34,"0"),Quantities!$B$2)="00",LEFT(TEXT($A34,"0"),1)="5"),VLOOKUP($A34,Quantities[],Quantities!$B$2),""), IF(LEFT(TEXT($A34,"0"),1)="5",VLOOKUP($A34,Quantities[],Quantities!$B$2), VLOOKUP(INDEX(Quantities!$A$100:$A$118,MATCH($A34,Quantities!$C$100:$C$118)),Quantities!$A$100:$B$118,Quantities!$B$2)))) -> 1A Leach, 1B Leach | H34: =IF(LEFT(TEXT(A34,"0"),1)="5", VLOOKUP(VLOOKUP(A34,Quantities!$A$4:$D$118,Quantities!$C$2),Quantities!$A$4:$D$118,Quantities!$C$2), IF(OR(C34="a",C34="c",C34="d",C34="e"), "-", IF(RIGHT(TEXT(A34,"0"),2)="00",VLOOKUP(A34,Quantities[],Quantities!$B$2), IF(C34="f",VLOOKUP(A34,Quantities[],Quantities!$B$2), VLOOKUP(A34,Quantities[],Quantities!$C$2)) ))) -> - | I34: =IF(OR(AND(LEFT(D34,2)="Sc",B34="A",C34="d"),AND(C34="f",B34="D")), SUM(VLOOKUP($A34,Quantities[],Quantities!$O$2),VLOOKUP($A34,Quantities[],Quantities!$Q$2),VLOOKUP($A34,Quantities[],Quantities!$S$2)), IF(AND(LEFT(D34,2)="Sc",OR(C34="a",C34="f")), VLOOKUP(A34,Quantities[],Quantities!$I$2), IF(AND(B34="D",C34="b"), VLOOKUP(INDEX(Quantities!$A$100:$A$118,MATCH($A34,Quantities!$C$100:$C$118)),Quantities!$A$100:$AJ$118,Quantities!$O$2)+ VLOOKUP(INDEX(Quantities!$A$100:$A$118,MATCH($A34,Quantities!$C$100:$C$118)),Quantities!$A$100:$AJ$118,Quantities!$Q$2)+ VLOOKUP(INDEX(Quantities!$A$100:$A$118,MATCH($A34,Quantities!$C$100:$C$118)),Quantities!$A$100:$AJ$118,Quantities!$S$2), IF(OR(B34="D",B34="Q"), SUM(VLOOKUP($A34,Quantities[],Quantities!$O$2),VLOOKUP($A34,Quantities[],Quantities!$Q$2),VLOOKUP($A34,Quantities[],Quantities!$S$2)), VLOOKUP(A34,Quantities[],Quantities!$G$2) )))) -> 250 | J34: =IF(LEFT(D34,2)="Mg", VLOOKUP(A34,Quantities[],Quantities!$H$2), IF(OR(AND(LEFT(D34,2)="Sc",B34="A",C34="d",C34="f")), (SUM(VLOOKUP($A34,Quantities[],Quantities!$P$2)*VLOOKUP($A34,Quantities[],Quantities!$O$2),VLOOKUP($A34,Quantities[],Quantities!$R$2)*VLOOKUP($A34,Quantities[],Quantities!$Q$2),VLOOKUP($A34,Quantities[],Quantities!$T$2)*VLOOKUP($A34,Quantities[],Quantities!$S$2)))/SUM(VLOOKUP($A34,Quantities[],Quantities!$O$2),VLOOKUP($A34,Quantities[],Quantities!$Q$2),VLOOKUP($A34,Quantities[],Quantities!$S$2)), IF(AND(LEFT(D34,2)="Sc",OR(C34="a",C34="f")), VLOOKUP(A34,Quantities[],Quantities!$J$2), IF(AND(B34="D",C34="b", (VLOOKUP(INDEX(Quantities!$A$100:$A$118,MATCH($A34,Quantities!$C$100:$C$118)),Quantities[],Quantities!$O$2)+VLOOKUP(INDEX(Quantities!$A$100:$A$118,MATCH($A34,Quantities!$C$100:$C$118)),Quantities[],Quantities!$Q$2)+VLOOKUP(INDEX(Quantities!$A$100:$A$118,MATCH($A34,Quantities!$C$100:$C$118)),Quantities[],Quantities!$S$2))>0), (VLOOKUP(INDEX(Quantities!$A$100:$A$118,MATCH($A34,Quantities!$C$100:$C$118)),Quantities[],Quantities!$P$2)*VLOOKUP(INDEX(Quantities!$A$100:$A$118,MATCH($A34,Quantities!$C$100:$C$118)),Quantities[],Quantities!$O$2) +VLOOKUP(INDEX(Quantities!$A$100:$A$118,MATCH($A34,Quantities!$C$100:$C$118)),Quantities[],Quantities!$R$2)*VLOOKUP(INDEX(Quantities!$A$100:$A$118,MATCH($A34,Quantities!$C$100:$C$118)),Quantities[],Quantities!$Q$2) +VLOOKUP(INDEX(Quantities!$A$100:$A$118,MATCH($A34,Quantities!$C$100:$C$118)),Quantities[],Quantities!$T$2)*VLOOKUP(INDEX(Quantities!$A$100:$A$118,MATCH($A34,Quantities!$C$100:$C$118)),Quantities[],Quantities!$S$2))/ (VLOOKUP(INDEX(Quantities!$A$100:$A$118,MATCH($A34,Quantities!$C$100:$C$118)),Quantities[],Quantities!$O$2)+VLOOKUP(INDEX(Quantities!$A$100:$A$118,MATCH($A34,Quantities!$C$100:$C$118)),Quantities[],Quantities!$Q$2)+VLOOKUP(A34,Quantities[],Quantities!$S$2)), IF(AND(B34="D", (VLOOKUP(A34,Quantities[],Quantities!$O$2)+VLOOKUP(A34,Quantities[],Quantities!$Q$2)+VLOOKUP(A34,Quantities[],Quantities!$S$2))>0), (VLOOKUP(A34,Quantities[],Quantities!$P$2)*VLOOKUP(A34,Quantities[],Quantities!$O$2) +VLOOKUP(A34,Quantities[],Quantities!$R$2)*VLOOKUP(A34,Quantities[],Quantities!$Q$2) +VLOOKUP(A34,Quantities[],Quantities!$T$2)*VLOOKUP(A34,Quantities[],Quantities!$S$2))/ (VLOOKUP(A34,Quantities[],Quantities!$O$2)+VLOOKUP(A34,Quantities[],Quantities!$Q$2)+VLOOKUP(A34,Quantities[],Quantities!$S$2)), IF($B34="Q", (SUM(VLOOKUP($A34,Quantities[],Quantities!$P$2)*VLOOKUP($A34,Quantities[],Quantities!$O$2),VLOOKUP($A34,Quantities[],Quantities!$R$2)*VLOOKUP($A34,Quantities[],Quantities!$Q$2),VLOOKUP($A34,Quantities[],Quantities!$T$2)*VLOOKUP($A34,Quantities[],Quantities!$S$2)))/SUM(VLOOKUP($A34,Quantities[],Quantities!$O$2),VLOOKUP($A34,Quantities[],Quantities!$Q$2),VLOOKUP($A34,Quantities[],Quantities!$S$2)), VLOOKUP(A34,Quantities[],Quantities!$H$2) )))))) -> -0.29 | K34: =IF(LEFT(D34,1)="U","-",VLOOKUP(D34,Equipment[],Equipment!$B$2)) -> Cat D11T CD
A35: =Quantities!$A$6 -> 1002 | B35: A | C35: a | D35: Dz2 | E35: 1002-A-a-Dz2 | F35: =IF(D35="Comb1",CONCATENATE(VLOOKUP(B35,'Activity-Material_Codes'!$A$2:$B$26,Quantities!$B$2),"-",VLOOKUP(A35,Quantities[],Quantities!$D$2)), CONCATENATE( VLOOKUP(B35,'Activity-Material_Codes'!$A$2:$B$26,Quantities!$B$2), IF(AND(B35="B",C35="a"), " Scraper Grading", ""), IF(C35="b","","-"), IF(C35="b","",VLOOKUP(A35,Quantities[],Quantities!$D$2)), IF(LEFT(TEXT(A35,"0"),1)="5","","-"), IF(LEFT(TEXT(A35,"0"),1)="5","",VLOOKUP(C35,'Activity-Material_Codes'!$A$30:$B$36,Quantities!$B$2)) )) -> Grade-Outslopes - Regrade benches from pullback-Existing Ground | G35: =CONCATENATE( IF(OR(RIGHT(TEXT($A35,"0"),Quantities!$B$2)="00",LEFT(TEXT($A35,"0"),1)="5",OR($C35="b",$C35="f")),"",VLOOKUP($A35,Quantities[],Quantities!$B$2)), IF(LEFT(TEXT($A35,"0"),1)="5",""," "), IF(OR(C35="a",C35="c",C35="d",C35="e"),IF(OR(RIGHT(TEXT($A35,"0"),Quantities!$B$2)="00",LEFT(TEXT($A35,"0"),1)="5"),VLOOKUP($A35,Quantities[],Quantities!$B$2),""), IF(LEFT(TEXT($A35,"0"),1)="5",VLOOKUP($A35,Quantities[],Quantities!$B$2), VLOOKUP(INDEX(Quantities!$A$100:$A$118,MATCH($A35,Quantities!$C$100:$C$118)),Quantities!$A$100:$B$118,Quantities!$B$2)))) -> 1A Leach, 1B Leach | H35: =IF(LEFT(TEXT(A35,"0"),1)="5", VLOOKUP(VLOOKUP(A35,Quantities!$A$4:$D$118,Quantities!$C$2),Quantities!$A$4:$D$118,Quantities!$C$2), IF(OR(C35="a",C35="c",C35="d",C35="e"), "-", IF(RIGHT(TEXT(A35,"0"),2)="00",VLOOKUP(A35,Quantities[],Quantities!$B$2), IF(C35="f",VLOOKUP(A35,Quantities[],Quantities!$B$2), VLOOKUP(A35,Quantities[],Quantities!$C$2)) ))) -> - | I35: =IF(OR(AND(LEFT(D35,2)="Sc",B35="A",C35="d"),AND(C35="f",B35="D")), SUM(VLOOKUP($A35,Quantities[],Quantities!$O$2),VLOOKUP($A35,Quantities[],Quantities!$Q$2),VLOOKUP($A35,Quantities[],Quantities!$S$2)), IF(AND(LEFT(D35,2)="Sc",OR(C35="a",C35="f")), VLOOKUP(A35,Quantities[],Quantities!$I$2), IF(AND(B35="D",C35="b"), VLOOKUP(INDEX(Quantities!$A$100:$A$118,MATCH($A35,Quantities!$C$100:$C$118)),Quantities!$A$100:$AJ$118,Quantities!$O$2)+ VLOOKUP(INDEX(Quantities!$A$100:$A$118,MATCH($A35,Quantities!$C$100:$C$118)),Quantities!$A$100:$AJ$118,Quantities!$Q$2)+ VLOOKUP(INDEX(Quantities!$A$100:$A$118,MATCH($A35,Quantities!$C$100:$C$118)),Quantities!$A$100:$AJ$118,Quantities!$S$2), IF(OR(B35="D",B35="Q"), SUM(VLOOKUP($A35,Quantities[],Quantities!$O$2),VLOOKUP($A35,Quantities[],Quantities!$Q$2),VLOOKUP($A35,Quantities[],Quantities!$S$2)), VLOOKUP(A35,Quantities[],Quantities!$G$2) )))) -> 90 | J35: =IF(LEFT(D35,2)="Mg", VLOOKUP(A35,Quantities[],Quantities!$H$2), IF(OR(AND(LEFT(D35,2)="Sc",B35="A",C35="d",C35="f")), (SUM(VLOOKUP($A35,Quantities[],Quantities!$P$2)*VLOOKUP($A35,Quantities[],Quantities!$O$2),VLOOKUP($A35,Quantities[],Quantities!$R$2)*VLOOKUP($A35,Quantities[],Quantities!$Q$2),VLOOKUP($A35,Quantities[],Quantities!$T$2)*VLOOKUP($A35,Quantities[],Quantities!$S$2)))/SUM(VLOOKUP($A35,Quantities[],Quantities!$O$2),VLOOKUP($A35,Quantities[],Quantities!$Q$2),VLOOKUP($A35,Quantities[],Quantities!$S$2)), IF(AND(LEFT(D35,2)="Sc",OR(C35="a",C35="f")), VLOOKUP(A35,Quantities[],Quantities!$J$2), IF(AND(B35="D",C35="b", (VLOOKUP(INDEX(Quantities!$A$100:$A$118,MATCH($A35,Quantities!$C$100:$C$118)),Quantities[],Quantities!$O$2)+VLOOKUP(INDEX(Quantities!$A$100:$A$118,MATCH($A35,Quantities!$C$100:$C$118)),Quantities[],Quantities!$Q$2)+VLOOKUP(INDEX(Quantities!$A$100:$A$118,MATCH($A35,Quantities!$C$100:$C$118)),Quantities[],Quantities!$S$2))>0), (VLOOKUP(INDEX(Quantities!$A$100:$A$118,MATCH($A35,Quantities!$C$100:$C$118)),Quantities[],Quantities!$P$2)*VLOOKUP(INDEX(Quantities!$A$100:$A$118,MATCH($A35,Quantities!$C$100:$C$118)),Quantities[],Quantities!$O$2) +VLOOKUP(INDEX(Quantities!$A$100:$A$118,MATCH($A35,Quantities!$C$100:$C$118)),Quantities[],Quantities!$R$2)*VLOOKUP(INDEX(Quantities!$A$100:$A$118,MATCH($A35,Quantities!$C$100:$C$118)),Quantities[],Quantities!$Q$2) +VLOOKUP(INDEX(Quantities!$A$100:$A$118,MATCH($A35,Quantities!$C$100:$C$118)),Quantities[],Quantities!$T$2)*VLOOKUP(INDEX(Quantities!$A$100:$A$118,MATCH($A35,Quantities!$C$100:$C$118)),Quantities[],Quantities!$S$2))/ (VLOOKUP(INDEX(Quantities!$A$100:$A$118,MATCH($A35,Quantities!$C$100:$C$118)),Quantities[],Quantities!$O$2)+VLOOKUP(INDEX(Quantities!$A$100:$A$118,MATCH($A35,Quantities!$C$100:$C$118)),Quantities[],Quantities!$Q$2)+VLOOKUP(A35,Quantities[],Quantities!$S$2)), IF(AND(B35="D", (VLOOKUP(A35,Quantities[],Quantities!$O$2)+VLOOKUP(A35,Quantities[],Quantities!$Q$2)+VLOOKUP(A35,Quantities[],Quantities!$S$2))>0), (VLOOKUP(A35,Quantities[],Quantities!$P$2)*VLOOKUP(A35,Quantities[],Quantities!$O$2) +VLOOKUP(A35,Quantities[],Quantities!$R$2)*VLOOKUP(A35,Quantities[],Quantities!$Q$2) +VLOOKUP(A35,Quantities[],Quantities!$T$2)*VLOOKUP(A35,Quantities[],Quantities!$S$2))/ (VLOOKUP(A35,Quantities[],Quantities!$O$2)+VLOOKUP(A35,Quantities[],Quantities!$Q$2)+VLOOKUP(A35,Quantities[],Quantities!$S$2)), IF($B35="Q", (SUM(VLOOKUP($A35,Quantities[],Quantities!$P$2)*VLOOKUP($A35,Quantities[],Quantities!$O$2),VLOOKUP($A35,Quantities[],Quantities!$R$2)*VLOOKUP($A35,Quantities[],Quantities!$Q$2),VLOOKUP($A35,Quantities[],Quantities!$T$2)*VLOOKUP($A35,Quantities[],Quantities!$S$2)))/SUM(VLOOKUP($A35,Quantities[],Quantities!$O$2),VLOOKUP($A35,Quantities[],Quantities!$Q$2),VLOOKUP($A35,Quantities[],Quantities!$S$2)), VLOOKUP(A35,Quantities[],Quantities!$H$2) )))))) -> -0.29 | K35: =IF(LEFT(D35,1)="U","-",VLOOKUP(D35,Equipment[],Equipment!$B$2)) -> Cat D11T CD
A36: =Quantities!$A$11 -> 1202 | B36: A | C36: a | D36: Dz2 | E36: 1202-A-a-Dz2 | F36: =IF(D36="Comb1",CONCATENATE(VLOOKUP(B36,'Activity-Material_Codes'!$A$2:$B$26,Quantities!$B$2),"-",VLOOKUP(A36,Quantities[],Quantities!$D$2)), CONCATENATE( VLOOKUP(B36,'Activity-Material_Codes'!$A$2:$B$26,Quantities!$B$2), IF(AND(B36="B",C36="a"), " Scraper Grading", ""), IF(C36="b","","-"), IF(C36="b","",VLOOKUP(A36,Quantities[],Quantities!$D$2)), IF(LEFT(TEXT(A36,"0"),1)="5","","-"), IF(LEFT(TEXT(A36,"0"),1)="5","",VLOOKUP(C36,'Activity-Material_Codes'!$A$30:$B$36,Quantities!$B$2)) )) -> Grade-Outslopes-Existing Ground | G36: =CONCATENATE( IF(OR(RIGHT(TEXT($A36,"0"),Quantities!$B$2)="00",LEFT(TEXT($A36,"0"),1)="5",OR($C36="b",$C36="f")),"",VLOOKUP($A36,Quantities[],Quantities!$B$2)), IF(LEFT(TEXT($A36,"0"),1)="5",""," "), IF(OR(C36="a",C36="c",C36="d",C36="e"),IF(OR(RIGHT(TEXT($A36,"0"),Quantities!$B$2)="00",LEFT(TEXT($A36,"0"),1)="5"),VLOOKUP($A36,Quantities[],Quantities!$B$2),""), IF(LEFT(TEXT($A36,"0"),1)="5",VLOOKUP($A36,Quantities[],Quantities!$B$2), VLOOKUP(INDEX(Quantities!$A$100:$A$118,MATCH($A36,Quantities!$C$100:$C$118)),Quantities!$A$100:$B$118,Quantities!$B$2)))) -> 2B Waste, 2A Leach, 2B Leach | H36: =IF(LEFT(TEXT(A36,"0"),1)="5", VLOOKUP(VLOOKUP(A36,Quantities!$A$4:$D$118,Quantities!$C$2),Quantities!$A$4:$D$118,Quantities!$C$2), IF(OR(C36="a",C36="c",C36="d",C36="e"), "-", IF(RIGHT(TEXT(A36,"0"),2)="00",VLOOKUP(A36,Quantities[],Quantities!$B$2), IF(C36="f",VLOOKUP(A36,Quantities[],Quantities!$B$2), VLOOKUP(A36,Quantities[],Quantities!$C$2)) ))) -> - | I36: =IF(OR(AND(LEFT(D36,2)="Sc",B36="A",C36="d"),AND(C36="f",B36="D")), SUM(VLOOKUP($A36,Quantities[],Quantities!$O$2),VLOOKUP($A36,Quantities[],Quantities!$Q$2),VLOOKUP($A36,Quantities[],Quantities!$S$2)), IF(AND(LEFT(D36,2)="Sc",OR(C36="a",C36="f")), VLOOKUP(A36,Quantities[],Quantities!$I$2), IF(AND(B36="D",C36="b"), VLOOKUP(INDEX(Quantities!$A$100:$A$118,MATCH($A36,Quantities!$C$100:$C$118)),Quantities!$A$100:$AJ$118,Quantities!$O$2)+ VLOOKUP(INDEX(Quantities!$A$100:$A$118,MATCH($A36,Quantities!$C$100:$C$118)),Quantities!$A$100:$AJ$118,Quantities!$Q$2)+ VLOOKUP(INDEX(Quantities!$A$100:$A$118,MATCH($A36,Quantities!$C$100:$C$118)),Quantities!$A$100:$AJ$118,Quantities!$S$2), IF(OR(B36="D",B36="Q"), SUM(VLOOKUP($A36,Quantities[],Quantities!$O$2),VLOOKUP($A36,Quantities[],Quantities!$Q$2),VLOOKUP($A36,Quantities[],Quantities!$S$2)), VLOOKUP(A36,Quantities[],Quantities!$G$2) )))) -> 470 | J36: =IF(LEFT(D36,2)="Mg", VLOOKUP(A36,Quantities[],Quantities!$H$2), IF(OR(AND(LEFT(D36,2)="Sc",B36="A",C36="d",C36="f")), (SUM(VLOOKUP($A36,Quantities[],Quantities!$P$2)*VLOOKUP($A36,Quantities[],Quantities!$O$2),VLOOKUP($A36,Quantities[],Quantities!$R$2)*VLOOKUP($A36,Quantities[],Quantities!$Q$2),VLOOKUP($A36,Quantities[],Quantities!$T$2)*VLOOKUP($A36,Quantities[],Quantities!$S$2)))/SUM(VLOOKUP($A36,Quantities[],Quantities!$O$2),VLOOKUP($A36,Quantities[],Quantities!$Q$2),VLOOKUP($A36,Quantities[],Quantities!$S$2)), IF(AND(LEFT(D36,2)="Sc",OR(C36="a",C36="f")), VLOOKUP(A36,Quantities[],Quantities!$J$2), IF(AND(B36="D",C36="b", (VLOOKUP(INDEX(Quantities!$A$100:$A$118,MATCH($A36,Quantities!$C$100:$C$118)),Quantities[],Quantities!$O$2)+VLOOKUP(INDEX(Quantities!$A$100:$A$118,MATCH($A36,Quantities!$C$100:$C$118)),Quantities[],Quantities!$Q$2)+VLOOKUP(INDEX(Quantities!$A$100:$A$118,MATCH($A36,Quantities!$C$100:$C$118)),Quantities[],Quantities!$S$2))>0), (VLOOKUP(INDEX(Quantities!$A$100:$A$118,MATCH($A36,Quantities!$C$100:$C$118)),Quantities[],Quantities!$P$2)*VLOOKUP(INDEX(Quantities!$A$100:$A$118,MATCH($A36,Quantities!$C$100:$C$118)),Quantities[],Quantities!$O$2) +VLOOKUP(INDEX(Quantities!$A$100:$A$118,MATCH($A36,Quantities!$C$100:$C$118)),Quantities[],Quantities!$R$2)*VLOOKUP(INDEX(Quantities!$A$100:$A$118,MATCH($A36,Quantities!$C$100:$C$118)),Quantities[],Quantities!$Q$2) +VLOOKUP(INDEX(Quantities!$A$100:$A$118,MATCH($A36,Quantities!$C$100:$C$118)),Quantities[],Quantities!$T$2)*VLOOKUP(INDEX(Quantities!$A$100:$A$118,MATCH($A36,Quantities!$C$100:$C$118)),Quantities[],Quantities!$S$2))/ (VLOOKUP(INDEX(Quantities!$A$100:$A$118,MATCH($A36,Quantities!$C$100:$C$118)),Quantities[],Quantities!$O$2)+VLOOKUP(INDEX(Quantities!$A$100:$A$118,MATCH($A36,Quantities!$C$100:$C$118)),Quantities[],Quantities!$Q$2)+VLOOKUP(A36,Quantities[],Quantities!$S$2)), IF(AND(B36="D", (VLOOKUP(A36,Quantities[],Quantities!$O$2)+VLOOKUP(A36,Quantities[],Quantities!$Q$2)+VLOOKUP(A36,Quantities[],Quantities!$S$2))>0), (VLOOKUP(A36,Quantities[],Quantities!$P$2)*VLOOKUP(A36,Quantities[],Quantities!$O$2) +VLOOKUP(A36,Quantities[],Quantities!$R$2)*VLOOKUP(A36,Quantities[],Quantities!$Q$2) +VLOOKUP(A36,Quantities[],Quantities!$T$2)*VLOOKUP(A36,Quantities[],Quantities!$S$2))/ (VLOOKUP(A36,Quantities[],Quantities!$O$2)+VLOOKUP(A36,Quantities[],Quantities!$Q$2)+VLOOKUP(A36,Quantities[],Quantities!$S$2)), IF($B36="Q", (SUM(VLOOKUP($A36,Quantities[],Quantities!$P$2)*VLOOKUP($A36,Quantities[],Quantities!$O$2),VLOOKUP($A36,Quantities[],Quantities!$R$2)*VLOOKUP($A36,Quantities[],Quantities!$Q$2),VLOOKUP($A36,Quantities[],Quantities!$T$2)*VLOOKUP($A36,Quantities[],Quantities!$S$2)))/SUM(VLOOKUP($A36,Quantities[],Quantities!$O$2),VLOOKUP($A36,Quantities[],Quantities!$Q$2),VLOOKUP($A36,Quantities[],Quantities!$S$2)), VLOOKUP(A36,Quantities[],Quantities!$H$2) )))))) -> -0.29 | K36: =IF(LEFT(D36,1)="U","-",VLOOKUP(D36,Equipment[],Equipment!$B$2)) -> Cat D11T CD
A37: =Quantities!$A$16 -> 1304 | B37: A | C37: a | D37: Dz2 | E37: 1304-A-a-Dz2 | F37: =IF(D37="Comb1",CONCATENATE(VLOOKUP(B37,'Activity-Material_Codes'!$A$2:$B$26,Quantities!$B$2),"-",VLOOKUP(A37,Quantities[],Quantities!$D$2)), CONCATENATE( VLOOKUP(B37,'Activity-Material_Codes'!$A$2:$B$26,Quantities!$B$2), IF(AND(B37="B",C37="a"), " Scraper Grading", ""), IF(C37="b","","-"), IF(C37="b","",VLOOKUP(A37,Quantities[],Quantities!$D$2)), IF(LEFT(TEXT(A37,"0"),1)="5","","-"), IF(LEFT(TEXT(A37,"0"),1)="5","",VLOOKUP(C37,'Activity-Material_Codes'!$A$30:$B$36,Quantities!$B$2)) )) -> Grade-Outslopes (total area, volume outside of pullback)-Existing Ground | G37: =CONCATENATE( IF(OR(RIGHT(TEXT($A37,"0"),Quantities!$B$2)="00",LEFT(TEXT($A37,"0"),1)="5",OR($C37="b",$C37="f")),"",VLOOKUP($A37,Quantities[],Quantities!$B$2)), IF(LEFT(TEXT($A37,"0"),1)="5",""," "), IF(OR(C37="a",C37="c",C37="d",C37="e"),IF(OR(RIGHT(TEXT($A37,"0"),Quantities!$B$2)="00",LEFT(TEXT($A37,"0"),1)="5"),VLOOKUP($A37,Quantities[],Quantities!$B$2),""), IF(LEFT(TEXT($A37,"0"),1)="5",VLOOKUP($A37,Quantities[],Quantities!$B$2), VLOOKUP(INDEX(Quantities!$A$100:$A$118,MATCH($A37,Quantities!$C$100:$C$118)),Quantities!$A$100:$B$118,Quantities!$B$2)))) -> 3A Leach, 3B Waste | H37: =IF(LEFT(TEXT(A37,"0"),1)="5", VLOOKUP(VLOOKUP(A37,Quantities!$A$4:$D$118,Quantities!$C$2),Quantities!$A$4:$D$118,Quantities!$C$2), IF(OR(C37="a",C37="c",C37="d",C37="e"), "-", IF(RIGHT(TEXT(A37,"0"),2)="00",VLOOKUP(A37,Quantities[],Quantities!$B$2), IF(C37="f",VLOOKUP(A37,Quantities[],Quantities!$B$2), VLOOKUP(A37,Quantities[],Quantities!$C$2)) ))) -> - | I37: =IF(OR(AND(LEFT(D37,2)="Sc",B37="A",C37="d"),AND(C37="f",B37="D")), SUM(VLOOKUP($A37,Quantities[],Quantities!$O$2),VLOOKUP($A37,Quantities[],Quantities!$Q$2),VLOOKUP($A37,Quantities[],Quantities!$S$2)), IF(AND(LEFT(D37,2)="Sc",OR(C37="a",C37="f")), VLOOKUP(A37,Quantities[],Quantities!$I$2), IF(AND(B37="D",C37="b"), VLOOKUP(INDEX(Quantities!$A$100:$A$118,MATCH($A37,Quantities!$C$100:$C$118)),Quantities!$A$100:$AJ$118,Quantities!$O$2)+ VLOOKUP(INDEX(Quantities!$A$100:$A$118,MATCH($A37,Quantities!$C$100:$C$118)),Quantities!$A$100:$AJ$118,Quantities!$Q$2)+ VLOOKUP(INDEX(Quantities!$A$100:$A$118,MATCH($A37,Quantities!$C$100:$C$118)),Quantities!$A$100:$AJ$118,Quantities!$S$2), IF(OR(B37="D",B37="Q"), SUM(VLOOKUP($A37,Quantities[],Quantities!$O$2),VLOOKUP($A37,Quantities[],Quantities!$Q$2),VLOOKUP($A37,Quantities[],Quantities!$S$2)), VLOOKUP(A37,Quantities[],Quantities!$G$2) )))) -> 560 | J37: =IF(LEFT(D37,2)="Mg", VLOOKUP(A37,Quantities[],Quantities!$H$2), IF(OR(AND(LEFT(D37,2)="Sc",B37="A",C37="d",C37="f")), (SUM(VLOOKUP($A37,Quantities[],Quantities!$P$2)*VLOOKUP($A37,Quantities[],Quantities!$O$2),VLOOKUP($A37,Quantities[],Quantities!$R$2)*VLOOKUP($A37,Quantities[],Quantities!$Q$2),VLOOKUP($A37,Quantities[],Quantities!$T$2)*VLOOKUP($A37,Quantities[],Quantities!$S$2)))/SUM(VLOOKUP($A37,Quantities[],Quantities!$O$2),VLOOKUP($A37,Quantities[],Quantities!$Q$2),VLOOKUP($A37,Quantities[],Quantities!$S$2)), IF(AND(LEFT(D37,2)="Sc",OR(C37="a",C37="f")), VLOOKUP(A37,Quantities[],Quantities!$J$2), IF(AND(B37="D",C37="b", (VLOOKUP(INDEX(Quantities!$A$100:$A$118,MATCH($A37,Quantities!$C$100:$C$118)),Quantities[],Quantities!$O$2)+VLOOKUP(INDEX(Quantities!$A$100:$A$118,MATCH($A37,Quantities!$C$100:$C$118)),Quantities[],Quantities!$Q$2)+VLOOKUP(INDEX(Quantities!$A$100:$A$118,MATCH($A37,Quantities!$C$100:$C$118)),Quantities[],Quantities!$S$2))>0), (VLOOKUP(INDEX(Quantities!$A$100:$A$118,MATCH($A37,Quantities!$C$100:$C$118)),Quantities[],Quantities!$P$2)*VLOOKUP(INDEX(Quantities!$A$100:$A$118,MATCH($A37,Quantities!$C$100:$C$118)),Quantities[],Quantities!$O$2) +VLOOKUP(INDEX(Quantities!$A$100:$A$118,MATCH($A37,Quantities!$C$100:$C$118)),Quantities[],Quantities!$R$2)*VLOOKUP(INDEX(Quantities!$A$100:$A$118,MATCH($A37,Quantities!$C$100:$C$118)),Quantities[],Quantities!$Q$2) +VLOOKUP(INDEX(Quantities!$A$100:$A$118,MATCH($A37,Quantities!$C$100:$C$118)),Quantities[],Quantities!$T$2)*VLOOKUP(INDEX(Quantities!$A$100:$A$118,MATCH($A37,Quantities!$C$100:$C$118)),Quantities[],Quantities!$S$2))/ (VLOOKUP(INDEX(Quantities!$A$100:$A$118,MATCH($A37,Quantities!$C$100:$C$118)),Quantities[],Quantities!$O$2)+VLOOKUP(INDEX(Quantities!$A$100:$A$118,MATCH($A37,Quantities!$C$100:$C$118)),Quantities[],Quantities!$Q$2)+VLOOKUP(A37,Quantities[],Quantities!$S$2)), IF(AND(B37="D", (VLOOKUP(A37,Quantities[],Quantities!$O$2)+VLOOKUP(A37,Quantities[],Quantities!$Q$2)+VLOOKUP(A37,Quantities[],Quantities!$S$2))>0), (VLOOKUP(A37,Quantities[],Quantities!$P$2)*VLOOKUP(A37,Quantities[],Quantities!$O$2) +VLOOKUP(A37,Quantities[],Quantities!$R$2)*VLOOKUP(A37,Quantities[],Quantities!$Q$2) +VLOOKUP(A37,Quantities[],Quantities!$T$2)*VLOOKUP(A37,Quantities[],Quantities!$S$2))/ (VLOOKUP(A37,Quantities[],Quantities!$O$2)+VLOOKUP(A37,Quantities[],Quantities!$Q$2)+VLOOKUP(A37,Quantities[],Quantities!$S$2)), IF($B37="Q", (SUM(VLOOKUP($A37,Quantities[],Quantities!$P$2)*VLOOKUP($A37,Quantities[],Quantities!$O$2),VLOOKUP($A37,Quantities[],Quantities!$R$2)*VLOOKUP($A37,Quantities[],Quantities!$Q$2),VLOOKUP($A37,Quantities[],Quantities!$T$2)*VLOOKUP($A37,Quantities[],Quantities!$S$2)))/SUM(VLOOKUP($A37,Quantities[],Quantities!$O$2),VLOOKUP($A37,Quantities[],Quantities!$Q$2),VLOOKUP($A37,Quantities[],Quantities!$S$2)), VLOOKUP(A37,Quantities[],Quantities!$H$2) )))))) -> -0.29 | K37: =IF(LEFT(D37,1)="U","-",VLOOKUP(D37,Equipment[],Equipment!$B$2)) -> Cat D11T CD
A38: =Quantities!$A$15 -> 1303 | B38: A | C38: f | D38: Dz2 | E38: 1303-A-f-Dz2 | F38: =IF(D38="Comb1",CONCATENATE(VLOOKUP(B38,'Activity-Material_Codes'!$A$2:$B$26,Quantities!$B$2),"-",VLOOKUP(A38,Quantities[],Quantities!$D$2)), CONCATENATE( VLOOKUP(B38,'Activity-Material_Codes'!$A$2:$B$26,Quantities!$B$2), IF(AND(B38="B",C38="a"), " Scraper Grading", ""), IF(C38="b","","-"), IF(C38="b","",VLOOKUP(A38,Quantities[],Quantities!$D$2)), IF(LEFT(TEXT(A38,"0"),1)="5","","-"), IF(LEFT(TEXT(A38,"0"),1)="5","",VLOOKUP(C38,'Activity-Material_Codes'!$A$30:$B$36,Quantities!$B$2)) )) -> Grade-Outslopes - Regrade benches from pullback-Backfill/Stockpile Material | G38: =CONCATENATE( IF(OR(RIGHT(TEXT($A38,"0"),Quantities!$B$2)="00",LEFT(TEXT($A38,"0"),1)="5",OR($C38="b",$C38="f")),"",VLOOKUP($A38,Quantities[],Quantities!$B$2)), IF(LEFT(TEXT($A38,"0"),1)="5",""," "), IF(OR(C38="a",C38="c",C38="d",C38="e"),IF(OR(RIGHT(TEXT($A38,"0"),Quantities!$B$2)="00",LEFT(TEXT($A38,"0"),1)="5"),VLOOKUP($A38,Quantities[],Quantities!$B$2),""), IF(LEFT(TEXT($A38,"0"),1)="5",VLOOKUP($A38,Quantities[],Quantities!$B$2), VLOOKUP(INDEX(Quantities!$A$100:$A$118,MATCH($A38,Quantities!$C$100:$C$118)),Quantities!$A$100:$B$118,Quantities!$B$2)))) -> 3A Leach, 3B Waste | H38: =IF(LEFT(TEXT(A38,"0"),1)="5", VLOOKUP(VLOOKUP(A38,Quantities!$A$4:$D$118,Quantities!$C$2),Quantities!$A$4:$D$118,Quantities!$C$2), IF(OR(C38="a",C38="c",C38="d",C38="e"), "-", IF(RIGHT(TEXT(A38,"0"),2)="00",VLOOKUP(A38,Quantities[],Quantities!$B$2), IF(C38="f",VLOOKUP(A38,Quantities[],Quantities!$B$2), VLOOKUP(A38,Quantities[],Quantities!$C$2)) ))) -> 3A Leach, 3B Waste | I38: =IF(OR(AND(LEFT(D38,2)="Sc",B38="A",C38="d"),AND(C38="f",B38="D")), SUM(VLOOKUP($A38,Quantities[],Quantities!$O$2),VLOOKUP($A38,Quantities[],Quantities!$Q$2),VLOOKUP($A38,Quantities[],Quantities!$S$2)), IF(AND(LEFT(D38,2)="Sc",OR(C38="a",C38="f")), VLOOKUP(A38,Quantities[],Quantities!$I$2), IF(AND(B38="D",C38="b"), VLOOKUP(INDEX(Quantities!$A$100:$A$118,MATCH($A38,Quantities!$C$100:$C$118)),Quantities!$A$100:$AJ$118,Quantities!$O$2)+ VLOOKUP(INDEX(Quantities!$A$100:$A$118,MATCH($A38,Quantities!$C$100:$C$118)),Quantities!$A$100:$AJ$118,Quantities!$Q$2)+ VLOOKUP(INDEX(Quantities!$A$100:$A$118,MATCH($A38,Quantities!$C$100:$C$118)),Quantities!$A$100:$AJ$118,Quantities!$S$2), IF(OR(B38="D",B38="Q"), SUM(VLOOKUP($A38,Quantities[],Quantities!$O$2),VLOOKUP($A38,Quantities[],Quantities!$Q$2),VLOOKUP($A38,Quantities[],Quantities!$S$2)), VLOOKUP(A38,Quantities[],Quantities!$G$2) )))) -> 90 | J38: =IF(LEFT(D38,2)="Mg", VLOOKUP(A38,Quantities[],Quantities!$H$2), IF(OR(AND(LEFT(D38,2)="Sc",B38="A",C38="d",C38="f")), (SUM(VLOOKUP($A38,Quantities[],Quantities!$P$2)*VLOOKUP($A38,Quantities[],Quantities!$O$2),VLOOKUP($A38,Quantities[],Quantities!$R$2)*VLOOKUP($A38,Quantities[],Quantities!$Q$2),VLOOKUP($A38,Quantities[],Quantities!$T$2)*VLOOKUP($A38,Quantities[],Quantities!$S$2)))/SUM(VLOOKUP($A38,Quantities[],Quantities!$O$2),VLOOKUP($A38,Quantities[],Quantities!$Q$2),VLOOKUP($A38,Quantities[],Quantities!$S$2)), IF(AND(LEFT(D38,2)="Sc",OR(C38="a",C38="f")), VLOOKUP(A38,Quantities[],Quantities!$J$2), IF(AND(B38="D",C38="b", (VLOOKUP(INDEX(Quantities!$A$100:$A$118,MATCH($A38,Quantities!$C$100:$C$118)),Quantities[],Quantities!$O$2)+VLOOKUP(INDEX(Quantities!$A$100:$A$118,MATCH($A38,Quantities!$C$100:$C$118)),Quantities[],Quantities!$Q$2)+VLOOKUP(INDEX(Quantities!$A$100:$A$118,MATCH($A38,Quantities!$C$100:$C$118)),Quantities[],Quantities!$S$2))>0), (VLOOKUP(INDEX(Quantities!$A$100:$A$118,MATCH($A38,Quantities!$C$100:$C$118)),Quantities[],Quantities!$P$2)*VLOOKUP(INDEX(Quantities!$A$100:$A$118,MATCH($A38,Quantities!$C$100:$C$118)),Quantities[],Quantities!$O$2) +VLOOKUP(INDEX(Quantities!$A$100:$A$118,MATCH($A38,Quantities!$C$100:$C$118)),Quantities[],Quantities!$R$2)*VLOOKUP(INDEX(Quantities!$A$100:$A$118,MATCH($A38,Quantities!$C$100:$C$118)),Quantities[],Quantities!$Q$2) +VLOOKUP(INDEX(Quantities!$A$100:$A$118,MATCH($A38,Quantities!$C$100:$C$118)),Quantities[],Quantities!$T$2)*VLOOKUP(INDEX(Quantities!$A$100:$A$118,MATCH($A38,Quantities!$C$100:$C$118)),Quantities[],Quantities!$S$2))/ (VLOOKUP(INDEX(Quantities!$A$100:$A$118,MATCH($A38,Quantities!$C$100:$C$118)),Quantities[],Quantities!$O$2)+VLOOKUP(INDEX(Quantities!$A$100:$A$118,MATCH($A38,Quantities!$C$100:$C$118)),Quantities[],Quantities!$Q$2)+VLOOKUP(A38,Quantities[],Quantities!$S$2)), IF(AND(B38="D", (VLOOKUP(A38,Quantities[],Quantities!$O$2)+VLOOKUP(A38,Quantities[],Quantities!$Q$2)+VLOOKUP(A38,Quantities[],Quantities!$S$2))>0), (VLOOKUP(A38,Quantities[],Quantities!$P$2)*VLOOKUP(A38,Quantities[],Quantities!$O$2) +VLOOKUP(A38,Quantities[],Quantities!$R$2)*VLOOKUP(A38,Quantities[],Quantities!$Q$2) +VLOOKUP(A38,Quantities[],Quantities!$T$2)*VLOOKUP(A38,Quantities[],Quantities!$S$2))/ (VLOOKUP(A38,Quantities[],Quantities!$O$2)+VLOOKUP(A38,Quantities[],Quantities!$Q$2)+VLOOKUP(A38,Quantities[],Quantities!$S$2)), IF($B38="Q", (SUM(VLOOKUP($A38,Quantities[],Quantities!$P$2)*VLOOKUP($A38,Quantities[],Quantities!$O$2),VLOOKUP($A38,Quantities[],Quantities!$R$2)*VLOOKUP($A38,Quantities[],Quantities!$Q$2),VLOOKUP($A38,Quantities[],Quantities!$T$2)*VLOOKUP($A38,Quantities[],Quantities!$S$2)))/SUM(VLOOKUP($A38,Quantities[],Quantities!$O$2),VLOOKUP($A38,Quantities[],Quantities!$Q$2),VLOOKUP($A38,Quantities[],Quantities!$S$2)), VLOOKUP(A38,Quantities[],Quantities!$H$2) )))))) -> -0.29 | K38: =IF(LEFT(D38,1)="U","-",VLOOKUP(D38,Equipment[],Equipment!$B$2)) -> Cat D11T CD
A39: =Quantities!$A$22 -> 1502 | B39: A | C39: a | D39: Dz2 | E39: 1502-A-a-Dz2 | F39: =IF(D39="Comb1",CONCATENATE(VLOOKUP(B39,'Activity-Material_Codes'!$A$2:$B$26,Quantities!$B$2),"-",VLOOKUP(A39,Quantities[],Quantities!$D$2)), CONCATENATE( VLOOKUP(B39,'Activity-Material_Codes'!$A$2:$B$26,Quantities!$B$2), IF(AND(B39="B",C39="a"), " Scraper Grading", ""), IF(C39="b","","-"), IF(C39="b","",VLOOKUP(A39,Quantities[],Quantities!$D$2)), IF(LEFT(TEXT(A39,"0"),1)="5","","-"), IF(LEFT(TEXT(A39,"0"),1)="5","",VLOOKUP(C39,'Activity-Material_Codes'!$A$30:$B$36,Quantities!$B$2)) )) -> Grade-Outslopes-Existing Ground | G39: =CONCATENATE( IF(OR(RIGHT(TEXT($A39,"0"),Quantities!$B$2)="00",LEFT(TEXT($A39,"0"),1)="5",OR($C39="b",$C39="f")),"",VLOOKUP($A39,Quantities[],Quantities!$B$2)), IF(LEFT(TEXT($A39,"0"),1)="5",""," "), IF(OR(C39="a",C39="c",C39="d",C39="e"),IF(OR(RIGHT(TEXT($A39,"0"),Quantities!$B$2)="00",LEFT(TEXT($A39,"0"),1)="5"),VLOOKUP($A39,Quantities[],Quantities!$B$2),""), IF(LEFT(TEXT($A39,"0"),1)="5",VLOOKUP($A39,Quantities[],Quantities!$B$2), VLOOKUP(INDEX(Quantities!$A$100:$A$118,MATCH($A39,Quantities!$C$100:$C$118)),Quantities!$A$100:$B$118,Quantities!$B$2)))) -> 5A Waste | H39: =IF(LEFT(TEXT(A39,"0"),1)="5", VLOOKUP(VLOOKUP(A39,Quantities!$A$4:$D$118,Quantities!$C$2),Quantities!$A$4:$D$118,Quantities!$C$2), IF(OR(C39="a",C39="c",C39="d",C39="e"), "-", IF(RIGHT(TEXT(A39,"0"),2)="00",VLOOKUP(A39,Quantities[],Quantities!$B$2), IF(C39="f",VLOOKUP(A39,Quantities[],Quantities!$B$2), VLOOKUP(A39,Quantities[],Quantities!$C$2)) ))) -> - | I39: =IF(OR(AND(LEFT(D39,2)="Sc",B39="A",C39="d"),AND(C39="f",B39="D")), SUM(VLOOKUP($A39,Quantities[],Quantities!$O$2),VLOOKUP($A39,Quantities[],Quantities!$Q$2),VLOOKUP($A39,Quantities[],Quantities!$S$2)), IF(AND(LEFT(D39,2)="Sc",OR(C39="a",C39="f")), VLOOKUP(A39,Quantities[],Quantities!$I$2), IF(AND(B39="D",C39="b"), VLOOKUP(INDEX(Quantities!$A$100:$A$118,MATCH($A39,Quantities!$C$100:$C$118)),Quantities!$A$100:$AJ$118,Quantities!$O$2)+ VLOOKUP(INDEX(Quantities!$A$100:$A$118,MATCH($A39,Quantities!$C$100:$C$118)),Quantities!$A$100:$AJ$118,Quantities!$Q$2)+ VLOOKUP(INDEX(Quantities!$A$100:$A$118,MATCH($A39,Quantities!$C$100:$C$118)),Quantities!$A$100:$AJ$118,Quantities!$S$2), IF(OR(B39="D",B39="Q"), SUM(VLOOKUP($A39,Quantities[],Quantities!$O$2),VLOOKUP($A39,Quantities[],Quantities!$Q$2),VLOOKUP($A39,Quantities[],Quantities!$S$2)), VLOOKUP(A39,Quantities[],Quantities!$G$2) )))) -> 540 | J39: =IF(LEFT(D39,2)="Mg", VLOOKUP(A39,Quantities[],Quantities!$H$2), IF(OR(AND(LEFT(D39,2)="Sc",B39="A",C39="d",C39="f")), (SUM(VLOOKUP($A39,Quantities[],Quantities!$P$2)*VLOOKUP($A39,Quantities[],Quantities!$O$2),VLOOKUP($A39,Quantities[],Quantities!$R$2)*VLOOKUP($A39,Quantities[],Quantities!$Q$2),VLOOKUP($A39,Quantities[],Quantities!$T$2)*VLOOKUP($A39,Quantities[],Quantities!$S$2)))/SUM(VLOOKUP($A39,Quantities[],Quantities!$O$2),VLOOKUP($A39,Quantities[],Quantities!$Q$2),VLOOKUP($A39,Quantities[],Quantities!$S$2)), IF(AND(LEFT(D39,2)="Sc",OR(C39="a",C39="f")), VLOOKUP(A39,Quantities[],Quantities!$J$2), IF(AND(B39="D",C39="b", (VLOOKUP(INDEX(Quantities!$A$100:$A$118,MATCH($A39,Quantities!$C$100:$C$118)),Quantities[],Quantities!$O$2)+VLOOKUP(INDEX(Quantities!$A$100:$A$118,MATCH($A39,Quantities!$C$100:$C$118)),Quantities[],Quantities!$Q$2)+VLOOKUP(INDEX(Quantities!$A$100:$A$118,MATCH($A39,Quantities!$C$100:$C$118)),Quantities[],Quantities!$S$2))>0), (VLOOKUP(INDEX(Quantities!$A$100:$A$118,MATCH($A39,Quantities!$C$100:$C$118)),Quantities[],Quantities!$P$2)*VLOOKUP(INDEX(Quantities!$A$100:$A$118,MATCH($A39,Quantities!$C$100:$C$118)),Quantities[],Quantities!$O$2) +VLOOKUP(INDEX(Quantities!$A$100:$A$118,MATCH($A39,Quantities!$C$100:$C$118)),Quantities[],Quantities!$R$2)*VLOOKUP(INDEX(Quantities!$A$100:$A$118,MATCH($A39,Quantities!$C$100:$C$118)),Quantities[],Quantities!$Q$2) +VLOOKUP(INDEX(Quantities!$A$100:$A$118,MATCH($A39,Quantities!$C$100:$C$118)),Quantities[],Quantities!$T$2)*VLOOKUP(INDEX(Quantities!$A$100:$A$118,MATCH($A39,Quantities!$C$100:$C$118)),Quantities[],Quantities!$S$2))/ (VLOOKUP(INDEX(Quantities!$A$100:$A$118,MATCH($A39,Quantities!$C$100:$C$118)),Quantities[],Quantities!$O$2)+VLOOKUP(INDEX(Quantities!$A$100:$A$118,MATCH($A39,Quantities!$C$100:$C$118)),Quantities[],Quantities!$Q$2)+VLOOKUP(A39,Quantities[],Quantities!$S$2)), IF(AND(B39="D", (VLOOKUP(A39,Quantities[],Quantities!$O$2)+VLOOKUP(A39,Quantities[],Quantities!$Q$2)+VLOOKUP(A39,Quantities[],Quantities!$S$2))>0), (VLOOKUP(A39,Quantities[],Quantities!$P$2)*VLOOKUP(A39,Quantities[],Quantities!$O$2) +VLOOKUP(A39,Quantities[],Quantities!$R$2)*VLOOKUP(A39,Quantities[],Quantities!$Q$2) +VLOOKUP(A39,Quantities[],Quantities!$T$2)*VLOOKUP(A39,Quantities[],Quantities!$S$2))/ (VLOOKUP(A39,Quantities[],Quantities!$O$2)+VLOOKUP(A39,Quantities[],Quantities!$Q$2)+VLOOKUP(A39,Quantities[],Quantities!$S$2)), IF($B39="Q", (SUM(VLOOKUP($A39,Quantities[],Quantities!$P$2)*VLOOKUP($A39,Quantities[],Quantities!$O$2),VLOOKUP($A39,Quantities[],Quantities!$R$2)*VLOOKUP($A39,Quantities[],Quantities!$Q$2),VLOOKUP($A39,Quantities[],Quantities!$T$2)*VLOOKUP($A39,Quantities[],Quantities!$S$2)))/SUM(VLOOKUP($A39,Quantities[],Quantities!$O$2),VLOOKUP($A39,Quantities[],Quantities!$Q$2),VLOOKUP($A39,Quantities[],Quantities!$S$2)), VLOOKUP(A39,Quantities[],Quantities!$H$2) )))))) -> -0.29 | K39: =IF(LEFT(D39,1)="U","-",VLOOKUP(D39,Equipment[],Equipment!$B$2)) -> Cat D11T CD
A40: =Quantities!$A$43 -> 2302 | B40: A | C40: a | D40: Dz2 | E40: 2302-A-a-Dz2 | F40: =IF(D40="Comb1",CONCATENATE(VLOOKUP(B40,'Activity-Material_Codes'!$A$2:$B$26,Quantities!$B$2),"-",VLOOKUP(A40,Quantities[],Quantities!$D$2)), CONCATENATE( VLOOKUP(B40,'Activity-Material_Codes'!$A$2:$B$26,Quantities!$B$2), IF(AND(B40="B",C40="a"), " Scraper Grading", ""), IF(C40="b","","-"), IF(C40="b","",VLOOKUP(A40,Quantities[],Quantities!$D$2)), IF(LEFT(TEXT(A40,"0"),1)="5","","-"), IF(LEFT(TEXT(A40,"0"),1)="5","",VLOOKUP(C40,'Activity-Material_Codes'!$A$30:$B$36,Quantities!$B$2)) )) -> Grade-Outslopes-Existing Ground | G40: =CONCATENATE( IF(OR(RIGHT(TEXT($A40,"0"),Quantities!$B$2)="00",LEFT(TEXT($A40,"0"),1)="5",OR($C40="b",$C40="f")),"",VLOOKUP($A40,Quantities[],Quantities!$B$2)), IF(LEFT(TEXT($A40,"0"),1)="5",""," "), IF(OR(C40="a",C40="c",C40="d",C40="e"),IF(OR(RIGHT(TEXT($A40,"0"),Quantities!$B$2)="00",LEFT(TEXT($A40,"0"),1)="5"),VLOOKUP($A40,Quantities[],Quantities!$B$2),""), IF(LEFT(TEXT($A40,"0"),1)="5",VLOOKUP($A40,Quantities[],Quantities!$B$2), VLOOKUP(INDEX(Quantities!$A$100:$A$118,MATCH($A40,Quantities!$C$100:$C$118)),Quantities!$A$100:$B$118,Quantities!$B$2)))) -> 6A Leach | H40: =IF(LEFT(TEXT(A40,"0"),1)="5", VLOOKUP(VLOOKUP(A40,Quantities!$A$4:$D$118,Quantities!$C$2),Quantities!$A$4:$D$118,Quantities!$C$2), IF(OR(C40="a",C40="c",C40="d",C40="e"), "-", IF(RIGHT(TEXT(A40,"0"),2)="00",VLOOKUP(A40,Quantities[],Quantities!$B$2), IF(C40="f",VLOOKUP(A40,Quantities[],Quantities!$B$2), VLOOKUP(A40,Quantities[],Quantities!$C$2)) ))) -> - | I40: =IF(OR(AND(LEFT(D40,2)="Sc",B40="A",C40="d"),AND(C40="f",B40="D")), SUM(VLOOKUP($A40,Quantities[],Quantities!$O$2),VLOOKUP($A40,Quantities[],Quantities!$Q$2),VLOOKUP($A40,Quantities[],Quantities!$S$2)), IF(AND(LEFT(D40,2)="Sc",OR(C40="a",C40="f")), VLOOKUP(A40,Quantities[],Quantities!$I$2), IF(AND(B40="D",C40="b"), VLOOKUP(INDEX(Quantities!$A$100:$A$118,MATCH($A40,Quantities!$C$100:$C$118)),Quantities!$A$100:$AJ$118,Quantities!$O$2)+ VLOOKUP(INDEX(Quantities!$A$100:$A$118,MATCH($A40,Quantities!$C$100:$C$118)),Quantities!$A$100:$AJ$118,Quantities!$Q$2)+ VLOOKUP(INDEX(Quantities!$A$100:$A$118,MATCH($A40,Quantities!$C$100:$C$118)),Quantities!$A$100:$AJ$118,Quantities!$S$2), IF(OR(B40="D",B40="Q"), SUM(VLOOKUP($A40,Quantities[],Quantities!$O$2),VLOOKUP($A40,Quantities[],Quantities!$Q$2),VLOOKUP($A40,Quantities[],Quantities!$S$2)), VLOOKUP(A40,Quantities[],Quantities!$G$2) )))) -> 160 | J40: =IF(LEFT(D40,2)="Mg", VLOOKUP(A40,Quantities[],Quantities!$H$2), IF(OR(AND(LEFT(D40,2)="Sc",B40="A",C40="d",C40="f")), (SUM(VLOOKUP($A40,Quantities[],Quantities!$P$2)*VLOOKUP($A40,Quantities[],Quantities!$O$2),VLOOKUP($A40,Quantities[],Quantities!$R$2)*VLOOKUP($A40,Quantities[],Quantities!$Q$2),VLOOKUP($A40,Quantities[],Quantities!$T$2)*VLOOKUP($A40,Quantities[],Quantities!$S$2)))/SUM(VLOOKUP($A40,Quantities[],Quantities!$O$2),VLOOKUP($A40,Quantities[],Quantities!$Q$2),VLOOKUP($A40,Quantities[],Quantities!$S$2)), IF(AND(LEFT(D40,2)="Sc",OR(C40="a",C40="f")), VLOOKUP(A40,Quantities[],Quantities!$J$2), IF(AND(B40="D",C40="b", (VLOOKUP(INDEX(Quantities!$A$100:$A$118,MATCH($A40,Quantities!$C$100:$C$118)),Quantities[],Quantities!$O$2)+VLOOKUP(INDEX(Quantities!$A$100:$A$118,MATCH($A40,Quantities!$C$100:$C$118)),Quantities[],Quantities!$Q$2)+VLOOKUP(INDEX(Quantities!$A$100:$A$118,MATCH($A40,Quantities!$C$100:$C$118)),Quantities[],Quantities!$S$2))>0), (VLOOKUP(INDEX(Quantities!$A$100:$A$118,MATCH($A40,Quantities!$C$100:$C$118)),Quantities[],Quantities!$P$2)*VLOOKUP(INDEX(Quantities!$A$100:$A$118,MATCH($A40,Quantities!$C$100:$C$118)),Quantities[],Quantities!$O$2) +VLOOKUP(INDEX(Quantities!$A$100:$A$118,MATCH($A40,Quantities!$C$100:$C$118)),Quantities[],Quantities!$R$2)*VLOOKUP(INDEX(Quantities!$A$100:$A$118,MATCH($A40,Quantities!$C$100:$C$118)),Quantities[],Quantities!$Q$2) +VLOOKUP(INDEX(Quantities!$A$100:$A$118,MATCH($A40,Quantities!$C$100:$C$118)),Quantities[],Quantities!$T$2)*VLOOKUP(INDEX(Quantities!$A$100:$A$118,MATCH($A40,Quantities!$C$100:$C$118)),Quantities[],Quantities!$S$2))/ (VLOOKUP(INDEX(Quantities!$A$100:$A$118,MATCH($A40,Quantities!$C$100:$C$118)),Quantities[],Quantities!$O$2)+VLOOKUP(INDEX(Quantities!$A$100:$A$118,MATCH($A40,Quantities!$C$100:$C$118)),Quantities[],Quantities!$Q$2)+VLOOKUP(A40,Quantities[],Quantities!$S$2)), IF(AND(B40="D", (VLOOKUP(A40,Quantities[],Quantities!$O$2)+VLOOKUP(A40,Quantities[],Quantities!$Q$2)+VLOOKUP(A40,Quantities[],Quantities!$S$2))>0), (VLOOKUP(A40,Quantities[],Quantities!$P$2)*VLOOKUP(A40,Quantities[],Quantities!$O$2) +VLOOKUP(A40,Quantities[],Quantities!$R$2)*VLOOKUP(A40,Quantities[],Quantities!$Q$2) +VLOOKUP(A40,Quantities[],Quantities!$T$2)*VLOOKUP(A40,Quantities[],Quantities!$S$2))/ (VLOOKUP(A40,Quantities[],Quantities!$O$2)+VLOOKUP(A40,Quantities[],Quantities!$Q$2)+VLOOKUP(A40,Quantities[],Quantities!$S$2)), IF($B40="Q", (SUM(VLOOKUP($A40,Quantities[],Quantities!$P$2)*VLOOKUP($A40,Quantities[],Quantities!$O$2),VLOOKUP($A40,Quantities[],Quantities!$R$2)*VLOOKUP($A40,Quantities[],Quantities!$Q$2),VLOOKUP($A40,Quantities[],Quantities!$T$2)*VLOOKUP($A40,Quantities[],Quantities!$S$2)))/SUM(VLOOKUP($A40,Quantities[],Quantities!$O$2),VLOOKUP($A40,Quantities[],Quantities!$Q$2),VLOOKUP($A40,Quantities[],Quantities!$S$2)), VLOOKUP(A40,Quantities[],Quantities!$H$2) )))))) -> -0.29 | K40: =IF(LEFT(D40,1)="U","-",VLOOKUP(D40,Equipment[],Equipment!$B$2)) -> Cat D11T CD
A41: =Quantities!$A$19 -> 1402 | B41: A | C41: a | D41: Dz2 | E41: 1402-A-a-Dz2 | F41: =IF(D41="Comb1",CONCATENATE(VLOOKUP(B41,'Activity-Material_Codes'!$A$2:$B$26,Quantities!$B$2),"-",VLOOKUP(A41,Quantities[],Quantities!$D$2)), CONCATENATE( VLOOKUP(B41,'Activity-Material_Codes'!$A$2:$B$26,Quantities!$B$2), IF(AND(B41="B",C41="a"), " Scraper Grading", ""), IF(C41="b","","-"), IF(C41="b","",VLOOKUP(A41,Quantities[],Quantities!$D$2)), IF(LEFT(TEXT(A41,"0"),1)="5","","-"), IF(LEFT(TEXT(A41,"0"),1)="5","",VLOOKUP(C41,'Activity-Material_Codes'!$A$30:$B$36,Quantities!$B$2)) )) -> Grade-Outslopes-Existing Ground | G41: =CONCATENATE( IF(OR(RIGHT(TEXT($A41,"0"),Quantities!$B$2)="00",LEFT(TEXT($A41,"0"),1)="5",OR($C41="b",$C41="f")),"",VLOOKUP($A41,Quantities[],Quantities!$B$2)), IF(LEFT(TEXT($A41,"0"),1)="5",""," "), IF(OR(C41="a",C41="c",C41="d",C41="e"),IF(OR(RIGHT(TEXT($A41,"0"),Quantities!$B$2)="00",LEFT(TEXT($A41,"0"),1)="5"),VLOOKUP($A41,Quantities[],Quantities!$B$2),""), IF(LEFT(TEXT($A41,"0"),1)="5",VLOOKUP($A41,Quantities[],Quantities!$B$2), VLOOKUP(INDEX(Quantities!$A$100:$A$118,MATCH($A41,Quantities!$C$100:$C$118)),Quantities!$A$100:$B$118,Quantities!$B$2)))) -> 2 Leach (Area 1) | H41: =IF(LEFT(TEXT(A41,"0"),1)="5", VLOOKUP(VLOOKUP(A41,Quantities!$A$4:$D$118,Quantities!$C$2),Quantities!$A$4:$D$118,Quantities!$C$2), IF(OR(C41="a",C41="c",C41="d",C41="e"), "-", IF(RIGHT(TEXT(A41,"0"),2)="00",VLOOKUP(A41,Quantities[],Quantities!$B$2), IF(C41="f",VLOOKUP(A41,Quantities[],Quantities!$B$2), VLOOKUP(A41,Quantities[],Quantities!$C$2)) ))) -> - | I41: =IF(OR(AND(LEFT(D41,2)="Sc",B41="A",C41="d"),AND(C41="f",B41="D")), SUM(VLOOKUP($A41,Quantities[],Quantities!$O$2),VLOOKUP($A41,Quantities[],Quantities!$Q$2),VLOOKUP($A41,Quantities[],Quantities!$S$2)), IF(AND(LEFT(D41,2)="Sc",OR(C41="a",C41="f")), VLOOKUP(A41,Quantities[],Quantities!$I$2), IF(AND(B41="D",C41="b"), VLOOKUP(INDEX(Quantities!$A$100:$A$118,MATCH($A41,Quantities!$C$100:$C$118)),Quantities!$A$100:$AJ$118,Quantities!$O$2)+ VLOOKUP(INDEX(Quantities!$A$100:$A$118,MATCH($A41,Quantities!$C$100:$C$118)),Quantities!$A$100:$AJ$118,Quantities!$Q$2)+ VLOOKUP(INDEX(Quantities!$A$100:$A$118,MATCH($A41,Quantities!$C$100:$C$118)),Quantities!$A$100:$AJ$118,Quantities!$S$2), IF(OR(B41="D",B41="Q"), SUM(VLOOKUP($A41,Quantities[],Quantities!$O$2),VLOOKUP($A41,Quantities[],Quantities!$Q$2),VLOOKUP($A41,Quantities[],Quantities!$S$2)), VLOOKUP(A41,Quantities[],Quantities!$G$2) )))) -> 430 | J41: =IF(LEFT(D41,2)="Mg", VLOOKUP(A41,Quantities[],Quantities!$H$2), IF(OR(AND(LEFT(D41,2)="Sc",B41="A",C41="d",C41="f")), (SUM(VLOOKUP($A41,Quantities[],Quantities!$P$2)*VLOOKUP($A41,Quantities[],Quantities!$O$2),VLOOKUP($A41,Quantities[],Quantities!$R$2)*VLOOKUP($A41,Quantities[],Quantities!$Q$2),VLOOKUP($A41,Quantities[],Quantities!$T$2)*VLOOKUP($A41,Quantities[],Quantities!$S$2)))/SUM(VLOOKUP($A41,Quantities[],Quantities!$O$2),VLOOKUP($A41,Quantities[],Quantities!$Q$2),VLOOKUP($A41,Quantities[],Quantities!$S$2)), IF(AND(LEFT(D41,2)="Sc",OR(C41="a",C41="f")), VLOOKUP(A41,Quantities[],Quantities!$J$2), IF(AND(B41="D",C41="b", (VLOOKUP(INDEX(Quantities!$A$100:$A$118,MATCH($A41,Quantities!$C$100:$C$118)),Quantities[],Quantities!$O$2)+VLOOKUP(INDEX(Quantities!$A$100:$A$118,MATCH($A41,Quantities!$C$100:$C$118)),Quantities[],Quantities!$Q$2)+VLOOKUP(INDEX(Quantities!$A$100:$A$118,MATCH($A41,Quantities!$C$100:$C$118)),Quantities[],Quantities!$S$2))>0), (VLOOKUP(INDEX(Quantities!$A$100:$A$118,MATCH($A41,Quantities!$C$100:$C$118)),Quantities[],Quantities!$P$2)*VLOOKUP(INDEX(Quantities!$A$100:$A$118,MATCH($A41,Quantities!$C$100:$C$118)),Quantities[],Quantities!$O$2) +VLOOKUP(INDEX(Quantities!$A$100:$A$118,MATCH($A41,Quantities!$C$100:$C$118)),Quantities[],Quantities!$R$2)*VLOOKUP(INDEX(Quantities!$A$100:$A$118,MATCH($A41,Quantities!$C$100:$C$118)),Quantities[],Quantities!$Q$2) +VLOOKUP(INDEX(Quantities!$A$100:$A$118,MATCH($A41,Quantities!$C$100:$C$118)),Quantities[],Quantities!$T$2)*VLOOKUP(INDEX(Quantities!$A$100:$A$118,MATCH($A41,Quantities!$C$100:$C$118)),Quantities[],Quantities!$S$2))/ (VLOOKUP(INDEX(Quantities!$A$100:$A$118,MATCH($A41,Quantities!$C$100:$C$118)),Quantities[],Quantities!$O$2)+VLOOKUP(INDEX(Quantities!$A$100:$A$118,MATCH($A41,Quantities!$C$100:$C$118)),Quantities[],Quantities!$Q$2)+VLOOKUP(A41,Quantities[],Quantities!$S$2)), IF(AND(B41="D", (VLOOKUP(A41,Quantities[],Quantities!$O$2)+VLOOKUP(A41,Quantities[],Quantities!$Q$2)+VLOOKUP(A41,Quantities[],Quantities!$S$2))>0), (VLOOKUP(A41,Quantities[],Quantities!$P$2)*VLOOKUP(A41,Quantities[],Quantities!$O$2) +VLOOKUP(A41,Quantities[],Quantities!$R$2)*VLOOKUP(A41,Quantities[],Quantities!$Q$2) +VLOOKUP(A41,Quantities[],Quantities!$T$2)*VLOOKUP(A41,Quantities[],Quantities!$S$2))/ (VLOOKUP(A41,Quantities[],Quantities!$O$2)+VLOOKUP(A41,Quantities[],Quantities!$Q$2)+VLOOKUP(A41,Quantities[],Quantities!$S$2)), IF($B41="Q", (SUM(VLOOKUP($A41,Quantities[],Quantities!$P$2)*VLOOKUP($A41,Quantities[],Quantities!$O$2),VLOOKUP($A41,Quantities[],Quantities!$R$2)*VLOOKUP($A41,Quantities[],Quantities!$Q$2),VLOOKUP($A41,Quantities[],Quantities!$T$2)*VLOOKUP($A41,Quantities[],Quantities!$S$2)))/SUM(VLOOKUP($A41,Quantities[],Quantities!$O$2),VLOOKUP($A41,Quantities[],Quantities!$Q$2),VLOOKUP($A41,Quantities[],Quantities!$S$2)), VLOOKUP(A41,Quantities[],Quantities!$H$2) )))))) -> -0.29 | K41: =IF(LEFT(D41,1)="U","-",VLOOKUP(D41,Equipment[],Equipment!$B$2)) -> Cat D11T CD
A42: =Quantities!$A$31 -> 1802 | B42: A | C42: a | D42: Dz2 | E42: 1802-A-a-Dz2 | F42: =IF(D42="Comb1",CONCATENATE(VLOOKUP(B42,'Activity-Material_Codes'!$A$2:$B$26,Quantities!$B$2),"-",VLOOKUP(A42,Quantities[],Quantities!$D$2)), CONCATENATE( VLOOKUP(B42,'Activity-Material_Codes'!$A$2:$B$26,Quantities!$B$2), IF(AND(B42="B",C42="a"), " Scraper Grading", ""), IF(C42="b","","-"), IF(C42="b","",VLOOKUP(A42,Quantities[],Quantities!$D$2)), IF(LEFT(TEXT(A42,"0"),1)="5","","-"), IF(LEFT(TEXT(A42,"0"),1)="5","",VLOOKUP(C42,'Activity-Material_Codes'!$A$30:$B$36,Quantities!$B$2)) )) -> Grade-Outslopes-Existing Ground | G42: =CONCATENATE( IF(OR(RIGHT(TEXT($A42,"0"),Quantities!$B$2)="00",LEFT(TEXT($A42,"0"),1)="5",OR($C42="b",$C42="f")),"",VLOOKUP($A42,Quantities[],Quantities!$B$2)), IF(LEFT(TEXT($A42,"0"),1)="5",""," "), IF(OR(C42="a",C42="c",C42="d",C42="e"),IF(OR(RIGHT(TEXT($A42,"0"),Quantities!$B$2)="00",LEFT(TEXT($A42,"0"),1)="5"),VLOOKUP($A42,Quantities[],Quantities!$B$2),""), IF(LEFT(TEXT($A42,"0"),1)="5",VLOOKUP($A42,Quantities[],Quantities!$B$2), VLOOKUP(INDEX(Quantities!$A$100:$A$118,MATCH($A42,Quantities!$C$100:$C$118)),Quantities!$A$100:$B$118,Quantities!$B$2)))) -> 2 Leach (Area 2), 7B Leach, 7B Waste, 7C Waste, South Rim Pit | H42: =IF(LEFT(TEXT(A42,"0"),1)="5", VLOOKUP(VLOOKUP(A42,Quantities!$A$4:$D$118,Quantities!$C$2),Quantities!$A$4:$D$118,Quantities!$C$2), IF(OR(C42="a",C42="c",C42="d",C42="e"), "-", IF(RIGHT(TEXT(A42,"0"),2)="00",VLOOKUP(A42,Quantities[],Quantities!$B$2), IF(C42="f",VLOOKUP(A42,Quantities[],Quantities!$B$2), VLOOKUP(A42,Quantities[],Quantities!$C$2)) ))) -> - | I42: =IF(OR(AND(LEFT(D42,2)="Sc",B42="A",C42="d"),AND(C42="f",B42="D")), SUM(VLOOKUP($A42,Quantities[],Quantities!$O$2),VLOOKUP($A42,Quantities[],Quantities!$Q$2),VLOOKUP($A42,Quantities[],Quantities!$S$2)), IF(AND(LEFT(D42,2)="Sc",OR(C42="a",C42="f")), VLOOKUP(A42,Quantities[],Quantities!$I$2), IF(AND(B42="D",C42="b"), VLOOKUP(INDEX(Quantities!$A$100:$A$118,MATCH($A42,Quantities!$C$100:$C$118)),Quantities!$A$100:$AJ$118,Quantities!$O$2)+ VLOOKUP(INDEX(Quantities!$A$100:$A$118,MATCH($A42,Quantities!$C$100:$C$118)),Quantities!$A$100:$AJ$118,Quantities!$Q$2)+ VLOOKUP(INDEX(Quantities!$A$100:$A$118,MATCH($A42,Quantities!$C$100:$C$118)),Quantities!$A$100:$AJ$118,Quantities!$S$2), IF(OR(B42="D",B42="Q"), SUM(VLOOKUP($A42,Quantities[],Quantities!$O$2),VLOOKUP($A42,Quantities[],Quantities!$Q$2),VLOOKUP($A42,Quantities[],Quantities!$S$2)), VLOOKUP(A42,Quantities[],Quantities!$G$2) )))) -> 420 | J42: =IF(LEFT(D42,2)="Mg", VLOOKUP(A42,Quantities[],Quantities!$H$2), IF(OR(AND(LEFT(D42,2)="Sc",B42="A",C42="d",C42="f")), (SUM(VLOOKUP($A42,Quantities[],Quantities!$P$2)*VLOOKUP($A42,Quantities[],Quantities!$O$2),VLOOKUP($A42,Quantities[],Quantities!$R$2)*VLOOKUP($A42,Quantities[],Quantities!$Q$2),VLOOKUP($A42,Quantities[],Quantities!$T$2)*VLOOKUP($A42,Quantities[],Quantities!$S$2)))/SUM(VLOOKUP($A42,Quantities[],Quantities!$O$2),VLOOKUP($A42,Quantities[],Quantities!$Q$2),VLOOKUP($A42,Quantities[],Quantities!$S$2)), IF(AND(LEFT(D42,2)="Sc",OR(C42="a",C42="f")), VLOOKUP(A42,Quantities[],Quantities!$J$2), IF(AND(B42="D",C42="b", (VLOOKUP(INDEX(Quantities!$A$100:$A$118,MATCH($A42,Quantities!$C$100:$C$118)),Quantities[],Quantities!$O$2)+VLOOKUP(INDEX(Quantities!$A$100:$A$118,MATCH($A42,Quantities!$C$100:$C$118)),Quantities[],Quantities!$Q$2)+VLOOKUP(INDEX(Quantities!$A$100:$A$118,MATCH($A42,Quantities!$C$100:$C$118)),Quantities[],Quantities!$S$2))>0), (VLOOKUP(INDEX(Quantities!$A$100:$A$118,MATCH($A42,Quantities!$C$100:$C$118)),Quantities[],Quantities!$P$2)*VLOOKUP(INDEX(Quantities!$A$100:$A$118,MATCH($A42,Quantities!$C$100:$C$118)),Quantities[],Quantities!$O$2) +VLOOKUP(INDEX(Quantities!$A$100:$A$118,MATCH($A42,Quantities!$C$100:$C$118)),Quantities[],Quantities!$R$2)*VLOOKUP(INDEX(Quantities!$A$100:$A$118,MATCH($A42,Quantities!$C$100:$C$118)),Quantities[],Quantities!$Q$2) +VLOOKUP(INDEX(Quantities!$A$100:$A$118,MATCH($A42,Quantities!$C$100:$C$118)),Quantities[],Quantities!$T$2)*VLOOKUP(INDEX(Quantities!$A$100:$A$118,MATCH($A42,Quantities!$C$100:$C$118)),Quantities[],Quantities!$S$2))/ (VLOOKUP(INDEX(Quantities!$A$100:$A$118,MATCH($A42,Quantities!$C$100:$C$118)),Quantities[],Quantities!$O$2)+VLOOKUP(INDEX(Quantities!$A$100:$A$118,MATCH($A42,Quantities!$C$100:$C$118)),Quantities[],Quantities!$Q$2)+VLOOKUP(A42,Quantities[],Quantities!$S$2)), IF(AND(B42="D", (VLOOKUP(A42,Quantities[],Quantities!$O$2)+VLOOKUP(A42,Quantities[],Quantities!$Q$2)+VLOOKUP(A42,Quantities[],Quantities!$S$2))>0), (VLOOKUP(A42,Quantities[],Quantities!$P$2)*VLOOKUP(A42,Quantities[],Quantities!$O$2) +VLOOKUP(A42,Quantities[],Quantities!$R$2)*VLOOKUP(A42,Quantities[],Quantities!$Q$2) +VLOOKUP(A42,Quantities[],Quantities!$T$2)*VLOOKUP(A42,Quantities[],Quantities!$S$2))/ (VLOOKUP(A42,Quantities[],Quantities!$O$2)+VLOOKUP(A42,Quantities[],Quantities!$Q$2)+VLOOKUP(A42,Quantities[],Quantities!$S$2)), IF($B42="Q", (SUM(VLOOKUP($A42,Quantities[],Quantities!$P$2)*VLOOKUP($A42,Quantities[],Quantities!$O$2),VLOOKUP($A42,Quantities[],Quantities!$R$2)*VLOOKUP($A42,Quantities[],Quantities!$Q$2),VLOOKUP($A42,Quantities[],Quantities!$T$2)*VLOOKUP($A42,Quantities[],Quantities!$S$2)))/SUM(VLOOKUP($A42,Quantities[],Quantities!$O$2),VLOOKUP($A42,Quantities[],Quantities!$Q$2),VLOOKUP($A42,Quantities[],Quantities!$S$2)), VLOOKUP(A42,Quantities[],Quantities!$H$2) )))))) -> -0.29 | K42: =IF(LEFT(D42,1)="U","-",VLOOKUP(D42,Equipment[],Equipment!$B$2)) -> Cat D11T CD
A43: =Quantities!$A$25 -> 1602 | B43: A | C43: a | D43: Dz2 | E43: 1602-A-a-Dz2 | F43: =IF(D43="Comb1",CONCATENATE(VLOOKUP(B43,'Activity-Material_Codes'!$A$2:$B$26,Quantities!$B$2),"-",VLOOKUP(A43,Quantities[],Quantities!$D$2)), CONCATENATE( VLOOKUP(B43,'Activity-Material_Codes'!$A$2:$B$26,Quantities!$B$2), IF(AND(B43="B",C43="a"), " Scraper Grading", ""), IF(C43="b","","-"), IF(C43="b","",VLOOKUP(A43,Quantities[],Quantities!$D$2)), IF(LEFT(TEXT(A43,"0"),1)="5","","-"), IF(LEFT(TEXT(A43,"0"),1)="5","",VLOOKUP(C43,'Activity-Material_Codes'!$A$30:$B$36,Quantities!$B$2)) )) -> Grade-Outslopes-Existing Ground | G43: =CONCATENATE( IF(OR(RIGHT(TEXT($A43,"0"),Quantities!$B$2)="00",LEFT(TEXT($A43,"0"),1)="5",OR($C43="b",$C43="f")),"",VLOOKUP($A43,Quantities[],Quantities!$B$2)), IF(LEFT(TEXT($A43,"0"),1)="5",""," "), IF(OR(C43="a",C43="c",C43="d",C43="e"),IF(OR(RIGHT(TEXT($A43,"0"),Quantities!$B$2)="00",LEFT(TEXT($A43,"0"),1)="5"),VLOOKUP($A43,Quantities[],Quantities!$B$2),""), IF(LEFT(TEXT($A43,"0"),1)="5",VLOOKUP($A43,Quantities[],Quantities!$B$2), VLOOKUP(INDEX(Quantities!$A$100:$A$118,MATCH($A43,Quantities!$C$100:$C$118)),Quantities!$A$100:$B$118,Quantities!$B$2)))) -> 6B Leach, 6D Leach | H43: =IF(LEFT(TEXT(A43,"0"),1)="5", VLOOKUP(VLOOKUP(A43,Quantities!$A$4:$D$118,Quantities!$C$2),Quantities!$A$4:$D$118,Quantities!$C$2), IF(OR(C43="a",C43="c",C43="d",C43="e"), "-", IF(RIGHT(TEXT(A43,"0"),2)="00",VLOOKUP(A43,Quantities[],Quantities!$B$2), IF(C43="f",VLOOKUP(A43,Quantities[],Quantities!$B$2), VLOOKUP(A43,Quantities[],Quantities!$C$2)) ))) -> - | I43: =IF(OR(AND(LEFT(D43,2)="Sc",B43="A",C43="d"),AND(C43="f",B43="D")), SUM(VLOOKUP($A43,Quantities[],Quantities!$O$2),VLOOKUP($A43,Quantities[],Quantities!$Q$2),VLOOKUP($A43,Quantities[],Quantities!$S$2)), IF(AND(LEFT(D43,2)="Sc",OR(C43="a",C43="f")), VLOOKUP(A43,Quantities[],Quantities!$I$2), IF(AND(B43="D",C43="b"), VLOOKUP(INDEX(Quantities!$A$100:$A$118,MATCH($A43,Quantities!$C$100:$C$118)),Quantities!$A$100:$AJ$118,Quantities!$O$2)+ VLOOKUP(INDEX(Quantities!$A$100:$A$118,MATCH($A43,Quantities!$C$100:$C$118)),Quantities!$A$100:$AJ$118,Quantities!$Q$2)+ VLOOKUP(INDEX(Quantities!$A$100:$A$118,MATCH($A43,Quantities!$C$100:$C$118)),Quantities!$A$100:$AJ$118,Quantities!$S$2), IF(OR(B43="D",B43="Q"), SUM(VLOOKUP($A43,Quantities[],Quantities!$O$2),VLOOKUP($A43,Quantities[],Quantities!$Q$2),VLOOKUP($A43,Quantities[],Quantities!$S$2)), VLOOKUP(A43,Quantities[],Quantities!$G$2) )))) -> 180 | J43: =IF(LEFT(D43,2)="Mg", VLOOKUP(A43,Quantities[],Quantities!$H$2), IF(OR(AND(LEFT(D43,2)="Sc",B43="A",C43="d",C43="f")), (SUM(VLOOKUP($A43,Quantities[],Quantities!$P$2)*VLOOKUP($A43,Quantities[],Quantities!$O$2),VLOOKUP($A43,Quantities[],Quantities!$R$2)*VLOOKUP($A43,Quantities[],Quantities!$Q$2),VLOOKUP($A43,Quantities[],Quantities!$T$2)*VLOOKUP($A43,Quantities[],Quantities!$S$2)))/SUM(VLOOKUP($A43,Quantities[],Quantities!$O$2),VLOOKUP($A43,Quantities[],Quantities!$Q$2),VLOOKUP($A43,Quantities[],Quantities!$S$2)), IF(AND(LEFT(D43,2)="Sc",OR(C43="a",C43="f")), VLOOKUP(A43,Quantities[],Quantities!$J$2), IF(AND(B43="D",C43="b", (VLOOKUP(INDEX(Quantities!$A$100:$A$118,MATCH($A43,Quantities!$C$100:$C$118)),Quantities[],Quantities!$O$2)+VLOOKUP(INDEX(Quantities!$A$100:$A$118,MATCH($A43,Quantities!$C$100:$C$118)),Quantities[],Quantities!$Q$2)+VLOOKUP(INDEX(Quantities!$A$100:$A$118,MATCH($A43,Quantities!$C$100:$C$118)),Quantities[],Quantities!$S$2))>0), (VLOOKUP(INDEX(Quantities!$A$100:$A$118,MATCH($A43,Quantities!$C$100:$C$118)),Quantities[],Quantities!$P$2)*VLOOKUP(INDEX(Quantities!$A$100:$A$118,MATCH($A43,Quantities!$C$100:$C$118)),Quantities[],Quantities!$O$2) +VLOOKUP(INDEX(Quantities!$A$100:$A$118,MATCH($A43,Quantities!$C$100:$C$118)),Quantities[],Quantities!$R$2)*VLOOKUP(INDEX(Quantities!$A$100:$A$118,MATCH($A43,Quantities!$C$100:$C$118)),Quantities[],Quantities!$Q$2) +VLOOKUP(INDEX(Quantities!$A$100:$A$118,MATCH($A43,Quantities!$C$100:$C$118)),Quantities[],Quantities!$T$2)*VLOOKUP(INDEX(Quantities!$A$100:$A$118,MATCH($A43,Quantities!$C$100:$C$118)),Quantities[],Quantities!$S$2))/ (VLOOKUP(INDEX(Quantities!$A$100:$A$118,MATCH($A43,Quantities!$C$100:$C$118)),Quantities[],Quantities!$O$2)+VLOOKUP(INDEX(Quantities!$A$100:$A$118,MATCH($A43,Quantities!$C$100:$C$118)),Quantities[],Quantities!$Q$2)+VLOOKUP(A43,Quantities[],Quantities!$S$2)), IF(AND(B43="D", (VLOOKUP(A43,Quantities[],Quantities!$O$2)+VLOOKUP(A43,Quantities[],Quantities!$Q$2)+VLOOKUP(A43,Quantities[],Quantities!$S$2))>0), (VLOOKUP(A43,Quantities[],Quantities!$P$2)*VLOOKUP(A43,Quantities[],Quantities!$O$2) +VLOOKUP(A43,Quantities[],Quantities!$R$2)*VLOOKUP(A43,Quantities[],Quantities!$Q$2) +VLOOKUP(A43,Quantities[],Quantities!$T$2)*VLOOKUP(A43,Quantities[],Quantities!$S$2))/ (VLOOKUP(A43,Quantities[],Quantities!$O$2)+VLOOKUP(A43,Quantities[],Quantities!$Q$2)+VLOOKUP(A43,Quantities[],Quantities!$S$2)), IF($B43="Q", (SUM(VLOOKUP($A43,Quantities[],Quantities!$P$2)*VLOOKUP($A43,Quantities[],Quantities!$O$2),VLOOKUP($A43,Quantities[],Quantities!$R$2)*VLOOKUP($A43,Quantities[],Quantities!$Q$2),VLOOKUP($A43,Quantities[],Quantities!$T$2)*VLOOKUP($A43,Quantities[],Quantities!$S$2)))/SUM(VLOOKUP($A43,Quantities[],Quantities!$O$2),VLOOKUP($A43,Quantities[],Quantities!$Q$2),VLOOKUP($A43,Quantities[],Quantities!$S$2)), VLOOKUP(A43,Quantities[],Quantities!$H$2) )))))) -> -0.29 | K43: =IF(LEFT(D43,1)="U","-",VLOOKUP(D43,Equipment[],Equipment!$B$2)) -> Cat D11T CD
A44: =Quantities!$A$28 -> 1702 | B44: A | C44: a | D44: Dz2 | E44: 1702-A-a-Dz2 | F44: =IF(D44="Comb1",CONCATENATE(VLOOKUP(B44,'Activity-Material_Codes'!$A$2:$B$26,Quantities!$B$2),"-",VLOOKUP(A44,Quantities[],Quantities!$D$2)), CONCATENATE( VLOOKUP(B44,'Activity-Material_Codes'!$A$2:$B$26,Quantities!$B$2), IF(AND(B44="B",C44="a"), " Scraper Grading", ""), IF(C44="b","","-"), IF(C44="b","",VLOOKUP(A44,Quantities[],Quantities!$D$2)), IF(LEFT(TEXT(A44,"0"),1)="5","","-"), IF(LEFT(TEXT(A44,"0"),1)="5","",VLOOKUP(C44,'Activity-Material_Codes'!$A$30:$B$36,Quantities!$B$2)) )) -> Grade-Outslopes-Existing Ground | G44: =CONCATENATE( IF(OR(RIGHT(TEXT($A44,"0"),Quantities!$B$2)="00",LEFT(TEXT($A44,"0"),1)="5",OR($C44="b",$C44="f")),"",VLOOKUP($A44,Quantities[],Quantities!$B$2)), IF(LEFT(TEXT($A44,"0"),1)="5",""," "), IF(OR(C44="a",C44="c",C44="d",C44="e"),IF(OR(RIGHT(TEXT($A44,"0"),Quantities!$B$2)="00",LEFT(TEXT($A44,"0"),1)="5"),VLOOKUP($A44,Quantities[],Quantities!$B$2),""), IF(LEFT(TEXT($A44,"0"),1)="5",VLOOKUP($A44,Quantities[],Quantities!$B$2), VLOOKUP(INDEX(Quantities!$A$100:$A$118,MATCH($A44,Quantities!$C$100:$C$118)),Quantities!$A$100:$B$118,Quantities!$B$2)))) -> 6C Leach | H44: =IF(LEFT(TEXT(A44,"0"),1)="5", VLOOKUP(VLOOKUP(A44,Quantities!$A$4:$D$118,Quantities!$C$2),Quantities!$A$4:$D$118,Quantities!$C$2), IF(OR(C44="a",C44="c",C44="d",C44="e"), "-", IF(RIGHT(TEXT(A44,"0"),2)="00",VLOOKUP(A44,Quantities[],Quantities!$B$2), IF(C44="f",VLOOKUP(A44,Quantities[],Quantities!$B$2), VLOOKUP(A44,Quantities[],Quantities!$C$2)) ))) -> - | I44: =IF(OR(AND(LEFT(D44,2)="Sc",B44="A",C44="d"),AND(C44="f",B44="D")), SUM(VLOOKUP($A44,Quantities[],Quantities!$O$2),VLOOKUP($A44,Quantities[],Quantities!$Q$2),VLOOKUP($A44,Quantities[],Quantities!$S$2)), IF(AND(LEFT(D44,2)="Sc",OR(C44="a",C44="f")), VLOOKUP(A44,Quantities[],Quantities!$I$2), IF(AND(B44="D",C44="b"), VLOOKUP(INDEX(Quantities!$A$100:$A$118,MATCH($A44,Quantities!$C$100:$C$118)),Quantities!$A$100:$AJ$118,Quantities!$O$2)+ VLOOKUP(INDEX(Quantities!$A$100:$A$118,MATCH($A44,Quantities!$C$100:$C$118)),Quantities!$A$100:$AJ$118,Quantities!$Q$2)+ VLOOKUP(INDEX(Quantities!$A$100:$A$118,MATCH($A44,Quantities!$C$100:$C$118)),Quantities!$A$100:$AJ$118,Quantities!$S$2), IF(OR(B44="D",B44="Q"), SUM(VLOOKUP($A44,Quantities[],Quantities!$O$2),VLOOKUP($A44,Quantities[],Quantities!$Q$2),VLOOKUP($A44,Quantities[],Quantities!$S$2)), VLOOKUP(A44,Quantities[],Quantities!$G$2) )))) -> 325 | J44: =IF(LEFT(D44,2)="Mg", VLOOKUP(A44,Quantities[],Quantities!$H$2), IF(OR(AND(LEFT(D44,2)="Sc",B44="A",C44="d",C44="f")), (SUM(VLOOKUP($A44,Quantities[],Quantities!$P$2)*VLOOKUP($A44,Quantities[],Quantities!$O$2),VLOOKUP($A44,Quantities[],Quantities!$R$2)*VLOOKUP($A44,Quantities[],Quantities!$Q$2),VLOOKUP($A44,Quantities[],Quantities!$T$2)*VLOOKUP($A44,Quantities[],Quantities!$S$2)))/SUM(VLOOKUP($A44,Quantities[],Quantities!$O$2),VLOOKUP($A44,Quantities[],Quantities!$Q$2),VLOOKUP($A44,Quantities[],Quantities!$S$2)), IF(AND(LEFT(D44,2)="Sc",OR(C44="a",C44="f")), VLOOKUP(A44,Quantities[],Quantities!$J$2), IF(AND(B44="D",C44="b", (VLOOKUP(INDEX(Quantities!$A$100:$A$118,MATCH($A44,Quantities!$C$100:$C$118)),Quantities[],Quantities!$O$2)+VLOOKUP(INDEX(Quantities!$A$100:$A$118,MATCH($A44,Quantities!$C$100:$C$118)),Quantities[],Quantities!$Q$2)+VLOOKUP(INDEX(Quantities!$A$100:$A$118,MATCH($A44,Quantities!$C$100:$C$118)),Quantities[],Quantities!$S$2))>0), (VLOOKUP(INDEX(Quantities!$A$100:$A$118,MATCH($A44,Quantities!$C$100:$C$118)),Quantities[],Quantities!$P$2)*VLOOKUP(INDEX(Quantities!$A$100:$A$118,MATCH($A44,Quantities!$C$100:$C$118)),Quantities[],Quantities!$O$2) +VLOOKUP(INDEX(Quantities!$A$100:$A$118,MATCH($A44,Quantities!$C$100:$C$118)),Quantities[],Quantities!$R$2)*VLOOKUP(INDEX(Quantities!$A$100:$A$118,MATCH($A44,Quantities!$C$100:$C$118)),Quantities[],Quantities!$Q$2) +VLOOKUP(INDEX(Quantities!$A$100:$A$118,MATCH($A44,Quantities!$C$100:$C$118)),Quantities[],Quantities!$T$2)*VLOOKUP(INDEX(Quantities!$A$100:$A$118,MATCH($A44,Quantities!$C$100:$C$118)),Quantities[],Quantities!$S$2))/ (VLOOKUP(INDEX(Quantities!$A$100:$A$118,MATCH($A44,Quantities!$C$100:$C$118)),Quantities[],Quantities!$O$2)+VLOOKUP(INDEX(Quantities!$A$100:$A$118,MATCH($A44,Quantities!$C$100:$C$118)),Quantities[],Quantities!$Q$2)+VLOOKUP(A44,Quantities[],Quantities!$S$2)), IF(AND(B44="D", (VLOOKUP(A44,Quantities[],Quantities!$O$2)+VLOOKUP(A44,Quantities[],Quantities!$Q$2)+VLOOKUP(A44,Quantities[],Quantities!$S$2))>0), (VLOOKUP(A44,Quantities[],Quantities!$P$2)*VLOOKUP(A44,Quantities[],Quantities!$O$2) +VLOOKUP(A44,Quantities[],Quantities!$R$2)*VLOOKUP(A44,Quantities[],Quantities!$Q$2) +VLOOKUP(A44,Quantities[],Quantities!$T$2)*VLOOKUP(A44,Quantities[],Quantities!$S$2))/ (VLOOKUP(A44,Quantities[],Quantities!$O$2)+VLOOKUP(A44,Quantities[],Quantities!$Q$2)+VLOOKUP(A44,Quantities[],Quantities!$S$2)), IF($B44="Q", (SUM(VLOOKUP($A44,Quantities[],Quantities!$P$2)*VLOOKUP($A44,Quantities[],Quantities!$O$2),VLOOKUP($A44,Quantities[],Quantities!$R$2)*VLOOKUP($A44,Quantities[],Quantities!$Q$2),VLOOKUP($A44,Quantities[],Quantities!$T$2)*VLOOKUP($A44,Quantities[],Quantities!$S$2)))/SUM(VLOOKUP($A44,Quantities[],Quantities!$O$2),VLOOKUP($A44,Quantities[],Quantities!$Q$2),VLOOKUP($A44,Quantities[],Quantities!$S$2)), VLOOKUP(A44,Quantities[],Quantities!$H$2) )))))) -> -0.29 | K44: =IF(LEFT(D44,1)="U","-",VLOOKUP(D44,Equipment[],Equipment!$B$2)) -> Cat D11T CD
A45: =Quantities!$A$35 -> 2002 | B45: A | C45: a | D45: Dz2 | E45: 2002-A-a-Dz2 | F45: =IF(D45="Comb1",CONCATENATE(VLOOKUP(B45,'Activity-Material_Codes'!$A$2:$B$26,Quantities!$B$2),"-",VLOOKUP(A45,Quantities[],Quantities!$D$2)), CONCATENATE( VLOOKUP(B45,'Activity-Material_Codes'!$A$2:$B$26,Quantities!$B$2), IF(AND(B45="B",C45="a"), " Scraper Grading", ""), IF(C45="b","","-"), IF(C45="b","",VLOOKUP(A45,Quantities[],Quantities!$D$2)), IF(LEFT(TEXT(A45,"0"),1)="5","","-"), IF(LEFT(TEXT(A45,"0"),1)="5","",VLOOKUP(C45,'Activity-Material_Codes'!$A$30:$B$36,Quantities!$B$2)) )) -> Grade-Outslopes - Regrade benches from pullback-Existing Ground | G45: =CONCATENATE( IF(OR(RIGHT(TEXT($A45,"0"),Quantities!$B$2)="00",LEFT(TEXT($A45,"0"),1)="5",OR($C45="b",$C45="f")),"",VLOOKUP($A45,Quantities[],Quantities!$B$2)), IF(LEFT(TEXT($A45,"0"),1)="5",""," "), IF(OR(C45="a",C45="c",C45="d",C45="e"),IF(OR(RIGHT(TEXT($A45,"0"),Quantities!$B$2)="00",LEFT(TEXT($A45,"0"),1)="5"),VLOOKUP($A45,Quantities[],Quantities!$B$2),""), IF(LEFT(TEXT($A45,"0"),1)="5",VLOOKUP($A45,Quantities[],Quantities!$B$2), VLOOKUP(INDEX(Quantities!$A$100:$A$118,MATCH($A45,Quantities!$C$100:$C$118)),Quantities!$A$100:$B$118,Quantities!$B$2)))) -> 9A Waste | H45: =IF(LEFT(TEXT(A45,"0"),1)="5", VLOOKUP(VLOOKUP(A45,Quantities!$A$4:$D$118,Quantities!$C$2),Quantities!$A$4:$D$118,Quantities!$C$2), IF(OR(C45="a",C45="c",C45="d",C45="e"), "-", IF(RIGHT(TEXT(A45,"0"),2)="00",VLOOKUP(A45,Quantities[],Quantities!$B$2), IF(C45="f",VLOOKUP(A45,Quantities[],Quantities!$B$2), VLOOKUP(A45,Quantities[],Quantities!$C$2)) ))) -> - | I45: =IF(OR(AND(LEFT(D45,2)="Sc",B45="A",C45="d"),AND(C45="f",B45="D")), SUM(VLOOKUP($A45,Quantities[],Quantities!$O$2),VLOOKUP($A45,Quantities[],Quantities!$Q$2),VLOOKUP($A45,Quantities[],Quantities!$S$2)), IF(AND(LEFT(D45,2)="Sc",OR(C45="a",C45="f")), VLOOKUP(A45,Quantities[],Quantities!$I$2), IF(AND(B45="D",C45="b"), VLOOKUP(INDEX(Quantities!$A$100:$A$118,MATCH($A45,Quantities!$C$100:$C$118)),Quantities!$A$100:$AJ$118,Quantities!$O$2)+ VLOOKUP(INDEX(Quantities!$A$100:$A$118,MATCH($A45,Quantities!$C$100:$C$118)),Quantities!$A$100:$AJ$118,Quantities!$Q$2)+ VLOOKUP(INDEX(Quantities!$A$100:$A$118,MATCH($A45,Quantities!$C$100:$C$118)),Quantities!$A$100:$AJ$118,Quantities!$S$2), IF(OR(B45="D",B45="Q"), SUM(VLOOKUP($A45,Quantities[],Quantities!$O$2),VLOOKUP($A45,Quantities[],Quantities!$Q$2),VLOOKUP($A45,Quantities[],Quantities!$S$2)), VLOOKUP(A45,Quantities[],Quantities!$G$2) )))) -> 90 | J45: =IF(LEFT(D45,2)="Mg", VLOOKUP(A45,Quantities[],Quantities!$H$2), IF(OR(AND(LEFT(D45,2)="Sc",B45="A",C45="d",C45="f")), (SUM(VLOOKUP($A45,Quantities[],Quantities!$P$2)*VLOOKUP($A45,Quantities[],Quantities!$O$2),VLOOKUP($A45,Quantities[],Quantities!$R$2)*VLOOKUP($A45,Quantities[],Quantities!$Q$2),VLOOKUP($A45,Quantities[],Quantities!$T$2)*VLOOKUP($A45,Quantities[],Quantities!$S$2)))/SUM(VLOOKUP($A45,Quantities[],Quantities!$O$2),VLOOKUP($A45,Quantities[],Quantities!$Q$2),VLOOKUP($A45,Quantities[],Quantities!$S$2)), IF(AND(LEFT(D45,2)="Sc",OR(C45="a",C45="f")), VLOOKUP(A45,Quantities[],Quantities!$J$2), IF(AND(B45="D",C45="b", (VLOOKUP(INDEX(Quantities!$A$100:$A$118,MATCH($A45,Quantities!$C$100:$C$118)),Quantities[],Quantities!$O$2)+VLOOKUP(INDEX(Quantities!$A$100:$A$118,MATCH($A45,Quantities!$C$100:$C$118)),Quantities[],Quantities!$Q$2)+VLOOKUP(INDEX(Quantities!$A$100:$A$118,MATCH($A45,Quantities!$C$100:$C$118)),Quantities[],Quantities!$S$2))>0), (VLOOKUP(INDEX(Quantities!$A$100:$A$118,MATCH($A45,Quantities!$C$100:$C$118)),Quantities[],Quantities!$P$2)*VLOOKUP(INDEX(Quantities!$A$100:$A$118,MATCH($A45,Quantities!$C$100:$C$118)),Quantities[],Quantities!$O$2) +VLOOKUP(INDEX(Quantities!$A$100:$A$118,MATCH($A45,Quantities!$C$100:$C$118)),Quantities[],Quantities!$R$2)*VLOOKUP(INDEX(Quantities!$A$100:$A$118,MATCH($A45,Quantities!$C$100:$C$118)),Quantities[],Quantities!$Q$2) +VLOOKUP(INDEX(Quantities!$A$100:$A$118,MATCH($A45,Quantities!$C$100:$C$118)),Quantities[],Quantities!$T$2)*VLOOKUP(INDEX(Quantities!$A$100:$A$118,MATCH($A45,Quantities!$C$100:$C$118)),Quantities[],Quantities!$S$2))/ (VLOOKUP(INDEX(Quantities!$A$100:$A$118,MATCH($A45,Quantities!$C$100:$C$118)),Quantities[],Quantities!$O$2)+VLOOKUP(INDEX(Quantities!$A$100:$A$118,MATCH($A45,Quantities!$C$100:$C$118)),Quantities[],Quantities!$Q$2)+VLOOKUP(A45,Quantities[],Quantities!$S$2)), IF(AND(B45="D", (VLOOKUP(A45,Quantities[],Quantities!$O$2)+VLOOKUP(A45,Quantities[],Quantities!$Q$2)+VLOOKUP(A45,Quantities[],Quantities!$S$2))>0), (VLOOKUP(A45,Quantities[],Quantities!$P$2)*VLOOKUP(A45,Quantities[],Quantities!$O$2) +VLOOKUP(A45,Quantities[],Quantities!$R$2)*VLOOKUP(A45,Quantities[],Quantities!$Q$2) +VLOOKUP(A45,Quantities[],Quantities!$T$2)*VLOOKUP(A45,Quantities[],Quantities!$S$2))/ (VLOOKUP(A45,Quantities[],Quantities!$O$2)+VLOOKUP(A45,Quantities[],Quantities!$Q$2)+VLOOKUP(A45,Quantities[],Quantities!$S$2)), IF($B45="Q", (SUM(VLOOKUP($A45,Quantities[],Quantities!$P$2)*VLOOKUP($A45,Quantities[],Quantities!$O$2),VLOOKUP($A45,Quantities[],Quantities!$R$2)*VLOOKUP($A45,Quantities[],Quantities!$Q$2),VLOOKUP($A45,Quantities[],Quantities!$T$2)*VLOOKUP($A45,Quantities[],Quantities!$S$2)))/SUM(VLOOKUP($A45,Quantities[],Quantities!$O$2),VLOOKUP($A45,Quantities[],Quantities!$Q$2),VLOOKUP($A45,Quantities[],Quantities!$S$2)), VLOOKUP(A45,Quantities[],Quantities!$H$2) )))))) -> -0.29 | K45: =IF(LEFT(D45,1)="U","-",VLOOKUP(D45,Equipment[],Equipment!$B$2)) -> Cat D11T CD
A46: =Quantities!$A$5 -> 1001 | B46: A | C46: a | D46: Mg1 | E46: 1001-A-a-Mg1 | F46: =IF(D46="Comb1",CONCATENATE(VLOOKUP(B46,'Activity-Material_Codes'!$A$2:$B$26,Quantities!$B$2),"-",VLOOKUP(A46,Quantities[],Quantities!$D$2)), CONCATENATE( VLOOKUP(B46,'Activity-Material_Codes'!$A$2:$B$26,Quantities!$B$2), IF(AND(B46="B",C46="a"), " Scraper Grading", ""), IF(C46="b","","-"), IF(C46="b","",VLOOKUP(A46,Quantities[],Quantities!$D$2)), IF(LEFT(TEXT(A46,"0"),1)="5","","-"), IF(LEFT(TEXT(A46,"0"),1)="5","",VLOOKUP(C46,'Activity-Material_Codes'!$A$30:$B$36,Quantities!$B$2)) )) -> Grade-Top-Existing Ground | G46: =CONCATENATE( IF(OR(RIGHT(TEXT($A46,"0"),Quantities!$B$2)="00",LEFT(TEXT($A46,"0"),1)="5",OR($C46="b",$C46="f")),"",VLOOKUP($A46,Quantities[],Quantities!$B$2)), IF(LEFT(TEXT($A46,"0"),1)="5",""," "), IF(OR(C46="a",C46="c",C46="d",C46="e"),IF(OR(RIGHT(TEXT($A46,"0"),Quantities!$B$2)="00",LEFT(TEXT($A46,"0"),1)="5"),VLOOKUP($A46,Quantities[],Quantities!$B$2),""), IF(LEFT(TEXT($A46,"0"),1)="5",VLOOKUP($A46,Quantities[],Quantities!$B$2), VLOOKUP(INDEX(Quantities!$A$100:$A$118,MATCH($A46,Quantities!$C$100:$C$118)),Quantities!$A$100:$B$118,Quantities!$B$2)))) -> 1A Leach, 1B Leach | H46: =IF(LEFT(TEXT(A46,"0"),1)="5", VLOOKUP(VLOOKUP(A46,Quantities!$A$4:$D$118,Quantities!$C$2),Quantities!$A$4:$D$118,Quantities!$C$2), IF(OR(C46="a",C46="c",C46="d",C46="e"), "-", IF(RIGHT(TEXT(A46,"0"),2)="00",VLOOKUP(A46,Quantities[],Quantities!$B$2), IF(C46="f",VLOOKUP(A46,Quantities[],Quantities!$B$2), VLOOKUP(A46,Quantities[],Quantities!$C$2)) ))) -> - | I46: =IF(OR(AND(LEFT(D46,2)="Sc",B46="A",C46="d"),AND(C46="f",B46="D")), SUM(VLOOKUP($A46,Quantities[],Quantities!$O$2),VLOOKUP($A46,Quantities[],Quantities!$Q$2),VLOOKUP($A46,Quantities[],Quantities!$S$2)), IF(AND(LEFT(D46,2)="Sc",OR(C46="a",C46="f")), VLOOKUP(A46,Quantities[],Quantities!$I$2), IF(AND(B46="D",C46="b"), VLOOKUP(INDEX(Quantities!$A$100:$A$118,MATCH($A46,Quantities!$C$100:$C$118)),Quantities!$A$100:$AJ$118,Quantities!$O$2)+ VLOOKUP(INDEX(Quantities!$A$100:$A$118,MATCH($A46,Quantities!$C$100:$C$118)),Quantities!$A$100:$AJ$118,Quantities!$Q$2)+ VLOOKUP(INDEX(Quantities!$A$100:$A$118,MATCH($A46,Quantities!$C$100:$C$118)),Quantities!$A$100:$AJ$118,Quantities!$S$2), IF(OR(B46="D",B46="Q"), SUM(VLOOKUP($A46,Quantities[],Quantities!$O$2),VLOOKUP($A46,Quantities[],Quantities!$Q$2),VLOOKUP($A46,Quantities[],Quantities!$S$2)), VLOOKUP(A46,Quantities[],Quantities!$G$2) )))) -> 430 | J46: =IF(LEFT(D46,2)="Mg", VLOOKUP(A46,Quantities[],Quantities!$H$2), IF(OR(AND(LEFT(D46,2)="Sc",B46="A",C46="d",C46="f")), (SUM(VLOOKUP($A46,Quantities[],Quantities!$P$2)*VLOOKUP($A46,Quantities[],Quantities!$O$2),VLOOKUP($A46,Quantities[],Quantities!$R$2)*VLOOKUP($A46,Quantities[],Quantities!$Q$2),VLOOKUP($A46,Quantities[],Quantities!$T$2)*VLOOKUP($A46,Quantities[],Quantities!$S$2)))/SUM(VLOOKUP($A46,Quantities[],Quantities!$O$2),VLOOKUP($A46,Quantities[],Quantities!$Q$2),VLOOKUP($A46,Quantities[],Quantities!$S$2)), IF(AND(LEFT(D46,2)="Sc",OR(C46="a",C46="f")), VLOOKUP(A46,Quantities[],Quantities!$J$2), IF(AND(B46="D",C46="b", (VLOOKUP(INDEX(Quantities!$A$100:$A$118,MATCH($A46,Quantities!$C$100:$C$118)),Quantities[],Quantities!$O$2)+VLOOKUP(INDEX(Quantities!$A$100:$A$118,MATCH($A46,Quantities!$C$100:$C$118)),Quantities[],Quantities!$Q$2)+VLOOKUP(INDEX(Quantities!$A$100:$A$118,MATCH($A46,Quantities!$C$100:$C$118)),Quantities[],Quantities!$S$2))>0), (VLOOKUP(INDEX(Quantities!$A$100:$A$118,MATCH($A46,Quantities!$C$100:$C$118)),Quantities[],Quantities!$P$2)*VLOOKUP(INDEX(Quantities!$A$100:$A$118,MATCH($A46,Quantities!$C$100:$C$118)),Quantities[],Quantities!$O$2) +VLOOKUP(INDEX(Quantities!$A$100:$A$118,MATCH($A46,Quantities!$C$100:$C$118)),Quantities[],Quantities!$R$2)*VLOOKUP(INDEX(Quantities!$A$100:$A$118,MATCH($A46,Quantities!$C$100:$C$118)),Quantities[],Quantities!$Q$2) +VLOOKUP(INDEX(Quantities!$A$100:$A$118,MATCH($A46,Quantities!$C$100:$C$118)),Quantities[],Quantities!$T$2)*VLOOKUP(INDEX(Quantities!$A$100:$A$118,MATCH($A46,Quantities!$C$100:$C$118)),Quantities[],Quantities!$S$2))/ (VLOOKUP(INDEX(Quantities!$A$100:$A$118,MATCH($A46,Quantities!$C$100:$C$118)),Quantities[],Quantities!$O$2)+VLOOKUP(INDEX(Quantities!$A$100:$A$118,MATCH($A46,Quantities!$C$100:$C$118)),Quantities[],Quantities!$Q$2)+VLOOKUP(A46,Quantities[],Quantities!$S$2)), IF(AND(B46="D", (VLOOKUP(A46,Quantities[],Quantities!$O$2)+VLOOKUP(A46,Quantities[],Quantities!$Q$2)+VLOOKUP(A46,Quantities[],Quantities!$S$2))>0), (VLOOKUP(A46,Quantities[],Quantities!$P$2)*VLOOKUP(A46,Quantities[],Quantities!$O$2) +VLOOKUP(A46,Quantities[],Quantities!$R$2)*VLOOKUP(A46,Quantities[],Quantities!$Q$2) +VLOOKUP(A46,Quantities[],Quantities!$T$2)*VLOOKUP(A46,Quantities[],Quantities!$S$2))/ (VLOOKUP(A46,Quantities[],Quantities!$O$2)+VLOOKUP(A46,Quantities[],Quantities!$Q$2)+VLOOKUP(A46,Quantities[],Quantities!$S$2)), IF($B46="Q", (SUM(VLOOKUP($A46,Quantities[],Quantities!$P$2)*VLOOKUP($A46,Quantities[],Quantities!$O$2),VLOOKUP($A46,Quantities[],Quantities!$R$2)*VLOOKUP($A46,Quantities[],Quantities!$Q$2),VLOOKUP($A46,Quantities[],Quantities!$T$2)*VLOOKUP($A46,Quantities[],Quantities!$S$2)))/SUM(VLOOKUP($A46,Quantities[],Quantities!$O$2),VLOOKUP($A46,Quantities[],Quantities!$Q$2),VLOOKUP($A46,Quantities[],Quantities!$S$2)), VLOOKUP(A46,Quantities[],Quantities!$H$2) )))))) -> 0.01 | K46: =IF(LEFT(D46,1)="U","-",VLOOKUP(D46,Equipment[],Equipment!$B$2)) -> Cat 16M
A47: =Quantities!$A$10 -> 1201 | B47: A | C47: a | D47: Mg1 | E47: 1201-A-a-Mg1 | F47: =IF(D47="Comb1",CONCATENATE(VLOOKUP(B47,'Activity-Material_Codes'!$A$2:$B$26,Quantities!$B$2),"-",VLOOKUP(A47,Quantities[],Quantities!$D$2)), CONCATENATE( VLOOKUP(B47,'Activity-Material_Codes'!$A$2:$B$26,Quantities!$B$2), IF(AND(B47="B",C47="a"), " Scraper Grading", ""), IF(C47="b","","-"), IF(C47="b","",VLOOKUP(A47,Quantities[],Quantities!$D$2)), IF(LEFT(TEXT(A47,"0"),1)="5","","-"), IF(LEFT(TEXT(A47,"0"),1)="5","",VLOOKUP(C47,'Activity-Material_Codes'!$A$30:$B$36,Quantities!$B$2)) )) -> Grade-Top-Existing Ground | G47: =CONCATENATE( IF(OR(RIGHT(TEXT($A47,"0"),Quantities!$B$2)="00",LEFT(TEXT($A47,"0"),1)="5",OR($C47="b",$C47="f")),"",VLOOKUP($A47,Quantities[],Quantities!$B$2)), IF(LEFT(TEXT($A47,"0"),1)="5",""," "), IF(OR(C47="a",C47="c",C47="d",C47="e"),IF(OR(RIGHT(TEXT($A47,"0"),Quantities!$B$2)="00",LEFT(TEXT($A47,"0"),1)="5"),VLOOKUP($A47,Quantities[],Quantities!$B$2),""), IF(LEFT(TEXT($A47,"0"),1)="5",VLOOKUP($A47,Quantities[],Quantities!$B$2), VLOOKUP(INDEX(Quantities!$A$100:$A$118,MATCH($A47,Quantities!$C$100:$C$118)),Quantities!$A$100:$B$118,Quantities!$B$2)))) -> 2B Waste, 2A Leach, 2B Leach | H47: =IF(LEFT(TEXT(A47,"0"),1)="5", VLOOKUP(VLOOKUP(A47,Quantities!$A$4:$D$118,Quantities!$C$2),Quantities!$A$4:$D$118,Quantities!$C$2), IF(OR(C47="a",C47="c",C47="d",C47="e"), "-", IF(RIGHT(TEXT(A47,"0"),2)="00",VLOOKUP(A47,Quantities[],Quantities!$B$2), IF(C47="f",VLOOKUP(A47,Quantities[],Quantities!$B$2), VLOOKUP(A47,Quantities[],Quantities!$C$2)) ))) -> - | I47: =IF(OR(AND(LEFT(D47,2)="Sc",B47="A",C47="d"),AND(C47="f",B47="D")), SUM(VLOOKUP($A47,Quantities[],Quantities!$O$2),VLOOKUP($A47,Quantities[],Quantities!$Q$2),VLOOKUP($A47,Quantities[],Quantities!$S$2)), IF(AND(LEFT(D47,2)="Sc",OR(C47="a",C47="f")), VLOOKUP(A47,Quantities[],Quantities!$I$2), IF(AND(B47="D",C47="b"), VLOOKUP(INDEX(Quantities!$A$100:$A$118,MATCH($A47,Quantities!$C$100:$C$118)),Quantities!$A$100:$AJ$118,Quantities!$O$2)+ VLOOKUP(INDEX(Quantities!$A$100:$A$118,MATCH($A47,Quantities!$C$100:$C$118)),Quantities!$A$100:$AJ$118,Quantities!$Q$2)+ VLOOKUP(INDEX(Quantities!$A$100:$A$118,MATCH($A47,Quantities!$C$100:$C$118)),Quantities!$A$100:$AJ$118,Quantities!$S$2), IF(OR(B47="D",B47="Q"), SUM(VLOOKUP($A47,Quantities[],Quantities!$O$2),VLOOKUP($A47,Quantities[],Quantities!$Q$2),VLOOKUP($A47,Quantities[],Quantities!$S$2)), VLOOKUP(A47,Quantities[],Quantities!$G$2) )))) -> 370 | J47: =IF(LEFT(D47,2)="Mg", VLOOKUP(A47,Quantities[],Quantities!$H$2), IF(OR(AND(LEFT(D47,2)="Sc",B47="A",C47="d",C47="f")), (SUM(VLOOKUP($A47,Quantities[],Quantities!$P$2)*VLOOKUP($A47,Quantities[],Quantities!$O$2),VLOOKUP($A47,Quantities[],Quantities!$R$2)*VLOOKUP($A47,Quantities[],Quantities!$Q$2),VLOOKUP($A47,Quantities[],Quantities!$T$2)*VLOOKUP($A47,Quantities[],Quantities!$S$2)))/SUM(VLOOKUP($A47,Quantities[],Quantities!$O$2),VLOOKUP($A47,Quantities[],Quantities!$Q$2),VLOOKUP($A47,Quantities[],Quantities!$S$2)), IF(AND(LEFT(D47,2)="Sc",OR(C47="a",C47="f")), VLOOKUP(A47,Quantities[],Quantities!$J$2), IF(AND(B47="D",C47="b", (VLOOKUP(INDEX(Quantities!$A$100:$A$118,MATCH($A47,Quantities!$C$100:$C$118)),Quantities[],Quantities!$O$2)+VLOOKUP(INDEX(Quantities!$A$100:$A$118,MATCH($A47,Quantities!$C$100:$C$118)),Quantities[],Quantities!$Q$2)+VLOOKUP(INDEX(Quantities!$A$100:$A$118,MATCH($A47,Quantities!$C$100:$C$118)),Quantities[],Quantities!$S$2))>0), (VLOOKUP(INDEX(Quantities!$A$100:$A$118,MATCH($A47,Quantities!$C$100:$C$118)),Quantities[],Quantities!$P$2)*VLOOKUP(INDEX(Quantities!$A$100:$A$118,MATCH($A47,Quantities!$C$100:$C$118)),Quantities[],Quantities!$O$2) +VLOOKUP(INDEX(Quantities!$A$100:$A$118,MATCH($A47,Quantities!$C$100:$C$118)),Quantities[],Quantities!$R$2)*VLOOKUP(INDEX(Quantities!$A$100:$A$118,MATCH($A47,Quantities!$C$100:$C$118)),Quantities[],Quantities!$Q$2) +VLOOKUP(INDEX(Quantities!$A$100:$A$118,MATCH($A47,Quantities!$C$100:$C$118)),Quantities[],Quantities!$T$2)*VLOOKUP(INDEX(Quantities!$A$100:$A$118,MATCH($A47,Quantities!$C$100:$C$118)),Quantities[],Quantities!$S$2))/ (VLOOKUP(INDEX(Quantities!$A$100:$A$118,MATCH($A47,Quantities!$C$100:$C$118)),Quantities[],Quantities!$O$2)+VLOOKUP(INDEX(Quantities!$A$100:$A$118,MATCH($A47,Quantities!$C$100:$C$118)),Quantities[],Quantities!$Q$2)+VLOOKUP(A47,Quantities[],Quantities!$S$2)), IF(AND(B47="D", (VLOOKUP(A47,Quantities[],Quantities!$O$2)+VLOOKUP(A47,Quantities[],Quantities!$Q$2)+VLOOKUP(A47,Quantities[],Quantities!$S$2))>0), (VLOOKUP(A47,Quantities[],Quantities!$P$2)*VLOOKUP(A47,Quantities[],Quantities!$O$2) +VLOOKUP(A47,Quantities[],Quantities!$R$2)*VLOOKUP(A47,Quantities[],Quantities!$Q$2) +VLOOKUP(A47,Quantities[],Quantities!$T$2)*VLOOKUP(A47,Quantities[],Quantities!$S$2))/ (VLOOKUP(A47,Quantities[],Quantities!$O$2)+VLOOKUP(A47,Quantities[],Quantities!$Q$2)+VLOOKUP(A47,Quantities[],Quantities!$S$2)), IF($B47="Q", (SUM(VLOOKUP($A47,Quantities[],Quantities!$P$2)*VLOOKUP($A47,Quantities[],Quantities!$O$2),VLOOKUP($A47,Quantities[],Quantities!$R$2)*VLOOKUP($A47,Quantities[],Quantities!$Q$2),VLOOKUP($A47,Quantities[],Quantities!$T$2)*VLOOKUP($A47,Quantities[],Quantities!$S$2)))/SUM(VLOOKUP($A47,Quantities[],Quantities!$O$2),VLOOKUP($A47,Quantities[],Quantities!$Q$2),VLOOKUP($A47,Quantities[],Quantities!$S$2)), VLOOKUP(A47,Quantities[],Quantities!$H$2) )))))) -> 0.01 | K47: =IF(LEFT(D47,1)="U","-",VLOOKUP(D47,Equipment[],Equipment!$B$2)) -> Cat 16M
A48: =Quantities!$A$13 -> 1301 | B48: A | C48: a | D48: Mg1 | E48: 1301-A-a-Mg1 | F48: =IF(D48="Comb1",CONCATENATE(VLOOKUP(B48,'Activity-Material_Codes'!$A$2:$B$26,Quantities!$B$2),"-",VLOOKUP(A48,Quantities[],Quantities!$D$2)), CONCATENATE( VLOOKUP(B48,'Activity-Material_Codes'!$A$2:$B$26,Quantities!$B$2), IF(AND(B48="B",C48="a"), " Scraper Grading", ""), IF(C48="b","","-"), IF(C48="b","",VLOOKUP(A48,Quantities[],Quantities!$D$2)), IF(LEFT(TEXT(A48,"0"),1)="5","","-"), IF(LEFT(TEXT(A48,"0"),1)="5","",VLOOKUP(C48,'Activity-Material_Codes'!$A$30:$B$36,Quantities!$B$2)) )) -> Grade-Top-Existing Ground | G48: =CONCATENATE( IF(OR(RIGHT(TEXT($A48,"0"),Quantities!$B$2)="00",LEFT(TEXT($A48,"0"),1)="5",OR($C48="b",$C48="f")),"",VLOOKUP($A48,Quantities[],Quantities!$B$2)), IF(LEFT(TEXT($A48,"0"),1)="5",""," "), IF(OR(C48="a",C48="c",C48="d",C48="e"),IF(OR(RIGHT(TEXT($A48,"0"),Quantities!$B$2)="00",LEFT(TEXT($A48,"0"),1)="5"),VLOOKUP($A48,Quantities[],Quantities!$B$2),""), IF(LEFT(TEXT($A48,"0"),1)="5",VLOOKUP($A48,Quantities[],Quantities!$B$2), VLOOKUP(INDEX(Quantities!$A$100:$A$118,MATCH($A48,Quantities!$C$100:$C$118)),Quantities!$A$100:$B$118,Quantities!$B$2)))) -> 3A Leach, 3B Waste | H48: =IF(LEFT(TEXT(A48,"0"),1)="5", VLOOKUP(VLOOKUP(A48,Quantities!$A$4:$D$118,Quantities!$C$2),Quantities!$A$4:$D$118,Quantities!$C$2), IF(OR(C48="a",C48="c",C48="d",C48="e"), "-", IF(RIGHT(TEXT(A48,"0"),2)="00",VLOOKUP(A48,Quantities[],Quantities!$B$2), IF(C48="f",VLOOKUP(A48,Quantities[],Quantities!$B$2), VLOOKUP(A48,Quantities[],Quantities!$C$2)) ))) -> - | I48: =IF(OR(AND(LEFT(D48,2)="Sc",B48="A",C48="d"),AND(C48="f",B48="D")), SUM(VLOOKUP($A48,Quantities[],Quantities!$O$2),VLOOKUP($A48,Quantities[],Quantities!$Q$2),VLOOKUP($A48,Quantities[],Quantities!$S$2)), IF(AND(LEFT(D48,2)="Sc",OR(C48="a",C48="f")), VLOOKUP(A48,Quantities[],Quantities!$I$2), IF(AND(B48="D",C48="b"), VLOOKUP(INDEX(Quantities!$A$100:$A$118,MATCH($A48,Quantities!$C$100:$C$118)),Quantities!$A$100:$AJ$118,Quantities!$O$2)+ VLOOKUP(INDEX(Quantities!$A$100:$A$118,MATCH($A48,Quantities!$C$100:$C$118)),Quantities!$A$100:$AJ$118,Quantities!$Q$2)+ VLOOKUP(INDEX(Quantities!$A$100:$A$118,MATCH($A48,Quantities!$C$100:$C$118)),Quantities!$A$100:$AJ$118,Quantities!$S$2), IF(OR(B48="D",B48="Q"), SUM(VLOOKUP($A48,Quantities[],Quantities!$O$2),VLOOKUP($A48,Quantities[],Quantities!$Q$2),VLOOKUP($A48,Quantities[],Quantities!$S$2)), VLOOKUP(A48,Quantities[],Quantities!$G$2) )))) -> 560 | J48: =IF(LEFT(D48,2)="Mg", VLOOKUP(A48,Quantities[],Quantities!$H$2), IF(OR(AND(LEFT(D48,2)="Sc",B48="A",C48="d",C48="f")), (SUM(VLOOKUP($A48,Quantities[],Quantities!$P$2)*VLOOKUP($A48,Quantities[],Quantities!$O$2),VLOOKUP($A48,Quantities[],Quantities!$R$2)*VLOOKUP($A48,Quantities[],Quantities!$Q$2),VLOOKUP($A48,Quantities[],Quantities!$T$2)*VLOOKUP($A48,Quantities[],Quantities!$S$2)))/SUM(VLOOKUP($A48,Quantities[],Quantities!$O$2),VLOOKUP($A48,Quantities[],Quantities!$Q$2),VLOOKUP($A48,Quantities[],Quantities!$S$2)), IF(AND(LEFT(D48,2)="Sc",OR(C48="a",C48="f")), VLOOKUP(A48,Quantities[],Quantities!$J$2), IF(AND(B48="D",C48="b", (VLOOKUP(INDEX(Quantities!$A$100:$A$118,MATCH($A48,Quantities!$C$100:$C$118)),Quantities[],Quantities!$O$2)+VLOOKUP(INDEX(Quantities!$A$100:$A$118,MATCH($A48,Quantities!$C$100:$C$118)),Quantities[],Quantities!$Q$2)+VLOOKUP(INDEX(Quantities!$A$100:$A$118,MATCH($A48,Quantities!$C$100:$C$118)),Quantities[],Quantities!$S$2))>0), (VLOOKUP(INDEX(Quantities!$A$100:$A$118,MATCH($A48,Quantities!$C$100:$C$118)),Quantities[],Quantities!$P$2)*VLOOKUP(INDEX(Quantities!$A$100:$A$118,MATCH($A48,Quantities!$C$100:$C$118)),Quantities[],Quantities!$O$2) +VLOOKUP(INDEX(Quantities!$A$100:$A$118,MATCH($A48,Quantities!$C$100:$C$118)),Quantities[],Quantities!$R$2)*VLOOKUP(INDEX(Quantities!$A$100:$A$118,MATCH($A48,Quantities!$C$100:$C$118)),Quantities[],Quantities!$Q$2) +VLOOKUP(INDEX(Quantities!$A$100:$A$118,MATCH($A48,Quantities!$C$100:$C$118)),Quantities[],Quantities!$T$2)*VLOOKUP(INDEX(Quantities!$A$100:$A$118,MATCH($A48,Quantities!$C$100:$C$118)),Quantities[],Quantities!$S$2))/ (VLOOKUP(INDEX(Quantities!$A$100:$A$118,MATCH($A48,Quantities!$C$100:$C$118)),Quantities[],Quantities!$O$2)+VLOOKUP(INDEX(Quantities!$A$100:$A$118,MATCH($A48,Quantities!$C$100:$C$118)),Quantities[],Quantities!$Q$2)+VLOOKUP(A48,Quantities[],Quantities!$S$2)), IF(AND(B48="D", (VLOOKUP(A48,Quantities[],Quantities!$O$2)+VLOOKUP(A48,Quantities[],Quantities!$Q$2)+VLOOKUP(A48,Quantities[],Quantities!$S$2))>0), (VLOOKUP(A48,Quantities[],Quantities!$P$2)*VLOOKUP(A48,Quantities[],Quantities!$O$2) +VLOOKUP(A48,Quantities[],Quantities!$R$2)*VLOOKUP(A48,Quantities[],Quantities!$Q$2) +VLOOKUP(A48,Quantities[],Quantities!$T$2)*VLOOKUP(A48,Quantities[],Quantities!$S$2))/ (VLOOKUP(A48,Quantities[],Quantities!$O$2)+VLOOKUP(A48,Quantities[],Quantities!$Q$2)+VLOOKUP(A48,Quantities[],Quantities!$S$2)), IF($B48="Q", (SUM(VLOOKUP($A48,Quantities[],Quantities!$P$2)*VLOOKUP($A48,Quantities[],Quantities!$O$2),VLOOKUP($A48,Quantities[],Quantities!$R$2)*VLOOKUP($A48,Quantities[],Quantities!$Q$2),VLOOKUP($A48,Quantities[],Quantities!$T$2)*VLOOKUP($A48,Quantities[],Quantities!$S$2)))/SUM(VLOOKUP($A48,Quantities[],Quantities!$O$2),VLOOKUP($A48,Quantities[],Quantities!$Q$2),VLOOKUP($A48,Quantities[],Quantities!$S$2)), VLOOKUP(A48,Quantities[],Quantities!$H$2) )))))) -> 0.01 | K48: =IF(LEFT(D48,1)="U","-",VLOOKUP(D48,Equipment[],Equipment!$B$2)) -> Cat 16M
